Workbook

Sheet 양식0 (hidden)
B1: 1. 대상국가 | F1: * 성과관리예산 계상 매핑 여부 : | I1: 사업 총계 | J1: 0 | K1: 숨김 | L1: 숨김 | M1: 숨김 | N1: 숨김 | O1: 숨김 | P1: 숨김 | X1: 원본 | Y1: 시트명 | Z1: 양식0
B2: 2. 환율(1USD) | D2: << 필요시 액티비티별 환율 수정 가능 | J2: 0 | X2: 숨김 | Y2: 숨김 | Z2: 숨김
B3: 3. 성과(Outcome) | I3: 계약 총계 | J3: 0
B4: 4. 산출물(Output) | I4: * 괄호는 총사업비 내 비율 | J4: 0
B5: 5. 활동(Activity) | I5: 산출물(Output) 총계 | J5: =IFERROR(SUM(J7,J8*$B$2),0) -> 0
B6: 6. 활동 이행기간 | E6: * 성과/산출물/활동 타이틀의 수정은 사업설계안 시트에서만 가능합니다 | I6: * 상동 | J6: =IFERROR(SUM(J8,J7/$B$2),0) -> 0
B7: ~ | E7: * 활동 이행기간, 계약/성과관리계상의 수정은 사업시행구조 시트에서만 가능합니다 | I7: 활동(Activity) 총계 | J7: =IFERROR(SUM(SUMIFS(I:I,H:H,"KRW"), SUMIFS(I:I,H:H,"USD")*$C$2), 0) -> 0
B8: 7. 계약매핑 | G8: * 자동취합 대상 : | H8: FALSE | J8: =IFERROR(SUM(SUMIFS(I:I,H:H,"USD"),SUMIFS(I:I,H:H,"KRW")/$C$2), 0) -> 0
A10: 대분류 | B10: 중분류 | C10: 소분류 | D10: 세부시트 | E10: 비고(사용자 자유입력) | H10: 화폐 | I10: 산출액 | J10: 비고(관리자 입력값 고정) | K10: 호출하위시트 | L10: 캐쉬1 | M10: 캐쉬2 | N10: 캐쉬3 | O10: 캐쉬4 | P10: 캐쉬5
A11: 전문가 파견 | B11: 인건비관련 | D11: [생성가능] | H11: KRW | I11: 0 | J11: 입력을 위해 세부시트 생성 | K11: 양식2 | O11: KRW | P11: 0
A12: 전문가 파견 | B12: 그 외 | D12: [생성가능] | E12: 기타 경비, 전문가 등급으로 구분할 수 없는 현지직원 등의 인건비 등 | H12: KRW | I12: 0 | J12: 입력을 위해 세부시트 생성 | K12: 양식1 | O12: KRW | P12: 0
A13: 역량강화 | B13: 초청연수 | C13: 1회차 | D13: [생성가능] | E13: 연수 과정명을 입력하세요 | F13: 인원(명) | G13: 기간(일) | H13: KRW | I13: 0 | J13: 입력을 위해 세부시트 생성 | K13: 양식3 | L13: 연수 과정명을 입력하세요 | M13: 인원(명) | N13: 기간(일) | O13: KRW | P13: 0
A14: 역량강화 | B14: 초청연수 | C14: 2회차 | D14: [생성가능] | E14: 연수 과정명을 입력하세요 | F14: 인원(명) | G14: 기간(일) | H14: KRW | I14: 0 | J14: 입력을 위해 세부시트 생성 | K14: 양식3 | L14: 연수 과정명을 입력하세요 | M14: 인원(명) | N14: 기간(일) | O14: KRW | P14: 0
A15: 역량강화 | B15: 초청연수 | C15: 3회차 | D15: [생성가능] | E15: 연수 과정명을 입력하세요 | F15: 인원(명) | G15: 기간(일) | H15: KRW | I15: 0 | J15: 입력을 위해 세부시트 생성 | K15: 양식3 | L15: 연수 과정명을 입력하세요 | M15: 인원(명) | N15: 기간(일) | O15: KRW | P15: 0
A16: 역량강화 | B16: 초청연수 | C16: 4회차 | D16: [생성가능] | E16: 연수 과정명을 입력하세요 | F16: 인원(명) | G16: 기간(일) | H16: KRW | I16: 0 | J16: 입력을 위해 세부시트 생성 | K16: 양식3 | L16: 연수 과정명을 입력하세요 | M16: 인원(명) | N16: 기간(일) | O16: KRW | P16: 0
A17: 역량강화 | B17: 초청연수 | C17: 5회차 | D17: [생성가능] | E17: 연수 과정명을 입력하세요 | F17: 인원(명) | G17: 기간(일) | H17: KRW | I17: 0 | J17: 입력을 위해 세부시트 생성 | K17: 양식3 | L17: 연수 과정명을 입력하세요 | M17: 인원(명) | N17: 기간(일) | O17: KRW | P17: 0
A18: 역량강화 | B18: 현지연수 | C18: 1회차 | D18: [생성가능] | H18: KRW | I18: 0 | J18: 입력을 위해 세부시트 생성 | K18: 양식2 | O18: KRW | P18: 0
A19: 역량강화 | B19: 현지연수 | C19: 2회차 | D19: [생성가능] | H19: KRW | I19: 0 | J19: 입력을 위해 세부시트 생성 | K19: 양식2 | O19: KRW | P19: 0
A20: 역량강화 | B20: 현지연수 | C20: 3회차 | D20: [생성가능] | H20: KRW | I20: 0 | J20: 입력을 위해 세부시트 생성 | K20: 양식2 | O20: KRW | P20: 0
A21: 역량강화 | B21: 그 외 | D21: [생성가능] | E21: 학위과정, 비대면연수, 그 외 역량강화를 위한 활동 | H21: KRW | I21: 0 | J21: 입력을 위해 세부시트 생성 | K21: 양식1 | O21: KRW | P21: 0
A22: 건축 | B22: 시공비 | D22: [생성가능] | I22: 0 | J22: 1식 입력 또는 세부시트 생성 가능 | K22: 양식1 | P22: 0
A23: 건축 | B23: 설계비 | D23: [생성가능] | E23: 요율방식인 경우 지침 내 안내된 대로 KIRA 대가산정양식 활용 | I23: 0 | J23: 1식 입력 또는 세부시트 생성 가능 | K23: 양식1 | P23: 0
A24: 건축 | B24: 인건비관련 | D24: [생성가능] | E24: 투입공수 방식, 또는 현장조사 경비산정시(인건비 제외시 화폐 KRW 삭제) | H24: KRW | I24: 0 | J24: 입력을 위해 세부시트 생성 | K24: 양식2 | O24: KRW | P24: 0
A25: 건축 | B25: 인건비관련 | D25: [생성가능] | E25: 투입공수 방식, 또는 현장조사 경비산정시(인건비 제외시 화폐 KRW 삭제) | H25: KRW | I25: 0 | J25: 입력을 위해 세부시트 생성 | K25: 양식2 | O25: KRW | P25: 0
A26: 건축 | B26: 그 외 | D26: [생성가능] | E26: 건축 CM 분담비 등 | H26: KRW | I26: 0 | J26: 입력을 위해 세부시트 생성 | K26: 양식1 | O26: KRW | P26: 0
A27: 기자재 | B27: 기자재공급비 | D27: [생성가능] | H27: KRW | I27: 0 | J27: 입력을 위해 세부시트 생성 | K27: 양식1 | O27: KRW | P27: 0
A28: 기자재 | B28: 인건비관련 | D28: [생성가능] | H28: KRW | I28: 0 | J28: 입력을 위해 세부시트 생성 | K28: 양식2 | O28: KRW | P28: 0
A29: 기자재 | B29: 그 외 | D29: [생성가능] | E29: 검수비, 전문가 등급으로 구분할 수 없는 현지 인력 투입 비용 등 | H29: KRW | I29: 0 | J29: 입력을 위해 세부시트 생성 | K29: 양식1 | O29: KRW | P29: 0
A30: 정보화 | B30: 설계비 | D30: [생성가능] | E30: FP 방식의 경우 지침 내 안내된 대로 KOSA 대가산정양식 활용 | I30: 0 | J30: 1식 입력 또는 세부시트 생성 가능 | K30: 양식1 | P30: 0
A31: 정보화 | B31: 개발비 | D31: [생성가능] | E31: FP 방식의 경우 지침 내 안내된 대로 KOSA 대가산정양식 활용 | I31: 0 | J31: 1식 입력 또는 세부시트 생성 가능 | K31: 양식1 | P31: 0
A32: 정보화 | B32: DB구축비 | D32: [생성가능] | E32: FP 방식의 경우 지침 내 안내된 대로 KOSA 대가산정양식 활용 | I32: 0 | J32: 1식 입력 또는 세부시트 생성 가능 | K32: 양식1 | P32: 0
A33: 정보화 | B33: 인건비관련 | D33: [생성가능] | E33: 투입공수 방식, 또는 현장조사 경비산정시(인건비 제외시 화폐 KRW 삭제) | H33: KRW | I33: 0 | J33: 입력을 위해 세부시트 생성 | K33: 양식2 | O33: KRW | P33: 0
A34: 정보화 | B34: 인건비관련 | D34: [생성가능] | E34: 투입공수 방식, 또는 현장조사 경비산정시(인건비 제외시 화폐 KRW 삭제) | H34: KRW | I34: 0 | J34: 입력을 위해 세부시트 생성 | K34: 양식2 | O34: KRW | P34: 0
A35: 정보화 | B35: 초청연수 | C35: 1회차 | D35: [생성가능] | E35: 연수 과정명을 입력하세요 | F35: 인원(명) | G35: 기간(일) | H35: KRW | I35: 0 | J35: 입력을 위해 세부시트 생성 | K35: 양식3 | L35: 연수 과정명을 입력하세요 | M35: 인원(명) | N35: 기간(일) | O35: KRW | P35: 0
A36: 정보화 | B36: 초청연수 | C36: 2회차 | D36: [생성가능] | E36: 연수 과정명을 입력하세요 | F36: 인원(명) | G36: 기간(일) | H36: KRW | I36: 0 | J36: 입력을 위해 세부시트 생성 | K36: 양식3 | L36: 연수 과정명을 입력하세요 | M36: 인원(명) | N36: 기간(일) | O36: KRW | P36: 0
A37: 정보화 | B37: 초청연수 | C37: 3회차 | D37: [생성가능] | E37: 연수 과정명을 입력하세요 | F37: 인원(명) | G37: 기간(일) | H37: KRW | I37: 0 | J37: 입력을 위해 세부시트 생성 | K37: 양식3 | L37: 연수 과정명을 입력하세요 | M37: 인원(명) | N37: 기간(일) | O37: KRW | P37: 0
A38: 정보화 | B38: 초청연수 | C38: 4회차 | D38: [생성가능] | E38: 연수 과정명을 입력하세요 | F38: 인원(명) | G38: 기간(일) | H38: KRW | I38: 0 | J38: 입력을 위해 세부시트 생성 | K38: 양식3 | L38: 연수 과정명을 입력하세요 | M38: 인원(명) | N38: 기간(일) | O38: KRW | P38: 0
A39: 정보화 | B39: 초청연수 | C39: 5회차 | D39: [생성가능] | E39: 연수 과정명을 입력하세요 | F39: 인원(명) | G39: 기간(일) | H39: KRW | I39: 0 | J39: 입력을 위해 세부시트 생성 | K39: 양식3 | L39: 연수 과정명을 입력하세요 | M39: 인원(명) | N39: 기간(일) | O39: KRW | P39: 0
A40: 정보화 | B40: 현지연수 | C40: 1회차 | D40: [생성가능] | H40: KRW | I40: 0 | J40: 입력을 위해 세부시트 생성 | K40: 양식2 | O40: KRW | P40: 0
A41: 정보화 | B41: 현지연수 | C41: 2회차 | D41: [생성가능] | H41: KRW | I41: 0 | J41: 입력을 위해 세부시트 생성 | K41: 양식2 | O41: KRW | P41: 0
A42: 정보화 | B42: 현지연수 | C42: 3회차 | D42: [생성가능] | H42: KRW | I42: 0 | J42: 입력을 위해 세부시트 생성 | K42: 양식2 | O42: KRW | P42: 0
A43: 정보화 | B43: 기자재공급비 | D43: [생성가능] | H43: KRW | I43: 0 | J43: 입력을 위해 세부시트 생성 | K43: 양식1 | O43: KRW | P43: 0
A44: 정보화 | B44: 기자재공급비 | C44: 인건비관련 | D44: [생성가능] | E44: 기자재 설치/운용교육을 위한 전문가 파견의 경우 | H44: KRW | I44: 0 | J44: 입력을 위해 세부시트 생성 | K44: 양식2 | O44: KRW | P44: 0
A45: 정보화 | B45: 그 외 | D45: [생성가능] | E45: 단독감리비용, 지역감리분담금, 기타 경비 등 | H45: KRW | I45: 0 | J45: 입력을 위해 세부시트 생성 | K45: 양식1 | O45: KRW | P45: 0
A46: 직접지원-프로그램 | D46: [생성가능] | E46: 협력국 직접 조달의 경우 | H46: USD | I46: 0 | J46: 1식 입력 또는 세부시트 생성 가능 | K46: 양식1 | O46: USD | P46: 0

Sheet 양식1 (hidden)
A1: 항목별 세부내역 | C1: - 항목정보 : | N1: - 총 계 : | O1: \ | P1: =SUM($Q:$Q) -> 0 | X1: 원본 | Y1: 시트명 | Z1: 양식1
A2: 대분류 | B2: 중분류 | C2: 소분류 | D2: 품목명 / 항목별 정의 / 그 외 산출 기준 등 | E2: 환율 | F2: 통화 | G2: 단가 | H2: 연산1 | I2: 수량1 | J2: 단위1 | K2: 연산2 | L2: 수량2 | M2: 단위2 | N2: 연산3 | O2: 수량3 | P2: 단위3 | Q2: 계 (KRW) | X2: 숨김 | Y2: 숨김 | Z2: 숨김
H4: x | K4: x | N4: x | Q4: =IF(OR(E4="", G4=""), "", PRODUCT(E4, G4, I4, L4, O4)) -> 
H5: x | K5: x | N5: x
H6: x | K6: x | N6: x
H7: x | K7: x | N7: x
H8: x | K8: x | N8: x
H9: x | K9: x | N9: x
H10: x | K10: x | N10: x
H11: x | K11: x | N11: x
H12: x | K12: x | N12: x
H13: x | K13: x | N13: x
H14: x | K14: x | N14: x
H15: x | K15: x | N15: x
H16: x | K16: x | N16: x
H17: x | K17: x | N17: x
H18: x | K18: x | N18: x
H19: x | K19: x | N19: x
H20: x | K20: x | N20: x
H21: x | K21: x | N21: x
H22: x | K22: x | N22: x
H23: x | K23: x | N23: x
H24: x | K24: x | N24: x
H25: x | K25: x | N25: x
H26: x | K26: x | N26: x
H27: x | K27: x | N27: x
H28: x | K28: x | N28: x
H29: x | K29: x | N29: x
H30: x | K30: x | N30: x
H31: x | K31: x | N31: x
H32: x | K32: x | N32: x
H33: x | K33: x | N33: x
H34: x | K34: x | N34: x
H35: x | K35: x | N35: x
H36: x | K36: x | N36: x | Q36: =IF(OR(E36="", G36=""), "", PRODUCT(E36, G36, I36, L36, O36)) -> 
H37: x | K37: x | N37: x
H38: x | K38: x | N38: x
H39: x | K39: x | N39: x
H40: x | K40: x | N40: x
H41: x | K41: x | N41: x
H42: x | K42: x | N42: x
H43: x | K43: x | N43: x
H44: x | K44: x | N44: x
H45: x | K45: x | N45: x
H46: x | K46: x | N46: x
H47: x | K47: x | N47: x
H48: x | K48: x | N48: x
H49: x | K49: x | N49: x
H50: x | K50: x | N50: x
H51: x | K51: x | N51: x
H52: x | K52: x | N52: x
H53: x | K53: x | N53: x
H54: x | K54: x | N54: x
H55: x | K55: x | N55: x
H56: x | K56: x | N56: x
H57: x | K57: x | N57: x
H58: x | K58: x | N58: x
H59: x | K59: x | N59: x
H60: x | K60: x | N60: x
H61: x | K61: x | N61: x
H62: x | K62: x | N62: x
H63: x | K63: x | N63: x
H64: x | K64: x | N64: x
H65: x | K65: x | N65: x
H66: x | K66: x | N66: x
H67: x | K67: x | N67: x
H68: x | K68: x | N68: x | Q68: =IF(OR(E68="", G68=""), "", PRODUCT(E68, G68, I68, L68, O68)) -> 
H69: x | K69: x | N69: x
H70: x | K70: x | N70: x
H71: x | K71: x | N71: x
H72: x | K72: x | N72: x
H73: x | K73: x | N73: x
H74: x | K74: x | N74: x
H75: x | K75: x | N75: x
H76: x | K76: x | N76: x
H77: x | K77: x | N77: x
H78: x | K78: x | N78: x
H79: x | K79: x | N79: x
H80: x | K80: x | N80: x
H81: x | K81: x | N81: x
H82: x | K82: x | N82: x
H83: x | K83: x | N83: x
H84: x | K84: x | N84: x
H85: x | K85: x | N85: x
H86: x | K86: x | N86: x
H87: x | K87: x | N87: x
H88: x | K88: x | N88: x
H89: x | K89: x | N89: x
H90: x | K90: x | N90: x
H91: x | K91: x | N91: x
H92: x | K92: x | N92: x
H93: x | K93: x | N93: x
H94: x | K94: x | N94: x
H95: x | K95: x | N95: x
H96: x | K96: x | N96: x
H97: x | K97: x | N97: x
H98: x | K98: x | N98: x
H99: x | K99: x | N99: x
H100: x | K100: x | N100: x

Sheet 양식2 (hidden)
A1: 투입인력 내역표 (2023.07.13. 규정 적용) | C1: - 항목정보 : | X1: 원본 | Y1: 시트명 | Z1: 양식2 | AE1: 국가 : | AF1: =사업시행구조!$E$7 -> 파키스탄 | AK1: 환율(USD) : | AL1: 0 | AQ1: 소계 : | AR1: =_xlfn.AGGREGATE(9,6,AJ3:AK46) -> 0 | BB1: 숨김 | BC1: 숨김 | BD1: 숨김 | BE1: 숨김 | BF1: 숨김 | BG1: 숨김
A2: [ 투입인력표 범례 및 입력 안내 ] ㅇ 분야 : 투입인력의 역할 or 분야 or 담당 세부 과업 기재 - 예시 : PM, PL, ㅇㅇ 공과, 성과관리, 기본설계, PAO 등 ㅇ KOICA 전문가등급 : 국내외인건비 및 국외체제비 지급을 위해 인력별 입력 필요 - '전문인력 업무처리에 관한 지침'을 근거로 산정한 전문가등급을 기준으로 지급 ㅇ 중요도 : 주요 or 일반 선택 *'핵심'인력은 '주요'선택 - 주요 인력 : 투입인력 변경 전 KOICA 사전승인 필수 - 일반 인력 : 파트너 자율 변경 후 IPM 변경 기록만 입력 ㅇ 국내투입일 : 투입일수(근무일수) 기준으로 입력 - 예시 : 5M/M 투입 시 110M/D(22M/D*5) 입력 ㅇ 파견횟수 : 용역기간 동안 예상되는 출장 횟수 - 투찰 시 제안요청서상 투입일수는 준수하되, 파견횟수는 자율 조정 가능 * 30회 이상 파견인력은 2행으로 나누어 입력 ** SOS 긴급의료 및 보안지원서비스는 인접한 파견 여러 건에 걸쳐 가입하는 경우도 있으므로 파견횟수 설정 시 참고 ㅇ 국외투입일 : 체재일수(입국일~출국일) 기준 입력 - 파견회차별 투입일 입력 시 국외 직접인건비 등 자동 산출 ㅇ 입찰참가기관 지침 : RFP 상 기재 내용 참고 - "I.제안요청내용>3.세부과업지침>가.전문가투입>전문가 투입 총괄표" ※ (주의) KOICA 전문가 등급(B열)이 지정되어야 산출값이 상계됩니다. [ 관련 항목별 정의 및 산출기준 ] ㅇ 직접인건비 : 용역업무에 직접 종사하는 자의 급료, 수당, 상여금, 퇴직적립금 및 산재보험 등을 포함하는 것으로서, 국내에서 수행하는 용역에 대한 직접인건비와 국외에서 수행하는 용역에 대한 직접인건비로 구분 ㅇ 제경비 : 직접인건비 및 직접경비에 포함되지 않는 간접비로, 사업지원인력 인건비 (임원, 행정보조, 회계책임자 등) 및 국내외 사무실 관리비, 회의비, 자료 수집비, 통신비 등 기타 사업수행 지원비 등을 포함하며, 사업의 성격에 따라 △ 일반 제경비 △ 현지활동 제경비 △ 초청연수 제경비로 구분 - 일반제경비 : 직접인건비 대비 비율(%)로 계산. (단, 국내초청연수 시행을 위해 투입되는 직접인건비 미포함) - 소수점 여섯째 자리에서 반올림 표시 ㅇ 직접경비 : 전문가 파견에 직접 필요한 지원비 - 체재비 : 현지 출장(또는 파견) 전문가의 체류 관련 경비 - 현지사정 등에 따라 숙박비 150% 지급 가능 - 특수지수당 : 총 체재일 합산 기준 월할 지급 (1M/M=30M/D) ㅇ 항공료 : 현지 출장(또는 파견) 전문가 항공 운임 (비자발급비 포함) - 이코노미석 : 파견 회차 정보를 기준으로 자동 산출 (단가/수량 수정 가능) - 비즈니스석 : 관련 규정에 의거 해당되는 경우 ㅇ 보험료 : 현지출장(파견) 전문가를 피보험자로 하는 SOS 긴급의료/보안지원 서비스 및 해외여행자보험 가입비용 | O2: 관련 항목별 소 계 | R2: 대분류 | U2: 중분류 | X2: 소분류 | AA2: 세분류-1 | AD2: 세분류-2 | AG2: 세분류-3 | AJ2: 소계(원화) | AL2: 환율 | AN2: 통화 | AO2: 연산1 | AP2: 수량1 | AR2: 연산2 | AS2: 수량2 | AU2: 연산3 | AV2: 수량3 | AX2: 연산4 | AY2: 수량4 | BA2: 컨트롤패널
R3: 전문가 파견 | U3: 직접인건비 | AA3: 국내인건비 | AD3: KOICA 전문가 | AG3: 1급 | AJ3: =IF(OR(AN3=""), "", PRODUCT(AL3, AP3, AS3, AV3, AY3)) -> 0 | AL3: 1 | AN3: KRW | AO3: x | AP3: ='기준(전문가파견)'!$L$449 -> 400000 | AR3: x | AS3: =SUMIFS($D:$D,$B:$B, AG3) -> 0
R4: 전문가 파견 | U4: 직접인건비 | AA4: 국내인건비 | AD4: KOICA 전문가 | AG4: 2급 | AJ4: =IF(OR(AN4=""), "", PRODUCT(AL4, AP4, AS4, AV4, AY4)) -> 0 | AL4: 1 | AN4: KRW | AO4: x | AP4: ='기준(전문가파견)'!$L$454 -> 310000 | AR4: x | AS4: 0
R5: 전문가 파견 | U5: 직접인건비 | AA5: 국내인건비 | AD5: KOICA 전문가 | AG5: 3급 | AJ5: 0 | AL5: 1 | AN5: KRW | AO5: x | AP5: ='기준(전문가파견)'!$L$459 -> 260000 | AR5: x | AS5: 0
R6: 전문가 파견 | U6: 직접인건비 | AA6: 국내인건비 | AD6: KOICA 전문가 | AG6: 4급 | AJ6: 0 | AL6: 1 | AN6: KRW | AO6: x | AP6: ='기준(전문가파견)'!$L$464 -> 230000 | AR6: x | AS6: 0
R7: 전문가 파견 | U7: 직접인건비 | AA7: 국내인건비 | AD7: KOICA 전문가 | AG7: 5급 | AJ7: 0 | AL7: 1 | AN7: KRW | AO7: x | AP7: ='기준(전문가파견)'!$L$469 -> 200000 | AR7: x | AS7: 0
R8: 전문가 파견 | U8: 직접인건비 | AA8: 국내인건비 | AD8: KOICA 전문가 | AG8: 6급 | AJ8: 0 | AL8: 1 | AN8: KRW | AO8: x | AP8: ='기준(전문가파견)'!$L$474 -> 160000 | AR8: x | AS8: 0
R9: 전문가 파견 | U9: 직접인건비 | AA9: 국외인건비 | AD9: KOICA 전문가 | AG9: 1급 | AJ9: 0 | AL9: 1 | AN9: KRW | AO9: x | AP9: ='기준(전문가파견)'!$L$449 -> 400000 | AR9: x | AS9: =SUMIFS($AJ:$AJ,$B:$B, AG9) -> 0
R10: 전문가 파견 | U10: 직접인건비 | AA10: 국외인건비 | AD10: KOICA 전문가 | AG10: 2급 | AJ10: 0 | AL10: 1 | AN10: KRW | AO10: x | AP10: ='기준(전문가파견)'!$L$454 -> 310000 | AR10: x | AS10: 0
R11: 전문가 파견 | U11: 직접인건비 | AA11: 국외인건비 | AD11: KOICA 전문가 | AG11: 3급 | AJ11: 0 | AL11: 1 | AN11: KRW | AO11: x | AP11: ='기준(전문가파견)'!$L$459 -> 260000 | AR11: x | AS11: 0
R12: 전문가 파견 | U12: 직접인건비 | AA12: 국외인건비 | AD12: KOICA 전문가 | AG12: 4급 | AJ12: 0 | AL12: 1 | AN12: KRW | AO12: x | AP12: ='기준(전문가파견)'!$L$464 -> 230000 | AR12: x | AS12: 0
R13: 전문가 파견 | U13: 직접인건비 | AA13: 국외인건비 | AD13: KOICA 전문가 | AG13: 5급 | AJ13: 0 | AL13: 1 | AN13: KRW | AO13: x | AP13: ='기준(전문가파견)'!$L$469 -> 200000 | AR13: x | AS13: 0
R14: 전문가 파견 | U14: 직접인건비 | AA14: 국외인건비 | AD14: KOICA 전문가 | AG14: 6급 | AJ14: 0 | AL14: 1 | AN14: KRW | AO14: x | AP14: ='기준(전문가파견)'!$L$474 -> 160000 | AR14: x | AS14: 0
R15: 전문가 파견 | U15: 제경비 | X15: 일반 | AJ15: =IF(OR(AL15="", AP15=""), "", PRODUCT(AL15, AP15, AS15, AV15, AY15)) -> 0 | AL15: 1 | AN15: KRW | AO15: x | AP15: =SUM($AJ$3:$AK$14) -> 0 | AR15: x | AS15: 1.1
R16: 전문가 파견 | U16: 제경비 | X16: 현지활동 | AJ16: =IF(OR(AL16="", AP16=""), 0, PRODUCT(AL16, AP16, AS16, AV16, AY16)) -> 0 | AL16: =$AL$1 -> 0 | AN16: USD | AO16: x
R17: 전문가 파견 | U17: 기술료 | AJ17: =IF(OR(AL17="", AP17=""), "", PRODUCT(AL17, AP17, AS17, AV17, AY17)) -> 0 | AL17: 1 | AN17: KRW | AP17: =SUM($AJ$3:$AK$16) -> 0 | AS17: 0.4
R18: 전문가 파견 | U18: 직접경비 | X18: 파견경비 | AA18: 체재비 | AD18: 30일 이하 | AG18: 1급 | AJ18: =IF(OR(AL18="",AP18=""),"", 1*SUM(PRODUCT(AL18,AP18,AS18),PRODUCT(AL18,AV18,AY18)*1)) -> 0 | AL18: =$AL$1 -> 0 | AN18: USD | AO18: x | AP18: =INDEX('기준(전문가파견)'!$P$228:$CI$275,MATCH(VLOOKUP($AF$1,'기준(전문가파견)'!$G$93:$BD$223,31)&AG18,INDEX('기준(전문가파견)'!$P$228:$P$275&'기준(전문가파견)'!$Q$228:$Q$275,,),0),19) -> 93 | AR18: x | AS18: =SUMIFS($AO:$AO,$B:$B, AG18) -> 0 | AU18: + | AV18: =INDEX('기준(전문가파견)'!$P$228:$CI$275,MATCH(VLOOKUP($AF$1,'기준(전문가파견)'!$G$93:$BD$223,31)&AG18,INDEX('기준(전문가파견)'!$P$228:$P$275&'기준(전문가파견)'!$Q$228:$Q$275,,),0),46) -> 111 | AX18: x | AY18: =AS18-SUM(SUMIFS($AR:$AR,$B:$B, AG18)) -> 0 | BA18: [숙박비증액가능]
R19: 전문가 파견 | U19: 직접경비 | X19: 파견경비 | AA19: 체재비 | AD19: 30일 이하 | AG19: 2급 | AJ19: =IF(OR(AL19="",AP19=""),"", 1*SUM(PRODUCT(AL19,AP19,AS19),PRODUCT(AL19,AV19,AY19)*1)) -> 0 | AL19: 0 | AN19: USD | AO19: x | AP19: =INDEX('기준(전문가파견)'!$P$228:$CI$275,MATCH(VLOOKUP($AF$1,'기준(전문가파견)'!$G$93:$BD$223,31)&AG19,INDEX('기준(전문가파견)'!$P$228:$P$275&'기준(전문가파견)'!$Q$228:$Q$275,,),0),19) -> 93 | AR19: x | AS19: 0 | AU19: + | AV19: =INDEX('기준(전문가파견)'!$P$228:$CI$275,MATCH(VLOOKUP($AF$1,'기준(전문가파견)'!$G$93:$BD$223,31)&AG19,INDEX('기준(전문가파견)'!$P$228:$P$275&'기준(전문가파견)'!$Q$228:$Q$275,,),0),46) -> 111 | AX19: x | AY19: 0 | BA19: [숙박비증액가능]
R20: 전문가 파견 | U20: 직접경비 | X20: 파견경비 | AA20: 체재비 | AD20: 30일 이하 | AG20: 3급 | AJ20: 0 | AL20: 0 | AN20: USD | AO20: x | AP20: =INDEX('기준(전문가파견)'!$P$228:$CI$275,MATCH(VLOOKUP($AF$1,'기준(전문가파견)'!$G$93:$BD$223,31)&AG20,INDEX('기준(전문가파견)'!$P$228:$P$275&'기준(전문가파견)'!$Q$228:$Q$275,,),0),19) -> 74 | AR20: x | AS20: 0 | AU20: + | AV20: =INDEX('기준(전문가파견)'!$P$228:$CI$275,MATCH(VLOOKUP($AF$1,'기준(전문가파견)'!$G$93:$BD$223,31)&AG20,INDEX('기준(전문가파견)'!$P$228:$P$275&'기준(전문가파견)'!$Q$228:$Q$275,,),0),46) -> 90 | AX20: x | AY20: 0 | BA20: [숙박비증액가능]
R21: 전문가 파견 | U21: 직접경비 | X21: 파견경비 | AA21: 체재비 | AD21: 30일 이하 | AG21: 4급 | AJ21: 0 | AL21: 0 | AN21: USD | AO21: x | AP21: =INDEX('기준(전문가파견)'!$P$228:$CI$275,MATCH(VLOOKUP($AF$1,'기준(전문가파견)'!$G$93:$BD$223,31)&AG21,INDEX('기준(전문가파견)'!$P$228:$P$275&'기준(전문가파견)'!$Q$228:$Q$275,,),0),19) -> 74 | AR21: x | AS21: 0 | AU21: + | AV21: =INDEX('기준(전문가파견)'!$P$228:$CI$275,MATCH(VLOOKUP($AF$1,'기준(전문가파견)'!$G$93:$BD$223,31)&AG21,INDEX('기준(전문가파견)'!$P$228:$P$275&'기준(전문가파견)'!$Q$228:$Q$275,,),0),46) -> 90 | AX21: x | AY21: 0 | BA21: [숙박비증액가능]
R22: 전문가 파견 | U22: 직접경비 | X22: 파견경비 | AA22: 체재비 | AD22: 30일 이하 | AG22: 5급 | AJ22: 0 | AL22: 0 | AN22: USD | AO22: x | AP22: =INDEX('기준(전문가파견)'!$P$228:$CI$275,MATCH(VLOOKUP($AF$1,'기준(전문가파견)'!$G$93:$BD$223,31)&AG22,INDEX('기준(전문가파견)'!$P$228:$P$275&'기준(전문가파견)'!$Q$228:$Q$275,,),0),19) -> 74 | AR22: x | AS22: 0 | AU22: + | AV22: =INDEX('기준(전문가파견)'!$P$228:$CI$275,MATCH(VLOOKUP($AF$1,'기준(전문가파견)'!$G$93:$BD$223,31)&AG22,INDEX('기준(전문가파견)'!$P$228:$P$275&'기준(전문가파견)'!$Q$228:$Q$275,,),0),46) -> 90 | AX22: x | AY22: 0 | BA22: [숙박비증액가능]
R23: 전문가 파견 | U23: 직접경비 | X23: 파견경비 | AA23: 체재비 | AD23: 30일 이하 | AG23: 6급 | AJ23: 0 | AL23: 0 | AN23: USD | AO23: x | AP23: =INDEX('기준(전문가파견)'!$P$228:$CI$275,MATCH(VLOOKUP($AF$1,'기준(전문가파견)'!$G$93:$BD$223,31)&AG23,INDEX('기준(전문가파견)'!$P$228:$P$275&'기준(전문가파견)'!$Q$228:$Q$275,,),0),19) -> 74 | AR23: x | AS23: 0 | AU23: + | AV23: =INDEX('기준(전문가파견)'!$P$228:$CI$275,MATCH(VLOOKUP($AF$1,'기준(전문가파견)'!$G$93:$BD$223,31)&AG23,INDEX('기준(전문가파견)'!$P$228:$P$275&'기준(전문가파견)'!$Q$228:$Q$275,,),0),46) -> 90 | AX23: x | AY23: 0 | BA23: [숙박비증액가능]
R24: 전문가 파견 | U24: 직접경비 | X24: 파견경비 | AA24: 체재비 | AD24: 31~60일 | AG24: 1급 | AJ24: =IF(OR(AL24="",AP24=""),"", 0.8*SUM(PRODUCT(AL24,AP24,AS24),PRODUCT(AL24,AV24,AY24)*1)) -> 0 | AL24: 0 | AN24: USD | AO24: x | AP24: =INDEX('기준(전문가파견)'!$P$228:$CI$275,MATCH(VLOOKUP($AF$1,'기준(전문가파견)'!$G$93:$BD$223,31)&AG24,INDEX('기준(전문가파견)'!$P$228:$P$275&'기준(전문가파견)'!$Q$228:$Q$275,,),0),19) -> 93 | AR24: x | AS24: =SUMIFS($AP:$AP,$B:$B, AG24) -> 0 | AU24: + | AV24: =INDEX('기준(전문가파견)'!$P$228:$CI$275,MATCH(VLOOKUP($AF$1,'기준(전문가파견)'!$G$93:$BD$223,31)&AG24,INDEX('기준(전문가파견)'!$P$228:$P$275&'기준(전문가파견)'!$Q$228:$Q$275,,),0),46) -> 111 | AX24: x | AY24: =AS24-SUM(SUMIFS($AS:$AS,$B:$B, AG24)) -> 0 | BA24: [숙박비증액가능]
R25: 전문가 파견 | U25: 직접경비 | X25: 파견경비 | AA25: 체재비 | AD25: 31~60일 | AG25: 2급 | AJ25: =IF(OR(AL25="",AP25=""),"", 0.8*SUM(PRODUCT(AL25,AP25,AS25),PRODUCT(AL25,AV25,AY25)*1)) -> 0 | AL25: 0 | AN25: USD | AO25: x | AP25: =INDEX('기준(전문가파견)'!$P$228:$CI$275,MATCH(VLOOKUP($AF$1,'기준(전문가파견)'!$G$93:$BD$223,31)&AG25,INDEX('기준(전문가파견)'!$P$228:$P$275&'기준(전문가파견)'!$Q$228:$Q$275,,),0),19) -> 93 | AR25: x | AS25: 0 | AU25: + | AV25: =INDEX('기준(전문가파견)'!$P$228:$CI$275,MATCH(VLOOKUP($AF$1,'기준(전문가파견)'!$G$93:$BD$223,31)&AG25,INDEX('기준(전문가파견)'!$P$228:$P$275&'기준(전문가파견)'!$Q$228:$Q$275,,),0),46) -> 111 | AX25: x | AY25: 0 | BA25: [숙박비증액가능]
R26: 전문가 파견 | U26: 직접경비 | X26: 파견경비 | AA26: 체재비 | AD26: 31~60일 | AG26: 3급 | AJ26: 0 | AL26: 0 | AN26: USD | AO26: x | AP26: =INDEX('기준(전문가파견)'!$P$228:$CI$275,MATCH(VLOOKUP($AF$1,'기준(전문가파견)'!$G$93:$BD$223,31)&AG26,INDEX('기준(전문가파견)'!$P$228:$P$275&'기준(전문가파견)'!$Q$228:$Q$275,,),0),19) -> 74 | AR26: x | AS26: 0 | AU26: + | AV26: =INDEX('기준(전문가파견)'!$P$228:$CI$275,MATCH(VLOOKUP($AF$1,'기준(전문가파견)'!$G$93:$BD$223,31)&AG26,INDEX('기준(전문가파견)'!$P$228:$P$275&'기준(전문가파견)'!$Q$228:$Q$275,,),0),46) -> 90 | AX26: x | AY26: 0 | BA26: [숙박비증액가능]
R27: 전문가 파견 | U27: 직접경비 | X27: 파견경비 | AA27: 체재비 | AD27: 31~60일 | AG27: 4급 | AJ27: 0 | AL27: 0 | AN27: USD | AO27: x | AP27: =INDEX('기준(전문가파견)'!$P$228:$CI$275,MATCH(VLOOKUP($AF$1,'기준(전문가파견)'!$G$93:$BD$223,31)&AG27,INDEX('기준(전문가파견)'!$P$228:$P$275&'기준(전문가파견)'!$Q$228:$Q$275,,),0),19) -> 74 | AR27: x | AS27: 0 | AU27: + | AV27: =INDEX('기준(전문가파견)'!$P$228:$CI$275,MATCH(VLOOKUP($AF$1,'기준(전문가파견)'!$G$93:$BD$223,31)&AG27,INDEX('기준(전문가파견)'!$P$228:$P$275&'기준(전문가파견)'!$Q$228:$Q$275,,),0),46) -> 90 | AX27: x | AY27: 0 | BA27: [숙박비증액가능]
R28: 전문가 파견 | U28: 직접경비 | X28: 파견경비 | AA28: 체재비 | AD28: 31~60일 | AG28: 5급 | AJ28: 0 | AL28: 0 | AN28: USD | AO28: x | AP28: =INDEX('기준(전문가파견)'!$P$228:$CI$275,MATCH(VLOOKUP($AF$1,'기준(전문가파견)'!$G$93:$BD$223,31)&AG28,INDEX('기준(전문가파견)'!$P$228:$P$275&'기준(전문가파견)'!$Q$228:$Q$275,,),0),19) -> 74 | AR28: x | AS28: 0 | AU28: + | AV28: =INDEX('기준(전문가파견)'!$P$228:$CI$275,MATCH(VLOOKUP($AF$1,'기준(전문가파견)'!$G$93:$BD$223,31)&AG28,INDEX('기준(전문가파견)'!$P$228:$P$275&'기준(전문가파견)'!$Q$228:$Q$275,,),0),46) -> 90 | AX28: x | AY28: 0 | BA28: [숙박비증액가능]
R29: 전문가 파견 | U29: 직접경비 | X29: 파견경비 | AA29: 체재비 | AD29: 31~60일 | AG29: 6급 | AJ29: 0 | AL29: 0 | AN29: USD | AO29: x | AP29: =INDEX('기준(전문가파견)'!$P$228:$CI$275,MATCH(VLOOKUP($AF$1,'기준(전문가파견)'!$G$93:$BD$223,31)&AG29,INDEX('기준(전문가파견)'!$P$228:$P$275&'기준(전문가파견)'!$Q$228:$Q$275,,),0),19) -> 74 | AR29: x | AS29: 0 | AU29: + | AV29: =INDEX('기준(전문가파견)'!$P$228:$CI$275,MATCH(VLOOKUP($AF$1,'기준(전문가파견)'!$G$93:$BD$223,31)&AG29,INDEX('기준(전문가파견)'!$P$228:$P$275&'기준(전문가파견)'!$Q$228:$Q$275,,),0),46) -> 90 | AX29: x | AY29: 0 | BA29: [숙박비증액가능]
R30: 전문가 파견 | U30: 직접경비 | X30: 파견경비 | AA30: 체재비 | AD30: 61일 이상 | AG30: 1급 | AJ30: =IF(OR(AL30="",AP30=""),"", 0.7*SUM(PRODUCT(AL30,AP30,AS30),PRODUCT(AL30,AV30,AY30)*1)) -> 0 | AL30: 0 | AN30: USD | AO30: x | AP30: =INDEX('기준(전문가파견)'!$P$228:$CI$275,MATCH(VLOOKUP($AF$1,'기준(전문가파견)'!$G$93:$BD$223,31)&AG30,INDEX('기준(전문가파견)'!$P$228:$P$275&'기준(전문가파견)'!$Q$228:$Q$275,,),0),19) -> 93 | AR30: x | AS30: =SUMIFS($AQ:$AQ,$B:$B, AG30) -> 0 | AU30: + | AV30: =INDEX('기준(전문가파견)'!$P$228:$CI$275,MATCH(VLOOKUP($AF$1,'기준(전문가파견)'!$G$93:$BD$223,31)&AG30,INDEX('기준(전문가파견)'!$P$228:$P$275&'기준(전문가파견)'!$Q$228:$Q$275,,),0),46) -> 111 | AX30: x | AY30: =AS30-SUM(SUMIFS($AT:$AT,$B:$B, AG30)) -> 0 | BA30: [숙박비증액가능]
R31: 전문가 파견 | U31: 직접경비 | X31: 파견경비 | AA31: 체재비 | AD31: 61일 이상 | AG31: 2급 | AJ31: =IF(OR(AL31="",AP31=""),"", 0.7*SUM(PRODUCT(AL31,AP31,AS31),PRODUCT(AL31,AV31,AY31)*1)) -> 0 | AL31: 0 | AN31: USD | AO31: x | AP31: =INDEX('기준(전문가파견)'!$P$228:$CI$275,MATCH(VLOOKUP($AF$1,'기준(전문가파견)'!$G$93:$BD$223,31)&AG31,INDEX('기준(전문가파견)'!$P$228:$P$275&'기준(전문가파견)'!$Q$228:$Q$275,,),0),19) -> 93 | AR31: x | AS31: 0 | AU31: + | AV31: =INDEX('기준(전문가파견)'!$P$228:$CI$275,MATCH(VLOOKUP($AF$1,'기준(전문가파견)'!$G$93:$BD$223,31)&AG31,INDEX('기준(전문가파견)'!$P$228:$P$275&'기준(전문가파견)'!$Q$228:$Q$275,,),0),46) -> 111 | AX31: x | AY31: 0 | BA31: [숙박비증액가능]
R32: 전문가 파견 | U32: 직접경비 | X32: 파견경비 | AA32: 체재비 | AD32: 61일 이상 | AG32: 3급 | AJ32: 0 | AL32: 0 | AN32: USD | AO32: x | AP32: =INDEX('기준(전문가파견)'!$P$228:$CI$275,MATCH(VLOOKUP($AF$1,'기준(전문가파견)'!$G$93:$BD$223,31)&AG32,INDEX('기준(전문가파견)'!$P$228:$P$275&'기준(전문가파견)'!$Q$228:$Q$275,,),0),19) -> 74 | AR32: x | AS32: 0 | AU32: + | AV32: =INDEX('기준(전문가파견)'!$P$228:$CI$275,MATCH(VLOOKUP($AF$1,'기준(전문가파견)'!$G$93:$BD$223,31)&AG32,INDEX('기준(전문가파견)'!$P$228:$P$275&'기준(전문가파견)'!$Q$228:$Q$275,,),0),46) -> 90 | AX32: x | AY32: 0 | BA32: [숙박비증액가능]
R33: 전문가 파견 | U33: 직접경비 | X33: 파견경비 | AA33: 체재비 | AD33: 61일 이상 | AG33: 4급 | AJ33: 0 | AL33: 0 | AN33: USD | AO33: x | AP33: =INDEX('기준(전문가파견)'!$P$228:$CI$275,MATCH(VLOOKUP($AF$1,'기준(전문가파견)'!$G$93:$BD$223,31)&AG33,INDEX('기준(전문가파견)'!$P$228:$P$275&'기준(전문가파견)'!$Q$228:$Q$275,,),0),19) -> 74 | AR33: x | AS33: 0 | AU33: + | AV33: =INDEX('기준(전문가파견)'!$P$228:$CI$275,MATCH(VLOOKUP($AF$1,'기준(전문가파견)'!$G$93:$BD$223,31)&AG33,INDEX('기준(전문가파견)'!$P$228:$P$275&'기준(전문가파견)'!$Q$228:$Q$275,,),0),46) -> 90 | AX33: x | AY33: 0 | BA33: [숙박비증액가능]
R34: 전문가 파견 | U34: 직접경비 | X34: 파견경비 | AA34: 체재비 | AD34: 61일 이상 | AG34: 5급 | AJ34: 0 | AL34: 0 | AN34: USD | AO34: x | AP34: =INDEX('기준(전문가파견)'!$P$228:$CI$275,MATCH(VLOOKUP($AF$1,'기준(전문가파견)'!$G$93:$BD$223,31)&AG34,INDEX('기준(전문가파견)'!$P$228:$P$275&'기준(전문가파견)'!$Q$228:$Q$275,,),0),19) -> 74 | AR34: x | AS34: 0 | AU34: + | AV34: =INDEX('기준(전문가파견)'!$P$228:$CI$275,MATCH(VLOOKUP($AF$1,'기준(전문가파견)'!$G$93:$BD$223,31)&AG34,INDEX('기준(전문가파견)'!$P$228:$P$275&'기준(전문가파견)'!$Q$228:$Q$275,,),0),46) -> 90 | AX34: x | AY34: 0 | BA34: [숙박비증액가능]
R35: 전문가 파견 | U35: 직접경비 | X35: 파견경비 | AA35: 체재비 | AD35: 61일 이상 | AG35: 6급 | AJ35: 0 | AL35: 0 | AN35: USD | AO35: x | AP35: =INDEX('기준(전문가파견)'!$P$228:$CI$275,MATCH(VLOOKUP($AF$1,'기준(전문가파견)'!$G$93:$BD$223,31)&AG35,INDEX('기준(전문가파견)'!$P$228:$P$275&'기준(전문가파견)'!$Q$228:$Q$275,,),0),19) -> 74 | AR35: x | AS35: 0 | AU35: + | AV35: =INDEX('기준(전문가파견)'!$P$228:$CI$275,MATCH(VLOOKUP($AF$1,'기준(전문가파견)'!$G$93:$BD$223,31)&AG35,INDEX('기준(전문가파견)'!$P$228:$P$275&'기준(전문가파견)'!$Q$228:$Q$275,,),0),46) -> 90 | AX35: x | AY35: 0 | BA35: [숙박비증액가능]
R36: 전문가 파견 | U36: 직접경비 | X36: 파견경비 | AA36: 특수지수당 | AD36: =INDEX('기준(전문가파견)'!$G$283:$AK$413, MATCH($AF$1, '기준(전문가파견)'!$G$283:$G$413, 0), 31) -> 가 | AG36: 1급 | AJ36: =IF(OR(AL36="", AP36=""), "", PRODUCT(AL36, AP36, AS36, AV36, AY36)) -> 0 | AL36: 1 | AN36: KRW | AO36: x | AP36: ='기준(전문가파견)'!$L$449 -> 400000 | AR36: x | AS36: =SUMIFS($AJ:$AJ,$B:$B, AG36) -> 0 | AU36: x | AV36: =IF(AD36="가",15%,IF(AD36="나",10%, IF(AD36="다", 5%, 0%))) -> 0.15
R37: 전문가 파견 | U37: 직접경비 | X37: 파견경비 | AA37: 특수지수당 | AD37: =INDEX('기준(전문가파견)'!$G$283:$AK$413, MATCH($AF$1, '기준(전문가파견)'!$G$283:$G$413, 0), 31) -> 가 | AG37: 2급 | AJ37: =IF(OR(AL37="", AP37=""), "", PRODUCT(AL37, AP37, AS37, AV37, AY37)) -> 0 | AL37: 1 | AN37: KRW | AO37: x | AP37: ='기준(전문가파견)'!$L$454 -> 310000 | AR37: x | AS37: 0 | AU37: x | AV37: 0.15
R38: 전문가 파견 | U38: 직접경비 | X38: 파견경비 | AA38: 특수지수당 | AD38: =INDEX('기준(전문가파견)'!$G$283:$AK$413, MATCH($AF$1, '기준(전문가파견)'!$G$283:$G$413, 0), 31) -> 가 | AG38: 3급 | AJ38: 0 | AL38: 1 | AN38: KRW | AO38: x | AP38: ='기준(전문가파견)'!$L$459 -> 260000 | AR38: x | AS38: 0 | AU38: x | AV38: 0.15
R39: 전문가 파견 | U39: 직접경비 | X39: 파견경비 | AA39: 특수지수당 | AD39: =INDEX('기준(전문가파견)'!$G$283:$AK$413, MATCH($AF$1, '기준(전문가파견)'!$G$283:$G$413, 0), 31) -> 가 | AG39: 4급 | AJ39: 0 | AL39: 1 | AN39: KRW | AO39: x | AP39: ='기준(전문가파견)'!$L$464 -> 230000 | AR39: x | AS39: 0 | AU39: x | AV39: 0.15
R40: 전문가 파견 | U40: 직접경비 | X40: 파견경비 | AA40: 특수지수당 | AD40: =INDEX('기준(전문가파견)'!$G$283:$AK$413, MATCH($AF$1, '기준(전문가파견)'!$G$283:$G$413, 0), 31) -> 가 | AG40: 5급 | AJ40: 0 | AL40: 1 | AN40: KRW | AO40: x | AP40: ='기준(전문가파견)'!$L$469 -> 200000 | AR40: x | AS40: 0 | AU40: x | AV40: 0.15
R41: 전문가 파견 | U41: 직접경비 | X41: 파견경비 | AA41: 특수지수당 | AD41: =INDEX('기준(전문가파견)'!$G$283:$AK$413, MATCH($AF$1, '기준(전문가파견)'!$G$283:$G$413, 0), 31) -> 가 | AG41: 6급 | AJ41: 0 | AL41: 1 | AN41: KRW | AO41: x | AP41: ='기준(전문가파견)'!$L$474 -> 160000 | AR41: x | AS41: 0 | AU41: x | AV41: 0.15
R42: 전문가 파견 | U42: 직접경비 | X42: 파견경비 | AA42: 항공료 | AD42: 이코노미석 | AG42: 등급 공통 | AJ42: =IF(OR(AL42="", AP42=""), "", PRODUCT(AL42, AP42, AS42, AV42, AY42)) -> 0 | AL42: 1 | AN42: KRW | AO42: x | AP42: =VLOOKUP($AF$1,'기준(전문가파견)'!$Q$8:$BD$85,21,) -> 2300000 | AR42: x | AS42: =SUMIFS($E:$E,$BB:$BB, "V") -> 0
R43: 전문가 파견 | U43: 직접경비 | X43: 파견경비 | AA43: 항공료 | AD43: 비즈니스석 | AG43: 등급 공통 | AJ43: =IF(OR(AP43="", AS43=""), 0, PRODUCT(AL43, AP43, AS43, AV43, AY43)) -> 0 | AL43: 1 | AN43: KRW | AO43: x | AR43: x
R44: 전문가 파견 | U44: 직접경비 | X44: 파견경비 | AA44: 보험료 | AD44: SOS 서비스 | AG44: 9일 이하 | AJ44: =IF(OR(AL44="", AP44=""), "", PRODUCT(AL44, AP44, AS44, AV44, AY44)) -> 0 | AL44: 1.1 | AN44: KRW(+VAT) | AO44: x | AP44: 13464 | AR44: x | AS44: =SUMIFS($AU:$AU,$BB:$BB, "V") -> 0 | AU44: x | AV44: ='기준(전문가파견)'!$AK$428 -> 1.1
R45: 전문가 파견 | U45: 직접경비 | X45: 파견경비 | AA45: 보험료 | AD45: SOS 서비스 | AG45: 10일 이상 | AJ45: 0 | AL45: 1.1 | AN45: KRW(+VAT) | AO45: x | AP45: 132979 | AR45: x | AS45: =SUMIFS($AV:$AV,$BB:$BB, "V") -> 0 | AU45: x | AV45: ='기준(전문가파견)'!$AK$430 -> 1.1
R46: 전문가 파견 | U46: 직접경비 | X46: 파견경비 | AA46: 보험료 | AD46: 여행자보험 | AG46: 등급 공통 | AJ46: 0 | AL46: 1 | AN46: KRW | AO46: x | AP46: 3320 | AR46: x | AS46: =SUMIFS($AN:$AN,$BB:$BB, "V") -> 0
A47: 1단계 : 투입인력 기본정보 입력 | D47: 2단계 : 파견회차별 투입일 입력 및 분석 | AJ47: 3단계 : 자동 산출 결과 확인 | AW47: 참고 (투입인력별 소요액) * 전문가등급, 환율 등 필요정보가 상기 표에 먼저 입력되어 있어야 정상 표시됩니다.
A48: 분야 / 역할 등 | B48: KOICA 전문가 등급 | C48: 중요도 | D48: 국내 직접인건비 지급일수 (국내 투입일수) | E48: 국외 파견 횟수 | F48: 2-1단계 : 좌측 (E열) 국외 파견 횟수 입력 후 좌측 버튼으로 입력란 해제 & 메모 생성 2-2단계 : 회차별 파견일과 참고사항 메모 입력 후 우측 버튼으로 지침 자동 적용 ※ 아래 회차별 투입은 체재일(입국일~출국일)을 입력할 것 ※ 본 양식은 파견 1회당 최대 5년(1,826일)까지 입력 가능 | AJ48: 국외 직접인건비 지급일수 (국외 투입일수) | AN48: 국외 체재비 지급일 (KOICA전문가 등급 기준 지급) | AU48: SOS가입 일/건
AJ49: 소계 | AK49: 1~ 22일 | AL49: 23~ 30일 | AM49: 31일 이상 | AN49: 체재일 분석 | AR49: 파견횟수 분석 | AU49: 9일 이하 | AV49: 10일 이상
F50: 1 | G50: 2 | H50: 3 | I50: 4 | J50: 5 | K50: 6 | L50: 7 | M50: 8 | N50: 9 | O50: 10 | P50: 11 | Q50: 12 | R50: 13 | S50: 14 | T50: 15 | U50: 16 | V50: 17 | W50: 18 | X50: 19 | Y50: 20 | Z50: 21 | AA50: 22 | AB50: 23 | AC50: 24 | AD50: 25 | AE50: 26 | AF50: 27 | AG50: 28 | AH50: 29 | AI50: 30 | AN50: 소계 | AO50: 1~ 30일 | AP50: 31~ 60일 | AQ50: 61일 이상 | AR50: 1~ 30일 | AS50: 31~ 60일 | AT50: 61일 이상 | AW50: 소요액 | BA50: 구분
AJ52: =ROUNDDOWN(SUM(AK52, AL52, AM52), 0) -> 0 | AN52: =SUM(AO52:AQ52) -> 0 | AR52: =COUNTIFS(F52:AI52, "<31") -> 0 | AS52: =COUNTIFS(F52:AI52,">30", F52:AI52, "<61") -> 0 | AT52: =COUNTIFS(F52:AI52, ">60") -> 0 | AW52: =IF(BA52="[소요액구분]","",IF(BA52="직접인건비",BC52,IF(BA52="체재비",BD52,IF(BA52="특수지수당",BE52,IF(BA52="보험료",BF52,IF(BA52="4개 항목 합",BG52,)))))) ->  | BA52: [소요액구분] | BB52: V | BC52: =IF(B52="", "등급입력", SUM((D52*INDEX($AG$3:$AP$8, MATCH(B52, $AG$3:$AG$8, 0),10)),(AJ52*INDEX($AG$3:$AP$8, MATCH(B52, $AG$3:$AG$8, 0),10)))) -> 등급입력 | BD52: =IF(B52="","등급입력",IF(INDEX($AG$18:$AL$23,MATCH(B52,$AG$18:$AG$23,0),6)="","환율입력",SUM(100%*AO52*INDEX($AG$18:$AL$23,MATCH(B52,$AG$18:$AG$23,0),6)*INDEX($AG$18:$AP$23,MATCH(B52,$AG$18:$AG$23,0),10),80%*AP52*INDEX($AG$18:$AL$23,MATCH(B52,$AG$18:$AG$23,0),6)*INDEX($AG$18:$AP$23,MATCH(B52,$AG$18:$AG$23,0),10),70%*AQ52*INDEX($AG$18:$AL$23,MATCH(B52,$AG$18:$AG$23,0),6)*INDEX($AG$18:$AP$23,MATCH(B52,$AG$18:$AG$23,0),10),100%*(AO52-AR52)*INDEX($AG$18:$AL$23,MATCH(B52,$AG$18:$AG$23,0),6)*INDEX($AG$18:$AV$23,MATCH(B52,$AG$18:$AG$23,0),16),80%*(AP52-AS52)*INDEX($AG$18:$AL$23,MATCH(B52,$AG$18:$AG$23,0),6)*INDEX($AG$18:$AV$23,MATCH(B52,$AG$18:$AG$23,0),16),70%*(AQ52-AT52)*INDEX($AG$18:$AL$23,MATCH(B52,$AG$18:$AG$23,0),6)*INDEX($AG$18:$AV$23,MATCH(B52,$AG$18:$AG$23,0),16)))) -> 등급입력 | BE52: =AJ52*INDEX($AG$36:$AP$41, MATCH(B52, $AG$36:$AG$41,0), 10)*INDEX($AG$36:$AV$41, MATCH(B52, $AG$36:$AG$41,0), 16) ->  | BF52: =SUM(AU52*$AP$44*$AV$44*$AL$44, AV52*$AP$45*$AV$45*$AL$45, AN52*$AP$46) -> 0 | BG52: =_xlfn.AGGREGATE(9,6,BC52:BF52) -> 0
AJ53: 0 | AN53: 0 | AR53: 0 | AS53: 0 | AT53: 0 | AW53: =IF(BA53="[소요액구분]","",IF(BA53="직접인건비",BC53,IF(BA53="체재비",BD53,IF(BA53="특수지수당",BE53,IF(BA53="보험료",BF53,IF(BA53="4개 항목 합",BG53,)))))) ->  | BA53: [소요액구분] | BB53: V | BC53: =IF(B53="", "등급입력", SUM((D53*INDEX($AG$3:$AP$8, MATCH(B53, $AG$3:$AG$8, 0),10)),(AJ53*INDEX($AG$3:$AP$8, MATCH(B53, $AG$3:$AG$8, 0),10)))) -> 등급입력 | BD53: =IF(B53="","등급입력",IF(INDEX($AG$18:$AL$23,MATCH(B53,$AG$18:$AG$23,0),6)="","환율입력",SUM(100%*AO53*INDEX($AG$18:$AL$23,MATCH(B53,$AG$18:$AG$23,0),6)*INDEX($AG$18:$AP$23,MATCH(B53,$AG$18:$AG$23,0),10),80%*AP53*INDEX($AG$18:$AL$23,MATCH(B53,$AG$18:$AG$23,0),6)*INDEX($AG$18:$AP$23,MATCH(B53,$AG$18:$AG$23,0),10),70%*AQ53*INDEX($AG$18:$AL$23,MATCH(B53,$AG$18:$AG$23,0),6)*INDEX($AG$18:$AP$23,MATCH(B53,$AG$18:$AG$23,0),10),100%*(AO53-AR53)*INDEX($AG$18:$AL$23,MATCH(B53,$AG$18:$AG$23,0),6)*INDEX($AG$18:$AV$23,MATCH(B53,$AG$18:$AG$23,0),16),80%*(AP53-AS53)*INDEX($AG$18:$AL$23,MATCH(B53,$AG$18:$AG$23,0),6)*INDEX($AG$18:$AV$23,MATCH(B53,$AG$18:$AG$23,0),16),70%*(AQ53-AT53)*INDEX($AG$18:$AL$23,MATCH(B53,$AG$18:$AG$23,0),6)*INDEX($AG$18:$AV$23,MATCH(B53,$AG$18:$AG$23,0),16)))) -> 등급입력 | BE53: =AJ53*INDEX($AG$36:$AP$41, MATCH(B53, $AG$36:$AG$41,0), 10)*INDEX($AG$36:$AV$41, MATCH(B53, $AG$36:$AG$41,0), 16) ->  | BF53: =SUM(AU53*$AP$44*$AV$44*$AL$44, AV53*$AP$45*$AV$45*$AL$45, AN53*$AP$46) -> 0 | BG53: 0
AJ54: 0 | AN54: 0 | AR54: 0 | AS54: 0 | AT54: 0 | BA54: [소요액구분] | BB54: V | BC54: 등급입력 | BD54: 등급입력 | BF54: 0 | BG54: 0
AJ55: 0 | AN55: 0 | AR55: 0 | AS55: 0 | AT55: 0 | BA55: [소요액구분] | BB55: V | BC55: 등급입력 | BD55: 등급입력 | BF55: 0 | BG55: 0
AJ56: 0 | AN56: 0 | AR56: 0 | AS56: 0 | AT56: 0 | BA56: [소요액구분] | BB56: V | BC56: 등급입력 | BD56: 등급입력 | BF56: 0 | BG56: 0
AJ57: 0 | AN57: 0 | AR57: 0 | AS57: 0 | AT57: 0 | BA57: [소요액구분] | BB57: V | BC57: 등급입력 | BD57: 등급입력 | BF57: 0 | BG57: 0
AJ58: 0 | AN58: 0 | AR58: 0 | AS58: 0 | AT58: 0 | BA58: [소요액구분] | BB58: V | BC58: 등급입력 | BD58: 등급입력 | BF58: 0 | BG58: 0
AJ59: 0 | AN59: 0 | AR59: 0 | AS59: 0 | AT59: 0 | BA59: [소요액구분] | BB59: V | BC59: 등급입력 | BD59: 등급입력 | BF59: 0 | BG59: 0
AJ60: 0 | AN60: 0 | AR60: 0 | AS60: 0 | AT60: 0 | BA60: [소요액구분] | BB60: V | BC60: 등급입력 | BD60: 등급입력 | BF60: 0 | BG60: 0
AJ61: 0 | AN61: 0 | AR61: 0 | AS61: 0 | AT61: 0 | BA61: [소요액구분] | BB61: V | BC61: 등급입력 | BD61: 등급입력 | BF61: 0 | BG61: 0
AJ62: 0 | AN62: 0 | AR62: 0 | AS62: 0 | AT62: 0 | BA62: [소요액구분] | BB62: V | BC62: 등급입력 | BD62: 등급입력 | BF62: 0 | BG62: 0
AJ63: 0 | AN63: 0 | AR63: 0 | AS63: 0 | AT63: 0 | BA63: [소요액구분] | BB63: V | BC63: 등급입력 | BD63: 등급입력 | BF63: 0 | BG63: 0
AJ64: 0 | AN64: 0 | AR64: 0 | AS64: 0 | AT64: 0 | BA64: [소요액구분] | BB64: V | BC64: 등급입력 | BD64: 등급입력 | BF64: 0 | BG64: 0
AJ65: 0 | AN65: 0 | AR65: 0 | AS65: 0 | AT65: 0 | BA65: [소요액구분] | BB65: V | BC65: 등급입력 | BD65: 등급입력 | BF65: 0 | BG65: 0
AJ66: 0 | AN66: 0 | AR66: 0 | AS66: 0 | AT66: 0 | BA66: [소요액구분] | BB66: V | BC66: 등급입력 | BD66: 등급입력 | BF66: 0 | BG66: 0
AJ67: 0 | AN67: 0 | AR67: 0 | AS67: 0 | AT67: 0 | BA67: [소요액구분] | BB67: V | BC67: 등급입력 | BD67: 등급입력 | BF67: 0 | BG67: 0
AJ68: 0 | AN68: 0 | AR68: 0 | AS68: 0 | AT68: 0 | BA68: [소요액구분] | BB68: V | BC68: 등급입력 | BD68: 등급입력 | BF68: 0 | BG68: 0
AJ69: 0 | AN69: 0 | AR69: 0 | AS69: 0 | AT69: 0 | BA69: [소요액구분] | BB69: V | BC69: 등급입력 | BD69: 등급입력 | BF69: 0 | BG69: 0
AJ70: 0 | AN70: 0 | AR70: 0 | AS70: 0 | AT70: 0 | BA70: [소요액구분] | BB70: V | BC70: 등급입력 | BD70: 등급입력 | BF70: 0 | BG70: 0
AJ71: 0 | AN71: 0 | AR71: 0 | AS71: 0 | AT71: 0 | BA71: [소요액구분] | BB71: V | BC71: 등급입력 | BD71: 등급입력 | BF71: 0 | BG71: 0
AJ72: 0 | AN72: 0 | AR72: 0 | AS72: 0 | AT72: 0 | BA72: [소요액구분] | BB72: V | BC72: 등급입력 | BD72: 등급입력 | BF72: 0 | BG72: 0
AJ73: 0 | AN73: 0 | AR73: 0 | AS73: 0 | AT73: 0 | BA73: [소요액구분] | BB73: V | BC73: 등급입력 | BD73: 등급입력 | BF73: 0 | BG73: 0
AJ74: 0 | AN74: 0 | AR74: 0 | AS74: 0 | AT74: 0 | BA74: [소요액구분] | BB74: V | BC74: 등급입력 | BD74: 등급입력 | BF74: 0 | BG74: 0
AJ75: 0 | AN75: 0 | AR75: 0 | AS75: 0 | AT75: 0 | BA75: [소요액구분] | BB75: V | BC75: 등급입력 | BD75: 등급입력 | BF75: 0 | BG75: 0
AJ76: 0 | AN76: 0 | AR76: 0 | AS76: 0 | AT76: 0 | BA76: [소요액구분] | BB76: V | BC76: 등급입력 | BD76: 등급입력 | BF76: 0 | BG76: 0
AJ77: 0 | AN77: 0 | AR77: 0 | AS77: 0 | AT77: 0 | BA77: [소요액구분] | BB77: V | BC77: 등급입력 | BD77: 등급입력 | BF77: 0 | BG77: 0
AJ78: 0 | AN78: 0 | AR78: 0 | AS78: 0 | AT78: 0 | BA78: [소요액구분] | BB78: V | BC78: 등급입력 | BD78: 등급입력 | BF78: 0 | BG78: 0
AJ79: 0 | AN79: 0 | AR79: 0 | AS79: 0 | AT79: 0 | BA79: [소요액구분] | BB79: V | BC79: 등급입력 | BD79: 등급입력 | BF79: 0 | BG79: 0
AJ80: 0 | AN80: 0 | AR80: 0 | AS80: 0 | AT80: 0 | BA80: [소요액구분] | BB80: V | BC80: 등급입력 | BD80: 등급입력 | BF80: 0 | BG80: 0
AJ81: 0 | AN81: 0 | AR81: 0 | AS81: 0 | AT81: 0 | BA81: [소요액구분] | BB81: V | BC81: 등급입력 | BD81: 등급입력 | BF81: 0 | BG81: 0
AJ82: 0 | AN82: 0 | AR82: 0 | AS82: 0 | AT82: 0 | BA82: [소요액구분] | BB82: V | BC82: 등급입력 | BD82: 등급입력 | BF82: 0 | BG82: 0
AJ83: 0 | AN83: 0 | AR83: 0 | AS83: 0 | AT83: 0 | BA83: [소요액구분] | BB83: V | BC83: 등급입력 | BD83: 등급입력 | BF83: 0 | BG83: 0
AJ84: 0 | AN84: 0 | AR84: 0 | AS84: 0 | AT84: 0 | BA84: [소요액구분] | BB84: V | BC84: 등급입력 | BD84: 등급입력 | BF84: 0 | BG84: 0
AJ85: 0 | AN85: 0 | AR85: 0 | AS85: 0 | AT85: 0 | BA85: [소요액구분] | BB85: V | BC85: 등급입력 | BD85: 등급입력 | BF85: 0 | BG85: 0
AJ86: 0 | AN86: 0 | AR86: 0 | AS86: 0 | AT86: 0 | BA86: [소요액구분] | BB86: V | BC86: 등급입력 | BD86: 등급입력 | BF86: 0 | BG86: 0
AJ87: 0 | AN87: 0 | AR87: 0 | AS87: 0 | AT87: 0 | BA87: [소요액구분] | BB87: V | BC87: 등급입력 | BD87: 등급입력 | BF87: 0 | BG87: 0
AJ88: 0 | AN88: 0 | AR88: 0 | AS88: 0 | AT88: 0 | BA88: [소요액구분] | BB88: V | BC88: 등급입력 | BD88: 등급입력 | BF88: 0 | BG88: 0
AJ89: 0 | AN89: 0 | AR89: 0 | AS89: 0 | AT89: 0 | BA89: [소요액구분] | BB89: V | BC89: 등급입력 | BD89: 등급입력 | BF89: 0 | BG89: 0
AJ90: 0 | AN90: 0 | AR90: 0 | AS90: 0 | AT90: 0 | BA90: [소요액구분] | BB90: V | BC90: 등급입력 | BD90: 등급입력 | BF90: 0 | BG90: 0
AJ91: 0 | AN91: 0 | AR91: 0 | AS91: 0 | AT91: 0 | BA91: [소요액구분] | BB91: V | BC91: 등급입력 | BD91: 등급입력 | BF91: 0 | BG91: 0
AJ92: 0 | AN92: 0 | AR92: 0 | AS92: 0 | AT92: 0 | BA92: [소요액구분] | BB92: V | BC92: 등급입력 | BD92: 등급입력 | BF92: 0 | BG92: 0
AJ93: 0 | AN93: 0 | AR93: 0 | AS93: 0 | AT93: 0 | BA93: [소요액구분] | BB93: V | BC93: 등급입력 | BD93: 등급입력 | BF93: 0 | BG93: 0
AJ94: 0 | AN94: 0 | AR94: 0 | AS94: 0 | AT94: 0 | BA94: [소요액구분] | BB94: V | BC94: 등급입력 | BD94: 등급입력 | BF94: 0 | BG94: 0
AJ95: 0 | AN95: 0 | AR95: 0 | AS95: 0 | AT95: 0 | BA95: [소요액구분] | BB95: V | BC95: 등급입력 | BD95: 등급입력 | BF95: 0 | BG95: 0
AJ96: 0 | AN96: 0 | AR96: 0 | AS96: 0 | AT96: 0 | BA96: [소요액구분] | BB96: V | BC96: 등급입력 | BD96: 등급입력 | BF96: 0 | BG96: 0
AJ97: 0 | AN97: 0 | AR97: 0 | AS97: 0 | AT97: 0 | BA97: [소요액구분] | BB97: V | BC97: 등급입력 | BD97: 등급입력 | BF97: 0 | BG97: 0
AJ98: 0 | AN98: 0 | AR98: 0 | AS98: 0 | AT98: 0 | BA98: [소요액구분] | BB98: V | BC98: 등급입력 | BD98: 등급입력 | BF98: 0 | BG98: 0
AJ99: 0 | AN99: 0 | AR99: 0 | AS99: 0 | AT99: 0 | BA99: [소요액구분] | BB99: V | BC99: 등급입력 | BD99: 등급입력 | BF99: 0 | BG99: 0
AJ100: 0 | AN100: 0 | AR100: 0 | AS100: 0 | AT100: 0 | BA100: [소요액구분] | BB100: V | BC100: 등급입력 | BD100: 등급입력 | BF100: 0 | BG100: 0
AJ101: 0 | AN101: 0 | AR101: 0 | AS101: 0 | AT101: 0 | BA101: [소요액구분] | BB101: V | BC101: 등급입력 | BD101: 등급입력 | BF101: 0 | BG101: 0
AJ102: 0 | AN102: 0 | AR102: 0 | AS102: 0 | AT102: 0 | BA102: [소요액구분] | BB102: V | BC102: 등급입력 | BD102: 등급입력 | BF102: 0 | BG102: 0
AJ103: 0 | AN103: 0 | AR103: 0 | AS103: 0 | AT103: 0 | BA103: [소요액구분] | BB103: V | BC103: 등급입력 | BD103: 등급입력 | BF103: 0 | BG103: 0
AJ104: 0 | AN104: 0 | AR104: 0 | AS104: 0 | AT104: 0 | BA104: [소요액구분] | BB104: V | BC104: 등급입력 | BD104: 등급입력 | BF104: 0 | BG104: 0
AJ105: 0 | AN105: 0 | AR105: 0 | AS105: 0 | AT105: 0 | BA105: [소요액구분] | BB105: V | BC105: 등급입력 | BD105: 등급입력 | BF105: 0 | BG105: 0
AJ106: 0 | AN106: 0 | AR106: 0 | AS106: 0 | AT106: 0 | BA106: [소요액구분] | BB106: V | BC106: 등급입력 | BD106: 등급입력 | BF106: 0 | BG106: 0
AJ107: 0 | AN107: 0 | AR107: 0 | AS107: 0 | AT107: 0 | BA107: [소요액구분] | BB107: V | BC107: 등급입력 | BD107: 등급입력 | BF107: 0 | BG107: 0
AJ108: 0 | AN108: 0 | AR108: 0 | AS108: 0 | AT108: 0 | BA108: [소요액구분] | BB108: V | BC108: 등급입력 | BD108: 등급입력 | BF108: 0 | BG108: 0
AJ109: 0 | AN109: 0 | AR109: 0 | AS109: 0 | AT109: 0 | BA109: [소요액구분] | BB109: V | BC109: 등급입력 | BD109: 등급입력 | BF109: 0 | BG109: 0
AJ110: 0 | AN110: 0 | AR110: 0 | AS110: 0 | AT110: 0 | BA110: [소요액구분] | BB110: V | BC110: 등급입력 | BD110: 등급입력 | BF110: 0 | BG110: 0
AJ111: 0 | AN111: 0 | AR111: 0 | AS111: 0 | AT111: 0 | BA111: [소요액구분] | BB111: V | BC111: 등급입력 | BD111: 등급입력 | BF111: 0 | BG111: 0
AJ112: 0 | AN112: 0 | AR112: 0 | AS112: 0 | AT112: 0 | BA112: [소요액구분] | BB112: V | BC112: 등급입력 | BD112: 등급입력 | BF112: 0 | BG112: 0
AJ113: 0 | AN113: 0 | AR113: 0 | AS113: 0 | AT113: 0 | BA113: [소요액구분] | BB113: V | BC113: 등급입력 | BD113: 등급입력 | BF113: 0 | BG113: 0
AJ114: 0 | AN114: 0 | AR114: 0 | AS114: 0 | AT114: 0 | BA114: [소요액구분] | BB114: V | BC114: 등급입력 | BD114: 등급입력 | BF114: 0 | BG114: 0
AJ115: 0 | AN115: 0 | AR115: 0 | AS115: 0 | AT115: 0 | BA115: [소요액구분] | BB115: V | BC115: 등급입력 | BD115: 등급입력 | BF115: 0 | BG115: 0

Sheet 양식3 (hidden)
A1: 항목별 세부내역 | C1: - 항목정보 : | I1: 국가 : | J1: =사업시행구조!$E$7 -> 파키스탄 | N1: - 총 계 : | O1: =IFERROR(SUM($Q:$Q),"계산항목 중 오류 확인") -> 48577200 | R1: 숨김 | S1: 숨김 | X1: 원본 | Y1: 시트명 | Z1: 양식3
A2: 대분류 | B2: 중분류 | C2: 소분류 | D2: 품목명 / 항목별 정의 / 그 외 산출 기준 등 | E2: 환율 | F2: 통화 | G2: 단가 | H2: 연산1 | I2: 수량1 | J2: 단위1 | K2: 연산2 | L2: 수량2 | M2: 단위2 | N2: 연산3 | O2: 수량3 | P2: 단위3 | Q2: 계 (KRW) | R2: 초청인원 | S2: 초청기간 | X2: 숨김 | Y2: 숨김 | Z2: 숨김
A4: 역량강화 | B4: 초청연수 | C4: 직업인건비 | D4: 연수관리자 (2급)_연수기간 - 투입율 : 연수기간의 20% * 정액(비정산) | E4: 1 | F4: KRW | G4: ='기준(전문가파견)'!$Q$507 -> 310000 | H4: x | I4: =S4 -> 10 | J4: 일 | K4: x | L4: 0.2 | M4: 배율 | N4: x | O4: 1 | P4: 명 | Q4: =IF(OR(E4=""), "", PRODUCT(E4, G4, I4, L4, O4)) -> 620000 | R4: 5 | S4: 10
A5: 역량강화 | B5: 초청연수 | C5: 직업인건비 | D5: 연수관리자 (2급)_준비 및 사후관리 - 투입율 : 연수기간의 10% * 준비 및 사후관리기간 : 혼합연수 등 KOICA가 승인한 경우 최대 88일까지 확대 가능 * 정액(비정산) | E5: 1 | F5: KRW | G5: ='기준(전문가파견)'!$Q$507 -> 310000 | H5: x | I5: 66 | J5: 일 | K5: x | L5: 0.1 | M5: 배율 | N5: x | O5: 1 | P5: 명 | Q5: =IF(OR(E5="", I5=""), "", PRODUCT(E5, G5, I5, L5, O5)) -> 2046000 | R5: =$R$4 -> 5 | S5: =$S$4 -> 10
A6: 역량강화 | B6: 초청연수 | C6: 직업인건비 | D6: 연수실무자 (4급)_연수기간 - 투입율 : 연수기간의 100% * 정액(비정산) | E6: 1 | F6: KRW | G6: ='기준(전문가파견)'!$Q$509 -> 230000 | H6: x | I6: =S6 -> 10 | J6: 일 | K6: x | L6: 1 | M6: 배율 | N6: x | O6: 1 | P6: 명 | Q6: =IF(OR(E6=""), "", PRODUCT(E6, G6, I6, L6, O6)) -> 2300000 | R6: =$R$4 -> 5 | S6: =$S$4 -> 10
A7: 역량강화 | B7: 초청연수 | C7: 직업인건비 | D7: 연수실무자 (4급)_준비 및 사후관리 - 투입율 : 연수기간의 20% * 준비 및 사후관리기간 : 혼합연수 등 KOICA가 승인한 경우 최대 88일까지 확대 가능 * 정액(비정산) | E7: 1 | F7: KRW | G7: ='기준(전문가파견)'!$Q$509 -> 230000 | H7: x | I7: 66 | J7: 일 | K7: x | L7: 0.2 | M7: 배율 | N7: x | O7: 1 | P7: 명 | Q7: =IF(OR(E7="", I7=""), "", PRODUCT(E7, G7, I7, L7, O7)) -> 3036000 | R7: 5 | S7: 10
A8: 역량강화 | B8: 초청연수 | C8: 직업인건비 | D8: 보조인력 (5급)_연수기간 - 투입율 : 연수기간의 100% * 편성기준에서 제시한 인원과 기간에 의해 산정된 총 인건비를 상한으로 하여, 보조인력을 2명으로 하고 투입율을 50%로 조정하는 등 세부 조정 가능 * 정액(비정산) | E8: 1 | F8: KRW | G8: ='기준(전문가파견)'!$Q$511 -> 160000 | H8: x | I8: =S8 -> 10 | J8: 일 | K8: x | L8: 1 | M8: 배율 | N8: x | O8: 1 | P8: 명 | Q8: =IF(OR(E8="", L8="", O8=""), "", PRODUCT(E8, G8, I8, L8, O8)) -> 1600000 | R8: 5 | S8: 10
A9: 역량강화 | B9: 초청연수 | C9: 직업인건비 | D9: 보조인력 (5급)_준비 및 사후관리 - 투입율 : 연수기간의 20% * 준비 및 사후관리기간 : 혼합연수 등 KOICA가 승인한 경우 최대 88일까지 확대 가능 * 편성기준에서 제시한 인원과 기간에 의해 산정된 총 인건비를 상한으로 하여, 보조인력을 2명으로 하고 투입율을 10%로 조정하는 등 세부 조정 가능 * 정액(비정산) | E9: 1 | F9: KRW | G9: ='기준(전문가파견)'!$Q$511 -> 160000 | H9: x | I9: 66 | J9: 일 | K9: x | L9: 0.2 | M9: 배율 | N9: x | O9: 1 | P9: 명 | Q9: =IF(OR(E9="", I9="", L9="", O9=""), "", PRODUCT(E9, G9, I9, L9, O9)) -> 2112000 | R9: 5 | S9: 10
A10: 역량강화 | B10: 초청연수 | C10: 제경비 | D10: 제경비 - 직접인건비 및 직접경비에 포함되지 아니한 간접비 [\30,000 × 연수생 수 × 연수일 수(입출국일포함) x 110%] * 정액(비정산) | E10: 1 | F10: KRW | G10: 30000 | H10: x | I10: =R10 -> 5 | J10: 명 | K10: x | L10: =S10 -> 10 | M10: 일 | N10: x | O10: 1.1 | P10: 배율 | Q10: =IF(OR(E10=""), "", PRODUCT(E10, G10, I10, L10, O10)) -> 1650000 | R10: 5 | S10: 10
A11: 역량강화 | B11: 초청연수 | C11: 직접경비_연수지원경비 | D11: 항공료 - 최단 운항순로의 2등 여객 왕복 항공료 * 항공권 승급 : (연수생) 차관급 이상 혹은 그에 준하는 고위급 공직자, 사회적배려대상자는 비즈니스석으로 승급 가능(사전 협의 필요), (한국전문가) KOICA 전문인력 업무처리에 관한 지침에 의거 비즈니스석 제공 가능 * 실비정산 | E11: 1 | F11: KRW | G11: =VLOOKUP($J$1,'기준(전문가파견)'!$Q$8:$BD$85,21,) -> 2300000 | H11: x | I11: =R11 -> 5 | J11: 명 | Q11: =IF(OR(E11="", G11=""), "", PRODUCT(E11, G11, I11, L11, O11)) -> 11500000 | R11: 5 | S11: 10
A12: 역량강화 | B12: 초청연수 | C12: 직접경비_연수지원경비 | D12: 여비_연수생지원경비_일비 - [\22,000 x 연수생 수 x 연수기간(주말포함)] * 정액(비정산) | E12: 1 | F12: KRW | G12: 22000 | H12: x | I12: =R12 -> 5 | J12: 명 | K12: x | L12: =S12 -> 10 | M12: 일 | Q12: =IF(OR(E12=""), "", PRODUCT(E12, G12, I12, L12, O12)) -> 1100000 | R12: 5 | S12: 10
A13: 역량강화 | B13: 초청연수 | C13: 직접경비_연수지원경비 | D13: 여비_연수생지원경비_기타 경비 - 현지교통비, 경유지경비, 비자발급경비, 준비금 [\220,000 x 연수생 수] * 정액(비정산) | E13: 1 | F13: KRW | G13: 220000 | H13: x | I13: =R13 -> 5 | J13: 명 | Q13: =IF(OR(E13=""), "", PRODUCT(E13, G13, I13, L13, O13)) -> 1100000 | R13: 5 | S13: 10
A14: 역량강화 | B14: 초청연수 | C14: 직접경비_연수지원경비 | D14: 체재비_숙박비_연수생 - 연수기간중 숙박에 소요되는 경비 [1일 상한 \200,000] * 연수생은 연수센터에 우선 숙박하며, 부득이한 사유(만실, 이동거리, 방역지침 등)가 있을 시 검토를 거쳐 외부 숙박시설 활용) * 실비정산 | E14: 1 | F14: KRW | G14: 200000 | H14: x | I14: =R14 -> 5 | J14: 명 | K14: x | L14: =S14-1 -> 9 | M14: 박 | Q14: =IF(OR(E14="", G14=""), "", PRODUCT(E14, G14, I14, L14, O14)) -> 9000000 | R14: 5 | S14: 10
A15: 역량강화 | B15: 초청연수 | C15: 직접경비_연수지원경비 | D15: 체재비_숙박비_담당자 - 현장견학 시 숙박, 연수기관담당자 (최대 2인) [1일 상한 \200,000] * 실비정산 | E15: 1 | F15: KRW | G15: 200000 | H15: x | I15: 2 | J15: 명 | K15: x | L15: =S15-1 -> 9 | M15: 박 | Q15: =IF(OR(E15="", G15="", I15=""), "", PRODUCT(E15, G15, I15, L15, O15)) -> 3600000 | R15: 5 | S15: 10
A16: 역량강화 | B16: 초청연수 | C16: 직접경비_연수지원경비 | D16: 체재비_숙박비_기타 - 통역사, 가이드 등 [1일 상한 \200,000] * 실비정산 | E16: 1 | F16: KRW | G16: 200000 | H16: x | I16: 0 | J16: 명 | K16: x | M16: 박 | Q16: =IF(OR(E16="", G16="", I16="", L16=""), "", PRODUCT(E16, G16, I16, L16, O16)) ->  | R16: 5 | S16: 10
A17: 역량강화 | B17: 초청연수 | C17: 직접경비_연수지원경비 | D17: 체재비_식비_연수생 - 연수기간중 소요되는 식비 [1일 상한 \50,000] * 실비정산(식사제공) 또는 정액(비정산, 현금지급) | E17: 1 | F17: KRW | G17: 50000 | H17: x | I17: =R17 -> 5 | J17: 명 | K17: x | L17: =S17 -> 10 | M17: 일 | Q17: =IF(OR(E17="", G17=""), "", PRODUCT(E17, G17, I17, L17, O17)) -> 2500000 | R17: 5 | S17: 10
A18: 역량강화 | B18: 초청연수 | C18: 직접경비_연수지원경비 | D18: 체재비_식비_담당자 - 연수기관 담당자 2인 [1일 상한 \50,000] * 실비정산(식사제공) 또는 정액(비정산, 현금지급) | E18: 1 | F18: KRW | G18: 50000 | H18: x | I18: 2 | J18: 명 | K18: x | L18: =S18 -> 10 | M18: 일 | Q18: =IF(OR(E18="", G18="", I18=""), "", PRODUCT(E18, G18, I18, L18, O18)) -> 1000000 | R18: 5 | S18: 10
A19: 역량강화 | B19: 초청연수 | C19: 직접경비_연수지원경비 | D19: 체재비_식비_기타 - 통역사, 가이드 등 [1일 상한 \50,000] * 실비정산(식사제공) 또는 정액(비정산, 현금지급) | E19: 1 | F19: KRW | G19: 50000 | H19: x | J19: 명 | K19: x | M19: 일 | Q19: =IF(OR(E19="", G19="", I19="", L19=""), "", PRODUCT(E19, G19, I19, L19, O19)) ->  | R19: 5 | S19: 10
A20: 역량강화 | B20: 초청연수 | C20: 직접경비_연수실시경비 | D20: 교육경비_강의료_특급 - 전현직 총리, 장관, 총장 등 (부정청탁금지법 대상자 아닌 경우) * 강사 등급별 상세 자격요건/증빙인증기준은 글로벌연수사업 길라잡이 최신본 참조 * 해당 등급의 강의료 예산 내 구성 권고비율 : 15% * 정액(비정산, 사전 송금, 원천징수) | E20: 1 | F20: KRW | G20: 500000 | H20: x | J20: 명 | K20: x | M20: 시간 | N20: x | R20: 5 | S20: 10
A21: 역량강화 | B21: 초청연수 | C21: 직접경비_연수실시경비 | D21: 교육경비_강의료_1급 - 국제개발협력사업/해당분야 경력 20년 이상 * 강사 등급별 상세 자격요건/증빙인증기준은 글로벌연수사업 길라잡이 최신본 참조 * 해당 등급의 강의료 예산 내 구성 권고비율 : 15% * 정액(비정산, 사전 송금, 원천징수) | E21: 1 | F21: KRW | G21: 350000 | H21: x | J21: 명 | K21: x | M21: 시간 | N21: x | R21: 5 | S21: 10
A22: 역량강화 | B22: 초청연수 | C22: 직접경비_연수실시경비 | D22: 교육경비_강의료_2급 - 경력 15년 이상 * 강사 등급별 상세 자격요건/증빙인증기준은 글로벌연수사업 길라잡이 최신본 참조 * 해당 등급의 강의료 예산 내 구성 권고비율 : 50% * 정액(비정산, 사전 송금, 원천징수) | E22: 1 | F22: KRW | G22: 300000 | H22: x | J22: 명 | K22: x | M22: 시간 | N22: x | R22: 5 | S22: 10
A23: 역량강화 | B23: 초청연수 | C23: 직접경비_연수실시경비 | D23: 교육경비_강사료_3급 - 경력 10년 이상 * 강사 등급별 상세 자격요건/증빙인증기준은 글로벌연수사업 길라잡이 최신본 참조 * 해당 등급의 강의료 예산 내 구성 권고비율 : 20% * 정액(비정산, 사전 송금, 원천징수) | E23: 1 | F23: KRW | G23: 250000 | H23: x | J23: 명 | K23: x | M23: 시간 | N23: x | R23: 5 | S23: 10
A24: 역량강화 | B24: 초청연수 | C24: 직접경비_연수실시경비 | D24: 교육경비_강사료_4급 - 경력 7년 이상 * 강사 등급별 상세 자격요건/증빙인증기준은 글로벌연수사업 길라잡이 최신본 참조 * 해당 등급의 강의료 예산 내 구성 권고비율 : 15% * 정액(비정산, 사전 송금, 원천징수) | E24: 1 | F24: KRW | G24: 200000 | H24: x | J24: 명 | K24: x | M24: 시간 | N24: x | R24: 5 | S24: 10
A25: 역량강화 | B25: 초청연수 | C25: 직접경비_연수실시경비 | D25: 교육경비_강사료_5급 - 4급에 해당하지 않는 자 * 해당 등급의 강의료 예산 내 구성 권고비율 : 15% * 정액(비정산, 사전 송금, 원천징수) | E25: 1 | F25: KRW | G25: 120000 | H25: x | J25: 명 | K25: x | M25: 시간 | N25: x | R25: 5 | S25: 10
A26: 역량강화 | B26: 초청연수 | C26: 직접경비_연수실시경비 | D26: 교육경비_통역비 - 연수기간중에 참여하는 통역사의 통역료 * 교통비 및 숙박비, 식비는 상기 별도 항목에 포함하여 편성 * 언어별/시간별 통역료 지급 기준은 글로벌연수사업 길라잡이 최신본 참조 * 영어 통역 강의 비중이 전체 강의의 30% 초과시 KOICA와 별도 협의 필요 * 통역활용은 통상적인 통역업무에 한정, 그 외 녹화강의 제작에서의 더빙 등 통역 외 업무는 해당 전문인력을 활용하여 진행 요망 * 지급기준에 따라 정액지급 또는 실비정산 | E26: 1 | F26: KRW | H26: x | J26: 시간 | K26: x | N26: x | Q26: =IF(OR(E26="", G26="", I26=""), "", PRODUCT(E26, G26, I26, L26, O26)) ->  | R26: 5 | S26: 10
A27: 역량강화 | B27: 초청연수 | C27: 직접경비_연수실시경비 | D27: 교육경비_번역비 - 연수과정에 필요한 강의자료등의 번역경비 * 언어별 번역비 지급 기준은 글로벌연수사업 길라잡이 최신본 참조 * 영어 번역 강의 비중이 전체 강의의 30% 초과시 KOICA와 별도 협의 필요 * 강사가 영문으로 작성한 강의자료의 경우, 해당 영문검수예산 편성 가능 (검수비는 영-한 번역비 50% 상한 내에서 진행하되 번역비와 중복 배정 불가, 제3언어 검수 편성 불가) * 지급기준에 따라 정액지급 또는 실비정산 | E27: 1 | F27: KRW | H27: x | J27: 자 | K27: x | L27: 0 | M27: 건 | N27: x | Q27: =IF(OR(E27="", G27="", I27="", L27=""), "", PRODUCT(E27, G27, I27, L27, O27)) ->  | R27: 5 | S27: 10
A28: 역량강화 | B28: 초청연수 | C28: 직접경비_연수실시경비 | D28: 교육경비_시설임차료 - 연수기간 중 이용하는 연수센터 및 연수기관 외 강의실, 기자재등의 임차료 * 실비정산 | E28: 1 | F28: KRW | H28: x | K28: x | N28: x | Q28: =IF(OR(E28="", G28="", I28=""), "", PRODUCT(E28, G28, I28, L28, O28)) ->  | R28: 5 | S28: 10
A29: 역량강화 | B29: 초청연수 | C29: 직접경비_연수실시경비 | D29: 교육경비_교통비 - 연수기간 중 이용하는 차량임차, 통행료, 주차료, 기차 및 국내선 항공료 등 소요경비 * 실비정산 | E29: 1 | F29: KRW | H29: x | J29: 일 | K29: x | N29: x | Q29: =IF(OR(E29="", G29="", I29=""), "", PRODUCT(E29, G29, I29, L29, O29)) ->  | R29: 5 | S29: 10
A30: 역량강화 | B30: 초청연수 | C30: 직접경비_연수실시경비 | D30: 교육활동경비 - 교육 및 실습, 현장견학(체험활동 포함) 에 소요되는 경비(자료제작, 연수생 자료송부지원, 시설입장료, 재료비, 피복비, 가이드경비 등) [(\120,000 x 연수생수) + \1,000,000] * 정액(비정산, 파트너사의 필요에 따라 정산 후 반납 가능, 추가 금액 편성시에는 실비 정산) | E30: 1 | F30: KRW | G30: 120000 | H30: x | I30: =R30 -> 5 | J30: 명 | K30: + | L30: 1000000 | M30: KRW | Q30: =IF(OR(E30=""), "", SUM(PRODUCT(E30, G30, I30),L30)) -> 1600000 | R30: 5 | S30: 10
A31: 역량강화 | B31: 초청연수 | C31: 직접경비_연수실시경비 | D31: 친교행사경비_친교행사지원비 - 연수생과 유대강화를 위한 행사 지원비 [\50,000 × (연수생+관계자 10명) × 2회] * 30일 이상 과정의 경우 1회 추가 편성 가능 * 식비와 중복 집행 불가 * 정액(비정산, 파트너사의 필요에 따라 정산 후 반납 가능) | E31: 1 | F31: KRW | G31: 50000 | H31: x | I31: =R31+10 -> 15 | J31: 명 | K31: x | L31: 2 | M31: 회 | N31: x | Q31: =IF(OR(E31="", G31="", I31="", L31=""), "", PRODUCT(E31, G31, I31, L31, O31)) -> 1500000 | R31: 5 | S31: 10
A32: 역량강화 | B32: 초청연수 | C32: 직접경비_연수실시경비 | D32: 침교행사경비_환영행사비 - 국내외 유관기관과의 네트워크 강화, 연수 효과성 제고등을 위한 특별행사 [\60,000 × (연수생+관계자 10명) x (편성금액 내 횟수 제한 없음)] * 실비정산 | E32: 1 | F32: KRW | G32: 50000 | H32: x | I32: =R32+10 -> 15 | J32: 명 | K32: x | M32: 회 | N32: x | Q32: =IF(OR(E32="", G32="", I32="", L32=""), "", PRODUCT(E32, G32, I32, L32, O32)) ->  | R32: 5 | S32: 10
A33: 역량강화 | B33: 초청연수 | C33: 직접경비_연수실시경비 | D33: 과정성과경비_과정성과경비 - 연수과정의 성과 제고를 위해 필요한 활동에 소요되는 경비 [회당 최대 \1,000,000] * 활동 유형 : 프로그램 자문, 기획회의 및 평가회의 등 * 정액(비정산, 파트너사의 필요에 따라 정산 후 반납 가능) | E33: 1 | F33: KRW | G33: 1000000 | H33: x | K33: x | N33: x | Q33: =IF(OR(E33="", G33="", I33=""), "", PRODUCT(E33, G33, I33, L33, O33)) ->  | R33: 5 | S33: 10
A34: 역량강화 | B34: 초청연수 | C34: 그 외 | D34: 상기 항목에 포함되지 않지만 글로벌연수사업 규정 및 길라잡이에서 인정하는 항목 : 본 셀에 내용 기재 후 총액 등으로 1행 입력 | H34: x | K34: x | N34: x | Q34: =IF(OR(E34=""), "", SUM(PRODUCT(E34, G34, I34),L34)) ->  | R34: 5 | S34: 10
A35: 역량강화 | B35: 초청연수 | C35: 예비비 | D35: 예비비 - 연수생 추가, 연수기간 증가, 비상상황 발생 등 예기치 않은 경비지출이 필요할 경우 활용하기 위한 예비 경비 [전체 연수경비의 5% 이내] * 승인항목에 따른 정산방식 적용 | E35: 1 | F35: KRW | G35: =SUM(Q4:$Q$34) -> 46264000 | H35: x | I35: 0.05 | J35: 배율 | Q35: =IF(OR(E35="", G35="", I35=""), "", PRODUCT(E35, G35, I35, L35, O35)) -> 2313200 | R35: 5 | S35: 10

Sheet 기준(양식) (hidden)
A1: Configuration Elements | BA1: X
A2: * 매크로, 함수, 단가정보 등의 원활한 적용을 위한 내부 기능/데이터 모음 시트입니다. 수정시 파일 이용에 장애가 발생할 수 있습니다.
A3: 솔루션 버전 : | B3: [생성가능] | C3: [이동/삭제] | D3: [행추가가능] | E3: [행삭제가능] | F3: [숙박비증액가능] | G3: [숙박비감액가능] | H3: [등급/경력] | I3: [중요도] | J3: [Unit] | K3: [Currency] | L3: [소요액구분] | M3: 2020 | N3: Q1 | O3: 2020 | P3: Q1 | Q3: 계약1 | R3: [피벗필터타겟] | S3: PES 한글문서 코드 : | U3: PDM 한글표 코드 : | W3: POD 한글표 코드 : | Y3: 예산총괄표미화표 코드 : | AA3: 예산총괄표원화표 코드 :
A4: v.1.0 RTM | B4: 생성 | C4: 이동 | D4: 행추가(위) | E4: 행삭제 | F4: 150% 적용 | G4: 100% 적용 | H4: 1급 | I4: 주요 | K4: KRW | L4: 직접인건비 | M4: 2021 | N4: Q2 | O4: 2020 | P4: Q2 | Q4: 계약2 | R4: 국내
C5: 삭제 | D5: 행추가(아래) | H5: 2급 | I5: 일반 | J5: <Time> | K5: KRW(+VAT) | L5: 체재비 | M5: 2022 | N5: Q3 | O5: 2020 | P5: Q3 | Q5: 계약3 | R5: 국외
A6: 시트 비밀번호 : | D6: 행삭제 | H6: 3급 | J6: 시간 | K6: USD | L6: 특수지수당 | M6: 2023 | N6: Q4 | O6: 2020 | P6: Q4 | Q6: 계약4
A7: ip0401 | H7: 4급 | J7: 일 | K7: AED | L7: 보험료 | M7: 2024 | O7: 2021 | P7: Q1 | Q7: 계약5 | R7: [한글문서 생성코드 숨기기]
H8: 5급 | J8: 주 | K8: AFN | L8: 4개 항목 합 | M8: 2025 | O8: 2021 | P8: Q2 | Q8: 계약6 | R8: Sub SaveAsUTF8_(ByVal filePath As String, ByVal content As String) 'Chat GPT 기반 뤼튼이 작성한 코드임 Dim stream As Object Set stream = CreateObject("ADODB.Stream") ' 스트림을 UTF-8 인코딩으로 설정 stream.Type = 2 ' 텍스트 모드 stream.Charset = "UTF-8" ' 텍스트를 스트림에 쓰기 stream.Open stream.WriteText content, 0 ' ByRef 인수 형식을 맞추기 위해 0을 추가 ' 스트림을 파일로 저장 stream.SaveToFile filePath, 2 ' 2는 덮어쓰기 모드 ' 스트림 닫기 stream.Close Set stream = Nothing End Sub
A9: 투찰내역서 변환 여부 체크 : | C9: 사업유형 선택 : | E9: 예산시트 최초 생성 여부 체크 : | H9: 6급 | J9: 개월 | K9: ALL | M9: 2026 | O9: 2021 | P9: Q3 | Q9: 계약7
C10: PROJECT | E10: 생성후 | J10: 분기 | K10: AMD | M10: 2027 | O10: 2021 | P10: Q4 | Q10: 계약8 | U10: ParaShape="21" Style="37"><TEXT CharShape="7"><CHAR>수원기관</CHAR></TEXT></P></PARALIST></CELL><CELL BorderFill="42" ColAddr="3" ColSpan="2" Dirty="false" Editable="false" HasMargin="false" Header="false" Height="1650" Protect="false" RowAddr="63" RowSpan="1" Width="20982"><CELLMARGIN Bottom="0" Left="0" Right="0" Top="0"/><PARALIST LineWrap="Break" LinkListID="0" LinkListIDNext="0" TextDirection="0" VertAlign="Center"><P ParaShape="22" Style="32"><TEXT CharShape="7"><CHAR>∈$D$70∋</CHAR></TEXT></P></PARALIST></CELL></ROW><ROW><CELL BorderFill="22" ColAddr="0" ColSpan="1" Dirty="false" Editable="false" HasMargin="false" Header="false" Height="1650" Protect="false" RowAddr="64" RowSpan="1" Width="3001"><CELLMARGIN Bottom="0" Left="0" Right="0" Top="0"/><PARALIST LineWrap="Squeeze" LinkListID="0" LinkListIDNext="0" TextDirection="0" VertAlign="Center"><P ParaShape="21" Style="27"><TEXT CharShape="7"><CHAR>∈$A$71∋</CHAR></TEXT></P></PARALIST></CELL><CELL BorderFill="23" ColAddr="1" ColSpan="1" Dirty="false" Editable="false" HasMargin="false" Header="false" Height="1650" Protect="false" RowAddr="64" RowSpan="1" Width="10406"><CELLMARGIN Bottom="0" Left="0" Right="0" Top="0"/><PARALIST LineWrap="Break" LinkListID="0" LinkListIDNext="0" TextDirection="0" VertAlign="Center"><P ParaShape="22" Style="32"><TEXT CharShape="7"><CHAR>∈$B$71∋</CHAR></TEXT></P></PARALIST></CELL><CELL BorderFill="24" ColAddr="2" ColSpan="1" Dirty="false" Editable="false" HasMargin="false" Header="false" Height="1650" Protect="false" RowAddr="64" RowSpan="1" Width="4982"><CELLMARGIN Bottom="0" Left="0" Right="0" Top="0"/><PARALIST LineWrap="Squeeze" LinkListID="0" LinkListIDNext="0" TextDirection="0" VertAlign="Center"><P ParaShape="21" Style="37"><TEXT CharShape="7"/></P></PARALIST></CELL><CELL BorderFill="42" ColAddr="3" ColSpan="2" Dirty="false" Editable="false" HasMargin="false" Header="false" Height="1650" Protect="false" RowAddr="64" RowSpan="1" Width="20982"><CELLMARGIN Bottom="0" Left="0" Right="0" Top="0"/><PARALIST LineWrap="Break" LinkListID="0" LinkListIDNext="0" TextDirection="0" VertAlign="Center"><P ParaShape="22" Style="32"><TEXT CharShape="7"><CHAR>∈$D$71∋</CHAR></TEXT></P></PARALIST></CELL></ROW><ROW><CELL BorderFill="22" ColAddr="0" ColSpan="1" Dirty="false" Editable="false" HasMargin="false" Header="false" Height="1650" Protect="false" RowAddr="65" RowSpan="1" Width="3001"><CELLMARGIN Bottom="0" Left="0" Right="0" Top="0"/><PARALIST LineWrap="Squeeze" LinkListID="0" LinkListIDNext="0" TextDirection="0" VertAlign="Center"><P ParaShape="21" Style="27"><TEXT CharShape="7"><CHAR>∈$A$72∋</CHAR></TEXT></P></PARALIST></CELL><CELL BorderFill="23" ColAddr="1" ColSpan="1" Dirty="false" Editable="false" HasMargin="false" Header="false" Height="1650" Protect="false" RowAddr="65" RowSpan="1" Width="10406"><CELLMARGIN Bottom="0" Left="0" Right="0" Top="0"/><PARALIST LineWrap="Break" LinkListID="0" LinkListIDNext="0" TextDirection="0" VertAlign="Center"><P ParaShape="22" Style="32"><TEXT CharShape="7"><CHAR>∈$B$72∋</CHAR></TEXT></P></PARALIST></CELL><CELL BorderFill="24" ColAddr="2" ColSpan="1" Dirty="false" Editable="false" HasMargin="false" Header="false" Height="1650" Protect="false" RowAddr="65" RowSpan="1" Width="4982"><CELLMARGIN Bottom="0" Left="0" Right="0" Top="0"/><PARALIST LineWrap="Squeeze" LinkListID="0" LinkListIDNext="0" TextDirection="0" VertAlign="Center"><P ParaShape="21" Style="37"><TEXT CharShape="7"/></P></PARALIST></CELL><CELL BorderFill="42" ColAddr="3" ColSpan="2" Dirty="false" Editable="false" HasMargin="false" Header="false" Height="1650" Protect="false" RowAddr="65" RowSpan="1" Width="20982"><CELLMARGIN Bottom="0" Left="0" Right="0" Top="0"/><PARALIST LineWrap="Break" LinkListID="0" LinkListIDNext="0" TextDirection="0" VertAlign="Center"><P ParaShape="22" Style="32"><TEXT CharShape="7"><CHAR>∈$D$72∋</CHAR></TEXT></P></PARALIST></CELL></ROW><ROW><CELL BorderFill="22" ColAddr="0" ColSpan="1" Dirty="false" Editable="false" HasMargin="false" Header="false" Height="1650" Protect="false" RowAddr="66" RowSpan="1" Width="3001"><CELLMARGIN Bottom="0" Left="0" Right="0" Top="0"/><PARALIST LineWrap="Squeeze" LinkListID="0" LinkListIDNext="0" TextDirection="0" VertAlign="Center"><P ParaShape="21" Style="27"><TEXT CharShape="7"><CHAR>∈$A$73∋</CHAR></TEXT></P></PARALIST></CELL><CELL BorderFill="23" ColAddr="1" ColSpan="1" Dirty="false" Editable="false" HasMargin="false" Header="false" Height="1650" Protect="false" RowAddr="66" RowSpan="1" Width="10406"><CELLMARGIN Bottom="0" Left="0" Right="0" Top="0"/><PARALIST LineWrap="Break" LinkListID="0" LinkListIDNext="0" TextDirection="0" VertAlign="Center"><P ParaShape="22" Style="32"><TEXT CharShape="7"><CHAR>∈$B$73∋</CHAR></TEXT></P></PARALIST></CELL><CELL BorderFill="24" ColAddr="2" ColSpan="1" Dirty="false" Editable="false" HasMargin="false" Header="false" Height="1650" Protect="false" RowAddr="66" RowSpan="1" Width="4982"><CELLMARGIN Bottom="0" Left="0" Right="0" Top="0"/><PARALIST LineWrap="Squeeze" LinkListID="0" LinkListIDNext="0" TextDirection="0" VertAlign="Center"><P ParaShape="21" Style="37"><TEXT CharShape="7"/></P></PARALIST></CELL><CELL BorderFill="42" ColAddr="3" ColSpan="2" Dirty="false" Editable="false" HasMargin="false" Header="false" Height="1650" Protect="false" RowAddr="66" RowSpan="1" Width="20982"><CELLMARGIN Bottom="0" Left="0" Right="0" Top="0"/><PARALIST LineWrap="Break" LinkListID="0" LinkListIDNext="0" TextDirection="0" VertAlign="Center"><P ParaShape="22" Style="32"><TEXT CharShape="7"><CHAR>∈$D$73∋</CHAR></TEXT></P></PARALIST></CELL></ROW><ROW><CELL BorderFill="22" ColAddr="0" ColSpan="1" Dirty="false" Editable="false" HasMargin="false" Header="false" Height="1650" Protect="false" RowAddr="67" RowSpan="1" Width="3001"><CELLMARGIN Bottom="0" Left="0" Right="0" Top="0"/><PARALIST LineWrap="Squeeze" LinkListID="0" LinkListIDNext="0" TextDirection="0" VertAlign="Center"><P ParaShape="21" Style="27"><TEXT CharShape="7"><CHAR>∈$A$74∋</CHAR></TEXT></P></PARALIST></CELL><CELL BorderFill="23" ColAddr="1" ColSpan="1" Dirty="false" Editable="false" HasMargin="false" Header="false" Height="1650" Protect="false" RowAddr="67" RowSpan="1" Width="10406"><CELLMARGIN Bottom="0" Left="0" Right="0" Top="0"/><PARALIST LineWrap="Break" LinkListID="0" LinkListIDNext="0" TextDirection="0" VertAlign="Center"><P ParaShape="22" Style="32"><TEXT CharShape="7"><CHAR>∈$B$74∋</CHAR></TEXT></P></PARALIST></CELL><CELL BorderFill="24" ColAddr="2" ColSpan="1" Dirty="false" Editable="false" HasMargin="false" Header="false" Height="1650" Protect="false" RowAddr="67" RowSpan="1" Width="4982"><CELLMARGIN Bottom="0" Left="0" Right="0" Top="0"/><PARALIST LineWrap="Squeeze" LinkListID="0" LinkListIDNext="0" TextDirection="0" VertAlign="Center"><P ParaShape="21" Style="41"><TEXT CharShape="7"/></P></PARALIST></CELL><CELL BorderFill="42" ColAddr="3" ColSpan="2" Dirty="false" Editable="false" HasMargin="false" Header="false" Height="1650" Protect="false" RowAddr="67" RowSpan="1" Width="20982"><CELLMARGIN Bottom="0" Left="0" Right="0" Top="0"/><PARALIST LineWrap="Break" LinkListID="0" LinkListIDNext="0" TextDirection="0" VertAlign="Center"><P ParaShape="22" Style="32"><TEXT CharShape="7"><CHAR>∈$D$74∋</CHAR></TEXT></P></PARALIST></CELL></ROW><ROW><CELL BorderFill="22" ColAddr="0" ColSpan="1" Dirty="false" Editable="false" HasMargin="false" Header="false" Height="1650" Protect="false" RowAddr="68" RowSpan="1" Width="3001"><CELLMARGIN Bottom="0" Left="0" Right="0" Top="0"/><PARALIST LineWrap="Squeeze" LinkListID="0" LinkListIDNext="0" TextDirection="0" VertAlign="Center"><P ParaShape="21" Style="27"><TEXT CharShape="7"><CHAR>∈$A$75∋</CHAR></TEXT></P></PARALIST></CELL><CELL BorderFill="23" ColAddr="1" ColSpan="1" Dirty="false" Editable="false" HasMargin="false" Header="false" Height="1650" Protect="false" RowAddr="68" RowSpan="1" Width="10406"><CELLMARGIN Bottom="0" Left="0" Right="0" Top="0"/><PARALIST LineWrap="Break" LinkListID="0" LinkListIDNext="0" TextDirection="0" VertAlign="Center"><P ParaShape="22" Style="32"><TEXT CharShape="7"><CHAR>∈$B$75∋</CHAR></TEXT></P></PARALIST></CELL><CELL BorderFill="24" ColAddr="2" ColSpan="1" Dirty="false" Editable="false" HasMargin="false" Header="false" Height="1650" Protect="false" RowAddr="68" RowSpan="1" Width="4982"><CELLMARGIN Bottom="0" Left="0" Right="0" Top="0"/><PARALIST LineWrap="Squeeze" LinkListID="0" LinkListIDNext="0" TextDirection="0" VertAlign="Center"><P ParaShape="21" Style="41"><TEXT CharShape="7"/></P></PARALIST></CELL><CELL BorderFill="42" ColAddr="3" ColSpan="2" Dirty="false" Editable="false" HasMargin="false" Header="false" Height="1650" Protect="false" RowAddr="68" RowSpan="1" Width="20982"><CELLMARGIN Bottom="0" Left="0" Right="0" Top="0"/><PARALIST LineWrap="Break" LinkListID="0" LinkListIDNext="0" TextDirection="0" VertAlign="Center"><P ParaShape="22" Style="32"><TEXT CharShape="7"><CHAR>∈$D$75∋</CHAR></TEXT></P></PARALIST></CELL></ROW><ROW><CELL BorderFill="22" ColAddr="0" ColSpan="1" Dirty="false" Editable="false" HasMargin="false" Header="false" Height="1650" Protect="false" RowAddr="69" RowSpan="1" Width="3001"><CELLMARGIN Bottom="0" Left="0" Right="0" Top="0"/><PARALIST LineWrap="Squeeze" LinkListID="0" LinkListIDNext="0" TextDirection="0" VertAlign="Center"><P ParaShape="21" Style="27"><TEXT CharShape="7"><CHAR>∈$A$76∋</CHAR></TEXT></P></PARALIST></CELL><CELL BorderFill="23" ColAddr="1" ColSpan="1" Dirty="false" Editable="false" HasMargin="false" Header="false" Height="1650" Protect="false" RowAddr="69" RowSpan="1" Width="10406"><CELLMARGIN Bottom="0" Left="0" Right="0" Top="0"/><PARALIST LineWrap="Break" LinkListID="0" LinkListIDNext="0" TextDirection="0" VertAlign="Center"><P ParaShape="22" Style="32"><TEXT CharShape="7"><CHAR>∈$B$76∋</CHAR></TEXT></P></PARALIST></CELL><CELL BorderFill="24" ColAddr="2" ColSpan="1" Dirty="false" Editable="false" HasMargin="false" Header="false" Height="1650" Protect="false" RowAddr="69" RowSpan="1" Width="4982"><CELLMARGIN Bottom="0" Left="0" Right="0" Top="0"/><PARALIST LineWrap="Squeeze" LinkListID="0" LinkListIDNext="0" TextDirection="0" VertAlign="Center"><P ParaShape="21" Style="41"><TEXT CharShape="7"/></P></PARALIST></CELL><CELL BorderFill="42" ColAddr="3" ColSpan="2" Dirty="false" Editable="false" HasMargin="false" Header="false" Height="1650" Protect="false" RowAddr="69" RowSpan="1" Width="20982"><CELLMARGIN Bottom="0" Left="0" Right="0" Top="0"/><PARALIST LineWrap="Break" LinkListID="0" LinkListIDNext="0" TextDirection="0" VertAlign="Center"><P ParaShape="22" Style="32"><TEXT CharShape="7"><CHAR>∈$D$76∋</CHAR></TEXT></P></PARALIST></CELL></ROW><ROW><CELL BorderFill="22" ColAddr="0" ColSpan="1" Dirty="false" Editable="false" HasMargin="false" Header="false" Height="1650" Protect="false" RowAddr="70" RowSpan="1" Width="3001"><CELLMARGIN Bottom="0" Left="0" Right="0" Top="0"/><PARALIST LineWrap="Squeeze" LinkListID="0" LinkListIDNext="0" TextDirection="0" VertAlign="Center"><P ParaShape="21" Style="27"><TEXT CharShape="7"><CHAR>∈$A$77∋</CHAR></TEXT></P></PARALIST></CELL><CELL BorderFill="23" ColAddr="1" ColSpan="1" Dirty="false" Editable="false" HasMargin="false" Header="false" Height="1650" Protect="false" RowAddr="70" RowSpan="1" Width="10406"><CELLMARGIN Bottom="0" Left="0" Right="0" Top="0"/><PARALIST LineWrap="Break" LinkListID="0" LinkListIDNext="0" TextDirection="0" VertAlign="Center"><P ParaShape="22" Style="32"><TEXT CharShape="7"><CHAR>∈$B$77∋</CHAR></TEXT></P></PARALIST></CELL><CELL BorderFill="24" ColAddr="2" ColSpan="1" Dirty="false" Editable="false" HasMargin="false" Header="false" Height="1650" Protect="false" RowAddr="70" RowSpan="1" Width="4982"><CELLMARGIN Bottom="0" Left="0" Right="0" Top="0"/><PARALIST LineWrap="Squeeze" LinkListID="0" LinkListIDNext="0" TextDirection="0" VertAlign="Center"><P ParaShape="21" Style="41"><TEXT CharShape="7"/></P></PARALIST></CELL><CELL BorderFill="42" ColAddr="3" ColSpan="2" Dirty="false" Editable="false" HasMargin="false" Header="false" Height="1650" Protect="false" RowAddr="70" RowSpan="1" Width="20982"><CELLMARGIN Bottom="0" Left="0" Right="0" Top="0"/><PARALIST LineWrap="Break" LinkListID="0" LinkListIDNext="0" TextDirection="0" VertAlign="Center"><P ParaShape="22" Style="32"><TEXT CharShape="7"><CHAR>∈$D$77∋</CHAR></TEXT></P></PARALIST></CELL></ROW><ROW><CELL BorderFill="22" ColAddr="0" ColSpan="1" Dirty="false" Editable="false" HasMargin="false" Header="false" Height="1650" Protect="false" RowAddr="71" RowSpan="1" Width="3001"><CELLMARGIN Bottom="0" Left="0" Right="0" Top="0"/><PARALIST LineWrap="Squeeze" LinkListID="0" LinkListIDNext="0" TextDirection="0" VertAlign="Center"><P ParaShape="21" Style="27"><TEXT CharShape="7"><CHAR>∈$A$78∋</CHAR></TEXT></P></PARALIST></CELL><CELL BorderFill="23" ColAddr="1" ColSpan="1" Dirty="false" Editable="false" HasMargin="false" Header="false" Height="1650" Protect="false" RowAddr="71" RowSpan="1" Width="10406"><CELLMARGIN Bottom="0" Left="0" Right="0" Top="0"/><PARALIST LineWrap="Break" LinkListID="0" LinkListIDNext="0" TextDirection="0" VertAlign="Center"><P ParaShape="22" Style="32"><TEXT CharShape="7"><CHAR>∈$B$78∋</CHAR></TEXT></P></PARALIST></CELL><CELL BorderFill="24" ColAddr="2" ColSpan="1" Dirty="false" Editable="false" HasMargin="false" Header="false" Height="1650" Protect="false" RowAddr="71" RowSpan="1" Width="4982"><CELLMARGIN Bottom="0" Left="0" Right="0" Top="0"/><PARALIST LineWrap="Squeeze" LinkListID="0" LinkListIDNext="0" TextDirection="0" VertAlign="Center"><P ParaShape="21" Style="41"><TEXT CharShape="7"/></P></PARALIST></CELL><CELL BorderFill="42" ColAddr="3" ColSpan="2" Dirty="false" Editable="false" HasMargin="false" Header="false" Height="1650" Protect="false" RowAddr="71" RowSpan="1" Width="20982"><CELLMARGIN Bottom="0" Left="0" Right="0" Top="0"/><PARALIST LineWrap="Break" LinkListID="0" LinkListIDNext="0" TextDirection="0" VertAlign="Center"><P ParaShape="22" Style="32"><TEXT CharShape="7"><CHAR>∈$D$78∋</CHAR></TEXT></P></PARALIST></CELL></ROW><ROW><CELL BorderFill="44" ColAddr="0" ColSpan="1" Dirty="false" Editable="false" HasMargin="false" Header="false" Height="1650" Protect="false" RowAddr="72" RowSpan="1" Width="3001"><CELLMARGIN Bottom="0" Left="0" Right="0" Top="0"/><PARALIST LineWrap="Squeeze" LinkListID="0" LinkListIDNext="0" TextDirection="0" VertAlign="Center"><P ParaShape="21" Style="27"><TEXT CharShape="7"><CHAR>∈$A$79∋</CHAR></TEXT></P></PARALIST></CELL><CELL BorderFill="45" ColAddr="1" ColSpan="1" Dirty="false" Editable="false" HasMargin="false" Header="false" Height="1650" Protect="false" RowAddr="72" RowSpan="1" Width="10406"><CELLMARGIN Bottom="0" Left="0" Right="0" Top="0"/><PARALIST LineWrap="Break" LinkListID="0" LinkListIDNext="0" TextDirection="0" VertAlign="Center"><P ParaShape="22" Style="32"><TEXT CharShape="7"><CHAR>∈$B$79∋</CHAR></TEXT></P></PARALIST></CELL><CELL BorderFill="46" ColAddr="2" ColSpan="1" Dirty="false" Editable="false" HasMargin="false" Header="false" Height="1650" Protect="false" RowAddr="72" RowSpan="1" Width="4982"><CELLMARGIN Bottom="0" Left="0" Right="0" Top="0"/><PARALIST LineWrap="Squeeze" LinkListID="0" LinkListIDNext="0" TextDirection="0" VertAlign="Center"><P ParaShape="21" Style="42"><TEXT CharShape="7"/></P></PARALIST></CELL><CELL BorderFill="45" ColAddr="3" ColSpan="2" Dirty="false" Editable="false" HasMargin="false" Header="false" Height="1650" Protect="false" RowAddr="72" RowSpan="1" Width="20982"><CELLMARGIN Bottom="0" Left="0" Right="0" Top="0"/><PARALIST LineWrap="Break" LinkListID="0" LinkListIDNext="0" TextDirection="0" VertAlign="Center"><P ParaShape="22" Style="32"><TEXT CharShape="7"><CHAR>∈$D$79∋</CHAR></TEXT></P></PARALIST></CELL></ROW></TABLE><CHAR/></TEXT></P></SECTION></BODY><TAIL><SCRIPTCODE Type="JScript" Version="1.0"><SCRIPTHEADER></SCRIPTHEADER><SCRIPTSOURCE></SCRIPTSOURCE></SCRIPTCODE></TAIL></HWPML>
J11: 반기 | K11: ANG | M11: 2028 | O11: 2022 | P11: Q1 | Q11: 계약9
C12: 사업개요서/PDM/POD 진행 여부 체크 : | J12: 년 | K12: AOA | M12: 2029 | O12: 2022 | P12: Q2 | Q12: 계약10
C13: POD후 | J13: 박 | K13: ARS | M13: 2030 | O13: 2022 | P13: Q3
K14: AUD | M14: 2031 | O14: 2022 | P14: Q4
J15: <Count> | K15: AWG | M15: 2032 | O15: 2023 | P15: Q1
J16: 명 | K16: AZN | M16: 2033 | O16: 2023 | P16: Q2
A17: <이하 TOC 시트 기능용 프리셋 : 수정/삭제 엄금> | J17: 개 | K17: BAM | M17: 2034 | O17: 2023 | P17: Q3
E18: <좌측 TOC 시트 기능용 프리셋 : 수정/삭제 엄금> | J18: 대 | K18: BBD | M18: 2035 | O18: 2023 | P18: Q4
J19: 권 | K19: BDT | M19: 2036 | O19: 2024 | P19: Q1
J20: 쪽 | K20: BGN | M20: 2037 | O20: 2024 | P20: Q2
B21: ↑ | J21: 병 | K21: BHD | M21: 2038 | O21: 2024 | P21: Q3
J22: 벌 | K22: BIF | M22: 2039 | O22: 2024 | P22: Q4
A23: + | B23: - | C23: X | J23: 판 | K23: BMD | M23: 2040 | O23: 2025 | P23: Q1
B24: ↑ | J24: 봉 | K24: BND | O24: 2025 | P24: Q2
J25: 부 | K25: BOB | O25: 2025 | P25: Q3
A26: + | B26: - | C26: X | J26: 척 | K26: BRL | O26: 2025 | P26: Q4
B27: ↑ | C27: X | J27: Box | K27: BSD | O27: 2026 | P27: Q1
E28: <좌측 TOC 시트 기능용 프리셋 : 수정/삭제 엄금> | J28: EA | K28: BTN | O28: 2026 | P28: Q2
C29: X | J29: 갑 | K29: BWP | O29: 2026 | P29: Q3
G30: 원본 양식0 취합 프로세스 시작 체크 캐쉬 : | J30: 배율 | K30: BYN | O30: 2026 | P30: Q4
A31: <이상 TOC 시트 기능용 프리셋 : 수정/삭제 엄금> | J31: 통 | K31: BZD | O31: 2027 | P31: Q1
J32: 개소 | K32: CAD | O32: 2027 | P32: Q2
A33: 전문가의견 드롭다운 생성 캐쉬 : | C33: 사업시행구조 정리용 캐쉬 : | E33: 성과관리예산 계상대상 드롭다운 생성 캐쉬 : | G33: 양식0 취합 전 중복 체크 캐쉬 : | J33: SET | K33: CDF | O33: 2027 | P33: Q3
A34: =사업시행구조!$D$16&" "&사업시행구조!$E$16 -> 1.1. 제공된 통합수자원관리 컨설팅 | E34: 1.1.1. | J34: 회 | K34: CHF | O34: 2027 | P34: Q4
A35: =사업시행구조!$D$20&" "&사업시행구조!$E$20 -> 1.2. 개선된 PCRWR 연구 인프라 | E35: 1.1.2. | J35: 차 | K35: CLP | O35: 2028 | P35: Q1
A36: =사업시행구조!$D$22&" "&사업시행구조!$E$22 -> 1.3. 확대된 수질 및 수위측정자료의 효용성 | E36: 1.1.3. | J36: 식 | K36: CNY | O36: 2028 | P36: Q2
A37: =사업시행구조!$D$25&" "&사업시행구조!$E$25 -> 1.4. 구축된 수자원관리종합정보시스템 | E37: 1.2.1. | J37: 건 | K37: COP | O37: 2028 | P37: Q3
A38: =사업시행구조!$D$28&" "&사업시행구조!$E$28 -> 1.5. 강화된 수자원관리 역량 | E38: 1.3.1. | J38: 팩 | K38: CRC | O38: 2028 | P38: Q4
A39: =사업시행구조!$D$31&" "&사업시행구조!$E$31 -> 1.6. 사업 성과 및 산출물 관리 | E39: 1.3.2. | J39: 팀 | K39: CUC | O39: 2029 | P39: Q1
E40: 1.4.1. | K40: CUP | O40: 2029 | P40: Q2
E41: 1.4.2. | J41: <Length> | K41: CVE | O41: 2029 | P41: Q3
E42: 1.5.1. | J42: mm | K42: CZK | O42: 2029 | P42: Q4
E43: 1.5.2. | J43: cm | K43: DJF | O43: 2030 | P43: Q1
E44: 1.6.1. | J44: m | K44: DKK | O44: 2030 | P44: Q2
J45: km | K45: DOP | O45: 2030 | P45: Q3
J46: in | K46: DZD | O46: 2030 | P46: Q4
J47: ft | K47: EGP | O47: 2031 | P47: Q1
J48: yd | K48: ERN | O48: 2031 | P48: Q2
J49: lea | K49: ETB | O49: 2031 | P49: Q3
K50: EUR | O50: 2031 | P50: Q4
J51: <Area> | K51: FJD | O51: 2032 | P51: Q1
J52: mm2 | K52: FKP | O52: 2032 | P52: Q2
J53: cm2 | K53: GBP | O53: 2032 | P53: Q3
J54: m2 | K54: GEL | O54: 2032 | P54: Q4
J55: ha | K55: GGP | O55: 2033 | P55: Q1
J56: km2 | K56: GHS | O56: 2033 | P56: Q2
J57: sq in | K57: GIP | O57: 2033 | P57: Q3
J58: sq ft | K58: GMD | O58: 2033 | P58: Q4
J59: sq yd | K59: GNF | O59: 2034 | P59: Q1
J60: acre | K60: GTQ | O60: 2034 | P60: Q2
J61: floor | K61: GYD | O61: 2034 | P61: Q3
K62: HKD | O62: 2034 | P62: Q4
J63: <Volume> | K63: HNL | O63: 2035 | P63: Q1
J64: mm3 | K64: HRK | O64: 2035 | P64: Q2
J65: cm3 | K65: HTG | O65: 2035 | P65: Q3
J66: m3 | K66: HUF | O66: 2035 | P66: Q4
J67: ml | K67: IDR | O67: 2036 | P67: Q1
J68: cl | K68: ILS | O68: 2036 | P68: Q2
J69: l | K69: IMP | O69: 2036 | P69: Q3
J70: hl | K70: INR | O70: 2036 | P70: Q4
J71: gi | K71: IQD | O71: 2037 | P71: Q1
J72: pt | K72: IRR | O72: 2037 | P72: Q2
J73: qt | K73: ISK | O73: 2037 | P73: Q3
J74: gal | K74: JEP | O74: 2037 | P74: Q4
J75: bl | K75: JMD | O75: 2038 | P75: Q1
J76: pk | K76: JOD | O76: 2038 | P76: Q2
J77: bsh | K77: JPY | O77: 2038 | P77: Q3
J78: qr | K78: KES | O78: 2038 | P78: Q4
K79: KGS | O79: 2039 | P79: Q1
J80: <Mass> | K80: KHR | O80: 2039 | P80: Q2
J81: mg | K81: KMF | O81: 2039 | P81: Q3
J82: g | K82: KPW | O82: 2039 | P82: Q4
J83: kg | K83: KWD | O83: 2040 | P83: Q1
J84: hg | K84: KYD | O84: 2040 | P84: Q2
J85: t | K85: KZT | O85: 2040 | P85: Q3
J86: kt | K86: LAK | O86: 2040 | P86: Q4
J87: gr | K87: LBP
J88: oz | K88: LKR
J89: lb | K89: LRD
J90: qu | K90: LSL
J91: cwt | K91: LYD
J92: T | K92: MAD
J93: st | K93: MDL
J94: qu | K94: MGA
K95: MKD
J96: <통역비> | K96: MMK
J97: 자 | K97: MNT
J98: 단어 | K98: MOP
J99: 식 | K99: MRU
K100: MUR
K101: MVR
K102: MWK
K103: MXN
K104: MYR
K105: MZN
K106: NAD
K107: NGN
K108: NIO
K109: NOK
K110: NPR
K111: NZD
K112: OMR
K113: PAB
K114: PEN
K115: PGK
K116: PHP
K117: PKR
K118: PLN
K119: PRB
K120: PYG
K121: QAR
K122: RON
K123: RSD
K124: RUB
K125: RWF
K126: SAR
K127: SBD
K128: SCR
K129: SDG
K130: SEK
K131: SGD
K132: SHP
K133: SLL
K134: SOS
K135: SRD
K136: SSP
K137: STN
K138: SYP
K139: SZL
K140: THB
K141: TJS
K142: TMT
K143: TND
K144: TOP
K145: TRY
K146: TTD
K147: TVD
K148: TWD
K149: TZS
K150: UAH
K151: UGX
K152: UYU
K153: UZS
K154: VEF
K155: VND
K156: VUV
K157: WST
K158: XAF
K159: XCD
K160: XOF
K161: XPF
K162: YER
K163: ZAR
K164: ZMW
K167: [Currency]
K168: USD

Sheet 기준(PES) (hidden)
A1: 양자 및 다자성 양자 | R1: 다자 및 다자성 양자 | AJ1: 유무상 연계 | AK1: 국별 중점분야 목록
A2: OX | B2: 해당유무 | C2: 연도 | D2: 기관명 | E2: 기관명 | F2: 소관부처 | G2: 원조구분 | H2: 지역(대륙) | I2: 국가명 | J2: 중점국가 해당여부 | K2: 사업유형 | L2: 사업분야 | M2: 중점국 | N2: 중점분야 | O2: 국정과제 | P2: SDGs | Q2: 환경사회영향 | R2: 대분류 | S2: 중분류 | V2: 소분류 | AI2: 사업개요서only | AJ2: 연계희망유형 | AK2: 가나 | AL2: 네팔 | AM2: 라오스 | AN2: 르완다 | AO2: 몽골 | AP2: 미얀마 | AQ2: 방글라데시 | AR2: 베트남 | AS2: 볼리비아 | AT2: 세네갈 | AU2: 스리랑카 | AV2: 에티오피아 | AW2: 우간다 | AX2: 우즈베키스탄 | AY2: 우크라이나 | AZ2: 이집트 | BA2: 인도 | BB2: 인도네시아 | BC2: 캄보디아 | BD2: 콜롬비아 | BE2: 키르기스스탄 | BF2: 타지키스탄 | BG2: 탄자니아 | BH2: 파라과이 | BI2: 파키스탄 | BJ2: 페루 | BK2: 필리핀
D3: 국문 | E3: 영문 | J3: vlookup용 | S3: 국제기구 | T3: NGO | U3: PPP_네트워크_교육기관 | V3: 유엔기구_기금 | W3: EU_기금 | X3: IMF | Y3: 세계은행 | Z3: 세계무역기구 | AA3: 지역개발은행 | AB3: 기타_다자기구 | AC3: 국제NGO | AD3: 공여국내NGO | AE3: 개도국내NGO | AF3: PPP | AG3: NETWORK | AH3: 교육기관 | AI3: 발굴경로 | AK3: 지역개발 | AL3: 물관리 및 보건위생 | AM3: 물관리 및 보건위생 | AN3: 교육 | AO3: 교육 | AP3: 공공행정 | AQ3: 교육 | AR3: 교통 | AS3: 보건위생 | AT3: 지역개발 및 농림수산 | AU3: 교육 | AV3: 물관리 및 보건위생 | AW3: 지역개발 | AX3: 교육 | AY3: 교통 | AZ3: 교통 | BA3: 지역개발 | BB3: 기후환경 | BC3: 교통 | BD3: 지역개발 | BE3: 지역개발 | BF3: 산업 | BG3: 물관리 및 보건위생 | BH3: 물관리 및 보건위생 | BI3: 에너지 | BJ3: 보건위생 | BK3: 지역개발
A4: ` | B4: 시행_한글 | C4: 시행_한글 | D4: 시행_엑셀 | E4: 시행_엑셀 | F4: 시행_엑셀 | G4: 시행_엑셀 | H4: 시행_엑셀 | I4: 시행_엑셀 | J4: 시행_지침 | K4: 시행_엑셀 | L4: 시행_엑셀 | M4: 시행_엑셀 | N4: 시행_엑셀 | O4: 시행_한글 | P4: 시행_한글 | Q4: 시행_엑셀 | R4: 시행_엑셀 | S4: 시행_엑셀 | T4: 시행_엑셀 | U4: 시행_엑셀 | V4: 시행_엑셀 | W4: 시행_엑셀 | X4: 시행_엑셀 | Y4: 시행_엑셀 | Z4: 시행_엑셀 | AA4: 시행_엑셀 | AB4: 시행_엑셀 | AC4: 시행_엑셀 | AD4: 시행_엑셀 | AE4: 시행_엑셀 | AF4: 시행_엑셀 | AG4: 시행_엑셀 | AH4: 시행_엑셀 | AI4: 시행_한글 | AJ4: 시행_엑셀 | AK4: 보건위생 | AL4: 교육 | AM4: 에너지 | AN4: 지역개발 | AO4: 물관리 및 보건위생 | AP4: 지역개발 | AQ4: 교통 | AR4: 교육 | AS4: 지역개발 | AT4: 보건의료 | AU4: 교통 | AV4: 지역개발 | AW4: 교육 | AX4: 물관리 및 보건위생 | AY4: 지역개발 | AZ4: 에너지 | BA4: 교통 | BB4: 물관리 및 보건위생 | BC4: 물관리 및 보건위생 | BD4: 교통 | BE4: 공공행정 | BF4: 교육 | BG4: 교육 | BH4: 교통 | BI4: 물관리 및 보건위생 | BJ4: 공공행정 | BK4: 물관리 및 보건위생
A5: O | B5: 해당없음 | C5: 1991 | D5: 외교통상부 | E5: Ministry of Foreign Affairs and Trade | F5: 한국국제협력단 | G5: 양자무상 | H5: 아시아 | I5: 다국가 | J5: 기타 | K5: 프로젝트 | L5: 교육 | M5: 중점 | N5: 공공행정 | O5: 99. 국익을 증진하는 경제외교 및 개발협력 강화 | P5: 1. 빈곤층 감소와 사회안전망 강화 | Q5: 해당없음 | R5: 국제기구 | S5: 유엔기구_기금 | T5: 국제NGO | U5: PPP | V5: CERF | W5: EC | X5: IMF-CCR | Y5: AMCs | Z5: WTO-ACWL | AA5: Afr.DB | AB5: Adaptation Fund | AC5: AMREF | AD5: AgriCord | AE5: ASF | AF5: Cities Alliance | AG5: CAPAM | AH5: WARDA | AI5: 1. 기구 요청 | AJ5: ① 마스터플랜/개발조사/정책자문(무상) + 인프라 EDCF | AK5: 교육 | AL5: 지역개발 | AM5: 교육 | AN5: 통신 | AO5: 공공행정 | AP5: 교통 | AQ5: 물관리 및 보건위생 | AR5: 물관리 및 보건위생 | AS5: 교통 | AT5: 교육 | AU5: 물관리 및 보건위생 | AV5: 기후환경 | AW5: 보건위생 | AX5: 공공행정 | AY5: 물관리 및 보건위생 | AZ5: 공공행정 | BA5: 물관리 및 보건위생 | BB5: 공공행정 | BC5: 교육 | BD5: 산업 | BE5: 기후환경 | BF5: 에너지 | BG5: 교통 | BH5: 지역개발 | BI5: 지역개발 | BJ5: 환경보호 | BK5: 교통
A6: X | B6: 있음 | C6: 2000 | D6: 외교통상부(한국국제협력단) | E6: Korea International Cooperation Agency | G6: 다자성양자(무상) | H6: 아프리카 | I6: 미정 | J6: 기타 | K6: 프로그램 | L6: 보건 | M6: 일반 | N6: 교육 | P6: 2. 식량안보와 지속가능한 농업 | Q6: A | R6: NGO | S6: EU_기금 | T6: 공여국내NGO | U6: NETWORK | V6: UNCCD | W6: EDF | X6: IMF-PCDR | Y6: IBRD | Z6: WTO-DDAGTF | AA6: Afr.DF | AB6: CAMES | AC6: ACORD | AD6: APT | AE6: AAU | AF6: CEPI | AG6: CPTM | AH6: Bioversity International | AI6: 2. 외교적 계기 | AJ6: ② 시범사업(무상) + 대규모사업(EDCF) | AK6: 에너지 | AL6: 에너지 | AM6: 지역개발 | AO6: 교통 | AP6: 에너지 | AQ6: 통신 | AR6: 공공행정 | AS6: 에너지 | AT6: 공공행정 | AU6: 지역개발 | AX6: 지역개발 | AY6: 공공행정 | AZ6: 교육 | BA6: 에너지 | BB6: 교통 | BC6: 지역개발 | BD6: 평화구축 | BE6: ICT | BF6: 농림수산 | BG6: 에너지 | BH6: 공공행정 | BJ6: 교통 | BK6: 재해예방
C7: 2001 | G7: 다자 | H7: 중남미 | I7: 가나 | J7: 중점 | K7: 개발컨설팅 | L7: 농림수산 | M7: 기타 | N7: 교통 | P7: 3. 건강하고 행복한 삶 | Q7: B | R7: PPP_네트워크_교육기관 | S7: IMF | T7: 개도국내NGO | U7: 교육기관 | V7: DLCO-EA | W7: EIB | X7: IMF-PRG-HIPC | Y7: IDA | Z7: WTO-ITC | AA7: Afreximbank | AB7: ACBF | AC7: AGID | AD7: Development Gateway Foundation | AE7: FAWE | AF7: EFSE | AG7: AWEPA | AH7: CIFOR | AI7: 3. 재외공관 건의 | AJ7: ③ EDCF + 운영지원/역량강화/사후관리(무상) | AK7: 교통 | AO7: 기후환경 | AP7: 교육 | AZ7: 통신 | BA7: 기후환경 | BF7: 교통
A8: ① 시행계획 확정 | C8: 2002 | H8: 중동·CIS | I8: 가봉 | J8: 일반 | K8: 연수사업 | L8: 공공행정 | N8: 교통 및 에너지 | P8: 4. 모두를 위한 양질의 교육 | Q8: C | S8: 세계은행 | V8: ESCAP | X8: IMF-PRG-MDRI | Y8: IDA-HIPC | AA8: CAF | AB8: ARC | AC8: CI (79%) | AD8: ECDPM | AE8: ISPEC | AF8: GAID | AG8: EITI | AH8: CODESRIA | AI8: 4. 내부결정 | AJ8: ④ 동일국·인접지역 내 종합 인프라 구축 | BA8: ICT
A9: ② 집행계획수립(R/D체결/ MOU체결 등) | C9: 2003 | H9: 오세아니아 | I9: 가이아나 | J9: 일반 | K9: 장학지원 | L9: 교통 | N9: 물관리 | P9: 5. 성평등 보장 | S9: 세계무역기구 | V9: ESCWA | X9: IMF-PRGT | Y9: IDA-MDRI | AA9: AsDB | AB9: ATAF | AC9: CUTS | AD9: Eurostep | AE9: IUEF | AF9: GAIN | AG9: GDN | AH9: FFTC | AI9: 5. 기타 | AJ9: ⑤ 동일국·인접지역 간 협의체 구성, 상호 정보공유
A10: ③ 사업 시행자 선정 | C10: 2004 | H10: 기타(다지역) | I10: 감비아 | J10: 일반 | K10: 봉사단파견 | L10: 에너지 | N10: 물관리 및 보건위생 | P10: 6. 건강하고 안전한 물관리 | S10: 지역개발은행 | V10: ECA | X10: IMF-EPCA-ENDA | Y10: IFC | AA10: AsDF | AB10: AU | AC10: MSF | AD10: FIT | AE10: CLASCO | AF10: GCPF | AG10: GKP | AH10: FARA
A11: ④ 사업 추진중 | C11: 2005 | H11: 기타(지역미지정) | I11: 과테말라 | J11: 일반 | K11: 기타기술협력 | L11: 산업 | N11: 보건위생 | P11: 7. 에너지의 친환경적 생산과 소비 | S11: 기타_다자기구 | V11: ECLAC | Y11: MIGA | AA11: AIIB (85%) | AB11: AITIC | AC11: ENDA | AD11: Geneva Call | AE11: National Red Cross and Red Crescent Societies | AF11: Global Crop Diversity Trust | AG11: ICTSD | AH11: IAI | AP11: =OFFSET('기준(PES)'!$AK$1, 1, MATCH(PES!$D$11, '기준(PES)'!$AK$2:$BK$2, 0), 6, 1) -> 
C12: 2006 | I12: 그레나다 | J12: 일반 | K12: 민관협력 | L12: 환경보호 | N12: 산업 | P12: 8. 좋은 일자리 확대와 경제성장 | V12: FAO (83%) | AA12: BSTDB (61%) | AB12: APO | AC12: ELCI | AD12: HURIDOCS | AE12: PAID | AF12: GEEREF | AG12: ILC | AH12: ICARDA
C13: 2007 | I13: 기니 | J13: 일반 | K13: 행정비용 | L13: 통신 | N13: 에너지 | P13: 9. 산업혁신과 사회기반시설 확충 | V13: GM | AA13: CDB | AB13: APEC ASF | AC13: FHI360 | AD13: ICRA | AE13: RATN | AF13: GeSCI | AG13: PNoWB | AH13: ICRA
C14: 2008 | I14: 기니비사우 | J14: 일반 | K14: 기타 | L14: 수자원 및 위생 | N14: 재해 예방 | P14: 10. 모든 종류의 불평등 해소 | V14: IAEA-Assessed (33%) | AA14: BDEAC | AB14: APFIC | AC14: GCE | AD14: ICG | AF14: GWP | AH14: ICDDR,B
C15: 2009 | I15: 나미비아 | J15: 일반 | L15: 인도적지원 | N15: 지역개발 | P15: 11. 지속가능한 도시와 주거지 | V15: IAEA-TCF | AA15: CABEI | AB15: ASEAN | AC15: HAI | AD15: IFS | AF15: IAVI | AH15: CIAT
A16: * 연도별 편성환율 | C16: 2010 | E16: * 민간전문가 참여인원용 | I16: 나우루 | J16: 일반 | L16: 기타 | N16: 지역개발 및 수산업 | P16: 12. 지속가능한 생산과 소비 | V16: IFAD | AA16: CEB (18%) | AB16: CARICOM | AC16: IPS | AD16: ISC | AF16: IPM | AH16: ICIPE
A17: 2007 | B17: 950 | C17: 2011 | E17: X | I17: 나이지리아 | J17: 일반 | N17: 통신 | P17: 13. 기후변화 대응 | V17: ILO-Assessed (60%) | AA17: TDB | AB17: CAREC | AC17: International Alert | AD17: ISHR | AF17: IUCN | AH17: ICRISAT
A18: 2008 | B18: 920 | C18: 2012 | E18: 1 | I18: 남수단 | J18: 일반 | N18: 평화 | P18: 14. 해양생태계 보전 | V18: ILO-RBSA | AA18: PTA Bank | AB18: CEF | AC18: ICTJ | AD18: IWTC | AF18: MEF | AH18: IFPRI
A19: 2009 | B19: 990 | C19: 2013 | E19: 2 | I19: 남아프리카공화국 | J19: 일반 | N19: 환경보호 | P19: 15. 육상생태계 보전 | V19: IMO-TCF | AA19: EBRD (43%) | AB19: CEI-Climate Fund | AC19: ICRC | AD19: ITF | AF19: REGMIFA | AH19: IIED
A20: 2010 | B20: 1150 | C20: 2014 | E20: 3 | I20: 네팔 | J20: 중점 | P20: 16. 인권, 정의, 평화 | V20: ITU (18%) | AA20: EBRD-ETC | AB20: CGIAR | AC20: ICCIDD | AD20: OXFAM | AF20: REEEP | AH20: IISD
A21: 2011 | B21: 1150 | C21: 2015 | E21: 4 | I21: 니우에 | J21: 일반 | P21: 17. 지구촌 협력확대 | V21: UNAIDS | AA21: EBRD TFs - All Countries (43%) | AB21: CTF | AC21: IFRCRCS | AD21: Save the Children - donor country office | AF21: SANAD | AH21: IITA
A22: 2012 | B22: 1070 | C22: 2016 | E22: 5 | I22: 니제르 | J22: 일반 | V22: UN-TBLDC | AA22: EBRD TFs - ODA Countries Only | AB22: CP | AC22: International HIV/AIDS Alliance | AD22: TI | AF22: SAS | AH22: ILRI
A23: 2013 | B23: 1130 | C23: 2017 | E23: 6 | I23: 니카라과 | J23: 일반 | V23: UN (47%) | AA23: EBRD-WBJTF | AB23: CFC | AC23: INAFI | AD23: WWB | AH23: CIMMYT
A24: 2014 | B24: 1120 | C24: 2018 | E24: 7 | I24: 도미니카공화국 | J24: 일반 | V24: UNCDF | AA24: IDB FSO | AB24: CF | AC24: Interpeace | AD24: OMCT | AH24: CIP
A25: 2015 | B25: 1030 | C25: 2019 | E25: 8 | I25: 도미니카연방 | J25: 일반 | V25: UNICEF | AA25: IDB | AB25: COL | AC25: IPPF | AH25: IRRI
A26: 2016 | B26: 1140 | C26: 2020 | E26: 9 | I26: 동티모르 | J26: 일반 | V26: UNCTAD | AA26: IsDB | AB26: Commonwealth Secretariat (ODA-eligible contributions only) | AC26: IRCT | AH26: ISTA
A27: 2017 | B27: 1150 | C27: 2021 | E27: 10 | I27: 라오스 | J27: 중점 | V27: UNDEF | AA27: BOAD | AB27: CPLP | AC27: IRD | AH27: IWMI
A28: 2018 | B28: 1130 | C28: 2022 | E28: 11 | I28: 라이베리아 | J28: 일반 | V28: UNDPKO (15%) | AA28: FONPLATA (75%) | AB28: CITES | AC28: IRC | AH28: USP
A29: 2019 | B29: 1100 | C29: 2023 | E29: 12 | I29: 레바논 | J29: 일반 | V29: UNDPA-SZA | AB29: CoE (40$) | AC29: UNION | AH29: ICRAF
A30: 2020 | B30: 1190 | C30: 2024 | E30: 13 | I30: 레소토 | J30: 일반 | V30: UNDP | AB30: EROPA | AC30: IPAS-Protecting Women’s Health, Advancing Women’s Reproductive Rights | AH30: WMU
A31: 2021 | B31: 1210 | C31: 2025 | E31: 14 | I31: 르완다 | J31: 중점 | V31: UNECE (89%) | AB31: CEMAC | AC31: LPI | AH31: AVRDC
A32: 2022 | B32: 1210 | C32: 2026 | E32: 15 | I32: 리비아 | J32: 일반 | V32: UNESCO (60%) | AB32: ECOWAS | AC32: OXFAM-I | AH32: WorldFish Centre
C33: 2027 | E33: 16 | I33: 마다가스카르 | J33: 일반 | V33: UNWOMEN | AB33: EPPO | AC33: PACT
C34: 2028 | E34: 17 | I34: 마셜제도 | J34: 일반 | V34: UNEP | AB34: European Space Agency (ESA) programme “Space in support of International Development Aid” | AC34: PANOS
C35: 2029 | E35: 18 | I35: 마이크로네시아연방 | J35: 일반 | V35: UNFCCC (61%) | AB35: FCPF | AC35: PSI
C36: 2030 | E36: 19 | I36: 말라위 | J36: 일반 | V36: OHCHR (88%) | AB36: FFA | AC36: Save the Children_International
A37: 해당없음 | C37: 2031 | E37: 20 | I37: 말레이시아 | J37: 일반 | V37: UN Habitat | AB37: DCAF | AC37: SID
A38: 후속관리 필요 | C38: 2032 | E38: 21 | I38: 말리 | J38: 일반 | V38: UNIDO | AB38: GICHD | AC38: TNC (12%)
A39: 사업내용 및 성과 부실 | C39: 2033 | E39: 22 | I39: 멕시코 | J39: 일반 | V39: UNITAR | AB39: GAFSP | AC39: WUS
C40: 2034 | E40: 23 | I40: 모로코 | J40: 일반 | V40: UNISDR (75%) | AB40: GAVI | AC40: World Vision_International
C41: 2035 | E41: 24 | I41: 모리셔스 | J41: 일반 | V41: UNMAS | AB41: GCERF | AC41: CHAI
C42: 2036 | E42: 25 | I42: 모리타니아 | J42: 일반 | V42: UNOPS | AB42: GEF-LDCF
C43: 2037 | E43: 26 | I43: 모잠비크 | J43: 일반 | V43: UNOCHA | AB43: GEF-SCCF
C44: 2038 | E44: 27 | I44: 몬세랏 | J44: 일반 | V44: UNHCR | AB44: GEF
C45: 2039 | E45: 28 | I45: 몬테네그로 | J45: 일반 | V45: UNODC | AB45: GFDRR
C46: 2040 | E46: 29 | I46: 몰도바 | J46: 일반 | V46: PBF Window 1 (89%) | AB46: Global Fund
E47: 30 | I47: 몰디브 | J47: 일반 | V47: PBF Window 2 | AB47: GGGI
E48: 31 | I48: 몽골 | J48: 중점 | V48: UNFPA | AB48: GPE
C49: 신규사업해당연도 : | E49: 32 | I49: 미얀마 | J49: 중점 | V49: UN-REDD | AB49: GCF
C50: 2025 | E50: 33 | I50: 바누아투 | J50: 일반 | V50: UNRWA | AB50: IF
E51: 34 | I51: 방글라데시 | J51: 중점 | V51: UNRISD | AB51: IICA
E52: 35 | I52: 베냉 | J52: 일반 | V52: UNSIA | AB52: IOC
E53: 36 | I53: 베네수엘라 | J53: 일반 | V53: UNSSC | AB53: IPCC
E54: 37 | I54: 베트남 | J54: 중점 | V54: UNSCN | AB54: CIHEAM
E55: 38 | I55: 벨라루스 | J55: 일반 | V55: UNU | AB55: ICAC
E56: 39 | I56: 벨리즈 | J56: 일반 | V56: UNVFTC | AB56: IDLO
E57: 40 | I57: 보스니아헤르체고비나 | J57: 일반 | V57: UNVFVT | AB57: UNITAID
E58: 41 | I58: 보츠와나 | J58: 일반 | V58: UNVFD | AB58: IFFIm
E59: 42 | I59: 볼리비아 | J59: 중점 | V59: UNV | AB59: IDEA
E60: 43 | I60: 부룬디 | J60: 일반 | V60: UPU (16%) | AB60: INBAR
E61: 44 | I61: 부르키나파소 | J61: 일반 | V61: UN-CBPF | AB61: OIF
E62: 45 | I62: 부탄 | J62: 일반 | V62: WFP | AB62: IRENA (66%)
E63: 46 | I63: 북마케도니아 | J63: 일반 | V63: WHO-Assessed (76%) | AB63: ITTO
E64: 47 | I64: 브라질 | J64: 일반 | V64: WHO-CVCA | AB64: IVI
E65: 48 | I65: 사모아 | J65: 일반 | V65: WIPO (3%) | AB65: JSCA
E66: 49 | I66: 상투메프린시페 | J66: 일반 | V66: WMO (4%) | AB66: OLADE
E67: 50 | I67: 서안 및 가자지구 | J67: 일반 | V67: UNWTO (89%) | AB67: MRC
I68: 세네갈 | J68: 중점 | V68: IOM | AB68: Montreal Protocol
A69: 계약 드롭다운 : | I69: 세르비아 | J69: 일반 | V69: UNDCO | AB69: NEPAD
A70: (시작연도) | B70: (시작분기) | C70: (종료연도) | D70: (종료분기) | E70: (계약매핑) | F70: (비고 ex. PMC(국내)) | G70: (성과관리예산 계상처리 대상 활동(Activity) 지정 - 해당없을 경우 빈 칸으로 설정) | I70: 세인트루시아 | J70: 일반 | V70: UNIDIR (27%) | AB70: NDF
I71: 세인트빈센트그레나딘 | J71: 일반 | V71: IARC (51%) | AB71: OECD-Dev. Centre
I72: 세인트헬레나 | J72: 일반 | AB72: OFID
I73: 소말리아 | J73: 일반 | AB73: OECD
I74: 솔로몬제도 | J74: 일반 | AB74: OAS
I75: 수단 | J75: 일반 | AB75: OECS
I76: 수리남 | J76: 일반 | AB76: OEI
I77: 스리랑카 | J77: 중점 | AB77: BSEC (78%)
I78: 시리아 | J78: 일반 | AB78: OSCE (74%)
I79: 시에라리온 | J79: 일반 | AB79: PIFS
I80: 아르메니아 | J80: 일반 | AB80: SPREP
I81: 아이티 | J81: 일반 | AB81: PAHO
I82: 아제르바이잔 | J82: 일반 | AB82: PAIGH
I83: 아프가니스탄 | J83: 일반 | AB83: PIDG
I84: 알바니아 | J84: 일반 | AB84: CREFIAF
I85: 알제리 | J85: 일반 | AB85: OSS
I86: 앙골라 | J86: 일반 | AB86: SWAC
I87: 에리트레아 | J87: 일반 | AB87: SPC
I88: 에스와티니 | J88: 일반 | AB88: SAARC
I89: 에콰도르 | J89: 일반 | AB89: SEAFDC
I90: 에티오피아 | J90: 중점 | AB90: SEAMEO
I91: 엘살바도르 | J91: 일반 | AB91: SPBEA
I92: 예멘 | J92: 일반 | AB92: SADC
I93: 온두라스 | J93: 일반 | AB93: SCF
I94: 요르단 | J94: 일반 | AB94: UCLGA
I95: 우간다 | J95: 중점 | AB95: UNPO
I96: 우즈베키스탄 | J96: 중점 | AB96: WAMU
I97: 우크라이나 | J97: 중점 | AB97: WCO CCF
I98: 월리스푸투나 | J98: 일반 | AB98: IIB (29%)
I99: 이라크 | J99: 일반 | AB99: IFFEd
I100: 이란 | J100: 일반 | AB100: OIE (61%)
I101: 이집트 | J101: 중점
I102: 인도 | J102: 중점
I103: 인도네시아 | J103: 중점
I104: 자메이카 | J104: 일반
I105: 잠비아 | J105: 일반
I106: 적도기니 | J106: 일반
I107: 조지아 | J107: 일반
I108: 중국 | J108: 일반
I109: 중앙아프리카공화국 | J109: 일반
I110: 지부티 | J110: 일반
I111: 짐바브웨 | J111: 일반
I112: 차드 | J112: 일반
I113: 카메룬 | J113: 일반
I114: 카보베르데 | J114: 일반
I115: 카자흐스탄 | J115: 일반
I116: 캄보디아 | J116: 중점
I117: 케냐 | J117: 일반
I118: 코모로 | J118: 일반
I119: 코소보 | J119: 일반
I120: 코스타리카 | J120: 일반
I121: 코트디부아르 | J121: 일반
I122: 콜롬비아 | J122: 중점
I123: 콩고공화국 | J123: 일반
I124: 콩고민주공화국(DR콩고) | J124: 일반
I125: 쿠바 | J125: 일반
I126: 키르기즈스탄 | J126: 중점
I127: 키리바시 | J127: 일반
I128: 타지키스탄 | J128: 중점
I129: 탄자니아 | J129: 중점
I130: 태국 | J130: 일반
I131: 터키 | J131: 일반
I132: 토고 | J132: 일반
I133: 토켈라우 | J133: 일반
I134: 통가 | J134: 일반
I135: 투르크메니스탄 | J135: 일반
I136: 투발루 | J136: 일반
I137: 튀니지 | J137: 일반
I138: 파라과이 | J138: 중점
I139: 파키스탄 | J139: 중점
I140: 파푸아뉴기니 | J140: 일반
I141: 페루 | J141: 중점
I142: 피지 | J142: 일반
I143: 필리핀 | J143: 중점
I144: 팔레스타인 | J144: 일반 | K144: <<<외교부 양식 상 누락되어 KOICA가 추가하였음
A149: 1 | B149: !
B150: Input Main Problem Here

Sheet 기준(전문가파견) (hidden)
B1: KOICA 협력 대상국(44국) 및 기타 사업대상국 표준 항공권 단가(2023 KOICA 내부조사기준) | CJ1: V5-1
B4: (유의사항) 하기 단가 정보는 계획예산 산출 시 활용하는 표준 단가로, 항공권 가격은 좌석상황 및 등급에 따라 유동적인 바, 실제 항공권 가격과 상이할 수 있음.
B7: 연번 | G7: 대륙 | Q7: 국가 | AK7: 이코노미 항공권 단가 | BE7: 경유지
B8: 수기입력란 | G8: (기입불필요) | Q8: =$G$93 -> 수기입력란 | AK8: 0 | BE8: 국가명은 현지 체재비 기준에 있는 수기입력란 이용
B9: 1 | G9: 아시아태평양 | Q9: 네팔 | AK9: 1750000 | BE9: DIRECT
B10: 2 | Q10: 동티모르 | AK10: 2300000 | BE10: 발리
B11: 3 | Q11: 라오스 | AK11: 1000000 | BE11: DIRECT
B12: 4 | Q12: 몽골 | AK12: 880000 | BE12: DIRECT
B13: 5 | Q13: 미얀마 | AK13: 1100000 | BE13: DIRECT
B14: 6 | Q14: 방글라데시 | AK14: 2100000 | BE14: 싱가폴
B15: 7 | Q15: 베트남 | AK15: 900000 | BE15: DIRECT
B16: 8 | Q16: 스리랑카 | AK16: 2400000 | BE16: DIRECT
B17: 9 | Q17: 아프가니스탄 | AK17: 4250000 | BE17: 두바이
B18: 10 | Q18: 인도네시아 | AK18: 1100000 | BE18: DIRECT
B19: 11 | Q19: 캄보디아 | AK19: 1050000 | BE19: DIRECT
B20: 12 | Q20: 파키스탄 | AK20: 2300000 | BE20: 방콕
B21: 13 | Q21: 피지 | AK21: 2500000 | BE21: 시드니
B22: 14 | Q22: 필리핀 | AK22: 800000 | BE22: DIRECT
B23: 15 | Q23: 인도 | AK23: 1750000 | BE23: DIRECT
B24: 16 | Q24: 파푸아뉴기니 | AK24: 4250000 | BE24: 시드니
B25: 17 | Q25: 태국 | AK25: 1000000 | BE25: DIRECT
B26: 18 | G26: 아프리카 | Q26: 가나 | AK26: 3440000 | BE26: 아디스아바바
B27: 19 | Q27: 나이지리아 | AK27: 3070000 | BE27: 아디스아바바
B28: 20 | Q28: 르완다 | AK28: 3060000 | BE28: 아디스아바바
B29: 21 | Q29: 모잠비크 | AK29: 2970000 | BE29: 아디스아바바
B30: 22 | Q30: 모로코 | AK30: 4050000 | BE30: 파리
B31: 23 | Q31: 세네갈 | AK31: 3300000 | BE31: 아디스아바바
B32: 24 | Q32: 알제리 | AK32: 3950000 | BE32: 도하/이스탄불/두바이
B33: 25 | Q33: 이집트 | AK33: 2630000 | BE33: 도하
B34: 26 | Q34: 에티오피아 | AK34: 2780000 | BE34: DIRECT
B35: 27 | Q35: 우간다 | AK35: 3550000 | BE35: 도하/이스탄불/두바이
B36: 28 | Q36: 카메룬 | AK36: 3370000 | BE36: 아디스아바바
B37: 29 | Q37: 케냐 | AK37: 2680000 | BE37: 아디스아바바/두바이
B38: 30 | Q38: 콩고 민주공화국(DR콩고) | AK38: 3140000 | BE38: 아디스아바바
B39: 31 | Q39: 코트디부아르 | AK39: 3040000 | BE39: 아디스아바바
B40: 32 | Q40: 탄자니아 | AK40: 2710000 | BE40: 두바이
B41: 33 | Q41: 튀니지 | AK41: 3420000 | BE41: 이스탄불
B42: 34 | Q42: 말리 | AK42: 3500000 | BE42: 아디스아바바
B43: 35 | Q43: 남아프리카공화국 | AK43: 2700000 | BE43: 아디스아바바
B44: 36 | Q44: 앙골라 | AK44: 2850000 | BE44: 아디스아바바
B45: 37 | Q45: 수단 | AK45: 3150000 | BE45: 두바이
B46: 38 | Q46: 짐바브웨 | AK46: 2250000 | BE46: 아디스아바바
B47: 39 | Q47: 지부티 | AK47: 2820000 | BE47: 아디스아바바
B48: 40 | Q48: 베냉 | AK48: 3560000 | BE48: 아디스아바바
B49: 41 | Q49: 콩고 공화국 | AK49: 2450000 | BE49: 아디스아바바
B50: 42 | Q50: 잠비아 | AK50: 2680000 | BE50: 두바이
B51: 43 | Q51: 몬테네그로 | AK51: 3450000 | BE51: 이스탄불
B52: 44 | Q52: 기니 | AK52: 3350000 | BE52: 두바이
B53: 45 | G53: 중남미 | Q53: 과테말라 | AK53: 3821900 | BE53: LA
B54: 46 | Q54: 도미니카공화국 | AK54: 4714800 | BE54: 뉴욕
B55: 47 | Q55: 볼리비아 | AK55: 5092700 | BE55: LA, 리마
B56: 48 | Q56: 에콰도르 | AK56: 4780600 | BE56: 뉴욕
B57: 49 | Q57: 엘살바도르 | AK57: 3832900 | BE57: 샌프란시스코, LA
B58: 50 | Q58: 콜롬비아 | AK58: 4751200 | BE58: 워싱턴DC, 뉴욕
B59: 51 | Q59: 파라과이 | AK59: 6132200 | BE59: 뉴욕, 파나마시티 / 상파울로, 프랑크푸르트
B60: 52 | Q60: 페루 | AK60: 4286400 | BE60: LA
B61: 53 | Q61: 온두라스 | AK61: 4150000 | BE61: 아틀란타
B62: 54 | Q62: 아이티 | AK62: 3950000 | BE62: 뉴욕
B63: 55 | Q63: 니카라과 | AK63: 3900000 | BE63: LA
B64: 56 | Q64: 자메이카 | AK64: 3590000 | BE64: 뉴욕
B65: 57 | Q65: 파나마 | AK65: 3450000 | BE65: 아틀란다
B66: 58 | Q66: 우루과이 | AK66: 4850000 | BE66: 달라스, 상파울로
B67: 59 | Q67: 코스타리카 | AK67: 2850000 | BE67: 아틀란타
B68: 60 | Q68: 벨리즈 | AK68: 3530000 | BE68: 아틀란타
B69: 61 | G69: 중동중앙아 | Q69: 아제르바이잔 | AK69: 3320000 | BE69: 이스탄불
B70: 62 | Q70: 우즈베키스탄 | AK70: 1530000 | BE70: DIRECT
B71: 63 | Q71: 요르단 | AK71: 2620000 | BE71: 두바이
B72: 64 | Q72: 이라크 | AK72: 3530000 | BE72: (바그다드) 두바이 / (아르빌) 이스탄불 ※ 바그다드 기준 단가로, 아르빌 단가(4,210,000) 수기입력 요망
B73: 65 | Q73: 팔레스타인 | AK73: 2620000 | BE73: 요르단 암만
B74: 66 | Q74: 키르기즈공화국 | AK74: 2130000 | BE74: 알마티
B75: 67 | Q75: 루마니아 | AK75: 3430000 | BE75: 독일
B76: 68 | Q76: 불가리아 | AK76: 3270000 | BE76: 독일
B77: 69 | Q77: 세르비아 | AK77: 2818200 | BE77: 이스탄불
B78: 70 | Q78: 이란 | AK78: 3664000 | BE78: 두바이
B79: 71 | Q79: 레바논 | AK79: 3150000 | BE79: 두바이
B80: 72 | Q80: 우크라이나 | AK80: 2530000 | BE80: 바르샤바
B81: 73 | Q81: 타지키스탄 | AK81: 1710000 | BE81: 알마티
B82: 74 | Q82: 투르크메니스탄 | AK82: 3050000 | BE82: 두바이
B83: 75 | Q83: 아르메니아 | AK83: 2590000 | BE83: 두바이
B84: 76 | Q84: 카자흐스탄 | AK84: 2150000 | BE84: 알마티
B85: 77 | Q85: 리비아 | AK85: 3350000 | BE85: 이스탄불-튀니지 | CJ85: V5-2
B87: 현지 체재비 기준 및 단가(2023.07.13. 규정 개정 기준 - 국외여비규정 별표2 기준(2023.04.05 개정본)) | CJ87: V6-1
B90: 가. 국가별 등급
B92: 연번 | G92: 국가 | AK92: 분석(등급) | BE92: 참고(지역)
B93: 수기입력란 | G93: 수기입력란 | BE93: (입력불필요)
B94: 1 | G94: 가나 | AK94: 나 | BE94: 중동·아프리카주
B95: 2 | G95: 가봉 | AK95: 나 | BE95: 중동·아프리카주
B96: 3 | G96: 가이아나 | AK96: 다 | BE96: 남·북아메리카주
B97: 4 | G97: 감비아 | AK97: 라 | BE97: 중동·아프리카주
B98: 5 | G98: 과테말라 | AK98: 다 | BE98: 남·북아메리카주
B99: 6 | G99: 기니 | AK99: 다 | BE99: 중동·아프리카주
B100: 7 | G100: 기니비사우 | AK100: 라 | BE100: 중동·아프리카주
B101: 8 | G101: 나미비아 | AK101: 라 | BE101: 중동·아프리카주
B102: 9 | G102: 나이지리아 | AK102: 다 | BE102: 중동·아프리카주
B103: 10 | G103: 남수단 | AK103: 나 | BE103: 중동·아프리카주
B104: 11 | G104: 남아프리카공화국 | AK104: 나 | BE104: 중동·아프리카주
B105: 12 | G105: 네팔 | AK105: 라 | BE105: 아시아주·오세아니아주
B106: 13 | G106: 니제르 | AK106: 다 | BE106: 중동·아프리카주
B107: 14 | G107: 니카라과 | AK107: 라 | BE107: 남·북아메리카주
B108: 15 | G108: 도미니카공화국 | AK108: 다 | BE108: 남·북아메리카주
B109: 16 | G109: 동티모르 | AK109: 라 | BE109: 아시아주·오세아니아주
B110: 17 | G110: 라오스 | AK110: 라 | BE110: 아시아주·오세아니아주
B111: 18 | G111: 라이베리아 | AK111: 다 | BE111: 중동·아프리카주
B112: 19 | G112: 라트비아 | AK112: 다 | BE112: 유럽주
B113: 20 | G113: 러시아 | AK113: 나 | BE113: 유럽주
B114: 21 | G114: 레바논 | AK114: 다 | BE114: 중동·아프리카주
B115: 22 | G115: 레소토 | AK115: 라 | BE115: 중동·아프리카주
B116: 23 | G116: 루마니아 | AK116: 다 | BE116: 유럽주
B117: 24 | G117: 르완다 | AK117: 다 | BE117: 중동·아프리카주
B118: 25 | G118: 리비아 | AK118: 나 | BE118: 중동·아프리카주
B119: 26 | G119: 리투아니아 | AK119: 다 | BE119: 유럽주
B120: 27 | G120: 마다가스카르 | AK120: 라 | BE120: 중동·아프리카주
B121: 28 | G121: 마셜군도 | AK121: 다 | BE121: 아시아주·오세아니아주
B122: 29 | G122: 마케도니아 | AK122: 라 | BE122: 유럽주
B123: 30 | G123: 말라위 | AK123: 라 | BE123: 중동·아프리카주
B124: 31 | G124: 말레이시아 | AK124: 다 | BE124: 아시아주·오세아니아주
B125: 32 | G125: 말리 | AK125: 다 | BE125: 중동·아프리카주
B126: 33 | G126: 모로코 | AK126: 나 | BE126: 중동·아프리카주
B127: 34 | G127: 모리셔스 | AK127: 다 | BE127: 중동·아프리카주
B128: 35 | G128: 모리타니 | AK128: 라 | BE128: 중동·아프리카주
B129: 36 | G129: 모잠비크 | AK129: 다 | BE129: 중동·아프리카주
B130: 37 | G130: 몬테네그로 | AK130: 다 | BE130: 유럽주
B131: 38 | G131: 몰도바 | AK131: 라 | BE131: 유럽주
B132: 39 | G132: 몽골 | AK132: 라 | BE132: 아시아주·오세아니아주
B133: 40 | G133: 미얀마 | AK133: 라 | BE133: 아시아주·오세아니아주
B134: 41 | G134: 미크로네시아 | AK134: 라 | BE134: 아시아주·오세아니아주
B135: 42 | G135: 바레인 | AK135: 나 | BE135: 중동·아프리카주
B136: 43 | G136: 바베이도스 | AK136: 나 | BE136: 남·북아메리카주
B137: 44 | G137: 방글라데시 | AK137: 다 | BE137: 아시아주·오세아니아주
B138: 45 | G138: 베네수엘라 | AK138: 다 | BE138: 남·북아메리카주
B139: 46 | G139: 베트남 | AK139: 라 | BE139: 아시아주·오세아니아주
B140: 47 | G140: 벨라루스 | AK140: 라 | BE140: 유럽주
B141: 48 | G141: 벨리즈 | AK141: 다 | BE141: 남·북아메리카주
B142: 49 | G142: 보스니아헤르체코비나 | AK142: 라 | BE142: 유럽주
B143: 50 | G143: 보츠와나 | AK143: 다 | BE143: 중동·아프리카주
B144: 51 | G144: 볼리비아 | AK144: 라 | BE144: 남·북아메리카주
B145: 52 | G145: 부르키나파소 | AK145: 다 | BE145: 중동·아프리카주
B146: 53 | G146: 브루나이 | AK146: 다 | BE146: 아시아주·오세아니아주
B147: 54 | G147: 상투메프린시페 | AK147: 다 | BE147: 중동·아프리카주
B148: 55 | G148: 세네갈 | AK148: 다 | BE148: 중동·아프리카주
B149: 56 | G149: 세르비아 | AK149: 다 | BE149: 유럽주
B150: 57 | G150: 세이셸 | AK150: 나 | BE150: 중동·아프리카주
B151: 58 | G151: 세인트루시아 | AK151: 나 | BE151: 남·북아메리카주
B152: 59 | G152: 세인트빈센트그레나딘 | AK152: 나 | BE152: 남·북아메리카주
B153: 60 | G153: 세인트키츠네비스 | AK153: 나 | BE153: 남·북아메리카주
B154: 61 | G154: 소말리아 | AK154: 라 | BE154: 중동·아프리카주
B155: 62 | G155: 수단 | AK155: 다 | BE155: 중동·아프리카주
B156: 63 | G156: 사우디아라비아 | AK156: 나 | BE156: 중동·아프리카주
B157: 64 | G157: 수리남 | AK157: 라 | BE157: 남·북아메리카주
B158: 65 | G158: 스리랑카 | AK158: 라 | BE158: 아시아주·오세아니아주
B159: 66 | G159: 스와질란드 | AK159: 다 | BE159: 중동·아프리카주
B160: 67 | G160: 슬로바키아 | AK160: 다 | BE160: 유럽주
B161: 68 | G161: 슬로베니아 | AK161: 다 | BE161: 유럽주
B162: 69 | G162: 시에라리온 | AK162: 다 | BE162: 중동·아프리카주
B163: 70 | G163: 아르헨티나 | AK163: 다 | BE163: 남·북아메리카주
B164: 71 | G164: 아이티 | AK164: 나 | BE164: 남·북아메리카주
B165: 72 | G165: 아제르바이잔 | AK165: 다 | BE165: 아시아주·오세아니아주
B166: 73 | G166: 아프가니스탄 | AK166: 다 | BE166: 중동·아프리카주
B167: 74 | G167: 알바니아 | AK167: 라 | BE167: 유럽주
B168: 75 | G168: 알제리 | AK168: 다 | BE168: 중동·아프리카주
B169: 76 | G169: 앙골라 | AK169: 나 | BE169: 중동·아프리카주
B170: 77 | G170: 앤티가바부다 | AK170: 나 | BE170: 남·북아메리카주
B171: 78 | G171: 에스토니아 | AK171: 다 | BE171: 유럽주
B172: 79 | G172: 에콰도르 | AK172: 다 | BE172: 남·북아메리카주
B173: 80 | G173: 에티오피아 | AK173: 나 | BE173: 중동·아프리카주
B174: 81 | G174: 엘살바도르 | AK174: 라 | BE174: 남·북아메리카주
B175: 82 | G175: 예멘 | AK175: 라 | BE175: 중동·아프리카주
B176: 83 | G176: 오만 | AK176: 나 | BE176: 중동·아프리카주
B177: 84 | G177: 온두라스 | AK177: 라 | BE177: 남·북아메리카주
B178: 85 | G178: 요르단 | AK178: 다 | BE178: 중동·아프리카주
B179: 86 | G179: 우간다 | AK179: 나 | BE179: 중동·아프리카주
B180: 87 | G180: 우루과이 | AK180: 다 | BE180: 남·북아메리카주
B181: 88 | G181: 우즈베키스탄 | AK181: 라 | BE181: 아시아주·오세아니아주
B182: 89 | G182: 우크라이나 | AK182: 다 | BE182: 유럽주
B183: 90 | G183: 이라크 | AK183: 다 | BE183: 중동·아프리카주
B184: 91 | G184: 이란 | AK184: 라 | BE184: 중동·아프리카주
B185: 92 | G185: 이스라엘 | AK185: 나 | BE185: 중동·아프리카주
B186: 93 | G186: 이집트 | AK186: 나 | BE186: 중동·아프리카주
B187: 94 | G187: 인도 | AK187: 나 | BE187: 아시아주·오세아니아주
B188: 95 | G188: 인도네시아 | AK188: 다 | BE188: 아시아주·오세아니아주
B189: 96 | G189: 자메이카 | AK189: 나 | BE189: 남·북아메리카주
B190: 97 | G190: 잠비아 | AK190: 다 | BE190: 중동·아프리카주
B191: 98 | G191: 적도기니 | AK191: 나 | BE191: 중동·아프리카주
B192: 99 | G192: 중앙아프리카공화국 | AK192: 다 | BE192: 중동·아프리카주
B193: 100 | G193: 조지아 | AK193: 해당없음(규정 해석 필요)
B194: 101 | G194: 짐바브웨 | AK194: 라 | BE194: 중동·아프리카주
B195: 102 | G195: 칠레 | AK195: 다 | BE195: 남·북아메리카주
B196: 103 | G196: 카리브국가연합 | AK196: 해당없음(규정 해석 필요) | BE196: 남·북아메리카주
B197: 104 | G197: 카메룬 | AK197: 다 | BE197: 중동·아프리카주
B198: 105 | G198: 카자흐스탄 | AK198: 나 | BE198: 아시아주·오세아니아주
B199: 106 | G199: 카타르 | AK199: 나 | BE199: 중동·아프리카주
B200: 107 | G200: 캄보디아 | AK200: 라 | BE200: 아시아주·오세아니아주
B201: 108 | G201: 케냐 | AK201: 다 | BE201: 중동·아프리카주
B202: 109 | G202: 코스타리카 | AK202: 다 | BE202: 남·북아메리카주
B203: 110 | G203: 코트디부아르 | AK203: 나 | BE203: 중동·아프리카주
B204: 111 | G204: 콜롬비아 | AK204: 라 | BE204: 남·북아메리카주
B205: 112 | G205: 콩고민주공화국 | AK205: 나 | BE205: 중동·아프리카주
B206: 113 | G206: 쿠웨이트 | AK206: 나 | BE206: 중동·아프리카주
B207: 114 | G207: 크로아티아 | AK207: 다 | BE207: 유럽주
B208: 115 | G208: 키르기즈공화국 | AK208: 다 | BE208: 아시아주·오세아니아주
... 209 more rows

Sheet 안내
N2: 반드시 "콘텐츠 사용"을 클릭해 주셔야 양식을 올바르게 이용하실 수 있습니다 →
N5: =CONCATENATE("KOICA 통합 사업설계도구(IPDI)", " - ", '기준(양식)'!$A$4) -> KOICA 통합 사업설계도구(IPDI) - v.1.0 RTM
N7: ㅇ (도입취지) 문제분석과 목표나무 디자인을 통해 사업의 골격을 이루는 구조(영향-성과-산출물-활동)를 먼저 수립하고,
N8: 활동별 예산 소요내역을 작성함으로써 사업비 설정의 체계성과 명확성을 개선
N10: ㅇ (핵심요지) 1) 핵심 논리의 구조화 지원, 2) 주요 사업 문서(PES, PDM, POD) 간 데이터 연계로 반복 작성 절차를 간소화
N12: ㅇ (적용시기) 조사 3~4일차, PCP 및 앞선 조사결과를 토대로 문제분석과 목표나무 설정이 완료된 이후,
N13: 활동별 시작-종료 시점, 전문가파견, 역량강화, 건축, 기자재, 정보화, 직접지원 등 예산 항목 및 소요 금액을 산출
N15: - 입력값은 시행계획 제출 등에 활용할 수 있도록 연도별 예산, 항목별 예산 등으로 자동 산출
N16: - 이전 단계에서 작성한 입력값은 자동으로 연결 작성되고, 사업 문서별로 추가 작성이 필요한 항목은 단계별로 작성
N17: - 사업개요서, PDM, POD는 필요시 한글문서(표)로 자동 생성 가능
N18: - OD 작성에 참고 가능하도록 국내/국외 인력투입내역, 소요기간, 예산 항목별 소요 통계치 제공
N20: ㅇ (작성지침) 설계도구와 함께 제공되는 작성지침(FAQ), 작성샘플, 교육동영상 등을 반드시 참조하여 작성
N22: ㅇ (유의사항) 본 양식은 엑셀 2010년 버전 이상에서 정상 작동합니다
N23: - OFFICE 365 등 일부 윈도우/오피스 환경의 경우 본 양식을 정상 이용하기 위해서는 열람 전 파일을 우클릭,
E24: 선택한 사업유형 : [ 국 별 협 력 사 업 ] (변경불가) | N24: "속성"으로 들어가 하단 "보안" 메뉴를 체크하고 "적용"을 눌러줘야 합니다. (작성지침 내 상세 안내 중)
W25: Copyrightⓒ 2024 KOICA All rights reserved.

Sheet 사업설계안
D1: 1. 결과(영향)를 수기 입력
D2: 2. 변화(성과)/변화(산출물)/수단(활동) 순으로 제어버튼(+/-)을 통해 형태를 정의하고 수기 입력
D3: 3. 불필요한 입력란은 제어버튼(+/-)을 통해 제거하고, 최종적으로 입력값이 올바른 경우 좌측 "다음 단계" 버튼을 눌러 "사업시행구조"를 자동 생성
D4: * 수기 입력한 텍스트의 수정은 곧바로 각각의 관련 시트에 자동으로 적용됨
D5: ** 트리구조의 수정은 좌측 버튼 클릭이 필요하며, 이 때 완전히 동일한 명칭의 수단(활동) 예산시트만 잔류하고 그 외에는 모두 공양식으로 다시 예산 산출 필요
B8: 결과 (영향) | D8: 디지털화된 연구인프라를 활용한 수자원 관리 역량 강화로 파키스탄 수자원의 지속가능성 확보에 기여(SDG 6)
D9: + | E9: - | Z9: X
O10: ↑
B11: 변화 (성과) | D11: 수자원에 대한 데이터기반 관리 및 연구 역량 향상으로 과학적 정책 수립 및 이행
D12: + | E12: - | Z12: X
E13: ↑ | I13: ↑ | M13: ↑ | Q13: ↑ | U13: ↑ | Y13: ↑
B14: 변화 (산출물) | D14: 제공된 통합수자원관리 컨설팅 | H14: 개선된 PCRWR 연구 인프라 | L14: 확대된 수질 및 수위측정자료의 효용성 | P14: 구축된 수자원관리종합정보시스템 | T14: 강화된 수자원관리 역량 | X14: 사업 성과 및 산출물 관리
D15: + | E15: - | F15: X | H15: + | I15: - | J15: X | L15: + | M15: - | N15: X | P15: + | Q15: - | R15: X | T15: + | U15: - | V15: X | X15: + | Y15: - | Z15: X
E16: ↑ | F16: X | I16: ↑ | J16: X | M16: ↑ | N16: X | Q16: ↑ | R16: X | U16: ↑ | V16: X | Y16: ↑ | Z16: X
B17: 수단 (활동) | D17: 지하수 통합관리 마스터플랜 수립 | H17: PCRWR 실험실 장비 지원 | L17: 지하수 관측공 굴착 및 자동 관측장비 설치 | P17: 수자원관리종합정보시스템 운영을 위한 하드웨어 설치 | T17: 한국 초청연수 | X17: 사업 성과 및 산출물 관리
F18: X | N18: X | R18: X | V18: X
D19: 통합수자원관리 BPR/ISP 수립 | L19: 지표수(물공급) 자동 관측장비 설치 | P19: 수자원관리종합정보시스템 개발 | T19: 모니터링시스템 기반 수자원 데이터 분석 교육
F20: X
D21: 공동연구프로그램

Sheet 사업시행구조
D1: 1. 사업기본정보 입력 : 대상국 / 사업명 / 편성환율(시작연도)
D2: 2. 영향 및 핵심논리는 자동완성 (수정 희망 시 "사업설계안" 시트에서 변경/업데이트)
D3: 3. 활동별 이행기간을 분기 단위까지 입력하고 계약 매핑 (K열은 드롭다운 중 택1, L열은 자유기입)
D4: 4. 좌측 버튼을 눌러 활동별 예산시트 생성하고 예산 산출 후 "예산DB" 시트에서 데이터 취합
A6: 사업 기본 정보
D7: 대상국 | E7: 파키스탄
D8: 사업명 | E8: PCRWR 연구 인프라 개선 및 통합수자원관리 역량강화
D9: 편성환율(1불) | E9: 1380
A11: 영향(Impact)
D12: 영향 | E12: =사업설계안!$D$8 -> 디지털화된 연구인프라를 활용한 수자원 관리 역량 강화로 파키스탄 수자원의 지속가능성 확보에 기여(SDG 6)
A14: C | B14: P | C14: A | D14: 연번 | E14: 성과(Outcome, C), 산출물(Output, P), 활동(Activity, A)
D15: 1. | E15: =사업설계안!$D$11 -> 수자원에 대한 데이터기반 관리 및 연구 역량 향상으로 과학적 정책 수립 및 이행
D16: 1.1. | E16: =사업설계안!$D$14 -> 제공된 통합수자원관리 컨설팅
D17: 1.1.1. | E17: =사업설계안!$D$17 -> 지하수 통합관리 마스터플랜 수립 | G17: 2026 | H17: Q3 | I17: 2029 | J17: Q2 | K17: 계약1 | L17: PMC(국내)
D18: 1.1.2. | E18: =사업설계안!$D$19 -> 통합수자원관리 BPR/ISP 수립 | G18: 2026 | H18: Q3 | I18: 2027 | J18: Q4 | K18: 계약1 | L18: PMC(국내)
D19: 1.1.3. | E19: =사업설계안!$D$21 -> 공동연구프로그램 | G19: 2029 | H19: Q4 | I19: 2029 | J19: Q4 | K19: 계약1 | L19: PMC(국내)
D20: 1.2. | E20: =사업설계안!$H$14 -> 개선된 PCRWR 연구 인프라
D21: 1.2.1. | E21: =사업설계안!$H$17 -> PCRWR 실험실 장비 지원 | G21: 2026 | H21: Q3 | I21: 2027 | J21: Q2 | K21: 계약3 | L21: UNOPS(현지)
D22: 1.3. | E22: =사업설계안!$L$14 -> 확대된 수질 및 수위측정자료의 효용성
D23: 1.3.1. | E23: =사업설계안!$L$17 -> 지하수 관측공 굴착 및 자동 관측장비 설치 | G23: 2027 | H23: Q3 | I23: 2028 | J23: Q2 | K23: 계약2 | L23: PC(국내)
D24: 1.3.2. | E24: =사업설계안!$L$19 -> 지표수(물공급) 자동 관측장비 설치 | G24: 2027 | H24: Q3 | I24: 2028 | J24: Q2 | K24: 계약2 | L24: PC(국내)
D25: 1.4. | E25: =사업설계안!$P$14 -> 구축된 수자원관리종합정보시스템
D26: 1.4.1. | E26: =사업설계안!$P$17 -> 수자원관리종합정보시스템 운영을 위한 하드웨어 설치 | G26: 2027 | H26: Q2 | I26: 2027 | J26: Q4 | K26: 계약2 | L26: PC(국내)
D27: 1.4.2. | E27: =사업설계안!$P$19 -> 수자원관리종합정보시스템 개발 | G27: 2028 | H27: Q1 | I27: 2029 | J27: Q1 | K27: 계약2 | L27: PC(국내)
D28: 1.5. | E28: =사업설계안!$T$14 -> 강화된 수자원관리 역량
D29: 1.5.1. | E29: =사업설계안!$T$17 -> 한국 초청연수 | G29: 2027 | H29: Q2 | I29: 2029 | J29: Q1 | K29: 계약1 | L29: PMC(국내)
D30: 1.5.2. | E30: =사업설계안!$T$19 -> 모니터링시스템 기반 수자원 데이터 분석 교육 | G30: 2028 | H30: Q3 | I30: 2030 | J30: Q2 | K30: 계약1 | L30: PMC(국내)
D31: 1.6. | E31: =사업설계안!$X$14 -> 사업 성과 및 산출물 관리
D32: 1.6.1. | E32: =사업설계안!$X$17 -> 사업 성과 및 산출물 관리 | G32: 2026 | H32: Q3 | I32: 2030 | J32: Q3 | K32: 계약1 | L32: PMC(국내) | M32: 1.1.1.

Sheet 예산DB
A1: 1. 사업번호 입력 : | C1: 2026-00048 | D1: * 사업번호 미정시 임의의 값 입력 (IPDI 양식 이용을 위해 반드시 입력 필요)
A2: 2. 아래 계약별 소계, 총사업비 수치 확인 후 예비비 및 KOICA 사업관리비 입력 | Z2: 1
A3: 계약1 | B3: 계약2 | C3: 계약3 | D3: 계약4 | E3: 계약5 | F3: 계약6 | G3: 계약7 | H3: 계약8 | I3: 계약9 | J3: 계약10 | K3: 사업관리비 | Z3: 1
A4: =SUM(IF('1.1.1.'!$C$8=$A$3, '1.1.1.'!$J$7, 0), IF('1.1.2.'!$C$8=$A$3, '1.1.2.'!$J$7, 0), IF('1.1.3.'!$C$8=$A$3, '1.1.3.'!$J$7, 0), IF('1.2.1.'!$C$8=$A$3, '1.2.1.'!$J$7, 0), IF('1.3.1.'!$C$8=$A$3, '1.3.1.'!$J$7, 0), IF('1.3.2.'!$C$8=$A$3, '1.3.2.'!$J$7, 0), IF('1.4.1.'!$C$8=$A$3, '1.4.1.'!$J$7, 0), IF('1.4.2.'!$C$8=$A$3, '1.4.2.'!$J$7, 0), IF('1.5.1.'!$C$8=$A$3, '1.5.1.'!$J$7, 0), IF('1.5.2.'!$C$8=$A$3, '1.5.2.'!$J$7, 0), IF('1.6.1.'!$C$8=$A$3, '1.6.1.'!$J$7, 0)) -> 3347556679 | B4: =SUM(IF('1.1.1.'!$C$8=$B$3, '1.1.1.'!$J$7, 0), IF('1.1.2.'!$C$8=$B$3, '1.1.2.'!$J$7, 0), IF('1.1.3.'!$C$8=$B$3, '1.1.3.'!$J$7, 0), IF('1.2.1.'!$C$8=$B$3, '1.2.1.'!$J$7, 0), IF('1.3.1.'!$C$8=$B$3, '1.3.1.'!$J$7, 0), IF('1.3.2.'!$C$8=$B$3, '1.3.2.'!$J$7, 0), IF('1.4.1.'!$C$8=$B$3, '1.4.1.'!$J$7, 0), IF('1.4.2.'!$C$8=$B$3, '1.4.2.'!$J$7, 0), IF('1.5.1.'!$C$8=$B$3, '1.5.1.'!$J$7, 0), IF('1.5.2.'!$C$8=$B$3, '1.5.2.'!$J$7, 0), IF('1.6.1.'!$C$8=$B$3, '1.6.1.'!$J$7, 0)) -> 8129593637 | C4: =SUM(IF('1.1.1.'!$C$8=$C$3, '1.1.1.'!$J$7, 0), IF('1.1.2.'!$C$8=$C$3, '1.1.2.'!$J$7, 0), IF('1.1.3.'!$C$8=$C$3, '1.1.3.'!$J$7, 0), IF('1.2.1.'!$C$8=$C$3, '1.2.1.'!$J$7, 0), IF('1.3.1.'!$C$8=$C$3, '1.3.1.'!$J$7, 0), IF('1.3.2.'!$C$8=$C$3, '1.3.2.'!$J$7, 0), IF('1.4.1.'!$C$8=$C$3, '1.4.1.'!$J$7, 0), IF('1.4.2.'!$C$8=$C$3, '1.4.2.'!$J$7, 0), IF('1.5.1.'!$C$8=$C$3, '1.5.1.'!$J$7, 0), IF('1.5.2.'!$C$8=$C$3, '1.5.2.'!$J$7, 0), IF('1.6.1.'!$C$8=$C$3, '1.6.1.'!$J$7, 0)) -> 1039821563 | D4: =SUM(IF('1.1.1.'!$C$8=$D$3, '1.1.1.'!$J$7, 0), IF('1.1.2.'!$C$8=$D$3, '1.1.2.'!$J$7, 0), IF('1.1.3.'!$C$8=$D$3, '1.1.3.'!$J$7, 0), IF('1.2.1.'!$C$8=$D$3, '1.2.1.'!$J$7, 0), IF('1.3.1.'!$C$8=$D$3, '1.3.1.'!$J$7, 0), IF('1.3.2.'!$C$8=$D$3, '1.3.2.'!$J$7, 0), IF('1.4.1.'!$C$8=$D$3, '1.4.1.'!$J$7, 0), IF('1.4.2.'!$C$8=$D$3, '1.4.2.'!$J$7, 0), IF('1.5.1.'!$C$8=$D$3, '1.5.1.'!$J$7, 0), IF('1.5.2.'!$C$8=$D$3, '1.5.2.'!$J$7, 0), IF('1.6.1.'!$C$8=$D$3, '1.6.1.'!$J$7, 0)) -> 0 | E4: =SUM(IF('1.1.1.'!$C$8=$E$3, '1.1.1.'!$J$7, 0), IF('1.1.2.'!$C$8=$E$3, '1.1.2.'!$J$7, 0), IF('1.1.3.'!$C$8=$E$3, '1.1.3.'!$J$7, 0), IF('1.2.1.'!$C$8=$E$3, '1.2.1.'!$J$7, 0), IF('1.3.1.'!$C$8=$E$3, '1.3.1.'!$J$7, 0), IF('1.3.2.'!$C$8=$E$3, '1.3.2.'!$J$7, 0), IF('1.4.1.'!$C$8=$E$3, '1.4.1.'!$J$7, 0), IF('1.4.2.'!$C$8=$E$3, '1.4.2.'!$J$7, 0), IF('1.5.1.'!$C$8=$E$3, '1.5.1.'!$J$7, 0), IF('1.5.2.'!$C$8=$E$3, '1.5.2.'!$J$7, 0), IF('1.6.1.'!$C$8=$E$3, '1.6.1.'!$J$7, 0)) -> 0 | F4: =SUM(IF('1.1.1.'!$C$8=$F$3, '1.1.1.'!$J$7, 0), IF('1.1.2.'!$C$8=$F$3, '1.1.2.'!$J$7, 0), IF('1.1.3.'!$C$8=$F$3, '1.1.3.'!$J$7, 0), IF('1.2.1.'!$C$8=$F$3, '1.2.1.'!$J$7, 0), IF('1.3.1.'!$C$8=$F$3, '1.3.1.'!$J$7, 0), IF('1.3.2.'!$C$8=$F$3, '1.3.2.'!$J$7, 0), IF('1.4.1.'!$C$8=$F$3, '1.4.1.'!$J$7, 0), IF('1.4.2.'!$C$8=$F$3, '1.4.2.'!$J$7, 0), IF('1.5.1.'!$C$8=$F$3, '1.5.1.'!$J$7, 0), IF('1.5.2.'!$C$8=$F$3, '1.5.2.'!$J$7, 0), IF('1.6.1.'!$C$8=$F$3, '1.6.1.'!$J$7, 0)) -> 0 | G4: =SUM(IF('1.1.1.'!$C$8=$G$3, '1.1.1.'!$J$7, 0), IF('1.1.2.'!$C$8=$G$3, '1.1.2.'!$J$7, 0), IF('1.1.3.'!$C$8=$G$3, '1.1.3.'!$J$7, 0), IF('1.2.1.'!$C$8=$G$3, '1.2.1.'!$J$7, 0), IF('1.3.1.'!$C$8=$G$3, '1.3.1.'!$J$7, 0), IF('1.3.2.'!$C$8=$G$3, '1.3.2.'!$J$7, 0), IF('1.4.1.'!$C$8=$G$3, '1.4.1.'!$J$7, 0), IF('1.4.2.'!$C$8=$G$3, '1.4.2.'!$J$7, 0), IF('1.5.1.'!$C$8=$G$3, '1.5.1.'!$J$7, 0), IF('1.5.2.'!$C$8=$G$3, '1.5.2.'!$J$7, 0), IF('1.6.1.'!$C$8=$G$3, '1.6.1.'!$J$7, 0)) -> 0 | H4: =SUM(IF('1.1.1.'!$C$8=$H$3, '1.1.1.'!$J$7, 0), IF('1.1.2.'!$C$8=$H$3, '1.1.2.'!$J$7, 0), IF('1.1.3.'!$C$8=$H$3, '1.1.3.'!$J$7, 0), IF('1.2.1.'!$C$8=$H$3, '1.2.1.'!$J$7, 0), IF('1.3.1.'!$C$8=$H$3, '1.3.1.'!$J$7, 0), IF('1.3.2.'!$C$8=$H$3, '1.3.2.'!$J$7, 0), IF('1.4.1.'!$C$8=$H$3, '1.4.1.'!$J$7, 0), IF('1.4.2.'!$C$8=$H$3, '1.4.2.'!$J$7, 0), IF('1.5.1.'!$C$8=$H$3, '1.5.1.'!$J$7, 0), IF('1.5.2.'!$C$8=$H$3, '1.5.2.'!$J$7, 0), IF('1.6.1.'!$C$8=$H$3, '1.6.1.'!$J$7, 0)) -> 0 | I4: =SUM(IF('1.1.1.'!$C$8=$I$3, '1.1.1.'!$J$7, 0), IF('1.1.2.'!$C$8=$I$3, '1.1.2.'!$J$7, 0), IF('1.1.3.'!$C$8=$I$3, '1.1.3.'!$J$7, 0), IF('1.2.1.'!$C$8=$I$3, '1.2.1.'!$J$7, 0), IF('1.3.1.'!$C$8=$I$3, '1.3.1.'!$J$7, 0), IF('1.3.2.'!$C$8=$I$3, '1.3.2.'!$J$7, 0), IF('1.4.1.'!$C$8=$I$3, '1.4.1.'!$J$7, 0), IF('1.4.2.'!$C$8=$I$3, '1.4.2.'!$J$7, 0), IF('1.5.1.'!$C$8=$I$3, '1.5.1.'!$J$7, 0), IF('1.5.2.'!$C$8=$I$3, '1.5.2.'!$J$7, 0), IF('1.6.1.'!$C$8=$I$3, '1.6.1.'!$J$7, 0)) -> 0 | J4: =SUM(IF('1.1.1.'!$C$8=$J$3, '1.1.1.'!$J$7, 0), IF('1.1.2.'!$C$8=$J$3, '1.1.2.'!$J$7, 0), IF('1.1.3.'!$C$8=$J$3, '1.1.3.'!$J$7, 0), IF('1.2.1.'!$C$8=$J$3, '1.2.1.'!$J$7, 0), IF('1.3.1.'!$C$8=$J$3, '1.3.1.'!$J$7, 0), IF('1.3.2.'!$C$8=$J$3, '1.3.2.'!$J$7, 0), IF('1.4.1.'!$C$8=$J$3, '1.4.1.'!$J$7, 0), IF('1.4.2.'!$C$8=$J$3, '1.4.2.'!$J$7, 0), IF('1.5.1.'!$C$8=$J$3, '1.5.1.'!$J$7, 0), IF('1.5.2.'!$C$8=$J$3, '1.5.2.'!$J$7, 0), IF('1.6.1.'!$C$8=$J$3, '1.6.1.'!$J$7, 0)) -> 0 | K4: =SUM('1.1.1.'!$J$7, '1.1.2.'!$J$7, '1.1.3.'!$J$7, '1.2.1.'!$J$7, '1.3.1.'!$J$7, '1.3.2.'!$J$7, '1.4.1.'!$J$7, '1.4.2.'!$J$7, '1.5.1.'!$J$7, '1.5.2.'!$J$7, '1.6.1.'!$J$7) -> 1.251697188e+10 | U4: * 계약별 예비비 및 사업관리비 제외 : | Z4: 1
A5: =SUM(IF('1.1.1.'!$C$8=$A$3, '1.1.1.'!$J$8, 0), IF('1.1.2.'!$C$8=$A$3, '1.1.2.'!$J$8, 0), IF('1.1.3.'!$C$8=$A$3, '1.1.3.'!$J$8, 0), IF('1.2.1.'!$C$8=$A$3, '1.2.1.'!$J$8, 0), IF('1.3.1.'!$C$8=$A$3, '1.3.1.'!$J$8, 0), IF('1.3.2.'!$C$8=$A$3, '1.3.2.'!$J$8, 0), IF('1.4.1.'!$C$8=$A$3, '1.4.1.'!$J$8, 0), IF('1.4.2.'!$C$8=$A$3, '1.4.2.'!$J$8, 0), IF('1.5.1.'!$C$8=$A$3, '1.5.1.'!$J$8, 0), IF('1.5.2.'!$C$8=$A$3, '1.5.2.'!$J$8, 0), IF('1.6.1.'!$C$8=$A$3, '1.6.1.'!$J$8, 0)) -> 2425765.71 | B5: =SUM(IF('1.1.1.'!$C$8=$B$3, '1.1.1.'!$J$8, 0), IF('1.1.2.'!$C$8=$B$3, '1.1.2.'!$J$8, 0), IF('1.1.3.'!$C$8=$B$3, '1.1.3.'!$J$8, 0), IF('1.2.1.'!$C$8=$B$3, '1.2.1.'!$J$8, 0), IF('1.3.1.'!$C$8=$B$3, '1.3.1.'!$J$8, 0), IF('1.3.2.'!$C$8=$B$3, '1.3.2.'!$J$8, 0), IF('1.4.1.'!$C$8=$B$3, '1.4.1.'!$J$8, 0), IF('1.4.2.'!$C$8=$B$3, '1.4.2.'!$J$8, 0), IF('1.5.1.'!$C$8=$B$3, '1.5.1.'!$J$8, 0), IF('1.5.2.'!$C$8=$B$3, '1.5.2.'!$J$8, 0), IF('1.6.1.'!$C$8=$B$3, '1.6.1.'!$J$8, 0)) -> 5891009.882 | C5: =SUM(IF('1.1.1.'!$C$8=$C$3, '1.1.1.'!$J$8, 0), IF('1.1.2.'!$C$8=$C$3, '1.1.2.'!$J$8, 0), IF('1.1.3.'!$C$8=$C$3, '1.1.3.'!$J$8, 0), IF('1.2.1.'!$C$8=$C$3, '1.2.1.'!$J$8, 0), IF('1.3.1.'!$C$8=$C$3, '1.3.1.'!$J$8, 0), IF('1.3.2.'!$C$8=$C$3, '1.3.2.'!$J$8, 0), IF('1.4.1.'!$C$8=$C$3, '1.4.1.'!$J$8, 0), IF('1.4.2.'!$C$8=$C$3, '1.4.2.'!$J$8, 0), IF('1.5.1.'!$C$8=$C$3, '1.5.1.'!$J$8, 0), IF('1.5.2.'!$C$8=$C$3, '1.5.2.'!$J$8, 0), IF('1.6.1.'!$C$8=$C$3, '1.6.1.'!$J$8, 0)) -> 753493.8862 | D5: =SUM(IF('1.1.1.'!$C$8=$D$3, '1.1.1.'!$J$8, 0), IF('1.1.2.'!$C$8=$D$3, '1.1.2.'!$J$8, 0), IF('1.1.3.'!$C$8=$D$3, '1.1.3.'!$J$8, 0), IF('1.2.1.'!$C$8=$D$3, '1.2.1.'!$J$8, 0), IF('1.3.1.'!$C$8=$D$3, '1.3.1.'!$J$8, 0), IF('1.3.2.'!$C$8=$D$3, '1.3.2.'!$J$8, 0), IF('1.4.1.'!$C$8=$D$3, '1.4.1.'!$J$8, 0), IF('1.4.2.'!$C$8=$D$3, '1.4.2.'!$J$8, 0), IF('1.5.1.'!$C$8=$D$3, '1.5.1.'!$J$8, 0), IF('1.5.2.'!$C$8=$D$3, '1.5.2.'!$J$8, 0), IF('1.6.1.'!$C$8=$D$3, '1.6.1.'!$J$8, 0)) -> 0 | E5: =SUM(IF('1.1.1.'!$C$8=$E$3, '1.1.1.'!$J$8, 0), IF('1.1.2.'!$C$8=$E$3, '1.1.2.'!$J$8, 0), IF('1.1.3.'!$C$8=$E$3, '1.1.3.'!$J$8, 0), IF('1.2.1.'!$C$8=$E$3, '1.2.1.'!$J$8, 0), IF('1.3.1.'!$C$8=$E$3, '1.3.1.'!$J$8, 0), IF('1.3.2.'!$C$8=$E$3, '1.3.2.'!$J$8, 0), IF('1.4.1.'!$C$8=$E$3, '1.4.1.'!$J$8, 0), IF('1.4.2.'!$C$8=$E$3, '1.4.2.'!$J$8, 0), IF('1.5.1.'!$C$8=$E$3, '1.5.1.'!$J$8, 0), IF('1.5.2.'!$C$8=$E$3, '1.5.2.'!$J$8, 0), IF('1.6.1.'!$C$8=$E$3, '1.6.1.'!$J$8, 0)) -> 0 | F5: =SUM(IF('1.1.1.'!$C$8=$F$3, '1.1.1.'!$J$8, 0), IF('1.1.2.'!$C$8=$F$3, '1.1.2.'!$J$8, 0), IF('1.1.3.'!$C$8=$F$3, '1.1.3.'!$J$8, 0), IF('1.2.1.'!$C$8=$F$3, '1.2.1.'!$J$8, 0), IF('1.3.1.'!$C$8=$F$3, '1.3.1.'!$J$8, 0), IF('1.3.2.'!$C$8=$F$3, '1.3.2.'!$J$8, 0), IF('1.4.1.'!$C$8=$F$3, '1.4.1.'!$J$8, 0), IF('1.4.2.'!$C$8=$F$3, '1.4.2.'!$J$8, 0), IF('1.5.1.'!$C$8=$F$3, '1.5.1.'!$J$8, 0), IF('1.5.2.'!$C$8=$F$3, '1.5.2.'!$J$8, 0), IF('1.6.1.'!$C$8=$F$3, '1.6.1.'!$J$8, 0)) -> 0 | G5: =SUM(IF('1.1.1.'!$C$8=$G$3, '1.1.1.'!$J$8, 0), IF('1.1.2.'!$C$8=$G$3, '1.1.2.'!$J$8, 0), IF('1.1.3.'!$C$8=$G$3, '1.1.3.'!$J$8, 0), IF('1.2.1.'!$C$8=$G$3, '1.2.1.'!$J$8, 0), IF('1.3.1.'!$C$8=$G$3, '1.3.1.'!$J$8, 0), IF('1.3.2.'!$C$8=$G$3, '1.3.2.'!$J$8, 0), IF('1.4.1.'!$C$8=$G$3, '1.4.1.'!$J$8, 0), IF('1.4.2.'!$C$8=$G$3, '1.4.2.'!$J$8, 0), IF('1.5.1.'!$C$8=$G$3, '1.5.1.'!$J$8, 0), IF('1.5.2.'!$C$8=$G$3, '1.5.2.'!$J$8, 0), IF('1.6.1.'!$C$8=$G$3, '1.6.1.'!$J$8, 0)) -> 0 | H5: =SUM(IF('1.1.1.'!$C$8=$H$3, '1.1.1.'!$J$8, 0), IF('1.1.2.'!$C$8=$H$3, '1.1.2.'!$J$8, 0), IF('1.1.3.'!$C$8=$H$3, '1.1.3.'!$J$8, 0), IF('1.2.1.'!$C$8=$H$3, '1.2.1.'!$J$8, 0), IF('1.3.1.'!$C$8=$H$3, '1.3.1.'!$J$8, 0), IF('1.3.2.'!$C$8=$H$3, '1.3.2.'!$J$8, 0), IF('1.4.1.'!$C$8=$H$3, '1.4.1.'!$J$8, 0), IF('1.4.2.'!$C$8=$H$3, '1.4.2.'!$J$8, 0), IF('1.5.1.'!$C$8=$H$3, '1.5.1.'!$J$8, 0), IF('1.5.2.'!$C$8=$H$3, '1.5.2.'!$J$8, 0), IF('1.6.1.'!$C$8=$H$3, '1.6.1.'!$J$8, 0)) -> 0 | I5: =SUM(IF('1.1.1.'!$C$8=$I$3, '1.1.1.'!$J$8, 0), IF('1.1.2.'!$C$8=$I$3, '1.1.2.'!$J$8, 0), IF('1.1.3.'!$C$8=$I$3, '1.1.3.'!$J$8, 0), IF('1.2.1.'!$C$8=$I$3, '1.2.1.'!$J$8, 0), IF('1.3.1.'!$C$8=$I$3, '1.3.1.'!$J$8, 0), IF('1.3.2.'!$C$8=$I$3, '1.3.2.'!$J$8, 0), IF('1.4.1.'!$C$8=$I$3, '1.4.1.'!$J$8, 0), IF('1.4.2.'!$C$8=$I$3, '1.4.2.'!$J$8, 0), IF('1.5.1.'!$C$8=$I$3, '1.5.1.'!$J$8, 0), IF('1.5.2.'!$C$8=$I$3, '1.5.2.'!$J$8, 0), IF('1.6.1.'!$C$8=$I$3, '1.6.1.'!$J$8, 0)) -> 0 | J5: =SUM(IF('1.1.1.'!$C$8=$J$3, '1.1.1.'!$J$8, 0), IF('1.1.2.'!$C$8=$J$3, '1.1.2.'!$J$8, 0), IF('1.1.3.'!$C$8=$J$3, '1.1.3.'!$J$8, 0), IF('1.2.1.'!$C$8=$J$3, '1.2.1.'!$J$8, 0), IF('1.3.1.'!$C$8=$J$3, '1.3.1.'!$J$8, 0), IF('1.3.2.'!$C$8=$J$3, '1.3.2.'!$J$8, 0), IF('1.4.1.'!$C$8=$J$3, '1.4.1.'!$J$8, 0), IF('1.4.2.'!$C$8=$J$3, '1.4.2.'!$J$8, 0), IF('1.5.1.'!$C$8=$J$3, '1.5.1.'!$J$8, 0), IF('1.5.2.'!$C$8=$J$3, '1.5.2.'!$J$8, 0), IF('1.6.1.'!$C$8=$J$3, '1.6.1.'!$J$8, 0)) -> 0 | K5: =SUM('1.1.1.'!$J$8, '1.1.2.'!$J$8, '1.1.3.'!$J$8, '1.2.1.'!$J$8, '1.3.1.'!$J$8, '1.3.2.'!$J$8, '1.4.1.'!$J$8, '1.4.2.'!$J$8, '1.5.1.'!$J$8, '1.5.2.'!$J$8, '1.6.1.'!$J$8) -> 9070269.478 | U5: =SUMIFS(U9:U2616, J9:J2616, "<>"&"사업관리비 등") -> 9070269.478 | V5: =SUMIFS(V9:V2616, J9:J2616, "<>"&"사업관리비 등") -> 1.251697188e+10 | W5: =SUMIFS(W9:W2616, J9:J2616, "<>"&"사업관리비 등") -> 907.0269478 | X5: =SUMIFS(X9:X2616, J9:J2616, "<>"&"사업관리비 등") -> 12516.97188
A6: USD | B6: USD | C6: USD | K6: USD | U6: ㅇ 계약별 예비비 및 사업관리비 포함 : | Z6: 사업 시작연도 산출 : | AA6: =MIN(O9:O2616) -> 2026
A7: =A5*5% -> 121288.2855 | B7: =B5*5% -> 294550.4941 | C7: 37674.69431 | K7: =(K5+A7+B7+C7)*5%+28 -> 476217.1476 | L7: 4. 우측 총액 확인 후 이상 없으면 예산총괄표 시트에서 세부집계 데이터 참조 | U7: =SUBTOTAL(109, U9:U2616) -> 10000000.1 | V7: =SUBTOTAL(109, V9:V2616) -> 1.380000014e+10 | W7: =SUBTOTAL(109, W9:W2616) -> 1000.00001 | X7: =SUBTOTAL(109, X9:X2616) -> 13800.00014 | Z7: 사업 종료연도 산출 : | AA7: =MAX(Q9:Q2616) -> 2030
A8: 사업번호 | B8: 성과(Outcome) - 성과관리예산 계상 | C8: 산출물(Output) - 성과관리예산 계상 | D8: 활동(Activity) - 성과관리예산 계상 | E8: 계약 - 성과관리예산 계상 | F8: 성과(Outcome) - 원본 | G8: 산출물(Output) - 원본 | H8: 활동(Activity) - 원본 | I8: 계약 - 원본 | J8: 대분류 | K8: 중분류 | L8: 소분류 | M8: 소요총액 (USD) | N8: 소요총액 (KRW) | O8: 시작연도 | P8: 시작분기 | Q8: 종료연도 | R8: 종료분기 | S8: 해당연도 | T8: 해당분기 | U8: 해당분기 소요액 (USD) | V8: 해당분기 소요액 (KRW) | W8: 해당분기 소요액 (USD, 1만) | X8: 해당분기 소요액 (KRW, 1백만) | Y8: 양식구분 | Z8: 액티비티환율(미화) | AA8: 수식환율(지정통화) | AB8: 통화 | AC8: 단가 | AD8: 연산1 | AE8: 수량1 | AF8: 단위1 | AG8: 연산2 | AH8: 수량2 | AI8: 단위2 | AJ8: 연산3 | AK8: 수량3 | AL8: 단위3 | AM8: 품목명 / 항목별 정의 / 그 외 산출 기준 등 | AN8: 비고(사용자 자유입력) | AO8: (전문가투입) 분야 / 역할 등 | AP8: (전문가투입) KOICA 전문가 등급 | AQ8: (전문가투입) 중요도 | AR8: (전문가투입) 국내외구분 | AS8: (전문가투입) 투입일수입력값 | AT8: (전문가투입) 투입일수통계용 | AU8: (전문가투입) 자격요건 등 투입참고사항(메모입력값)
A9: 2026-00048 | B9: 1. 수자원에 대한 데이터기반 관리 및 연구 역량 향상으로 과학적 정책 수립 및 이행 | C9: 1.1. 제공된 통합수자원관리 컨설팅 | D9: 1.1.1. 지하수 통합관리 마스터플랜 수립 | E9: 계약1 | F9: 1. 수자원에 대한 데이터기반 관리 및 연구 역량 향상으로 과학적 정책 수립 및 이행 | G9: 1.1. 제공된 통합수자원관리 컨설팅 | H9: 1.1.1. 지하수 통합관리 마스터플랜 수립 | I9: 계약1 | J9: 전문가 파견 | K9: 인건비관련 | M9: 0 | N9: 27342000 | O9: 2026 | P9: Q3 | Q9: 2029 | R9: Q2 | S9: 2026 | T9: Q3 | U9: 1651.086957 | V9: 2278500 | W9: 0.1651086957 | X9: 2.2785 | Y9: 양식2 | Z9: 1380 | AA9: 1 | AB9: KRW | AC9: 27342000 | AD9: x | AE9: 1 | AF9: 식 | AO9: 수자원/법제도 | AP9: 2급 | AQ9: 주요 | AR9: 국내 | AS9: 30 | AT9: 2.5 | AU9: 국내
A10: 2026-00048 | B10: 1. 수자원에 대한 데이터기반 관리 및 연구 역량 향상으로 과학적 정책 수립 및 이행 | C10: 1.1. 제공된 통합수자원관리 컨설팅 | D10: 1.1.1. 지하수 통합관리 마스터플랜 수립 | E10: 계약1 | F10: 1. 수자원에 대한 데이터기반 관리 및 연구 역량 향상으로 과학적 정책 수립 및 이행 | G10: 1.1. 제공된 통합수자원관리 컨설팅 | H10: 1.1.1. 지하수 통합관리 마스터플랜 수립 | I10: 계약1 | J10: 전문가 파견 | K10: 인건비관련 | M10: 0 | N10: 19706084.59 | O10: 2026 | P10: Q3 | Q10: 2029 | R10: Q2 | S10: 2026 | T10: Q3 | U10: 1189.980954 | V10: 1642173.716 | W10: 0.1189980954 | X10: 1.642173716 | Y10: 양식2 | Z10: 1380 | AA10: 1 | AB10: KRW | AC10: 19706084.59 | AD10: x | AE10: 1 | AF10: 식 | AO10: 수자원/법제도 | AP10: 2급 | AQ10: 주요 | AR10: 국외 | AS10: 14 | AT10: 1.166666667 | AU10: 국외(1회차) : 지하수 법제도 초안
A11: 2026-00048 | B11: 1. 수자원에 대한 데이터기반 관리 및 연구 역량 향상으로 과학적 정책 수립 및 이행 | C11: 1.1. 제공된 통합수자원관리 컨설팅 | D11: 1.1.1. 지하수 통합관리 마스터플랜 수립 | E11: 계약1 | F11: 1. 수자원에 대한 데이터기반 관리 및 연구 역량 향상으로 과학적 정책 수립 및 이행 | G11: 1.1. 제공된 통합수자원관리 컨설팅 | H11: 1.1.1. 지하수 통합관리 마스터플랜 수립 | I11: 계약1 | J11: 전문가 파견 | K11: 인건비관련 | M11: 0 | N11: 19706084.59 | O11: 2026 | P11: Q3 | Q11: 2029 | R11: Q2 | S11: 2026 | T11: Q3 | U11: 1189.980954 | V11: 1642173.716 | W11: 0.1189980954 | X11: 1.642173716 | Y11: 양식2 | Z11: 1380 | AA11: 1 | AB11: KRW | AC11: 19706084.59 | AD11: x | AE11: 1 | AF11: 식 | AO11: 수자원/법제도 | AP11: 2급 | AQ11: 주요 | AR11: 국외 | AS11: 14 | AT11: 1.166666667 | AU11: 국외(2회차) : 지하수 관측(MP) 총괄
A12: 2026-00048 | B12: 1. 수자원에 대한 데이터기반 관리 및 연구 역량 향상으로 과학적 정책 수립 및 이행 | C12: 1.1. 제공된 통합수자원관리 컨설팅 | D12: 1.1.1. 지하수 통합관리 마스터플랜 수립 | E12: 계약1 | F12: 1. 수자원에 대한 데이터기반 관리 및 연구 역량 향상으로 과학적 정책 수립 및 이행 | G12: 1.1. 제공된 통합수자원관리 컨설팅 | H12: 1.1.1. 지하수 통합관리 마스터플랜 수립 | I12: 계약1 | J12: 전문가 파견 | K12: 인건비관련 | M12: 0 | N12: 19706084.59 | O12: 2026 | P12: Q3 | Q12: 2029 | R12: Q2 | S12: 2026 | T12: Q3 | U12: 1189.980954 | V12: 1642173.716 | W12: 0.1189980954 | X12: 1.642173716 | Y12: 양식2 | Z12: 1380 | AA12: 1 | AB12: KRW | AC12: 19706084.59 | AD12: x | AE12: 1 | AF12: 식 | AO12: 수자원/법제도 | AP12: 2급 | AQ12: 주요 | AR12: 국외 | AS12: 14 | AT12: 1.166666667 | AU12: 국외(3회차) : 지하수 법제도 확정
A13: 2026-00048 | B13: 1. 수자원에 대한 데이터기반 관리 및 연구 역량 향상으로 과학적 정책 수립 및 이행 | C13: 1.1. 제공된 통합수자원관리 컨설팅 | D13: 1.1.1. 지하수 통합관리 마스터플랜 수립 | E13: 계약1 | F13: 1. 수자원에 대한 데이터기반 관리 및 연구 역량 향상으로 과학적 정책 수립 및 이행 | G13: 1.1. 제공된 통합수자원관리 컨설팅 | H13: 1.1.1. 지하수 통합관리 마스터플랜 수립 | I13: 계약1 | J13: 전문가 파견 | K13: 인건비관련 | M13: 0 | N13: 72912000 | O13: 2026 | P13: Q3 | Q13: 2029 | R13: Q2 | S13: 2026 | T13: Q3 | U13: 4402.898551 | V13: 6076000 | W13: 0.4402898551 | X13: 6.076 | Y13: 양식2 | Z13: 1380 | AA13: 1 | AB13: KRW | AC13: 72912000 | AD13: x | AE13: 1 | AF13: 식 | AO13: 지하수/PL | AP13: 2급 | AQ13: 일반 | AR13: 국내 | AS13: 80 | AT13: 6.666666667 | AU13: 국내
A14: 2026-00048 | B14: 1. 수자원에 대한 데이터기반 관리 및 연구 역량 향상으로 과학적 정책 수립 및 이행 | C14: 1.1. 제공된 통합수자원관리 컨설팅 | D14: 1.1.1. 지하수 통합관리 마스터플랜 수립 | E14: 계약1 | F14: 1. 수자원에 대한 데이터기반 관리 및 연구 역량 향상으로 과학적 정책 수립 및 이행 | G14: 1.1. 제공된 통합수자원관리 컨설팅 | H14: 1.1.1. 지하수 통합관리 마스터플랜 수립 | I14: 계약1 | J14: 전문가 파견 | K14: 인건비관련 | M14: 0 | N14: 19706084.59 | O14: 2026 | P14: Q3 | Q14: 2029 | R14: Q2 | S14: 2026 | T14: Q3 | U14: 1189.980954 | V14: 1642173.716 | W14: 0.1189980954 | X14: 1.642173716 | Y14: 양식2 | Z14: 1380 | AA14: 1 | AB14: KRW | AC14: 19706084.59 | AD14: x | AE14: 1 | AF14: 식 | AO14: 지하수/PL | AP14: 2급 | AQ14: 일반 | AR14: 국외 | AS14: 14 | AT14: 1.166666667 | AU14: 국외(1회차) : 지하수 조사(MP) 총괄
A15: 2026-00048 | B15: 1. 수자원에 대한 데이터기반 관리 및 연구 역량 향상으로 과학적 정책 수립 및 이행 | C15: 1.1. 제공된 통합수자원관리 컨설팅 | D15: 1.1.1. 지하수 통합관리 마스터플랜 수립 | E15: 계약1 | F15: 1. 수자원에 대한 데이터기반 관리 및 연구 역량 향상으로 과학적 정책 수립 및 이행 | G15: 1.1. 제공된 통합수자원관리 컨설팅 | H15: 1.1.1. 지하수 통합관리 마스터플랜 수립 | I15: 계약1 | J15: 전문가 파견 | K15: 인건비관련 | M15: 0 | N15: 19706084.59 | O15: 2026 | P15: Q3 | Q15: 2029 | R15: Q2 | S15: 2026 | T15: Q3 | U15: 1189.980954 | V15: 1642173.716 | W15: 0.1189980954 | X15: 1.642173716 | Y15: 양식2 | Z15: 1380 | AA15: 1 | AB15: KRW | AC15: 19706084.59 | AD15: x | AE15: 1 | AF15: 식 | AO15: 지하수/PL | AP15: 2급 | AQ15: 일반 | AR15: 국외 | AS15: 14 | AT15: 1.166666667 | AU15: 국외(2회차) : 지하수 조사(MP) 총괄
A16: 2026-00048 | B16: 1. 수자원에 대한 데이터기반 관리 및 연구 역량 향상으로 과학적 정책 수립 및 이행 | C16: 1.1. 제공된 통합수자원관리 컨설팅 | D16: 1.1.1. 지하수 통합관리 마스터플랜 수립 | E16: 계약1 | F16: 1. 수자원에 대한 데이터기반 관리 및 연구 역량 향상으로 과학적 정책 수립 및 이행 | G16: 1.1. 제공된 통합수자원관리 컨설팅 | H16: 1.1.1. 지하수 통합관리 마스터플랜 수립 | I16: 계약1 | J16: 전문가 파견 | K16: 인건비관련 | M16: 0 | N16: 19706084.59 | O16: 2026 | P16: Q3 | Q16: 2029 | R16: Q2 | S16: 2026 | T16: Q3 | U16: 1189.980954 | V16: 1642173.716 | W16: 0.1189980954 | X16: 1.642173716 | Y16: 양식2 | Z16: 1380 | AA16: 1 | AB16: KRW | AC16: 19706084.59 | AD16: x | AE16: 1 | AF16: 식 | AO16: 지하수/PL | AP16: 2급 | AQ16: 일반 | AR16: 국외 | AS16: 14 | AT16: 1.166666667 | AU16: 국외(3회차) : 지하수 조사(MP) 총괄
A17: 2026-00048 | B17: 1. 수자원에 대한 데이터기반 관리 및 연구 역량 향상으로 과학적 정책 수립 및 이행 | C17: 1.1. 제공된 통합수자원관리 컨설팅 | D17: 1.1.1. 지하수 통합관리 마스터플랜 수립 | E17: 계약1 | F17: 1. 수자원에 대한 데이터기반 관리 및 연구 역량 향상으로 과학적 정책 수립 및 이행 | G17: 1.1. 제공된 통합수자원관리 컨설팅 | H17: 1.1.1. 지하수 통합관리 마스터플랜 수립 | I17: 계약1 | J17: 전문가 파견 | K17: 인건비관련 | M17: 0 | N17: 19706084.59 | O17: 2026 | P17: Q3 | Q17: 2029 | R17: Q2 | S17: 2026 | T17: Q3 | U17: 1189.980954 | V17: 1642173.716 | W17: 0.1189980954 | X17: 1.642173716 | Y17: 양식2 | Z17: 1380 | AA17: 1 | AB17: KRW | AC17: 19706084.59 | AD17: x | AE17: 1 | AF17: 식 | AO17: 지하수/PL | AP17: 2급 | AQ17: 일반 | AR17: 국외 | AS17: 14 | AT17: 1.166666667 | AU17: 국외(4회차) : 지하수 조사(MP) 총괄
A18: 2026-00048 | B18: 1. 수자원에 대한 데이터기반 관리 및 연구 역량 향상으로 과학적 정책 수립 및 이행 | C18: 1.1. 제공된 통합수자원관리 컨설팅 | D18: 1.1.1. 지하수 통합관리 마스터플랜 수립 | E18: 계약1 | F18: 1. 수자원에 대한 데이터기반 관리 및 연구 역량 향상으로 과학적 정책 수립 및 이행 | G18: 1.1. 제공된 통합수자원관리 컨설팅 | H18: 1.1.1. 지하수 통합관리 마스터플랜 수립 | I18: 계약1 | J18: 전문가 파견 | K18: 인건비관련 | M18: 0 | N18: 19706084.59 | O18: 2026 | P18: Q3 | Q18: 2029 | R18: Q2 | S18: 2026 | T18: Q3 | U18: 1189.980954 | V18: 1642173.716 | W18: 0.1189980954 | X18: 1.642173716 | Y18: 양식2 | Z18: 1380 | AA18: 1 | AB18: KRW | AC18: 19706084.59 | AD18: x | AE18: 1 | AF18: 식 | AO18: 지하수/PL | AP18: 2급 | AQ18: 일반 | AR18: 국외 | AS18: 14 | AT18: 1.166666667 | AU18: 국외(5회차) : 지하수 조사(MP) 총괄
A19: 2026-00048 | B19: 1. 수자원에 대한 데이터기반 관리 및 연구 역량 향상으로 과학적 정책 수립 및 이행 | C19: 1.1. 제공된 통합수자원관리 컨설팅 | D19: 1.1.1. 지하수 통합관리 마스터플랜 수립 | E19: 계약1 | F19: 1. 수자원에 대한 데이터기반 관리 및 연구 역량 향상으로 과학적 정책 수립 및 이행 | G19: 1.1. 제공된 통합수자원관리 컨설팅 | H19: 1.1.1. 지하수 통합관리 마스터플랜 수립 | I19: 계약1 | J19: 전문가 파견 | K19: 인건비관련 | M19: 0 | N19: 19706084.59 | O19: 2026 | P19: Q3 | Q19: 2029 | R19: Q2 | S19: 2026 | T19: Q3 | U19: 1189.980954 | V19: 1642173.716 | W19: 0.1189980954 | X19: 1.642173716 | Y19: 양식2 | Z19: 1380 | AA19: 1 | AB19: KRW | AC19: 19706084.59 | AD19: x | AE19: 1 | AF19: 식 | AO19: 지하수/PL | AP19: 2급 | AQ19: 일반 | AR19: 국외 | AS19: 14 | AT19: 1.166666667 | AU19: 국외(6회차) : 지하수 조사(MP) 총괄
A20: 2026-00048 | B20: 1. 수자원에 대한 데이터기반 관리 및 연구 역량 향상으로 과학적 정책 수립 및 이행 | C20: 1.1. 제공된 통합수자원관리 컨설팅 | D20: 1.1.1. 지하수 통합관리 마스터플랜 수립 | E20: 계약1 | F20: 1. 수자원에 대한 데이터기반 관리 및 연구 역량 향상으로 과학적 정책 수립 및 이행 | G20: 1.1. 제공된 통합수자원관리 컨설팅 | H20: 1.1.1. 지하수 통합관리 마스터플랜 수립 | I20: 계약1 | J20: 전문가 파견 | K20: 인건비관련 | M20: 0 | N20: 19706084.59 | O20: 2026 | P20: Q3 | Q20: 2029 | R20: Q2 | S20: 2026 | T20: Q3 | U20: 1189.980954 | V20: 1642173.716 | W20: 0.1189980954 | X20: 1.642173716 | Y20: 양식2 | Z20: 1380 | AA20: 1 | AB20: KRW | AC20: 19706084.59 | AD20: x | AE20: 1 | AF20: 식 | AO20: 지하수/PL | AP20: 2급 | AQ20: 일반 | AR20: 국외 | AS20: 14 | AT20: 1.166666667 | AU20: 국외(7회차) : 지하수 조사(MP) 총괄
A21: 2026-00048 | B21: 1. 수자원에 대한 데이터기반 관리 및 연구 역량 향상으로 과학적 정책 수립 및 이행 | C21: 1.1. 제공된 통합수자원관리 컨설팅 | D21: 1.1.1. 지하수 통합관리 마스터플랜 수립 | E21: 계약1 | F21: 1. 수자원에 대한 데이터기반 관리 및 연구 역량 향상으로 과학적 정책 수립 및 이행 | G21: 1.1. 제공된 통합수자원관리 컨설팅 | H21: 1.1.1. 지하수 통합관리 마스터플랜 수립 | I21: 계약1 | J21: 전문가 파견 | K21: 인건비관련 | M21: 0 | N21: 19706084.59 | O21: 2026 | P21: Q3 | Q21: 2029 | R21: Q2 | S21: 2026 | T21: Q3 | U21: 1189.980954 | V21: 1642173.716 | W21: 0.1189980954 | X21: 1.642173716 | Y21: 양식2 | Z21: 1380 | AA21: 1 | AB21: KRW | AC21: 19706084.59 | AD21: x | AE21: 1 | AF21: 식 | AO21: 지하수/PL | AP21: 2급 | AQ21: 일반 | AR21: 국외 | AS21: 14 | AT21: 1.166666667 | AU21: 국외(8회차) : 지하수 조사(MP) 총괄
A22: 2026-00048 | B22: 1. 수자원에 대한 데이터기반 관리 및 연구 역량 향상으로 과학적 정책 수립 및 이행 | C22: 1.1. 제공된 통합수자원관리 컨설팅 | D22: 1.1.1. 지하수 통합관리 마스터플랜 수립 | E22: 계약1 | F22: 1. 수자원에 대한 데이터기반 관리 및 연구 역량 향상으로 과학적 정책 수립 및 이행 | G22: 1.1. 제공된 통합수자원관리 컨설팅 | H22: 1.1.1. 지하수 통합관리 마스터플랜 수립 | I22: 계약1 | J22: 전문가 파견 | K22: 인건비관련 | M22: 0 | N22: 54684000 | O22: 2026 | P22: Q3 | Q22: 2029 | R22: Q2 | S22: 2026 | T22: Q3 | U22: 3302.173913 | V22: 4557000 | W22: 0.3302173913 | X22: 4.557 | Y22: 양식2 | Z22: 1380 | AA22: 1 | AB22: KRW | AC22: 54684000 | AD22: x | AE22: 1 | AF22: 식 | AO22: 지하수/함양량 및 개발가능량 | AP22: 2급 | AQ22: 일반 | AR22: 국내 | AS22: 60 | AT22: 5 | AU22: 국내
A23: 2026-00048 | B23: 1. 수자원에 대한 데이터기반 관리 및 연구 역량 향상으로 과학적 정책 수립 및 이행 | C23: 1.1. 제공된 통합수자원관리 컨설팅 | D23: 1.1.1. 지하수 통합관리 마스터플랜 수립 | E23: 계약1 | F23: 1. 수자원에 대한 데이터기반 관리 및 연구 역량 향상으로 과학적 정책 수립 및 이행 | G23: 1.1. 제공된 통합수자원관리 컨설팅 | H23: 1.1.1. 지하수 통합관리 마스터플랜 수립 | I23: 계약1 | J23: 전문가 파견 | K23: 인건비관련 | M23: 0 | N23: 19706084.59 | O23: 2026 | P23: Q3 | Q23: 2029 | R23: Q2 | S23: 2026 | T23: Q3 | U23: 1189.980954 | V23: 1642173.716 | W23: 0.1189980954 | X23: 1.642173716 | Y23: 양식2 | Z23: 1380 | AA23: 1 | AB23: KRW | AC23: 19706084.59 | AD23: x | AE23: 1 | AF23: 식 | AO23: 지하수/함양량 및 개발가능량 | AP23: 2급 | AQ23: 일반 | AR23: 국외 | AS23: 14 | AT23: 1.166666667 | AU23: 국외(1회차) : 착수조사
A24: 2026-00048 | B24: 1. 수자원에 대한 데이터기반 관리 및 연구 역량 향상으로 과학적 정책 수립 및 이행 | C24: 1.1. 제공된 통합수자원관리 컨설팅 | D24: 1.1.1. 지하수 통합관리 마스터플랜 수립 | E24: 계약1 | F24: 1. 수자원에 대한 데이터기반 관리 및 연구 역량 향상으로 과학적 정책 수립 및 이행 | G24: 1.1. 제공된 통합수자원관리 컨설팅 | H24: 1.1.1. 지하수 통합관리 마스터플랜 수립 | I24: 계약1 | J24: 전문가 파견 | K24: 인건비관련 | M24: 0 | N24: 19706084.59 | O24: 2026 | P24: Q3 | Q24: 2029 | R24: Q2 | S24: 2026 | T24: Q3 | U24: 1189.980954 | V24: 1642173.716 | W24: 0.1189980954 | X24: 1.642173716 | Y24: 양식2 | Z24: 1380 | AA24: 1 | AB24: KRW | AC24: 19706084.59 | AD24: x | AE24: 1 | AF24: 식 | AO24: 지하수/함양량 및 개발가능량 | AP24: 2급 | AQ24: 일반 | AR24: 국외 | AS24: 14 | AT24: 1.166666667 | AU24: 국외(2회차) : 현황조사
A25: 2026-00048 | B25: 1. 수자원에 대한 데이터기반 관리 및 연구 역량 향상으로 과학적 정책 수립 및 이행 | C25: 1.1. 제공된 통합수자원관리 컨설팅 | D25: 1.1.1. 지하수 통합관리 마스터플랜 수립 | E25: 계약1 | F25: 1. 수자원에 대한 데이터기반 관리 및 연구 역량 향상으로 과학적 정책 수립 및 이행 | G25: 1.1. 제공된 통합수자원관리 컨설팅 | H25: 1.1.1. 지하수 통합관리 마스터플랜 수립 | I25: 계약1 | J25: 전문가 파견 | K25: 인건비관련 | M25: 0 | N25: 19706084.59 | O25: 2026 | P25: Q3 | Q25: 2029 | R25: Q2 | S25: 2026 | T25: Q3 | U25: 1189.980954 | V25: 1642173.716 | W25: 0.1189980954 | X25: 1.642173716 | Y25: 양식2 | Z25: 1380 | AA25: 1 | AB25: KRW | AC25: 19706084.59 | AD25: x | AE25: 1 | AF25: 식 | AO25: 지하수/함양량 및 개발가능량 | AP25: 2급 | AQ25: 일반 | AR25: 국외 | AS25: 14 | AT25: 1.166666667 | AU25: 국외(3회차) : 중간보고
A26: 2026-00048 | B26: 1. 수자원에 대한 데이터기반 관리 및 연구 역량 향상으로 과학적 정책 수립 및 이행 | C26: 1.1. 제공된 통합수자원관리 컨설팅 | D26: 1.1.1. 지하수 통합관리 마스터플랜 수립 | E26: 계약1 | F26: 1. 수자원에 대한 데이터기반 관리 및 연구 역량 향상으로 과학적 정책 수립 및 이행 | G26: 1.1. 제공된 통합수자원관리 컨설팅 | H26: 1.1.1. 지하수 통합관리 마스터플랜 수립 | I26: 계약1 | J26: 전문가 파견 | K26: 인건비관련 | M26: 0 | N26: 19706084.59 | O26: 2026 | P26: Q3 | Q26: 2029 | R26: Q2 | S26: 2026 | T26: Q3 | U26: 1189.980954 | V26: 1642173.716 | W26: 0.1189980954 | X26: 1.642173716 | Y26: 양식2 | Z26: 1380 | AA26: 1 | AB26: KRW | AC26: 19706084.59 | AD26: x | AE26: 1 | AF26: 식 | AO26: 지하수/함양량 및 개발가능량 | AP26: 2급 | AQ26: 일반 | AR26: 국외 | AS26: 14 | AT26: 1.166666667 | AU26: 국외(4회차) : 보완조사
A27: 2026-00048 | B27: 1. 수자원에 대한 데이터기반 관리 및 연구 역량 향상으로 과학적 정책 수립 및 이행 | C27: 1.1. 제공된 통합수자원관리 컨설팅 | D27: 1.1.1. 지하수 통합관리 마스터플랜 수립 | E27: 계약1 | F27: 1. 수자원에 대한 데이터기반 관리 및 연구 역량 향상으로 과학적 정책 수립 및 이행 | G27: 1.1. 제공된 통합수자원관리 컨설팅 | H27: 1.1.1. 지하수 통합관리 마스터플랜 수립 | I27: 계약1 | J27: 전문가 파견 | K27: 인건비관련 | M27: 0 | N27: 19706084.59 | O27: 2026 | P27: Q3 | Q27: 2029 | R27: Q2 | S27: 2026 | T27: Q3 | U27: 1189.980954 | V27: 1642173.716 | W27: 0.1189980954 | X27: 1.642173716 | Y27: 양식2 | Z27: 1380 | AA27: 1 | AB27: KRW | AC27: 19706084.59 | AD27: x | AE27: 1 | AF27: 식 | AO27: 지하수/함양량 및 개발가능량 | AP27: 2급 | AQ27: 일반 | AR27: 국외 | AS27: 14 | AT27: 1.166666667 | AU27: 국외(5회차) : 최종안보고
A28: 2026-00048 | B28: 1. 수자원에 대한 데이터기반 관리 및 연구 역량 향상으로 과학적 정책 수립 및 이행 | C28: 1.1. 제공된 통합수자원관리 컨설팅 | D28: 1.1.1. 지하수 통합관리 마스터플랜 수립 | E28: 계약1 | F28: 1. 수자원에 대한 데이터기반 관리 및 연구 역량 향상으로 과학적 정책 수립 및 이행 | G28: 1.1. 제공된 통합수자원관리 컨설팅 | H28: 1.1.1. 지하수 통합관리 마스터플랜 수립 | I28: 계약1 | J28: 전문가 파견 | K28: 인건비관련 | M28: 0 | N28: 19706084.59 | O28: 2026 | P28: Q3 | Q28: 2029 | R28: Q2 | S28: 2026 | T28: Q3 | U28: 1189.980954 | V28: 1642173.716 | W28: 0.1189980954 | X28: 1.642173716 | Y28: 양식2 | Z28: 1380 | AA28: 1 | AB28: KRW | AC28: 19706084.59 | AD28: x | AE28: 1 | AF28: 식 | AO28: 지하수/함양량 및 개발가능량 | AP28: 2급 | AQ28: 일반 | AR28: 국외 | AS28: 14 | AT28: 1.166666667 | AU28: 국외(6회차) : 보완 및 최종보고
A29: 2026-00048 | B29: 1. 수자원에 대한 데이터기반 관리 및 연구 역량 향상으로 과학적 정책 수립 및 이행 | C29: 1.1. 제공된 통합수자원관리 컨설팅 | D29: 1.1.1. 지하수 통합관리 마스터플랜 수립 | E29: 계약1 | F29: 1. 수자원에 대한 데이터기반 관리 및 연구 역량 향상으로 과학적 정책 수립 및 이행 | G29: 1.1. 제공된 통합수자원관리 컨설팅 | H29: 1.1.1. 지하수 통합관리 마스터플랜 수립 | I29: 계약1 | J29: 전문가 파견 | K29: 인건비관련 | M29: 0 | N29: 38220000 | O29: 2026 | P29: Q3 | Q29: 2029 | R29: Q2 | S29: 2026 | T29: Q3 | U29: 2307.971014 | V29: 3185000 | W29: 0.2307971014 | X29: 3.185 | Y29: 양식2 | Z29: 1380 | AA29: 1 | AB29: KRW | AC29: 38220000 | AD29: x | AE29: 1 | AF29: 식 | AO29: 지하수/조사 및 개발 | AP29: 3급 | AQ29: 일반 | AR29: 국내 | AS29: 50 | AT29: 4.166666667 | AU29: 국내
A30: 2026-00048 | B30: 1. 수자원에 대한 데이터기반 관리 및 연구 역량 향상으로 과학적 정책 수립 및 이행 | C30: 1.1. 제공된 통합수자원관리 컨설팅 | D30: 1.1.1. 지하수 통합관리 마스터플랜 수립 | E30: 계약1 | F30: 1. 수자원에 대한 데이터기반 관리 및 연구 역량 향상으로 과학적 정책 수립 및 이행 | G30: 1.1. 제공된 통합수자원관리 컨설팅 | H30: 1.1.1. 지하수 통합관리 마스터플랜 수립 | I30: 계약1 | J30: 전문가 파견 | K30: 인건비관련 | M30: 0 | N30: 16799264.59 | O30: 2026 | P30: Q3 | Q30: 2029 | R30: Q2 | S30: 2026 | T30: Q3 | U30: 1014.448345 | V30: 1399938.716 | W30: 0.1014448345 | X30: 1.399938716 | Y30: 양식2 | Z30: 1380 | AA30: 1 | AB30: KRW | AC30: 16799264.59 | AD30: x | AE30: 1 | AF30: 식 | AO30: 지하수/조사 및 개발 | AP30: 3급 | AQ30: 일반 | AR30: 국외 | AS30: 14 | AT30: 1.166666667 | AU30: 국외(1회차) : 착수조사
A31: 2026-00048 | B31: 1. 수자원에 대한 데이터기반 관리 및 연구 역량 향상으로 과학적 정책 수립 및 이행 | C31: 1.1. 제공된 통합수자원관리 컨설팅 | D31: 1.1.1. 지하수 통합관리 마스터플랜 수립 | E31: 계약1 | F31: 1. 수자원에 대한 데이터기반 관리 및 연구 역량 향상으로 과학적 정책 수립 및 이행 | G31: 1.1. 제공된 통합수자원관리 컨설팅 | H31: 1.1.1. 지하수 통합관리 마스터플랜 수립 | I31: 계약1 | J31: 전문가 파견 | K31: 인건비관련 | M31: 0 | N31: 16799264.59 | O31: 2026 | P31: Q3 | Q31: 2029 | R31: Q2 | S31: 2026 | T31: Q3 | U31: 1014.448345 | V31: 1399938.716 | W31: 0.1014448345 | X31: 1.399938716 | Y31: 양식2 | Z31: 1380 | AA31: 1 | AB31: KRW | AC31: 16799264.59 | AD31: x | AE31: 1 | AF31: 식 | AO31: 지하수/조사 및 개발 | AP31: 3급 | AQ31: 일반 | AR31: 국외 | AS31: 14 | AT31: 1.166666667 | AU31: 국외(2회차) : 현황조사
A32: 2026-00048 | B32: 1. 수자원에 대한 데이터기반 관리 및 연구 역량 향상으로 과학적 정책 수립 및 이행 | C32: 1.1. 제공된 통합수자원관리 컨설팅 | D32: 1.1.1. 지하수 통합관리 마스터플랜 수립 | E32: 계약1 | F32: 1. 수자원에 대한 데이터기반 관리 및 연구 역량 향상으로 과학적 정책 수립 및 이행 | G32: 1.1. 제공된 통합수자원관리 컨설팅 | H32: 1.1.1. 지하수 통합관리 마스터플랜 수립 | I32: 계약1 | J32: 전문가 파견 | K32: 인건비관련 | M32: 0 | N32: 16799264.59 | O32: 2026 | P32: Q3 | Q32: 2029 | R32: Q2 | S32: 2026 | T32: Q3 | U32: 1014.448345 | V32: 1399938.716 | W32: 0.1014448345 | X32: 1.399938716 | Y32: 양식2 | Z32: 1380 | AA32: 1 | AB32: KRW | AC32: 16799264.59 | AD32: x | AE32: 1 | AF32: 식 | AO32: 지하수/조사 및 개발 | AP32: 3급 | AQ32: 일반 | AR32: 국외 | AS32: 14 | AT32: 1.166666667 | AU32: 국외(3회차) : 중간보고
A33: 2026-00048 | B33: 1. 수자원에 대한 데이터기반 관리 및 연구 역량 향상으로 과학적 정책 수립 및 이행 | C33: 1.1. 제공된 통합수자원관리 컨설팅 | D33: 1.1.1. 지하수 통합관리 마스터플랜 수립 | E33: 계약1 | F33: 1. 수자원에 대한 데이터기반 관리 및 연구 역량 향상으로 과학적 정책 수립 및 이행 | G33: 1.1. 제공된 통합수자원관리 컨설팅 | H33: 1.1.1. 지하수 통합관리 마스터플랜 수립 | I33: 계약1 | J33: 전문가 파견 | K33: 인건비관련 | M33: 0 | N33: 16799264.59 | O33: 2026 | P33: Q3 | Q33: 2029 | R33: Q2 | S33: 2026 | T33: Q3 | U33: 1014.448345 | V33: 1399938.716 | W33: 0.1014448345 | X33: 1.399938716 | Y33: 양식2 | Z33: 1380 | AA33: 1 | AB33: KRW | AC33: 16799264.59 | AD33: x | AE33: 1 | AF33: 식 | AO33: 지하수/조사 및 개발 | AP33: 3급 | AQ33: 일반 | AR33: 국외 | AS33: 14 | AT33: 1.166666667 | AU33: 국외(4회차) : 보완조사
A34: 2026-00048 | B34: 1. 수자원에 대한 데이터기반 관리 및 연구 역량 향상으로 과학적 정책 수립 및 이행 | C34: 1.1. 제공된 통합수자원관리 컨설팅 | D34: 1.1.1. 지하수 통합관리 마스터플랜 수립 | E34: 계약1 | F34: 1. 수자원에 대한 데이터기반 관리 및 연구 역량 향상으로 과학적 정책 수립 및 이행 | G34: 1.1. 제공된 통합수자원관리 컨설팅 | H34: 1.1.1. 지하수 통합관리 마스터플랜 수립 | I34: 계약1 | J34: 전문가 파견 | K34: 인건비관련 | M34: 0 | N34: 16799264.59 | O34: 2026 | P34: Q3 | Q34: 2029 | R34: Q2 | S34: 2026 | T34: Q3 | U34: 1014.448345 | V34: 1399938.716 | W34: 0.1014448345 | X34: 1.399938716 | Y34: 양식2 | Z34: 1380 | AA34: 1 | AB34: KRW | AC34: 16799264.59 | AD34: x | AE34: 1 | AF34: 식 | AO34: 지하수/조사 및 개발 | AP34: 3급 | AQ34: 일반 | AR34: 국외 | AS34: 14 | AT34: 1.166666667 | AU34: 국외(5회차) : 최종안보고
A35: 2026-00048 | B35: 1. 수자원에 대한 데이터기반 관리 및 연구 역량 향상으로 과학적 정책 수립 및 이행 | C35: 1.1. 제공된 통합수자원관리 컨설팅 | D35: 1.1.1. 지하수 통합관리 마스터플랜 수립 | E35: 계약1 | F35: 1. 수자원에 대한 데이터기반 관리 및 연구 역량 향상으로 과학적 정책 수립 및 이행 | G35: 1.1. 제공된 통합수자원관리 컨설팅 | H35: 1.1.1. 지하수 통합관리 마스터플랜 수립 | I35: 계약1 | J35: 전문가 파견 | K35: 인건비관련 | M35: 0 | N35: 38220000 | O35: 2026 | P35: Q3 | Q35: 2029 | R35: Q2 | S35: 2026 | T35: Q3 | U35: 2307.971014 | V35: 3185000 | W35: 0.2307971014 | X35: 3.185 | Y35: 양식2 | Z35: 1380 | AA35: 1 | AB35: KRW | AC35: 38220000 | AD35: x | AE35: 1 | AF35: 식 | AO35: 지하수/관측 및 정보화 | AP35: 3급 | AQ35: 일반 | AR35: 국내 | AS35: 50 | AT35: 4.166666667 | AU35: 국내
A36: 2026-00048 | B36: 1. 수자원에 대한 데이터기반 관리 및 연구 역량 향상으로 과학적 정책 수립 및 이행 | C36: 1.1. 제공된 통합수자원관리 컨설팅 | D36: 1.1.1. 지하수 통합관리 마스터플랜 수립 | E36: 계약1 | F36: 1. 수자원에 대한 데이터기반 관리 및 연구 역량 향상으로 과학적 정책 수립 및 이행 | G36: 1.1. 제공된 통합수자원관리 컨설팅 | H36: 1.1.1. 지하수 통합관리 마스터플랜 수립 | I36: 계약1 | J36: 전문가 파견 | K36: 인건비관련 | M36: 0 | N36: 16799264.59 | O36: 2026 | P36: Q3 | Q36: 2029 | R36: Q2 | S36: 2026 | T36: Q3 | U36: 1014.448345 | V36: 1399938.716 | W36: 0.1014448345 | X36: 1.399938716 | Y36: 양식2 | Z36: 1380 | AA36: 1 | AB36: KRW | AC36: 16799264.59 | AD36: x | AE36: 1 | AF36: 식 | AO36: 지하수/관측 및 정보화 | AP36: 3급 | AQ36: 일반 | AR36: 국외 | AS36: 14 | AT36: 1.166666667 | AU36: 국외(1회차) : 착수조사
A37: 2026-00048 | B37: 1. 수자원에 대한 데이터기반 관리 및 연구 역량 향상으로 과학적 정책 수립 및 이행 | C37: 1.1. 제공된 통합수자원관리 컨설팅 | D37: 1.1.1. 지하수 통합관리 마스터플랜 수립 | E37: 계약1 | F37: 1. 수자원에 대한 데이터기반 관리 및 연구 역량 향상으로 과학적 정책 수립 및 이행 | G37: 1.1. 제공된 통합수자원관리 컨설팅 | H37: 1.1.1. 지하수 통합관리 마스터플랜 수립 | I37: 계약1 | J37: 전문가 파견 | K37: 인건비관련 | M37: 0 | N37: 16799264.59 | O37: 2026 | P37: Q3 | Q37: 2029 | R37: Q2 | S37: 2026 | T37: Q3 | U37: 1014.448345 | V37: 1399938.716 | W37: 0.1014448345 | X37: 1.399938716 | Y37: 양식2 | Z37: 1380 | AA37: 1 | AB37: KRW | AC37: 16799264.59 | AD37: x | AE37: 1 | AF37: 식 | AO37: 지하수/관측 및 정보화 | AP37: 3급 | AQ37: 일반 | AR37: 국외 | AS37: 14 | AT37: 1.166666667 | AU37: 국외(2회차) : 현황조사
A38: 2026-00048 | B38: 1. 수자원에 대한 데이터기반 관리 및 연구 역량 향상으로 과학적 정책 수립 및 이행 | C38: 1.1. 제공된 통합수자원관리 컨설팅 | D38: 1.1.1. 지하수 통합관리 마스터플랜 수립 | E38: 계약1 | F38: 1. 수자원에 대한 데이터기반 관리 및 연구 역량 향상으로 과학적 정책 수립 및 이행 | G38: 1.1. 제공된 통합수자원관리 컨설팅 | H38: 1.1.1. 지하수 통합관리 마스터플랜 수립 | I38: 계약1 | J38: 전문가 파견 | K38: 인건비관련 | M38: 0 | N38: 16799264.59 | O38: 2026 | P38: Q3 | Q38: 2029 | R38: Q2 | S38: 2026 | T38: Q3 | U38: 1014.448345 | V38: 1399938.716 | W38: 0.1014448345 | X38: 1.399938716 | Y38: 양식2 | Z38: 1380 | AA38: 1 | AB38: KRW | AC38: 16799264.59 | AD38: x | AE38: 1 | AF38: 식 | AO38: 지하수/관측 및 정보화 | AP38: 3급 | AQ38: 일반 | AR38: 국외 | AS38: 14 | AT38: 1.166666667 | AU38: 국외(3회차) : 중간보고
A39: 2026-00048 | B39: 1. 수자원에 대한 데이터기반 관리 및 연구 역량 향상으로 과학적 정책 수립 및 이행 | C39: 1.1. 제공된 통합수자원관리 컨설팅 | D39: 1.1.1. 지하수 통합관리 마스터플랜 수립 | E39: 계약1 | F39: 1. 수자원에 대한 데이터기반 관리 및 연구 역량 향상으로 과학적 정책 수립 및 이행 | G39: 1.1. 제공된 통합수자원관리 컨설팅 | H39: 1.1.1. 지하수 통합관리 마스터플랜 수립 | I39: 계약1 | J39: 전문가 파견 | K39: 인건비관련 | M39: 0 | N39: 16799264.59 | O39: 2026 | P39: Q3 | Q39: 2029 | R39: Q2 | S39: 2026 | T39: Q3 | U39: 1014.448345 | V39: 1399938.716 | W39: 0.1014448345 | X39: 1.399938716 | Y39: 양식2 | Z39: 1380 | AA39: 1 | AB39: KRW | AC39: 16799264.59 | AD39: x | AE39: 1 | AF39: 식 | AO39: 지하수/관측 및 정보화 | AP39: 3급 | AQ39: 일반 | AR39: 국외 | AS39: 14 | AT39: 1.166666667 | AU39: 국외(4회차) : 보완조사
A40: 2026-00048 | B40: 1. 수자원에 대한 데이터기반 관리 및 연구 역량 향상으로 과학적 정책 수립 및 이행 | C40: 1.1. 제공된 통합수자원관리 컨설팅 | D40: 1.1.1. 지하수 통합관리 마스터플랜 수립 | E40: 계약1 | F40: 1. 수자원에 대한 데이터기반 관리 및 연구 역량 향상으로 과학적 정책 수립 및 이행 | G40: 1.1. 제공된 통합수자원관리 컨설팅 | H40: 1.1.1. 지하수 통합관리 마스터플랜 수립 | I40: 계약1 | J40: 전문가 파견 | K40: 인건비관련 | M40: 0 | N40: 16799264.59 | O40: 2026 | P40: Q3 | Q40: 2029 | R40: Q2 | S40: 2026 | T40: Q3 | U40: 1014.448345 | V40: 1399938.716 | W40: 0.1014448345 | X40: 1.399938716 | Y40: 양식2 | Z40: 1380 | AA40: 1 | AB40: KRW | AC40: 16799264.59 | AD40: x | AE40: 1 | AF40: 식 | AO40: 지하수/관측 및 정보화 | AP40: 3급 | AQ40: 일반 | AR40: 국외 | AS40: 14 | AT40: 1.166666667 | AU40: 국외(5회차) : 최종안보고
A41: 2026-00048 | B41: 1. 수자원에 대한 데이터기반 관리 및 연구 역량 향상으로 과학적 정책 수립 및 이행 | C41: 1.1. 제공된 통합수자원관리 컨설팅 | D41: 1.1.1. 지하수 통합관리 마스터플랜 수립 | E41: 계약1 | F41: 1. 수자원에 대한 데이터기반 관리 및 연구 역량 향상으로 과학적 정책 수립 및 이행 | G41: 1.1. 제공된 통합수자원관리 컨설팅 | H41: 1.1.1. 지하수 통합관리 마스터플랜 수립 | I41: 계약1 | J41: 전문가 파견 | K41: 인건비관련 | M41: 0 | N41: 27342000 | O41: 2026 | P41: Q3 | Q41: 2029 | R41: Q2 | S41: 2026 | T41: Q4 | U41: 1651.086957 | V41: 2278500 | W41: 0.1651086957 | X41: 2.2785 | Y41: 양식2 | Z41: 1380 | AA41: 1 | AB41: KRW | AC41: 27342000 | AD41: x | AE41: 1 | AF41: 식 | AO41: 수자원/법제도 | AP41: 2급 | AQ41: 주요 | AR41: 국내 | AS41: 30 | AT41: 2.5 | AU41: 국내
A42: 2026-00048 | B42: 1. 수자원에 대한 데이터기반 관리 및 연구 역량 향상으로 과학적 정책 수립 및 이행 | C42: 1.1. 제공된 통합수자원관리 컨설팅 | D42: 1.1.1. 지하수 통합관리 마스터플랜 수립 | E42: 계약1 | F42: 1. 수자원에 대한 데이터기반 관리 및 연구 역량 향상으로 과학적 정책 수립 및 이행 | G42: 1.1. 제공된 통합수자원관리 컨설팅 | H42: 1.1.1. 지하수 통합관리 마스터플랜 수립 | I42: 계약1 | J42: 전문가 파견 | K42: 인건비관련 | M42: 0 | N42: 19706084.59 | O42: 2026 | P42: Q3 | Q42: 2029 | R42: Q2 | S42: 2026 | T42: Q4 | U42: 1189.980954 | V42: 1642173.716 | W42: 0.1189980954 | X42: 1.642173716 | Y42: 양식2 | Z42: 1380 | AA42: 1 | AB42: KRW | AC42: 19706084.59 | AD42: x | AE42: 1 | AF42: 식 | AO42: 수자원/법제도 | AP42: 2급 | AQ42: 주요 | AR42: 국외 | AS42: 14 | AT42: 1.166666667 | AU42: 국외(1회차) : 지하수 법제도 초안
A43: 2026-00048 | B43: 1. 수자원에 대한 데이터기반 관리 및 연구 역량 향상으로 과학적 정책 수립 및 이행 | C43: 1.1. 제공된 통합수자원관리 컨설팅 | D43: 1.1.1. 지하수 통합관리 마스터플랜 수립 | E43: 계약1 | F43: 1. 수자원에 대한 데이터기반 관리 및 연구 역량 향상으로 과학적 정책 수립 및 이행 | G43: 1.1. 제공된 통합수자원관리 컨설팅 | H43: 1.1.1. 지하수 통합관리 마스터플랜 수립 | I43: 계약1 | J43: 전문가 파견 | K43: 인건비관련 | M43: 0 | N43: 19706084.59 | O43: 2026 | P43: Q3 | Q43: 2029 | R43: Q2 | S43: 2026 | T43: Q4 | U43: 1189.980954 | V43: 1642173.716 | W43: 0.1189980954 | X43: 1.642173716 | Y43: 양식2 | Z43: 1380 | AA43: 1 | AB43: KRW | AC43: 19706084.59 | AD43: x | AE43: 1 | AF43: 식 | AO43: 수자원/법제도 | AP43: 2급 | AQ43: 주요 | AR43: 국외 | AS43: 14 | AT43: 1.166666667 | AU43: 국외(2회차) : 지하수 관측(MP) 총괄
A44: 2026-00048 | B44: 1. 수자원에 대한 데이터기반 관리 및 연구 역량 향상으로 과학적 정책 수립 및 이행 | C44: 1.1. 제공된 통합수자원관리 컨설팅 | D44: 1.1.1. 지하수 통합관리 마스터플랜 수립 | E44: 계약1 | F44: 1. 수자원에 대한 데이터기반 관리 및 연구 역량 향상으로 과학적 정책 수립 및 이행 | G44: 1.1. 제공된 통합수자원관리 컨설팅 | H44: 1.1.1. 지하수 통합관리 마스터플랜 수립 | I44: 계약1 | J44: 전문가 파견 | K44: 인건비관련 | M44: 0 | N44: 19706084.59 | O44: 2026 | P44: Q3 | Q44: 2029 | R44: Q2 | S44: 2026 | T44: Q4 | U44: 1189.980954 | V44: 1642173.716 | W44: 0.1189980954 | X44: 1.642173716 | Y44: 양식2 | Z44: 1380 | AA44: 1 | AB44: KRW | AC44: 19706084.59 | AD44: x | AE44: 1 | AF44: 식 | AO44: 수자원/법제도 | AP44: 2급 | AQ44: 주요 | AR44: 국외 | AS44: 14 | AT44: 1.166666667 | AU44: 국외(3회차) : 지하수 법제도 확정
A45: 2026-00048 | B45: 1. 수자원에 대한 데이터기반 관리 및 연구 역량 향상으로 과학적 정책 수립 및 이행 | C45: 1.1. 제공된 통합수자원관리 컨설팅 | D45: 1.1.1. 지하수 통합관리 마스터플랜 수립 | E45: 계약1 | F45: 1. 수자원에 대한 데이터기반 관리 및 연구 역량 향상으로 과학적 정책 수립 및 이행 | G45: 1.1. 제공된 통합수자원관리 컨설팅 | H45: 1.1.1. 지하수 통합관리 마스터플랜 수립 | I45: 계약1 | J45: 전문가 파견 | K45: 인건비관련 | M45: 0 | N45: 72912000 | O45: 2026 | P45: Q3 | Q45: 2029 | R45: Q2 | S45: 2026 | T45: Q4 | U45: 4402.898551 | V45: 6076000 | W45: 0.4402898551 | X45: 6.076 | Y45: 양식2 | Z45: 1380 | AA45: 1 | AB45: KRW | AC45: 72912000 | AD45: x | AE45: 1 | AF45: 식 | AO45: 지하수/PL | AP45: 2급 | AQ45: 일반 | AR45: 국내 | AS45: 80 | AT45: 6.666666667 | AU45: 국내
A46: 2026-00048 | B46: 1. 수자원에 대한 데이터기반 관리 및 연구 역량 향상으로 과학적 정책 수립 및 이행 | C46: 1.1. 제공된 통합수자원관리 컨설팅 | D46: 1.1.1. 지하수 통합관리 마스터플랜 수립 | E46: 계약1 | F46: 1. 수자원에 대한 데이터기반 관리 및 연구 역량 향상으로 과학적 정책 수립 및 이행 | G46: 1.1. 제공된 통합수자원관리 컨설팅 | H46: 1.1.1. 지하수 통합관리 마스터플랜 수립 | I46: 계약1 | J46: 전문가 파견 | K46: 인건비관련 | M46: 0 | N46: 19706084.59 | O46: 2026 | P46: Q3 | Q46: 2029 | R46: Q2 | S46: 2026 | T46: Q4 | U46: 1189.980954 | V46: 1642173.716 | W46: 0.1189980954 | X46: 1.642173716 | Y46: 양식2 | Z46: 1380 | AA46: 1 | AB46: KRW | AC46: 19706084.59 | AD46: x | AE46: 1 | AF46: 식 | AO46: 지하수/PL | AP46: 2급 | AQ46: 일반 | AR46: 국외 | AS46: 14 | AT46: 1.166666667 | AU46: 국외(1회차) : 지하수 조사(MP) 총괄
A47: 2026-00048 | B47: 1. 수자원에 대한 데이터기반 관리 및 연구 역량 향상으로 과학적 정책 수립 및 이행 | C47: 1.1. 제공된 통합수자원관리 컨설팅 | D47: 1.1.1. 지하수 통합관리 마스터플랜 수립 | E47: 계약1 | F47: 1. 수자원에 대한 데이터기반 관리 및 연구 역량 향상으로 과학적 정책 수립 및 이행 | G47: 1.1. 제공된 통합수자원관리 컨설팅 | H47: 1.1.1. 지하수 통합관리 마스터플랜 수립 | I47: 계약1 | J47: 전문가 파견 | K47: 인건비관련 | M47: 0 | N47: 19706084.59 | O47: 2026 | P47: Q3 | Q47: 2029 | R47: Q2 | S47: 2026 | T47: Q4 | U47: 1189.980954 | V47: 1642173.716 | W47: 0.1189980954 | X47: 1.642173716 | Y47: 양식2 | Z47: 1380 | AA47: 1 | AB47: KRW | AC47: 19706084.59 | AD47: x | AE47: 1 | AF47: 식 | AO47: 지하수/PL | AP47: 2급 | AQ47: 일반 | AR47: 국외 | AS47: 14 | AT47: 1.166666667 | AU47: 국외(2회차) : 지하수 조사(MP) 총괄
A48: 2026-00048 | B48: 1. 수자원에 대한 데이터기반 관리 및 연구 역량 향상으로 과학적 정책 수립 및 이행 | C48: 1.1. 제공된 통합수자원관리 컨설팅 | D48: 1.1.1. 지하수 통합관리 마스터플랜 수립 | E48: 계약1 | F48: 1. 수자원에 대한 데이터기반 관리 및 연구 역량 향상으로 과학적 정책 수립 및 이행 | G48: 1.1. 제공된 통합수자원관리 컨설팅 | H48: 1.1.1. 지하수 통합관리 마스터플랜 수립 | I48: 계약1 | J48: 전문가 파견 | K48: 인건비관련 | M48: 0 | N48: 19706084.59 | O48: 2026 | P48: Q3 | Q48: 2029 | R48: Q2 | S48: 2026 | T48: Q4 | U48: 1189.980954 | V48: 1642173.716 | W48: 0.1189980954 | X48: 1.642173716 | Y48: 양식2 | Z48: 1380 | AA48: 1 | AB48: KRW | AC48: 19706084.59 | AD48: x | AE48: 1 | AF48: 식 | AO48: 지하수/PL | AP48: 2급 | AQ48: 일반 | AR48: 국외 | AS48: 14 | AT48: 1.166666667 | AU48: 국외(3회차) : 지하수 조사(MP) 총괄
A49: 2026-00048 | B49: 1. 수자원에 대한 데이터기반 관리 및 연구 역량 향상으로 과학적 정책 수립 및 이행 | C49: 1.1. 제공된 통합수자원관리 컨설팅 | D49: 1.1.1. 지하수 통합관리 마스터플랜 수립 | E49: 계약1 | F49: 1. 수자원에 대한 데이터기반 관리 및 연구 역량 향상으로 과학적 정책 수립 및 이행 | G49: 1.1. 제공된 통합수자원관리 컨설팅 | H49: 1.1.1. 지하수 통합관리 마스터플랜 수립 | I49: 계약1 | J49: 전문가 파견 | K49: 인건비관련 | M49: 0 | N49: 19706084.59 | O49: 2026 | P49: Q3 | Q49: 2029 | R49: Q2 | S49: 2026 | T49: Q4 | U49: 1189.980954 | V49: 1642173.716 | W49: 0.1189980954 | X49: 1.642173716 | Y49: 양식2 | Z49: 1380 | AA49: 1 | AB49: KRW | AC49: 19706084.59 | AD49: x | AE49: 1 | AF49: 식 | AO49: 지하수/PL | AP49: 2급 | AQ49: 일반 | AR49: 국외 | AS49: 14 | AT49: 1.166666667 | AU49: 국외(4회차) : 지하수 조사(MP) 총괄
A50: 2026-00048 | B50: 1. 수자원에 대한 데이터기반 관리 및 연구 역량 향상으로 과학적 정책 수립 및 이행 | C50: 1.1. 제공된 통합수자원관리 컨설팅 | D50: 1.1.1. 지하수 통합관리 마스터플랜 수립 | E50: 계약1 | F50: 1. 수자원에 대한 데이터기반 관리 및 연구 역량 향상으로 과학적 정책 수립 및 이행 | G50: 1.1. 제공된 통합수자원관리 컨설팅 | H50: 1.1.1. 지하수 통합관리 마스터플랜 수립 | I50: 계약1 | J50: 전문가 파견 | K50: 인건비관련 | M50: 0 | N50: 19706084.59 | O50: 2026 | P50: Q3 | Q50: 2029 | R50: Q2 | S50: 2026 | T50: Q4 | U50: 1189.980954 | V50: 1642173.716 | W50: 0.1189980954 | X50: 1.642173716 | Y50: 양식2 | Z50: 1380 | AA50: 1 | AB50: KRW | AC50: 19706084.59 | AD50: x | AE50: 1 | AF50: 식 | AO50: 지하수/PL | AP50: 2급 | AQ50: 일반 | AR50: 국외 | AS50: 14 | AT50: 1.166666667 | AU50: 국외(5회차) : 지하수 조사(MP) 총괄
A51: 2026-00048 | B51: 1. 수자원에 대한 데이터기반 관리 및 연구 역량 향상으로 과학적 정책 수립 및 이행 | C51: 1.1. 제공된 통합수자원관리 컨설팅 | D51: 1.1.1. 지하수 통합관리 마스터플랜 수립 | E51: 계약1 | F51: 1. 수자원에 대한 데이터기반 관리 및 연구 역량 향상으로 과학적 정책 수립 및 이행 | G51: 1.1. 제공된 통합수자원관리 컨설팅 | H51: 1.1.1. 지하수 통합관리 마스터플랜 수립 | I51: 계약1 | J51: 전문가 파견 | K51: 인건비관련 | M51: 0 | N51: 19706084.59 | O51: 2026 | P51: Q3 | Q51: 2029 | R51: Q2 | S51: 2026 | T51: Q4 | U51: 1189.980954 | V51: 1642173.716 | W51: 0.1189980954 | X51: 1.642173716 | Y51: 양식2 | Z51: 1380 | AA51: 1 | AB51: KRW | AC51: 19706084.59 | AD51: x | AE51: 1 | AF51: 식 | AO51: 지하수/PL | AP51: 2급 | AQ51: 일반 | AR51: 국외 | AS51: 14 | AT51: 1.166666667 | AU51: 국외(6회차) : 지하수 조사(MP) 총괄
A52: 2026-00048 | B52: 1. 수자원에 대한 데이터기반 관리 및 연구 역량 향상으로 과학적 정책 수립 및 이행 | C52: 1.1. 제공된 통합수자원관리 컨설팅 | D52: 1.1.1. 지하수 통합관리 마스터플랜 수립 | E52: 계약1 | F52: 1. 수자원에 대한 데이터기반 관리 및 연구 역량 향상으로 과학적 정책 수립 및 이행 | G52: 1.1. 제공된 통합수자원관리 컨설팅 | H52: 1.1.1. 지하수 통합관리 마스터플랜 수립 | I52: 계약1 | J52: 전문가 파견 | K52: 인건비관련 | M52: 0 | N52: 19706084.59 | O52: 2026 | P52: Q3 | Q52: 2029 | R52: Q2 | S52: 2026 | T52: Q4 | U52: 1189.980954 | V52: 1642173.716 | W52: 0.1189980954 | X52: 1.642173716 | Y52: 양식2 | Z52: 1380 | AA52: 1 | AB52: KRW | AC52: 19706084.59 | AD52: x | AE52: 1 | AF52: 식 | AO52: 지하수/PL | AP52: 2급 | AQ52: 일반 | AR52: 국외 | AS52: 14 | AT52: 1.166666667 | AU52: 국외(7회차) : 지하수 조사(MP) 총괄
A53: 2026-00048 | B53: 1. 수자원에 대한 데이터기반 관리 및 연구 역량 향상으로 과학적 정책 수립 및 이행 | C53: 1.1. 제공된 통합수자원관리 컨설팅 | D53: 1.1.1. 지하수 통합관리 마스터플랜 수립 | E53: 계약1 | F53: 1. 수자원에 대한 데이터기반 관리 및 연구 역량 향상으로 과학적 정책 수립 및 이행 | G53: 1.1. 제공된 통합수자원관리 컨설팅 | H53: 1.1.1. 지하수 통합관리 마스터플랜 수립 | I53: 계약1 | J53: 전문가 파견 | K53: 인건비관련 | M53: 0 | N53: 19706084.59 | O53: 2026 | P53: Q3 | Q53: 2029 | R53: Q2 | S53: 2026 | T53: Q4 | U53: 1189.980954 | V53: 1642173.716 | W53: 0.1189980954 | X53: 1.642173716 | Y53: 양식2 | Z53: 1380 | AA53: 1 | AB53: KRW | AC53: 19706084.59 | AD53: x | AE53: 1 | AF53: 식 | AO53: 지하수/PL | AP53: 2급 | AQ53: 일반 | AR53: 국외 | AS53: 14 | AT53: 1.166666667 | AU53: 국외(8회차) : 지하수 조사(MP) 총괄
A54: 2026-00048 | B54: 1. 수자원에 대한 데이터기반 관리 및 연구 역량 향상으로 과학적 정책 수립 및 이행 | C54: 1.1. 제공된 통합수자원관리 컨설팅 | D54: 1.1.1. 지하수 통합관리 마스터플랜 수립 | E54: 계약1 | F54: 1. 수자원에 대한 데이터기반 관리 및 연구 역량 향상으로 과학적 정책 수립 및 이행 | G54: 1.1. 제공된 통합수자원관리 컨설팅 | H54: 1.1.1. 지하수 통합관리 마스터플랜 수립 | I54: 계약1 | J54: 전문가 파견 | K54: 인건비관련 | M54: 0 | N54: 54684000 | O54: 2026 | P54: Q3 | Q54: 2029 | R54: Q2 | S54: 2026 | T54: Q4 | U54: 3302.173913 | V54: 4557000 | W54: 0.3302173913 | X54: 4.557 | Y54: 양식2 | Z54: 1380 | AA54: 1 | AB54: KRW | AC54: 54684000 | AD54: x | AE54: 1 | AF54: 식 | AO54: 지하수/함양량 및 개발가능량 | AP54: 2급 | AQ54: 일반 | AR54: 국내 | AS54: 60 | AT54: 5 | AU54: 국내
A55: 2026-00048 | B55: 1. 수자원에 대한 데이터기반 관리 및 연구 역량 향상으로 과학적 정책 수립 및 이행 | C55: 1.1. 제공된 통합수자원관리 컨설팅 | D55: 1.1.1. 지하수 통합관리 마스터플랜 수립 | E55: 계약1 | F55: 1. 수자원에 대한 데이터기반 관리 및 연구 역량 향상으로 과학적 정책 수립 및 이행 | G55: 1.1. 제공된 통합수자원관리 컨설팅 | H55: 1.1.1. 지하수 통합관리 마스터플랜 수립 | I55: 계약1 | J55: 전문가 파견 | K55: 인건비관련 | M55: 0 | N55: 19706084.59 | O55: 2026 | P55: Q3 | Q55: 2029 | R55: Q2 | S55: 2026 | T55: Q4 | U55: 1189.980954 | V55: 1642173.716 | W55: 0.1189980954 | X55: 1.642173716 | Y55: 양식2 | Z55: 1380 | AA55: 1 | AB55: KRW | AC55: 19706084.59 | AD55: x | AE55: 1 | AF55: 식 | AO55: 지하수/함양량 및 개발가능량 | AP55: 2급 | AQ55: 일반 | AR55: 국외 | AS55: 14 | AT55: 1.166666667 | AU55: 국외(1회차) : 착수조사
A56: 2026-00048 | B56: 1. 수자원에 대한 데이터기반 관리 및 연구 역량 향상으로 과학적 정책 수립 및 이행 | C56: 1.1. 제공된 통합수자원관리 컨설팅 | D56: 1.1.1. 지하수 통합관리 마스터플랜 수립 | E56: 계약1 | F56: 1. 수자원에 대한 데이터기반 관리 및 연구 역량 향상으로 과학적 정책 수립 및 이행 | G56: 1.1. 제공된 통합수자원관리 컨설팅 | H56: 1.1.1. 지하수 통합관리 마스터플랜 수립 | I56: 계약1 | J56: 전문가 파견 | K56: 인건비관련 | M56: 0 | N56: 19706084.59 | O56: 2026 | P56: Q3 | Q56: 2029 | R56: Q2 | S56: 2026 | T56: Q4 | U56: 1189.980954 | V56: 1642173.716 | W56: 0.1189980954 | X56: 1.642173716 | Y56: 양식2 | Z56: 1380 | AA56: 1 | AB56: KRW | AC56: 19706084.59 | AD56: x | AE56: 1 | AF56: 식 | AO56: 지하수/함양량 및 개발가능량 | AP56: 2급 | AQ56: 일반 | AR56: 국외 | AS56: 14 | AT56: 1.166666667 | AU56: 국외(2회차) : 현황조사
A57: 2026-00048 | B57: 1. 수자원에 대한 데이터기반 관리 및 연구 역량 향상으로 과학적 정책 수립 및 이행 | C57: 1.1. 제공된 통합수자원관리 컨설팅 | D57: 1.1.1. 지하수 통합관리 마스터플랜 수립 | E57: 계약1 | F57: 1. 수자원에 대한 데이터기반 관리 및 연구 역량 향상으로 과학적 정책 수립 및 이행 | G57: 1.1. 제공된 통합수자원관리 컨설팅 | H57: 1.1.1. 지하수 통합관리 마스터플랜 수립 | I57: 계약1 | J57: 전문가 파견 | K57: 인건비관련 | M57: 0 | N57: 19706084.59 | O57: 2026 | P57: Q3 | Q57: 2029 | R57: Q2 | S57: 2026 | T57: Q4 | U57: 1189.980954 | V57: 1642173.716 | W57: 0.1189980954 | X57: 1.642173716 | Y57: 양식2 | Z57: 1380 | AA57: 1 | AB57: KRW | AC57: 19706084.59 | AD57: x | AE57: 1 | AF57: 식 | AO57: 지하수/함양량 및 개발가능량 | AP57: 2급 | AQ57: 일반 | AR57: 국외 | AS57: 14 | AT57: 1.166666667 | AU57: 국외(3회차) : 중간보고
A58: 2026-00048 | B58: 1. 수자원에 대한 데이터기반 관리 및 연구 역량 향상으로 과학적 정책 수립 및 이행 | C58: 1.1. 제공된 통합수자원관리 컨설팅 | D58: 1.1.1. 지하수 통합관리 마스터플랜 수립 | E58: 계약1 | F58: 1. 수자원에 대한 데이터기반 관리 및 연구 역량 향상으로 과학적 정책 수립 및 이행 | G58: 1.1. 제공된 통합수자원관리 컨설팅 | H58: 1.1.1. 지하수 통합관리 마스터플랜 수립 | I58: 계약1 | J58: 전문가 파견 | K58: 인건비관련 | M58: 0 | N58: 19706084.59 | O58: 2026 | P58: Q3 | Q58: 2029 | R58: Q2 | S58: 2026 | T58: Q4 | U58: 1189.980954 | V58: 1642173.716 | W58: 0.1189980954 | X58: 1.642173716 | Y58: 양식2 | Z58: 1380 | AA58: 1 | AB58: KRW | AC58: 19706084.59 | AD58: x | AE58: 1 | AF58: 식 | AO58: 지하수/함양량 및 개발가능량 | AP58: 2급 | AQ58: 일반 | AR58: 국외 | AS58: 14 | AT58: 1.166666667 | AU58: 국외(4회차) : 보완조사
A59: 2026-00048 | B59: 1. 수자원에 대한 데이터기반 관리 및 연구 역량 향상으로 과학적 정책 수립 및 이행 | C59: 1.1. 제공된 통합수자원관리 컨설팅 | D59: 1.1.1. 지하수 통합관리 마스터플랜 수립 | E59: 계약1 | F59: 1. 수자원에 대한 데이터기반 관리 및 연구 역량 향상으로 과학적 정책 수립 및 이행 | G59: 1.1. 제공된 통합수자원관리 컨설팅 | H59: 1.1.1. 지하수 통합관리 마스터플랜 수립 | I59: 계약1 | J59: 전문가 파견 | K59: 인건비관련 | M59: 0 | N59: 19706084.59 | O59: 2026 | P59: Q3 | Q59: 2029 | R59: Q2 | S59: 2026 | T59: Q4 | U59: 1189.980954 | V59: 1642173.716 | W59: 0.1189980954 | X59: 1.642173716 | Y59: 양식2 | Z59: 1380 | AA59: 1 | AB59: KRW | AC59: 19706084.59 | AD59: x | AE59: 1 | AF59: 식 | AO59: 지하수/함양량 및 개발가능량 | AP59: 2급 | AQ59: 일반 | AR59: 국외 | AS59: 14 | AT59: 1.166666667 | AU59: 국외(5회차) : 최종안보고
A60: 2026-00048 | B60: 1. 수자원에 대한 데이터기반 관리 및 연구 역량 향상으로 과학적 정책 수립 및 이행 | C60: 1.1. 제공된 통합수자원관리 컨설팅 | D60: 1.1.1. 지하수 통합관리 마스터플랜 수립 | E60: 계약1 | F60: 1. 수자원에 대한 데이터기반 관리 및 연구 역량 향상으로 과학적 정책 수립 및 이행 | G60: 1.1. 제공된 통합수자원관리 컨설팅 | H60: 1.1.1. 지하수 통합관리 마스터플랜 수립 | I60: 계약1 | J60: 전문가 파견 | K60: 인건비관련 | M60: 0 | N60: 19706084.59 | O60: 2026 | P60: Q3 | Q60: 2029 | R60: Q2 | S60: 2026 | T60: Q4 | U60: 1189.980954 | V60: 1642173.716 | W60: 0.1189980954 | X60: 1.642173716 | Y60: 양식2 | Z60: 1380 | AA60: 1 | AB60: KRW | AC60: 19706084.59 | AD60: x | AE60: 1 | AF60: 식 | AO60: 지하수/함양량 및 개발가능량 | AP60: 2급 | AQ60: 일반 | AR60: 국외 | AS60: 14 | AT60: 1.166666667 | AU60: 국외(6회차) : 보완 및 최종보고
A61: 2026-00048 | B61: 1. 수자원에 대한 데이터기반 관리 및 연구 역량 향상으로 과학적 정책 수립 및 이행 | C61: 1.1. 제공된 통합수자원관리 컨설팅 | D61: 1.1.1. 지하수 통합관리 마스터플랜 수립 | E61: 계약1 | F61: 1. 수자원에 대한 데이터기반 관리 및 연구 역량 향상으로 과학적 정책 수립 및 이행 | G61: 1.1. 제공된 통합수자원관리 컨설팅 | H61: 1.1.1. 지하수 통합관리 마스터플랜 수립 | I61: 계약1 | J61: 전문가 파견 | K61: 인건비관련 | M61: 0 | N61: 38220000 | O61: 2026 | P61: Q3 | Q61: 2029 | R61: Q2 | S61: 2026 | T61: Q4 | U61: 2307.971014 | V61: 3185000 | W61: 0.2307971014 | X61: 3.185 | Y61: 양식2 | Z61: 1380 | AA61: 1 | AB61: KRW | AC61: 38220000 | AD61: x | AE61: 1 | AF61: 식 | AO61: 지하수/조사 및 개발 | AP61: 3급 | AQ61: 일반 | AR61: 국내 | AS61: 50 | AT61: 4.166666667 | AU61: 국내
A62: 2026-00048 | B62: 1. 수자원에 대한 데이터기반 관리 및 연구 역량 향상으로 과학적 정책 수립 및 이행 | C62: 1.1. 제공된 통합수자원관리 컨설팅 | D62: 1.1.1. 지하수 통합관리 마스터플랜 수립 | E62: 계약1 | F62: 1. 수자원에 대한 데이터기반 관리 및 연구 역량 향상으로 과학적 정책 수립 및 이행 | G62: 1.1. 제공된 통합수자원관리 컨설팅 | H62: 1.1.1. 지하수 통합관리 마스터플랜 수립 | I62: 계약1 | J62: 전문가 파견 | K62: 인건비관련 | M62: 0 | N62: 16799264.59 | O62: 2026 | P62: Q3 | Q62: 2029 | R62: Q2 | S62: 2026 | T62: Q4 | U62: 1014.448345 | V62: 1399938.716 | W62: 0.1014448345 | X62: 1.399938716 | Y62: 양식2 | Z62: 1380 | AA62: 1 | AB62: KRW | AC62: 16799264.59 | AD62: x | AE62: 1 | AF62: 식 | AO62: 지하수/조사 및 개발 | AP62: 3급 | AQ62: 일반 | AR62: 국외 | AS62: 14 | AT62: 1.166666667 | AU62: 국외(1회차) : 착수조사
A63: 2026-00048 | B63: 1. 수자원에 대한 데이터기반 관리 및 연구 역량 향상으로 과학적 정책 수립 및 이행 | C63: 1.1. 제공된 통합수자원관리 컨설팅 | D63: 1.1.1. 지하수 통합관리 마스터플랜 수립 | E63: 계약1 | F63: 1. 수자원에 대한 데이터기반 관리 및 연구 역량 향상으로 과학적 정책 수립 및 이행 | G63: 1.1. 제공된 통합수자원관리 컨설팅 | H63: 1.1.1. 지하수 통합관리 마스터플랜 수립 | I63: 계약1 | J63: 전문가 파견 | K63: 인건비관련 | M63: 0 | N63: 16799264.59 | O63: 2026 | P63: Q3 | Q63: 2029 | R63: Q2 | S63: 2026 | T63: Q4 | U63: 1014.448345 | V63: 1399938.716 | W63: 0.1014448345 | X63: 1.399938716 | Y63: 양식2 | Z63: 1380 | AA63: 1 | AB63: KRW | AC63: 16799264.59 | AD63: x | AE63: 1 | AF63: 식 | AO63: 지하수/조사 및 개발 | AP63: 3급 | AQ63: 일반 | AR63: 국외 | AS63: 14 | AT63: 1.166666667 | AU63: 국외(2회차) : 현황조사
A64: 2026-00048 | B64: 1. 수자원에 대한 데이터기반 관리 및 연구 역량 향상으로 과학적 정책 수립 및 이행 | C64: 1.1. 제공된 통합수자원관리 컨설팅 | D64: 1.1.1. 지하수 통합관리 마스터플랜 수립 | E64: 계약1 | F64: 1. 수자원에 대한 데이터기반 관리 및 연구 역량 향상으로 과학적 정책 수립 및 이행 | G64: 1.1. 제공된 통합수자원관리 컨설팅 | H64: 1.1.1. 지하수 통합관리 마스터플랜 수립 | I64: 계약1 | J64: 전문가 파견 | K64: 인건비관련 | M64: 0 | N64: 16799264.59 | O64: 2026 | P64: Q3 | Q64: 2029 | R64: Q2 | S64: 2026 | T64: Q4 | U64: 1014.448345 | V64: 1399938.716 | W64: 0.1014448345 | X64: 1.399938716 | Y64: 양식2 | Z64: 1380 | AA64: 1 | AB64: KRW | AC64: 16799264.59 | AD64: x | AE64: 1 | AF64: 식 | AO64: 지하수/조사 및 개발 | AP64: 3급 | AQ64: 일반 | AR64: 국외 | AS64: 14 | AT64: 1.166666667 | AU64: 국외(3회차) : 중간보고
A65: 2026-00048 | B65: 1. 수자원에 대한 데이터기반 관리 및 연구 역량 향상으로 과학적 정책 수립 및 이행 | C65: 1.1. 제공된 통합수자원관리 컨설팅 | D65: 1.1.1. 지하수 통합관리 마스터플랜 수립 | E65: 계약1 | F65: 1. 수자원에 대한 데이터기반 관리 및 연구 역량 향상으로 과학적 정책 수립 및 이행 | G65: 1.1. 제공된 통합수자원관리 컨설팅 | H65: 1.1.1. 지하수 통합관리 마스터플랜 수립 | I65: 계약1 | J65: 전문가 파견 | K65: 인건비관련 | M65: 0 | N65: 16799264.59 | O65: 2026 | P65: Q3 | Q65: 2029 | R65: Q2 | S65: 2026 | T65: Q4 | U65: 1014.448345 | V65: 1399938.716 | W65: 0.1014448345 | X65: 1.399938716 | Y65: 양식2 | Z65: 1380 | AA65: 1 | AB65: KRW | AC65: 16799264.59 | AD65: x | AE65: 1 | AF65: 식 | AO65: 지하수/조사 및 개발 | AP65: 3급 | AQ65: 일반 | AR65: 국외 | AS65: 14 | AT65: 1.166666667 | AU65: 국외(4회차) : 보완조사
A66: 2026-00048 | B66: 1. 수자원에 대한 데이터기반 관리 및 연구 역량 향상으로 과학적 정책 수립 및 이행 | C66: 1.1. 제공된 통합수자원관리 컨설팅 | D66: 1.1.1. 지하수 통합관리 마스터플랜 수립 | E66: 계약1 | F66: 1. 수자원에 대한 데이터기반 관리 및 연구 역량 향상으로 과학적 정책 수립 및 이행 | G66: 1.1. 제공된 통합수자원관리 컨설팅 | H66: 1.1.1. 지하수 통합관리 마스터플랜 수립 | I66: 계약1 | J66: 전문가 파견 | K66: 인건비관련 | M66: 0 | N66: 16799264.59 | O66: 2026 | P66: Q3 | Q66: 2029 | R66: Q2 | S66: 2026 | T66: Q4 | U66: 1014.448345 | V66: 1399938.716 | W66: 0.1014448345 | X66: 1.399938716 | Y66: 양식2 | Z66: 1380 | AA66: 1 | AB66: KRW | AC66: 16799264.59 | AD66: x | AE66: 1 | AF66: 식 | AO66: 지하수/조사 및 개발 | AP66: 3급 | AQ66: 일반 | AR66: 국외 | AS66: 14 | AT66: 1.166666667 | AU66: 국외(5회차) : 최종안보고
A67: 2026-00048 | B67: 1. 수자원에 대한 데이터기반 관리 및 연구 역량 향상으로 과학적 정책 수립 및 이행 | C67: 1.1. 제공된 통합수자원관리 컨설팅 | D67: 1.1.1. 지하수 통합관리 마스터플랜 수립 | E67: 계약1 | F67: 1. 수자원에 대한 데이터기반 관리 및 연구 역량 향상으로 과학적 정책 수립 및 이행 | G67: 1.1. 제공된 통합수자원관리 컨설팅 | H67: 1.1.1. 지하수 통합관리 마스터플랜 수립 | I67: 계약1 | J67: 전문가 파견 | K67: 인건비관련 | M67: 0 | N67: 38220000 | O67: 2026 | P67: Q3 | Q67: 2029 | R67: Q2 | S67: 2026 | T67: Q4 | U67: 2307.971014 | V67: 3185000 | W67: 0.2307971014 | X67: 3.185 | Y67: 양식2 | Z67: 1380 | AA67: 1 | AB67: KRW | AC67: 38220000 | AD67: x | AE67: 1 | AF67: 식 | AO67: 지하수/관측 및 정보화 | AP67: 3급 | AQ67: 일반 | AR67: 국내 | AS67: 50 | AT67: 4.166666667 | AU67: 국내
A68: 2026-00048 | B68: 1. 수자원에 대한 데이터기반 관리 및 연구 역량 향상으로 과학적 정책 수립 및 이행 | C68: 1.1. 제공된 통합수자원관리 컨설팅 | D68: 1.1.1. 지하수 통합관리 마스터플랜 수립 | E68: 계약1 | F68: 1. 수자원에 대한 데이터기반 관리 및 연구 역량 향상으로 과학적 정책 수립 및 이행 | G68: 1.1. 제공된 통합수자원관리 컨설팅 | H68: 1.1.1. 지하수 통합관리 마스터플랜 수립 | I68: 계약1 | J68: 전문가 파견 | K68: 인건비관련 | M68: 0 | N68: 16799264.59 | O68: 2026 | P68: Q3 | Q68: 2029 | R68: Q2 | S68: 2026 | T68: Q4 | U68: 1014.448345 | V68: 1399938.716 | W68: 0.1014448345 | X68: 1.399938716 | Y68: 양식2 | Z68: 1380 | AA68: 1 | AB68: KRW | AC68: 16799264.59 | AD68: x | AE68: 1 | AF68: 식 | AO68: 지하수/관측 및 정보화 | AP68: 3급 | AQ68: 일반 | AR68: 국외 | AS68: 14 | AT68: 1.166666667 | AU68: 국외(1회차) : 착수조사
A69: 2026-00048 | B69: 1. 수자원에 대한 데이터기반 관리 및 연구 역량 향상으로 과학적 정책 수립 및 이행 | C69: 1.1. 제공된 통합수자원관리 컨설팅 | D69: 1.1.1. 지하수 통합관리 마스터플랜 수립 | E69: 계약1 | F69: 1. 수자원에 대한 데이터기반 관리 및 연구 역량 향상으로 과학적 정책 수립 및 이행 | G69: 1.1. 제공된 통합수자원관리 컨설팅 | H69: 1.1.1. 지하수 통합관리 마스터플랜 수립 | I69: 계약1 | J69: 전문가 파견 | K69: 인건비관련 | M69: 0 | N69: 16799264.59 | O69: 2026 | P69: Q3 | Q69: 2029 | R69: Q2 | S69: 2026 | T69: Q4 | U69: 1014.448345 | V69: 1399938.716 | W69: 0.1014448345 | X69: 1.399938716 | Y69: 양식2 | Z69: 1380 | AA69: 1 | AB69: KRW | AC69: 16799264.59 | AD69: x | AE69: 1 | AF69: 식 | AO69: 지하수/관측 및 정보화 | AP69: 3급 | AQ69: 일반 | AR69: 국외 | AS69: 14 | AT69: 1.166666667 | AU69: 국외(2회차) : 현황조사
A70: 2026-00048 | B70: 1. 수자원에 대한 데이터기반 관리 및 연구 역량 향상으로 과학적 정책 수립 및 이행 | C70: 1.1. 제공된 통합수자원관리 컨설팅 | D70: 1.1.1. 지하수 통합관리 마스터플랜 수립 | E70: 계약1 | F70: 1. 수자원에 대한 데이터기반 관리 및 연구 역량 향상으로 과학적 정책 수립 및 이행 | G70: 1.1. 제공된 통합수자원관리 컨설팅 | H70: 1.1.1. 지하수 통합관리 마스터플랜 수립 | I70: 계약1 | J70: 전문가 파견 | K70: 인건비관련 | M70: 0 | N70: 16799264.59 | O70: 2026 | P70: Q3 | Q70: 2029 | R70: Q2 | S70: 2026 | T70: Q4 | U70: 1014.448345 | V70: 1399938.716 | W70: 0.1014448345 | X70: 1.399938716 | Y70: 양식2 | Z70: 1380 | AA70: 1 | AB70: KRW | AC70: 16799264.59 | AD70: x | AE70: 1 | AF70: 식 | AO70: 지하수/관측 및 정보화 | AP70: 3급 | AQ70: 일반 | AR70: 국외 | AS70: 14 | AT70: 1.166666667 | AU70: 국외(3회차) : 중간보고
A71: 2026-00048 | B71: 1. 수자원에 대한 데이터기반 관리 및 연구 역량 향상으로 과학적 정책 수립 및 이행 | C71: 1.1. 제공된 통합수자원관리 컨설팅 | D71: 1.1.1. 지하수 통합관리 마스터플랜 수립 | E71: 계약1 | F71: 1. 수자원에 대한 데이터기반 관리 및 연구 역량 향상으로 과학적 정책 수립 및 이행 | G71: 1.1. 제공된 통합수자원관리 컨설팅 | H71: 1.1.1. 지하수 통합관리 마스터플랜 수립 | I71: 계약1 | J71: 전문가 파견 | K71: 인건비관련 | M71: 0 | N71: 16799264.59 | O71: 2026 | P71: Q3 | Q71: 2029 | R71: Q2 | S71: 2026 | T71: Q4 | U71: 1014.448345 | V71: 1399938.716 | W71: 0.1014448345 | X71: 1.399938716 | Y71: 양식2 | Z71: 1380 | AA71: 1 | AB71: KRW | AC71: 16799264.59 | AD71: x | AE71: 1 | AF71: 식 | AO71: 지하수/관측 및 정보화 | AP71: 3급 | AQ71: 일반 | AR71: 국외 | AS71: 14 | AT71: 1.166666667 | AU71: 국외(4회차) : 보완조사
A72: 2026-00048 | B72: 1. 수자원에 대한 데이터기반 관리 및 연구 역량 향상으로 과학적 정책 수립 및 이행 | C72: 1.1. 제공된 통합수자원관리 컨설팅 | D72: 1.1.1. 지하수 통합관리 마스터플랜 수립 | E72: 계약1 | F72: 1. 수자원에 대한 데이터기반 관리 및 연구 역량 향상으로 과학적 정책 수립 및 이행 | G72: 1.1. 제공된 통합수자원관리 컨설팅 | H72: 1.1.1. 지하수 통합관리 마스터플랜 수립 | I72: 계약1 | J72: 전문가 파견 | K72: 인건비관련 | M72: 0 | N72: 16799264.59 | O72: 2026 | P72: Q3 | Q72: 2029 | R72: Q2 | S72: 2026 | T72: Q4 | U72: 1014.448345 | V72: 1399938.716 | W72: 0.1014448345 | X72: 1.399938716 | Y72: 양식2 | Z72: 1380 | AA72: 1 | AB72: KRW | AC72: 16799264.59 | AD72: x | AE72: 1 | AF72: 식 | AO72: 지하수/관측 및 정보화 | AP72: 3급 | AQ72: 일반 | AR72: 국외 | AS72: 14 | AT72: 1.166666667 | AU72: 국외(5회차) : 최종안보고
A73: 2026-00048 | B73: 1. 수자원에 대한 데이터기반 관리 및 연구 역량 향상으로 과학적 정책 수립 및 이행 | C73: 1.1. 제공된 통합수자원관리 컨설팅 | D73: 1.1.1. 지하수 통합관리 마스터플랜 수립 | E73: 계약1 | F73: 1. 수자원에 대한 데이터기반 관리 및 연구 역량 향상으로 과학적 정책 수립 및 이행 | G73: 1.1. 제공된 통합수자원관리 컨설팅 | H73: 1.1.1. 지하수 통합관리 마스터플랜 수립 | I73: 계약1 | J73: 전문가 파견 | K73: 인건비관련 | M73: 0 | N73: 27342000 | O73: 2026 | P73: Q3 | Q73: 2029 | R73: Q2 | S73: 2027 | T73: Q1 | U73: 1651.086957 | V73: 2278500 | W73: 0.1651086957 | X73: 2.2785 | Y73: 양식2 | Z73: 1380 | AA73: 1 | AB73: KRW | AC73: 27342000 | AD73: x | AE73: 1 | AF73: 식 | AO73: 수자원/법제도 | AP73: 2급 | AQ73: 주요 | AR73: 국내 | AS73: 30 | AT73: 2.5 | AU73: 국내
A74: 2026-00048 | B74: 1. 수자원에 대한 데이터기반 관리 및 연구 역량 향상으로 과학적 정책 수립 및 이행 | C74: 1.1. 제공된 통합수자원관리 컨설팅 | D74: 1.1.1. 지하수 통합관리 마스터플랜 수립 | E74: 계약1 | F74: 1. 수자원에 대한 데이터기반 관리 및 연구 역량 향상으로 과학적 정책 수립 및 이행 | G74: 1.1. 제공된 통합수자원관리 컨설팅 | H74: 1.1.1. 지하수 통합관리 마스터플랜 수립 | I74: 계약1 | J74: 전문가 파견 | K74: 인건비관련 | M74: 0 | N74: 19706084.59 | O74: 2026 | P74: Q3 | Q74: 2029 | R74: Q2 | S74: 2027 | T74: Q1 | U74: 1189.980954 | V74: 1642173.716 | W74: 0.1189980954 | X74: 1.642173716 | Y74: 양식2 | Z74: 1380 | AA74: 1 | AB74: KRW | AC74: 19706084.59 | AD74: x | AE74: 1 | AF74: 식 | AO74: 수자원/법제도 | AP74: 2급 | AQ74: 주요 | AR74: 국외 | AS74: 14 | AT74: 1.166666667 | AU74: 국외(1회차) : 지하수 법제도 초안
A75: 2026-00048 | B75: 1. 수자원에 대한 데이터기반 관리 및 연구 역량 향상으로 과학적 정책 수립 및 이행 | C75: 1.1. 제공된 통합수자원관리 컨설팅 | D75: 1.1.1. 지하수 통합관리 마스터플랜 수립 | E75: 계약1 | F75: 1. 수자원에 대한 데이터기반 관리 및 연구 역량 향상으로 과학적 정책 수립 및 이행 | G75: 1.1. 제공된 통합수자원관리 컨설팅 | H75: 1.1.1. 지하수 통합관리 마스터플랜 수립 | I75: 계약1 | J75: 전문가 파견 | K75: 인건비관련 | M75: 0 | N75: 19706084.59 | O75: 2026 | P75: Q3 | Q75: 2029 | R75: Q2 | S75: 2027 | T75: Q1 | U75: 1189.980954 | V75: 1642173.716 | W75: 0.1189980954 | X75: 1.642173716 | Y75: 양식2 | Z75: 1380 | AA75: 1 | AB75: KRW | AC75: 19706084.59 | AD75: x | AE75: 1 | AF75: 식 | AO75: 수자원/법제도 | AP75: 2급 | AQ75: 주요 | AR75: 국외 | AS75: 14 | AT75: 1.166666667 | AU75: 국외(2회차) : 지하수 관측(MP) 총괄
A76: 2026-00048 | B76: 1. 수자원에 대한 데이터기반 관리 및 연구 역량 향상으로 과학적 정책 수립 및 이행 | C76: 1.1. 제공된 통합수자원관리 컨설팅 | D76: 1.1.1. 지하수 통합관리 마스터플랜 수립 | E76: 계약1 | F76: 1. 수자원에 대한 데이터기반 관리 및 연구 역량 향상으로 과학적 정책 수립 및 이행 | G76: 1.1. 제공된 통합수자원관리 컨설팅 | H76: 1.1.1. 지하수 통합관리 마스터플랜 수립 | I76: 계약1 | J76: 전문가 파견 | K76: 인건비관련 | M76: 0 | N76: 19706084.59 | O76: 2026 | P76: Q3 | Q76: 2029 | R76: Q2 | S76: 2027 | T76: Q1 | U76: 1189.980954 | V76: 1642173.716 | W76: 0.1189980954 | X76: 1.642173716 | Y76: 양식2 | Z76: 1380 | AA76: 1 | AB76: KRW | AC76: 19706084.59 | AD76: x | AE76: 1 | AF76: 식 | AO76: 수자원/법제도 | AP76: 2급 | AQ76: 주요 | AR76: 국외 | AS76: 14 | AT76: 1.166666667 | AU76: 국외(3회차) : 지하수 법제도 확정
A77: 2026-00048 | B77: 1. 수자원에 대한 데이터기반 관리 및 연구 역량 향상으로 과학적 정책 수립 및 이행 | C77: 1.1. 제공된 통합수자원관리 컨설팅 | D77: 1.1.1. 지하수 통합관리 마스터플랜 수립 | E77: 계약1 | F77: 1. 수자원에 대한 데이터기반 관리 및 연구 역량 향상으로 과학적 정책 수립 및 이행 | G77: 1.1. 제공된 통합수자원관리 컨설팅 | H77: 1.1.1. 지하수 통합관리 마스터플랜 수립 | I77: 계약1 | J77: 전문가 파견 | K77: 인건비관련 | M77: 0 | N77: 72912000 | O77: 2026 | P77: Q3 | Q77: 2029 | R77: Q2 | S77: 2027 | T77: Q1 | U77: 4402.898551 | V77: 6076000 | W77: 0.4402898551 | X77: 6.076 | Y77: 양식2 | Z77: 1380 | AA77: 1 | AB77: KRW | AC77: 72912000 | AD77: x | AE77: 1 | AF77: 식 | AO77: 지하수/PL | AP77: 2급 | AQ77: 일반 | AR77: 국내 | AS77: 80 | AT77: 6.666666667 | AU77: 국내
A78: 2026-00048 | B78: 1. 수자원에 대한 데이터기반 관리 및 연구 역량 향상으로 과학적 정책 수립 및 이행 | C78: 1.1. 제공된 통합수자원관리 컨설팅 | D78: 1.1.1. 지하수 통합관리 마스터플랜 수립 | E78: 계약1 | F78: 1. 수자원에 대한 데이터기반 관리 및 연구 역량 향상으로 과학적 정책 수립 및 이행 | G78: 1.1. 제공된 통합수자원관리 컨설팅 | H78: 1.1.1. 지하수 통합관리 마스터플랜 수립 | I78: 계약1 | J78: 전문가 파견 | K78: 인건비관련 | M78: 0 | N78: 19706084.59 | O78: 2026 | P78: Q3 | Q78: 2029 | R78: Q2 | S78: 2027 | T78: Q1 | U78: 1189.980954 | V78: 1642173.716 | W78: 0.1189980954 | X78: 1.642173716 | Y78: 양식2 | Z78: 1380 | AA78: 1 | AB78: KRW | AC78: 19706084.59 | AD78: x | AE78: 1 | AF78: 식 | AO78: 지하수/PL | AP78: 2급 | AQ78: 일반 | AR78: 국외 | AS78: 14 | AT78: 1.166666667 | AU78: 국외(1회차) : 지하수 조사(MP) 총괄
A79: 2026-00048 | B79: 1. 수자원에 대한 데이터기반 관리 및 연구 역량 향상으로 과학적 정책 수립 및 이행 | C79: 1.1. 제공된 통합수자원관리 컨설팅 | D79: 1.1.1. 지하수 통합관리 마스터플랜 수립 | E79: 계약1 | F79: 1. 수자원에 대한 데이터기반 관리 및 연구 역량 향상으로 과학적 정책 수립 및 이행 | G79: 1.1. 제공된 통합수자원관리 컨설팅 | H79: 1.1.1. 지하수 통합관리 마스터플랜 수립 | I79: 계약1 | J79: 전문가 파견 | K79: 인건비관련 | M79: 0 | N79: 19706084.59 | O79: 2026 | P79: Q3 | Q79: 2029 | R79: Q2 | S79: 2027 | T79: Q1 | U79: 1189.980954 | V79: 1642173.716 | W79: 0.1189980954 | X79: 1.642173716 | Y79: 양식2 | Z79: 1380 | AA79: 1 | AB79: KRW | AC79: 19706084.59 | AD79: x | AE79: 1 | AF79: 식 | AO79: 지하수/PL | AP79: 2급 | AQ79: 일반 | AR79: 국외 | AS79: 14 | AT79: 1.166666667 | AU79: 국외(2회차) : 지하수 조사(MP) 총괄
A80: 2026-00048 | B80: 1. 수자원에 대한 데이터기반 관리 및 연구 역량 향상으로 과학적 정책 수립 및 이행 | C80: 1.1. 제공된 통합수자원관리 컨설팅 | D80: 1.1.1. 지하수 통합관리 마스터플랜 수립 | E80: 계약1 | F80: 1. 수자원에 대한 데이터기반 관리 및 연구 역량 향상으로 과학적 정책 수립 및 이행 | G80: 1.1. 제공된 통합수자원관리 컨설팅 | H80: 1.1.1. 지하수 통합관리 마스터플랜 수립 | I80: 계약1 | J80: 전문가 파견 | K80: 인건비관련 | M80: 0 | N80: 19706084.59 | O80: 2026 | P80: Q3 | Q80: 2029 | R80: Q2 | S80: 2027 | T80: Q1 | U80: 1189.980954 | V80: 1642173.716 | W80: 0.1189980954 | X80: 1.642173716 | Y80: 양식2 | Z80: 1380 | AA80: 1 | AB80: KRW | AC80: 19706084.59 | AD80: x | AE80: 1 | AF80: 식 | AO80: 지하수/PL | AP80: 2급 | AQ80: 일반 | AR80: 국외 | AS80: 14 | AT80: 1.166666667 | AU80: 국외(3회차) : 지하수 조사(MP) 총괄
A81: 2026-00048 | B81: 1. 수자원에 대한 데이터기반 관리 및 연구 역량 향상으로 과학적 정책 수립 및 이행 | C81: 1.1. 제공된 통합수자원관리 컨설팅 | D81: 1.1.1. 지하수 통합관리 마스터플랜 수립 | E81: 계약1 | F81: 1. 수자원에 대한 데이터기반 관리 및 연구 역량 향상으로 과학적 정책 수립 및 이행 | G81: 1.1. 제공된 통합수자원관리 컨설팅 | H81: 1.1.1. 지하수 통합관리 마스터플랜 수립 | I81: 계약1 | J81: 전문가 파견 | K81: 인건비관련 | M81: 0 | N81: 19706084.59 | O81: 2026 | P81: Q3 | Q81: 2029 | R81: Q2 | S81: 2027 | T81: Q1 | U81: 1189.980954 | V81: 1642173.716 | W81: 0.1189980954 | X81: 1.642173716 | Y81: 양식2 | Z81: 1380 | AA81: 1 | AB81: KRW | AC81: 19706084.59 | AD81: x | AE81: 1 | AF81: 식 | AO81: 지하수/PL | AP81: 2급 | AQ81: 일반 | AR81: 국외 | AS81: 14 | AT81: 1.166666667 | AU81: 국외(4회차) : 지하수 조사(MP) 총괄
A82: 2026-00048 | B82: 1. 수자원에 대한 데이터기반 관리 및 연구 역량 향상으로 과학적 정책 수립 및 이행 | C82: 1.1. 제공된 통합수자원관리 컨설팅 | D82: 1.1.1. 지하수 통합관리 마스터플랜 수립 | E82: 계약1 | F82: 1. 수자원에 대한 데이터기반 관리 및 연구 역량 향상으로 과학적 정책 수립 및 이행 | G82: 1.1. 제공된 통합수자원관리 컨설팅 | H82: 1.1.1. 지하수 통합관리 마스터플랜 수립 | I82: 계약1 | J82: 전문가 파견 | K82: 인건비관련 | M82: 0 | N82: 19706084.59 | O82: 2026 | P82: Q3 | Q82: 2029 | R82: Q2 | S82: 2027 | T82: Q1 | U82: 1189.980954 | V82: 1642173.716 | W82: 0.1189980954 | X82: 1.642173716 | Y82: 양식2 | Z82: 1380 | AA82: 1 | AB82: KRW | AC82: 19706084.59 | AD82: x | AE82: 1 | AF82: 식 | AO82: 지하수/PL | AP82: 2급 | AQ82: 일반 | AR82: 국외 | AS82: 14 | AT82: 1.166666667 | AU82: 국외(5회차) : 지하수 조사(MP) 총괄
A83: 2026-00048 | B83: 1. 수자원에 대한 데이터기반 관리 및 연구 역량 향상으로 과학적 정책 수립 및 이행 | C83: 1.1. 제공된 통합수자원관리 컨설팅 | D83: 1.1.1. 지하수 통합관리 마스터플랜 수립 | E83: 계약1 | F83: 1. 수자원에 대한 데이터기반 관리 및 연구 역량 향상으로 과학적 정책 수립 및 이행 | G83: 1.1. 제공된 통합수자원관리 컨설팅 | H83: 1.1.1. 지하수 통합관리 마스터플랜 수립 | I83: 계약1 | J83: 전문가 파견 | K83: 인건비관련 | M83: 0 | N83: 19706084.59 | O83: 2026 | P83: Q3 | Q83: 2029 | R83: Q2 | S83: 2027 | T83: Q1 | U83: 1189.980954 | V83: 1642173.716 | W83: 0.1189980954 | X83: 1.642173716 | Y83: 양식2 | Z83: 1380 | AA83: 1 | AB83: KRW | AC83: 19706084.59 | AD83: x | AE83: 1 | AF83: 식 | AO83: 지하수/PL | AP83: 2급 | AQ83: 일반 | AR83: 국외 | AS83: 14 | AT83: 1.166666667 | AU83: 국외(6회차) : 지하수 조사(MP) 총괄
A84: 2026-00048 | B84: 1. 수자원에 대한 데이터기반 관리 및 연구 역량 향상으로 과학적 정책 수립 및 이행 | C84: 1.1. 제공된 통합수자원관리 컨설팅 | D84: 1.1.1. 지하수 통합관리 마스터플랜 수립 | E84: 계약1 | F84: 1. 수자원에 대한 데이터기반 관리 및 연구 역량 향상으로 과학적 정책 수립 및 이행 | G84: 1.1. 제공된 통합수자원관리 컨설팅 | H84: 1.1.1. 지하수 통합관리 마스터플랜 수립 | I84: 계약1 | J84: 전문가 파견 | K84: 인건비관련 | M84: 0 | N84: 19706084.59 | O84: 2026 | P84: Q3 | Q84: 2029 | R84: Q2 | S84: 2027 | T84: Q1 | U84: 1189.980954 | V84: 1642173.716 | W84: 0.1189980954 | X84: 1.642173716 | Y84: 양식2 | Z84: 1380 | AA84: 1 | AB84: KRW | AC84: 19706084.59 | AD84: x | AE84: 1 | AF84: 식 | AO84: 지하수/PL | AP84: 2급 | AQ84: 일반 | AR84: 국외 | AS84: 14 | AT84: 1.166666667 | AU84: 국외(7회차) : 지하수 조사(MP) 총괄
A85: 2026-00048 | B85: 1. 수자원에 대한 데이터기반 관리 및 연구 역량 향상으로 과학적 정책 수립 및 이행 | C85: 1.1. 제공된 통합수자원관리 컨설팅 | D85: 1.1.1. 지하수 통합관리 마스터플랜 수립 | E85: 계약1 | F85: 1. 수자원에 대한 데이터기반 관리 및 연구 역량 향상으로 과학적 정책 수립 및 이행 | G85: 1.1. 제공된 통합수자원관리 컨설팅 | H85: 1.1.1. 지하수 통합관리 마스터플랜 수립 | I85: 계약1 | J85: 전문가 파견 | K85: 인건비관련 | M85: 0 | N85: 19706084.59 | O85: 2026 | P85: Q3 | Q85: 2029 | R85: Q2 | S85: 2027 | T85: Q1 | U85: 1189.980954 | V85: 1642173.716 | W85: 0.1189980954 | X85: 1.642173716 | Y85: 양식2 | Z85: 1380 | AA85: 1 | AB85: KRW | AC85: 19706084.59 | AD85: x | AE85: 1 | AF85: 식 | AO85: 지하수/PL | AP85: 2급 | AQ85: 일반 | AR85: 국외 | AS85: 14 | AT85: 1.166666667 | AU85: 국외(8회차) : 지하수 조사(MP) 총괄
A86: 2026-00048 | B86: 1. 수자원에 대한 데이터기반 관리 및 연구 역량 향상으로 과학적 정책 수립 및 이행 | C86: 1.1. 제공된 통합수자원관리 컨설팅 | D86: 1.1.1. 지하수 통합관리 마스터플랜 수립 | E86: 계약1 | F86: 1. 수자원에 대한 데이터기반 관리 및 연구 역량 향상으로 과학적 정책 수립 및 이행 | G86: 1.1. 제공된 통합수자원관리 컨설팅 | H86: 1.1.1. 지하수 통합관리 마스터플랜 수립 | I86: 계약1 | J86: 전문가 파견 | K86: 인건비관련 | M86: 0 | N86: 54684000 | O86: 2026 | P86: Q3 | Q86: 2029 | R86: Q2 | S86: 2027 | T86: Q1 | U86: 3302.173913 | V86: 4557000 | W86: 0.3302173913 | X86: 4.557 | Y86: 양식2 | Z86: 1380 | AA86: 1 | AB86: KRW | AC86: 54684000 | AD86: x | AE86: 1 | AF86: 식 | AO86: 지하수/함양량 및 개발가능량 | AP86: 2급 | AQ86: 일반 | AR86: 국내 | AS86: 60 | AT86: 5 | AU86: 국내
A87: 2026-00048 | B87: 1. 수자원에 대한 데이터기반 관리 및 연구 역량 향상으로 과학적 정책 수립 및 이행 | C87: 1.1. 제공된 통합수자원관리 컨설팅 | D87: 1.1.1. 지하수 통합관리 마스터플랜 수립 | E87: 계약1 | F87: 1. 수자원에 대한 데이터기반 관리 및 연구 역량 향상으로 과학적 정책 수립 및 이행 | G87: 1.1. 제공된 통합수자원관리 컨설팅 | H87: 1.1.1. 지하수 통합관리 마스터플랜 수립 | I87: 계약1 | J87: 전문가 파견 | K87: 인건비관련 | M87: 0 | N87: 19706084.59 | O87: 2026 | P87: Q3 | Q87: 2029 | R87: Q2 | S87: 2027 | T87: Q1 | U87: 1189.980954 | V87: 1642173.716 | W87: 0.1189980954 | X87: 1.642173716 | Y87: 양식2 | Z87: 1380 | AA87: 1 | AB87: KRW | AC87: 19706084.59 | AD87: x | AE87: 1 | AF87: 식 | AO87: 지하수/함양량 및 개발가능량 | AP87: 2급 | AQ87: 일반 | AR87: 국외 | AS87: 14 | AT87: 1.166666667 | AU87: 국외(1회차) : 착수조사
A88: 2026-00048 | B88: 1. 수자원에 대한 데이터기반 관리 및 연구 역량 향상으로 과학적 정책 수립 및 이행 | C88: 1.1. 제공된 통합수자원관리 컨설팅 | D88: 1.1.1. 지하수 통합관리 마스터플랜 수립 | E88: 계약1 | F88: 1. 수자원에 대한 데이터기반 관리 및 연구 역량 향상으로 과학적 정책 수립 및 이행 | G88: 1.1. 제공된 통합수자원관리 컨설팅 | H88: 1.1.1. 지하수 통합관리 마스터플랜 수립 | I88: 계약1 | J88: 전문가 파견 | K88: 인건비관련 | M88: 0 | N88: 19706084.59 | O88: 2026 | P88: Q3 | Q88: 2029 | R88: Q2 | S88: 2027 | T88: Q1 | U88: 1189.980954 | V88: 1642173.716 | W88: 0.1189980954 | X88: 1.642173716 | Y88: 양식2 | Z88: 1380 | AA88: 1 | AB88: KRW | AC88: 19706084.59 | AD88: x | AE88: 1 | AF88: 식 | AO88: 지하수/함양량 및 개발가능량 | AP88: 2급 | AQ88: 일반 | AR88: 국외 | AS88: 14 | AT88: 1.166666667 | AU88: 국외(2회차) : 현황조사
A89: 2026-00048 | B89: 1. 수자원에 대한 데이터기반 관리 및 연구 역량 향상으로 과학적 정책 수립 및 이행 | C89: 1.1. 제공된 통합수자원관리 컨설팅 | D89: 1.1.1. 지하수 통합관리 마스터플랜 수립 | E89: 계약1 | F89: 1. 수자원에 대한 데이터기반 관리 및 연구 역량 향상으로 과학적 정책 수립 및 이행 | G89: 1.1. 제공된 통합수자원관리 컨설팅 | H89: 1.1.1. 지하수 통합관리 마스터플랜 수립 | I89: 계약1 | J89: 전문가 파견 | K89: 인건비관련 | M89: 0 | N89: 19706084.59 | O89: 2026 | P89: Q3 | Q89: 2029 | R89: Q2 | S89: 2027 | T89: Q1 | U89: 1189.980954 | V89: 1642173.716 | W89: 0.1189980954 | X89: 1.642173716 | Y89: 양식2 | Z89: 1380 | AA89: 1 | AB89: KRW | AC89: 19706084.59 | AD89: x | AE89: 1 | AF89: 식 | AO89: 지하수/함양량 및 개발가능량 | AP89: 2급 | AQ89: 일반 | AR89: 국외 | AS89: 14 | AT89: 1.166666667 | AU89: 국외(3회차) : 중간보고
A90: 2026-00048 | B90: 1. 수자원에 대한 데이터기반 관리 및 연구 역량 향상으로 과학적 정책 수립 및 이행 | C90: 1.1. 제공된 통합수자원관리 컨설팅 | D90: 1.1.1. 지하수 통합관리 마스터플랜 수립 | E90: 계약1 | F90: 1. 수자원에 대한 데이터기반 관리 및 연구 역량 향상으로 과학적 정책 수립 및 이행 | G90: 1.1. 제공된 통합수자원관리 컨설팅 | H90: 1.1.1. 지하수 통합관리 마스터플랜 수립 | I90: 계약1 | J90: 전문가 파견 | K90: 인건비관련 | M90: 0 | N90: 19706084.59 | O90: 2026 | P90: Q3 | Q90: 2029 | R90: Q2 | S90: 2027 | T90: Q1 | U90: 1189.980954 | V90: 1642173.716 | W90: 0.1189980954 | X90: 1.642173716 | Y90: 양식2 | Z90: 1380 | AA90: 1 | AB90: KRW | AC90: 19706084.59 | AD90: x | AE90: 1 | AF90: 식 | AO90: 지하수/함양량 및 개발가능량 | AP90: 2급 | AQ90: 일반 | AR90: 국외 | AS90: 14 | AT90: 1.166666667 | AU90: 국외(4회차) : 보완조사
A91: 2026-00048 | B91: 1. 수자원에 대한 데이터기반 관리 및 연구 역량 향상으로 과학적 정책 수립 및 이행 | C91: 1.1. 제공된 통합수자원관리 컨설팅 | D91: 1.1.1. 지하수 통합관리 마스터플랜 수립 | E91: 계약1 | F91: 1. 수자원에 대한 데이터기반 관리 및 연구 역량 향상으로 과학적 정책 수립 및 이행 | G91: 1.1. 제공된 통합수자원관리 컨설팅 | H91: 1.1.1. 지하수 통합관리 마스터플랜 수립 | I91: 계약1 | J91: 전문가 파견 | K91: 인건비관련 | M91: 0 | N91: 19706084.59 | O91: 2026 | P91: Q3 | Q91: 2029 | R91: Q2 | S91: 2027 | T91: Q1 | U91: 1189.980954 | V91: 1642173.716 | W91: 0.1189980954 | X91: 1.642173716 | Y91: 양식2 | Z91: 1380 | AA91: 1 | AB91: KRW | AC91: 19706084.59 | AD91: x | AE91: 1 | AF91: 식 | AO91: 지하수/함양량 및 개발가능량 | AP91: 2급 | AQ91: 일반 | AR91: 국외 | AS91: 14 | AT91: 1.166666667 | AU91: 국외(5회차) : 최종안보고
A92: 2026-00048 | B92: 1. 수자원에 대한 데이터기반 관리 및 연구 역량 향상으로 과학적 정책 수립 및 이행 | C92: 1.1. 제공된 통합수자원관리 컨설팅 | D92: 1.1.1. 지하수 통합관리 마스터플랜 수립 | E92: 계약1 | F92: 1. 수자원에 대한 데이터기반 관리 및 연구 역량 향상으로 과학적 정책 수립 및 이행 | G92: 1.1. 제공된 통합수자원관리 컨설팅 | H92: 1.1.1. 지하수 통합관리 마스터플랜 수립 | I92: 계약1 | J92: 전문가 파견 | K92: 인건비관련 | M92: 0 | N92: 19706084.59 | O92: 2026 | P92: Q3 | Q92: 2029 | R92: Q2 | S92: 2027 | T92: Q1 | U92: 1189.980954 | V92: 1642173.716 | W92: 0.1189980954 | X92: 1.642173716 | Y92: 양식2 | Z92: 1380 | AA92: 1 | AB92: KRW | AC92: 19706084.59 | AD92: x | AE92: 1 | AF92: 식 | AO92: 지하수/함양량 및 개발가능량 | AP92: 2급 | AQ92: 일반 | AR92: 국외 | AS92: 14 | AT92: 1.166666667 | AU92: 국외(6회차) : 보완 및 최종보고
A93: 2026-00048 | B93: 1. 수자원에 대한 데이터기반 관리 및 연구 역량 향상으로 과학적 정책 수립 및 이행 | C93: 1.1. 제공된 통합수자원관리 컨설팅 | D93: 1.1.1. 지하수 통합관리 마스터플랜 수립 | E93: 계약1 | F93: 1. 수자원에 대한 데이터기반 관리 및 연구 역량 향상으로 과학적 정책 수립 및 이행 | G93: 1.1. 제공된 통합수자원관리 컨설팅 | H93: 1.1.1. 지하수 통합관리 마스터플랜 수립 | I93: 계약1 | J93: 전문가 파견 | K93: 인건비관련 | M93: 0 | N93: 38220000 | O93: 2026 | P93: Q3 | Q93: 2029 | R93: Q2 | S93: 2027 | T93: Q1 | U93: 2307.971014 | V93: 3185000 | W93: 0.2307971014 | X93: 3.185 | Y93: 양식2 | Z93: 1380 | AA93: 1 | AB93: KRW | AC93: 38220000 | AD93: x | AE93: 1 | AF93: 식 | AO93: 지하수/조사 및 개발 | AP93: 3급 | AQ93: 일반 | AR93: 국내 | AS93: 50 | AT93: 4.166666667 | AU93: 국내
A94: 2026-00048 | B94: 1. 수자원에 대한 데이터기반 관리 및 연구 역량 향상으로 과학적 정책 수립 및 이행 | C94: 1.1. 제공된 통합수자원관리 컨설팅 | D94: 1.1.1. 지하수 통합관리 마스터플랜 수립 | E94: 계약1 | F94: 1. 수자원에 대한 데이터기반 관리 및 연구 역량 향상으로 과학적 정책 수립 및 이행 | G94: 1.1. 제공된 통합수자원관리 컨설팅 | H94: 1.1.1. 지하수 통합관리 마스터플랜 수립 | I94: 계약1 | J94: 전문가 파견 | K94: 인건비관련 | M94: 0 | N94: 16799264.59 | O94: 2026 | P94: Q3 | Q94: 2029 | R94: Q2 | S94: 2027 | T94: Q1 | U94: 1014.448345 | V94: 1399938.716 | W94: 0.1014448345 | X94: 1.399938716 | Y94: 양식2 | Z94: 1380 | AA94: 1 | AB94: KRW | AC94: 16799264.59 | AD94: x | AE94: 1 | AF94: 식 | AO94: 지하수/조사 및 개발 | AP94: 3급 | AQ94: 일반 | AR94: 국외 | AS94: 14 | AT94: 1.166666667 | AU94: 국외(1회차) : 착수조사
A95: 2026-00048 | B95: 1. 수자원에 대한 데이터기반 관리 및 연구 역량 향상으로 과학적 정책 수립 및 이행 | C95: 1.1. 제공된 통합수자원관리 컨설팅 | D95: 1.1.1. 지하수 통합관리 마스터플랜 수립 | E95: 계약1 | F95: 1. 수자원에 대한 데이터기반 관리 및 연구 역량 향상으로 과학적 정책 수립 및 이행 | G95: 1.1. 제공된 통합수자원관리 컨설팅 | H95: 1.1.1. 지하수 통합관리 마스터플랜 수립 | I95: 계약1 | J95: 전문가 파견 | K95: 인건비관련 | M95: 0 | N95: 16799264.59 | O95: 2026 | P95: Q3 | Q95: 2029 | R95: Q2 | S95: 2027 | T95: Q1 | U95: 1014.448345 | V95: 1399938.716 | W95: 0.1014448345 | X95: 1.399938716 | Y95: 양식2 | Z95: 1380 | AA95: 1 | AB95: KRW | AC95: 16799264.59 | AD95: x | AE95: 1 | AF95: 식 | AO95: 지하수/조사 및 개발 | AP95: 3급 | AQ95: 일반 | AR95: 국외 | AS95: 14 | AT95: 1.166666667 | AU95: 국외(2회차) : 현황조사
A96: 2026-00048 | B96: 1. 수자원에 대한 데이터기반 관리 및 연구 역량 향상으로 과학적 정책 수립 및 이행 | C96: 1.1. 제공된 통합수자원관리 컨설팅 | D96: 1.1.1. 지하수 통합관리 마스터플랜 수립 | E96: 계약1 | F96: 1. 수자원에 대한 데이터기반 관리 및 연구 역량 향상으로 과학적 정책 수립 및 이행 | G96: 1.1. 제공된 통합수자원관리 컨설팅 | H96: 1.1.1. 지하수 통합관리 마스터플랜 수립 | I96: 계약1 | J96: 전문가 파견 | K96: 인건비관련 | M96: 0 | N96: 16799264.59 | O96: 2026 | P96: Q3 | Q96: 2029 | R96: Q2 | S96: 2027 | T96: Q1 | U96: 1014.448345 | V96: 1399938.716 | W96: 0.1014448345 | X96: 1.399938716 | Y96: 양식2 | Z96: 1380 | AA96: 1 | AB96: KRW | AC96: 16799264.59 | AD96: x | AE96: 1 | AF96: 식 | AO96: 지하수/조사 및 개발 | AP96: 3급 | AQ96: 일반 | AR96: 국외 | AS96: 14 | AT96: 1.166666667 | AU96: 국외(3회차) : 중간보고
A97: 2026-00048 | B97: 1. 수자원에 대한 데이터기반 관리 및 연구 역량 향상으로 과학적 정책 수립 및 이행 | C97: 1.1. 제공된 통합수자원관리 컨설팅 | D97: 1.1.1. 지하수 통합관리 마스터플랜 수립 | E97: 계약1 | F97: 1. 수자원에 대한 데이터기반 관리 및 연구 역량 향상으로 과학적 정책 수립 및 이행 | G97: 1.1. 제공된 통합수자원관리 컨설팅 | H97: 1.1.1. 지하수 통합관리 마스터플랜 수립 | I97: 계약1 | J97: 전문가 파견 | K97: 인건비관련 | M97: 0 | N97: 16799264.59 | O97: 2026 | P97: Q3 | Q97: 2029 | R97: Q2 | S97: 2027 | T97: Q1 | U97: 1014.448345 | V97: 1399938.716 | W97: 0.1014448345 | X97: 1.399938716 | Y97: 양식2 | Z97: 1380 | AA97: 1 | AB97: KRW | AC97: 16799264.59 | AD97: x | AE97: 1 | AF97: 식 | AO97: 지하수/조사 및 개발 | AP97: 3급 | AQ97: 일반 | AR97: 국외 | AS97: 14 | AT97: 1.166666667 | AU97: 국외(4회차) : 보완조사
A98: 2026-00048 | B98: 1. 수자원에 대한 데이터기반 관리 및 연구 역량 향상으로 과학적 정책 수립 및 이행 | C98: 1.1. 제공된 통합수자원관리 컨설팅 | D98: 1.1.1. 지하수 통합관리 마스터플랜 수립 | E98: 계약1 | F98: 1. 수자원에 대한 데이터기반 관리 및 연구 역량 향상으로 과학적 정책 수립 및 이행 | G98: 1.1. 제공된 통합수자원관리 컨설팅 | H98: 1.1.1. 지하수 통합관리 마스터플랜 수립 | I98: 계약1 | J98: 전문가 파견 | K98: 인건비관련 | M98: 0 | N98: 16799264.59 | O98: 2026 | P98: Q3 | Q98: 2029 | R98: Q2 | S98: 2027 | T98: Q1 | U98: 1014.448345 | V98: 1399938.716 | W98: 0.1014448345 | X98: 1.399938716 | Y98: 양식2 | Z98: 1380 | AA98: 1 | AB98: KRW | AC98: 16799264.59 | AD98: x | AE98: 1 | AF98: 식 | AO98: 지하수/조사 및 개발 | AP98: 3급 | AQ98: 일반 | AR98: 국외 | AS98: 14 | AT98: 1.166666667 | AU98: 국외(5회차) : 최종안보고
A99: 2026-00048 | B99: 1. 수자원에 대한 데이터기반 관리 및 연구 역량 향상으로 과학적 정책 수립 및 이행 | C99: 1.1. 제공된 통합수자원관리 컨설팅 | D99: 1.1.1. 지하수 통합관리 마스터플랜 수립 | E99: 계약1 | F99: 1. 수자원에 대한 데이터기반 관리 및 연구 역량 향상으로 과학적 정책 수립 및 이행 | G99: 1.1. 제공된 통합수자원관리 컨설팅 | H99: 1.1.1. 지하수 통합관리 마스터플랜 수립 | I99: 계약1 | J99: 전문가 파견 | K99: 인건비관련 | M99: 0 | N99: 38220000 | O99: 2026 | P99: Q3 | Q99: 2029 | R99: Q2 | S99: 2027 | T99: Q1 | U99: 2307.971014 | V99: 3185000 | W99: 0.2307971014 | X99: 3.185 | Y99: 양식2 | Z99: 1380 | AA99: 1 | AB99: KRW | AC99: 38220000 | AD99: x | AE99: 1 | AF99: 식 | AO99: 지하수/관측 및 정보화 | AP99: 3급 | AQ99: 일반 | AR99: 국내 | AS99: 50 | AT99: 4.166666667 | AU99: 국내
A100: 2026-00048 | B100: 1. 수자원에 대한 데이터기반 관리 및 연구 역량 향상으로 과학적 정책 수립 및 이행 | C100: 1.1. 제공된 통합수자원관리 컨설팅 | D100: 1.1.1. 지하수 통합관리 마스터플랜 수립 | E100: 계약1 | F100: 1. 수자원에 대한 데이터기반 관리 및 연구 역량 향상으로 과학적 정책 수립 및 이행 | G100: 1.1. 제공된 통합수자원관리 컨설팅 | H100: 1.1.1. 지하수 통합관리 마스터플랜 수립 | I100: 계약1 | J100: 전문가 파견 | K100: 인건비관련 | M100: 0 | N100: 16799264.59 | O100: 2026 | P100: Q3 | Q100: 2029 | R100: Q2 | S100: 2027 | T100: Q1 | U100: 1014.448345 | V100: 1399938.716 | W100: 0.1014448345 | X100: 1.399938716 | Y100: 양식2 | Z100: 1380 | AA100: 1 | AB100: KRW | AC100: 16799264.59 | AD100: x | AE100: 1 | AF100: 식 | AO100: 지하수/관측 및 정보화 | AP100: 3급 | AQ100: 일반 | AR100: 국외 | AS100: 14 | AT100: 1.166666667 | AU100: 국외(1회차) : 착수조사
A101: 2026-00048 | B101: 1. 수자원에 대한 데이터기반 관리 및 연구 역량 향상으로 과학적 정책 수립 및 이행 | C101: 1.1. 제공된 통합수자원관리 컨설팅 | D101: 1.1.1. 지하수 통합관리 마스터플랜 수립 | E101: 계약1 | F101: 1. 수자원에 대한 데이터기반 관리 및 연구 역량 향상으로 과학적 정책 수립 및 이행 | G101: 1.1. 제공된 통합수자원관리 컨설팅 | H101: 1.1.1. 지하수 통합관리 마스터플랜 수립 | I101: 계약1 | J101: 전문가 파견 | K101: 인건비관련 | M101: 0 | N101: 16799264.59 | O101: 2026 | P101: Q3 | Q101: 2029 | R101: Q2 | S101: 2027 | T101: Q1 | U101: 1014.448345 | V101: 1399938.716 | W101: 0.1014448345 | X101: 1.399938716 | Y101: 양식2 | Z101: 1380 | AA101: 1 | AB101: KRW | AC101: 16799264.59 | AD101: x | AE101: 1 | AF101: 식 | AO101: 지하수/관측 및 정보화 | AP101: 3급 | AQ101: 일반 | AR101: 국외 | AS101: 14 | AT101: 1.166666667 | AU101: 국외(2회차) : 현황조사
A102: 2026-00048 | B102: 1. 수자원에 대한 데이터기반 관리 및 연구 역량 향상으로 과학적 정책 수립 및 이행 | C102: 1.1. 제공된 통합수자원관리 컨설팅 | D102: 1.1.1. 지하수 통합관리 마스터플랜 수립 | E102: 계약1 | F102: 1. 수자원에 대한 데이터기반 관리 및 연구 역량 향상으로 과학적 정책 수립 및 이행 | G102: 1.1. 제공된 통합수자원관리 컨설팅 | H102: 1.1.1. 지하수 통합관리 마스터플랜 수립 | I102: 계약1 | J102: 전문가 파견 | K102: 인건비관련 | M102: 0 | N102: 16799264.59 | O102: 2026 | P102: Q3 | Q102: 2029 | R102: Q2 | S102: 2027 | T102: Q1 | U102: 1014.448345 | V102: 1399938.716 | W102: 0.1014448345 | X102: 1.399938716 | Y102: 양식2 | Z102: 1380 | AA102: 1 | AB102: KRW | AC102: 16799264.59 | AD102: x | AE102: 1 | AF102: 식 | AO102: 지하수/관측 및 정보화 | AP102: 3급 | AQ102: 일반 | AR102: 국외 | AS102: 14 | AT102: 1.166666667 | AU102: 국외(3회차) : 중간보고
A103: 2026-00048 | B103: 1. 수자원에 대한 데이터기반 관리 및 연구 역량 향상으로 과학적 정책 수립 및 이행 | C103: 1.1. 제공된 통합수자원관리 컨설팅 | D103: 1.1.1. 지하수 통합관리 마스터플랜 수립 | E103: 계약1 | F103: 1. 수자원에 대한 데이터기반 관리 및 연구 역량 향상으로 과학적 정책 수립 및 이행 | G103: 1.1. 제공된 통합수자원관리 컨설팅 | H103: 1.1.1. 지하수 통합관리 마스터플랜 수립 | I103: 계약1 | J103: 전문가 파견 | K103: 인건비관련 | M103: 0 | N103: 16799264.59 | O103: 2026 | P103: Q3 | Q103: 2029 | R103: Q2 | S103: 2027 | T103: Q1 | U103: 1014.448345 | V103: 1399938.716 | W103: 0.1014448345 | X103: 1.399938716 | Y103: 양식2 | Z103: 1380 | AA103: 1 | AB103: KRW | AC103: 16799264.59 | AD103: x | AE103: 1 | AF103: 식 | AO103: 지하수/관측 및 정보화 | AP103: 3급 | AQ103: 일반 | AR103: 국외 | AS103: 14 | AT103: 1.166666667 | AU103: 국외(4회차) : 보완조사
A104: 2026-00048 | B104: 1. 수자원에 대한 데이터기반 관리 및 연구 역량 향상으로 과학적 정책 수립 및 이행 | C104: 1.1. 제공된 통합수자원관리 컨설팅 | D104: 1.1.1. 지하수 통합관리 마스터플랜 수립 | E104: 계약1 | F104: 1. 수자원에 대한 데이터기반 관리 및 연구 역량 향상으로 과학적 정책 수립 및 이행 | G104: 1.1. 제공된 통합수자원관리 컨설팅 | H104: 1.1.1. 지하수 통합관리 마스터플랜 수립 | I104: 계약1 | J104: 전문가 파견 | K104: 인건비관련 | M104: 0 | N104: 16799264.59 | O104: 2026 | P104: Q3 | Q104: 2029 | R104: Q2 | S104: 2027 | T104: Q1 | U104: 1014.448345 | V104: 1399938.716 | W104: 0.1014448345 | X104: 1.399938716 | Y104: 양식2 | Z104: 1380 | AA104: 1 | AB104: KRW | AC104: 16799264.59 | AD104: x | AE104: 1 | AF104: 식 | AO104: 지하수/관측 및 정보화 | AP104: 3급 | AQ104: 일반 | AR104: 국외 | AS104: 14 | AT104: 1.166666667 | AU104: 국외(5회차) : 최종안보고
A105: 2026-00048 | B105: 1. 수자원에 대한 데이터기반 관리 및 연구 역량 향상으로 과학적 정책 수립 및 이행 | C105: 1.1. 제공된 통합수자원관리 컨설팅 | D105: 1.1.1. 지하수 통합관리 마스터플랜 수립 | E105: 계약1 | F105: 1. 수자원에 대한 데이터기반 관리 및 연구 역량 향상으로 과학적 정책 수립 및 이행 | G105: 1.1. 제공된 통합수자원관리 컨설팅 | H105: 1.1.1. 지하수 통합관리 마스터플랜 수립 | I105: 계약1 | J105: 전문가 파견 | K105: 인건비관련 | M105: 0 | N105: 27342000 | O105: 2026 | P105: Q3 | Q105: 2029 | R105: Q2 | S105: 2027 | T105: Q2 | U105: 1651.086957 | V105: 2278500 | W105: 0.1651086957 | X105: 2.2785 | Y105: 양식2 | Z105: 1380 | AA105: 1 | AB105: KRW | AC105: 27342000 | AD105: x | AE105: 1 | AF105: 식 | AO105: 수자원/법제도 | AP105: 2급 | AQ105: 주요 | AR105: 국내 | AS105: 30 | AT105: 2.5 | AU105: 국내
A106: 2026-00048 | B106: 1. 수자원에 대한 데이터기반 관리 및 연구 역량 향상으로 과학적 정책 수립 및 이행 | C106: 1.1. 제공된 통합수자원관리 컨설팅 | D106: 1.1.1. 지하수 통합관리 마스터플랜 수립 | E106: 계약1 | F106: 1. 수자원에 대한 데이터기반 관리 및 연구 역량 향상으로 과학적 정책 수립 및 이행 | G106: 1.1. 제공된 통합수자원관리 컨설팅 | H106: 1.1.1. 지하수 통합관리 마스터플랜 수립 | I106: 계약1 | J106: 전문가 파견 | K106: 인건비관련 | M106: 0 | N106: 19706084.59 | O106: 2026 | P106: Q3 | Q106: 2029 | R106: Q2 | S106: 2027 | T106: Q2 | U106: 1189.980954 | V106: 1642173.716 | W106: 0.1189980954 | X106: 1.642173716 | Y106: 양식2 | Z106: 1380 | AA106: 1 | AB106: KRW | AC106: 19706084.59 | AD106: x | AE106: 1 | AF106: 식 | AO106: 수자원/법제도 | AP106: 2급 | AQ106: 주요 | AR106: 국외 | AS106: 14 | AT106: 1.166666667 | AU106: 국외(1회차) : 지하수 법제도 초안
A107: 2026-00048 | B107: 1. 수자원에 대한 데이터기반 관리 및 연구 역량 향상으로 과학적 정책 수립 및 이행 | C107: 1.1. 제공된 통합수자원관리 컨설팅 | D107: 1.1.1. 지하수 통합관리 마스터플랜 수립 | E107: 계약1 | F107: 1. 수자원에 대한 데이터기반 관리 및 연구 역량 향상으로 과학적 정책 수립 및 이행 | G107: 1.1. 제공된 통합수자원관리 컨설팅 | H107: 1.1.1. 지하수 통합관리 마스터플랜 수립 | I107: 계약1 | J107: 전문가 파견 | K107: 인건비관련 | M107: 0 | N107: 19706084.59 | O107: 2026 | P107: Q3 | Q107: 2029 | R107: Q2 | S107: 2027 | T107: Q2 | U107: 1189.980954 | V107: 1642173.716 | W107: 0.1189980954 | X107: 1.642173716 | Y107: 양식2 | Z107: 1380 | AA107: 1 | AB107: KRW | AC107: 19706084.59 | AD107: x | AE107: 1 | AF107: 식 | AO107: 수자원/법제도 | AP107: 2급 | AQ107: 주요 | AR107: 국외 | AS107: 14 | AT107: 1.166666667 | AU107: 국외(2회차) : 지하수 관측(MP) 총괄
A108: 2026-00048 | B108: 1. 수자원에 대한 데이터기반 관리 및 연구 역량 향상으로 과학적 정책 수립 및 이행 | C108: 1.1. 제공된 통합수자원관리 컨설팅 | D108: 1.1.1. 지하수 통합관리 마스터플랜 수립 | E108: 계약1 | F108: 1. 수자원에 대한 데이터기반 관리 및 연구 역량 향상으로 과학적 정책 수립 및 이행 | G108: 1.1. 제공된 통합수자원관리 컨설팅 | H108: 1.1.1. 지하수 통합관리 마스터플랜 수립 | I108: 계약1 | J108: 전문가 파견 | K108: 인건비관련 | M108: 0 | N108: 19706084.59 | O108: 2026 | P108: Q3 | Q108: 2029 | R108: Q2 | S108: 2027 | T108: Q2 | U108: 1189.980954 | V108: 1642173.716 | W108: 0.1189980954 | X108: 1.642173716 | Y108: 양식2 | Z108: 1380 | AA108: 1 | AB108: KRW | AC108: 19706084.59 | AD108: x | AE108: 1 | AF108: 식 | AO108: 수자원/법제도 | AP108: 2급 | AQ108: 주요 | AR108: 국외 | AS108: 14 | AT108: 1.166666667 | AU108: 국외(3회차) : 지하수 법제도 확정
A109: 2026-00048 | B109: 1. 수자원에 대한 데이터기반 관리 및 연구 역량 향상으로 과학적 정책 수립 및 이행 | C109: 1.1. 제공된 통합수자원관리 컨설팅 | D109: 1.1.1. 지하수 통합관리 마스터플랜 수립 | E109: 계약1 | F109: 1. 수자원에 대한 데이터기반 관리 및 연구 역량 향상으로 과학적 정책 수립 및 이행 | G109: 1.1. 제공된 통합수자원관리 컨설팅 | H109: 1.1.1. 지하수 통합관리 마스터플랜 수립 | I109: 계약1 | J109: 전문가 파견 | K109: 인건비관련 | M109: 0 | N109: 72912000 | O109: 2026 | P109: Q3 | Q109: 2029 | R109: Q2 | S109: 2027 | T109: Q2 | U109: 4402.898551 | V109: 6076000 | W109: 0.4402898551 | X109: 6.076 | Y109: 양식2 | Z109: 1380 | AA109: 1 | AB109: KRW | AC109: 72912000 | AD109: x | AE109: 1 | AF109: 식 | AO109: 지하수/PL | AP109: 2급 | AQ109: 일반 | AR109: 국내 | AS109: 80 | AT109: 6.666666667 | AU109: 국내
A110: 2026-00048 | B110: 1. 수자원에 대한 데이터기반 관리 및 연구 역량 향상으로 과학적 정책 수립 및 이행 | C110: 1.1. 제공된 통합수자원관리 컨설팅 | D110: 1.1.1. 지하수 통합관리 마스터플랜 수립 | E110: 계약1 | F110: 1. 수자원에 대한 데이터기반 관리 및 연구 역량 향상으로 과학적 정책 수립 및 이행 | G110: 1.1. 제공된 통합수자원관리 컨설팅 | H110: 1.1.1. 지하수 통합관리 마스터플랜 수립 | I110: 계약1 | J110: 전문가 파견 | K110: 인건비관련 | M110: 0 | N110: 19706084.59 | O110: 2026 | P110: Q3 | Q110: 2029 | R110: Q2 | S110: 2027 | T110: Q2 | U110: 1189.980954 | V110: 1642173.716 | W110: 0.1189980954 | X110: 1.642173716 | Y110: 양식2 | Z110: 1380 | AA110: 1 | AB110: KRW | AC110: 19706084.59 | AD110: x | AE110: 1 | AF110: 식 | AO110: 지하수/PL | AP110: 2급 | AQ110: 일반 | AR110: 국외 | AS110: 14 | AT110: 1.166666667 | AU110: 국외(1회차) : 지하수 조사(MP) 총괄
A111: 2026-00048 | B111: 1. 수자원에 대한 데이터기반 관리 및 연구 역량 향상으로 과학적 정책 수립 및 이행 | C111: 1.1. 제공된 통합수자원관리 컨설팅 | D111: 1.1.1. 지하수 통합관리 마스터플랜 수립 | E111: 계약1 | F111: 1. 수자원에 대한 데이터기반 관리 및 연구 역량 향상으로 과학적 정책 수립 및 이행 | G111: 1.1. 제공된 통합수자원관리 컨설팅 | H111: 1.1.1. 지하수 통합관리 마스터플랜 수립 | I111: 계약1 | J111: 전문가 파견 | K111: 인건비관련 | M111: 0 | N111: 19706084.59 | O111: 2026 | P111: Q3 | Q111: 2029 | R111: Q2 | S111: 2027 | T111: Q2 | U111: 1189.980954 | V111: 1642173.716 | W111: 0.1189980954 | X111: 1.642173716 | Y111: 양식2 | Z111: 1380 | AA111: 1 | AB111: KRW | AC111: 19706084.59 | AD111: x | AE111: 1 | AF111: 식 | AO111: 지하수/PL | AP111: 2급 | AQ111: 일반 | AR111: 국외 | AS111: 14 | AT111: 1.166666667 | AU111: 국외(2회차) : 지하수 조사(MP) 총괄
A112: 2026-00048 | B112: 1. 수자원에 대한 데이터기반 관리 및 연구 역량 향상으로 과학적 정책 수립 및 이행 | C112: 1.1. 제공된 통합수자원관리 컨설팅 | D112: 1.1.1. 지하수 통합관리 마스터플랜 수립 | E112: 계약1 | F112: 1. 수자원에 대한 데이터기반 관리 및 연구 역량 향상으로 과학적 정책 수립 및 이행 | G112: 1.1. 제공된 통합수자원관리 컨설팅 | H112: 1.1.1. 지하수 통합관리 마스터플랜 수립 | I112: 계약1 | J112: 전문가 파견 | K112: 인건비관련 | M112: 0 | N112: 19706084.59 | O112: 2026 | P112: Q3 | Q112: 2029 | R112: Q2 | S112: 2027 | T112: Q2 | U112: 1189.980954 | V112: 1642173.716 | W112: 0.1189980954 | X112: 1.642173716 | Y112: 양식2 | Z112: 1380 | AA112: 1 | AB112: KRW | AC112: 19706084.59 | AD112: x | AE112: 1 | AF112: 식 | AO112: 지하수/PL | AP112: 2급 | AQ112: 일반 | AR112: 국외 | AS112: 14 | AT112: 1.166666667 | AU112: 국외(3회차) : 지하수 조사(MP) 총괄
A113: 2026-00048 | B113: 1. 수자원에 대한 데이터기반 관리 및 연구 역량 향상으로 과학적 정책 수립 및 이행 | C113: 1.1. 제공된 통합수자원관리 컨설팅 | D113: 1.1.1. 지하수 통합관리 마스터플랜 수립 | E113: 계약1 | F113: 1. 수자원에 대한 데이터기반 관리 및 연구 역량 향상으로 과학적 정책 수립 및 이행 | G113: 1.1. 제공된 통합수자원관리 컨설팅 | H113: 1.1.1. 지하수 통합관리 마스터플랜 수립 | I113: 계약1 | J113: 전문가 파견 | K113: 인건비관련 | M113: 0 | N113: 19706084.59 | O113: 2026 | P113: Q3 | Q113: 2029 | R113: Q2 | S113: 2027 | T113: Q2 | U113: 1189.980954 | V113: 1642173.716 | W113: 0.1189980954 | X113: 1.642173716 | Y113: 양식2 | Z113: 1380 | AA113: 1 | AB113: KRW | AC113: 19706084.59 | AD113: x | AE113: 1 | AF113: 식 | AO113: 지하수/PL | AP113: 2급 | AQ113: 일반 | AR113: 국외 | AS113: 14 | AT113: 1.166666667 | AU113: 국외(4회차) : 지하수 조사(MP) 총괄
A114: 2026-00048 | B114: 1. 수자원에 대한 데이터기반 관리 및 연구 역량 향상으로 과학적 정책 수립 및 이행 | C114: 1.1. 제공된 통합수자원관리 컨설팅 | D114: 1.1.1. 지하수 통합관리 마스터플랜 수립 | E114: 계약1 | F114: 1. 수자원에 대한 데이터기반 관리 및 연구 역량 향상으로 과학적 정책 수립 및 이행 | G114: 1.1. 제공된 통합수자원관리 컨설팅 | H114: 1.1.1. 지하수 통합관리 마스터플랜 수립 | I114: 계약1 | J114: 전문가 파견 | K114: 인건비관련 | M114: 0 | N114: 19706084.59 | O114: 2026 | P114: Q3 | Q114: 2029 | R114: Q2 | S114: 2027 | T114: Q2 | U114: 1189.980954 | V114: 1642173.716 | W114: 0.1189980954 | X114: 1.642173716 | Y114: 양식2 | Z114: 1380 | AA114: 1 | AB114: KRW | AC114: 19706084.59 | AD114: x | AE114: 1 | AF114: 식 | AO114: 지하수/PL | AP114: 2급 | AQ114: 일반 | AR114: 국외 | AS114: 14 | AT114: 1.166666667 | AU114: 국외(5회차) : 지하수 조사(MP) 총괄
A115: 2026-00048 | B115: 1. 수자원에 대한 데이터기반 관리 및 연구 역량 향상으로 과학적 정책 수립 및 이행 | C115: 1.1. 제공된 통합수자원관리 컨설팅 | D115: 1.1.1. 지하수 통합관리 마스터플랜 수립 | E115: 계약1 | F115: 1. 수자원에 대한 데이터기반 관리 및 연구 역량 향상으로 과학적 정책 수립 및 이행 | G115: 1.1. 제공된 통합수자원관리 컨설팅 | H115: 1.1.1. 지하수 통합관리 마스터플랜 수립 | I115: 계약1 | J115: 전문가 파견 | K115: 인건비관련 | M115: 0 | N115: 19706084.59 | O115: 2026 | P115: Q3 | Q115: 2029 | R115: Q2 | S115: 2027 | T115: Q2 | U115: 1189.980954 | V115: 1642173.716 | W115: 0.1189980954 | X115: 1.642173716 | Y115: 양식2 | Z115: 1380 | AA115: 1 | AB115: KRW | AC115: 19706084.59 | AD115: x | AE115: 1 | AF115: 식 | AO115: 지하수/PL | AP115: 2급 | AQ115: 일반 | AR115: 국외 | AS115: 14 | AT115: 1.166666667 | AU115: 국외(6회차) : 지하수 조사(MP) 총괄
A116: 2026-00048 | B116: 1. 수자원에 대한 데이터기반 관리 및 연구 역량 향상으로 과학적 정책 수립 및 이행 | C116: 1.1. 제공된 통합수자원관리 컨설팅 | D116: 1.1.1. 지하수 통합관리 마스터플랜 수립 | E116: 계약1 | F116: 1. 수자원에 대한 데이터기반 관리 및 연구 역량 향상으로 과학적 정책 수립 및 이행 | G116: 1.1. 제공된 통합수자원관리 컨설팅 | H116: 1.1.1. 지하수 통합관리 마스터플랜 수립 | I116: 계약1 | J116: 전문가 파견 | K116: 인건비관련 | M116: 0 | N116: 19706084.59 | O116: 2026 | P116: Q3 | Q116: 2029 | R116: Q2 | S116: 2027 | T116: Q2 | U116: 1189.980954 | V116: 1642173.716 | W116: 0.1189980954 | X116: 1.642173716 | Y116: 양식2 | Z116: 1380 | AA116: 1 | AB116: KRW | AC116: 19706084.59 | AD116: x | AE116: 1 | AF116: 식 | AO116: 지하수/PL | AP116: 2급 | AQ116: 일반 | AR116: 국외 | AS116: 14 | AT116: 1.166666667 | AU116: 국외(7회차) : 지하수 조사(MP) 총괄
A117: 2026-00048 | B117: 1. 수자원에 대한 데이터기반 관리 및 연구 역량 향상으로 과학적 정책 수립 및 이행 | C117: 1.1. 제공된 통합수자원관리 컨설팅 | D117: 1.1.1. 지하수 통합관리 마스터플랜 수립 | E117: 계약1 | F117: 1. 수자원에 대한 데이터기반 관리 및 연구 역량 향상으로 과학적 정책 수립 및 이행 | G117: 1.1. 제공된 통합수자원관리 컨설팅 | H117: 1.1.1. 지하수 통합관리 마스터플랜 수립 | I117: 계약1 | J117: 전문가 파견 | K117: 인건비관련 | M117: 0 | N117: 19706084.59 | O117: 2026 | P117: Q3 | Q117: 2029 | R117: Q2 | S117: 2027 | T117: Q2 | U117: 1189.980954 | V117: 1642173.716 | W117: 0.1189980954 | X117: 1.642173716 | Y117: 양식2 | Z117: 1380 | AA117: 1 | AB117: KRW | AC117: 19706084.59 | AD117: x | AE117: 1 | AF117: 식 | AO117: 지하수/PL | AP117: 2급 | AQ117: 일반 | AR117: 국외 | AS117: 14 | AT117: 1.166666667 | AU117: 국외(8회차) : 지하수 조사(MP) 총괄
A118: 2026-00048 | B118: 1. 수자원에 대한 데이터기반 관리 및 연구 역량 향상으로 과학적 정책 수립 및 이행 | C118: 1.1. 제공된 통합수자원관리 컨설팅 | D118: 1.1.1. 지하수 통합관리 마스터플랜 수립 | E118: 계약1 | F118: 1. 수자원에 대한 데이터기반 관리 및 연구 역량 향상으로 과학적 정책 수립 및 이행 | G118: 1.1. 제공된 통합수자원관리 컨설팅 | H118: 1.1.1. 지하수 통합관리 마스터플랜 수립 | I118: 계약1 | J118: 전문가 파견 | K118: 인건비관련 | M118: 0 | N118: 54684000 | O118: 2026 | P118: Q3 | Q118: 2029 | R118: Q2 | S118: 2027 | T118: Q2 | U118: 3302.173913 | V118: 4557000 | W118: 0.3302173913 | X118: 4.557 | Y118: 양식2 | Z118: 1380 | AA118: 1 | AB118: KRW | AC118: 54684000 | AD118: x | AE118: 1 | AF118: 식 | AO118: 지하수/함양량 및 개발가능량 | AP118: 2급 | AQ118: 일반 | AR118: 국내 | AS118: 60 | AT118: 5 | AU118: 국내
A119: 2026-00048 | B119: 1. 수자원에 대한 데이터기반 관리 및 연구 역량 향상으로 과학적 정책 수립 및 이행 | C119: 1.1. 제공된 통합수자원관리 컨설팅 | D119: 1.1.1. 지하수 통합관리 마스터플랜 수립 | E119: 계약1 | F119: 1. 수자원에 대한 데이터기반 관리 및 연구 역량 향상으로 과학적 정책 수립 및 이행 | G119: 1.1. 제공된 통합수자원관리 컨설팅 | H119: 1.1.1. 지하수 통합관리 마스터플랜 수립 | I119: 계약1 | J119: 전문가 파견 | K119: 인건비관련 | M119: 0 | N119: 19706084.59 | O119: 2026 | P119: Q3 | Q119: 2029 | R119: Q2 | S119: 2027 | T119: Q2 | U119: 1189.980954 | V119: 1642173.716 | W119: 0.1189980954 | X119: 1.642173716 | Y119: 양식2 | Z119: 1380 | AA119: 1 | AB119: KRW | AC119: 19706084.59 | AD119: x | AE119: 1 | AF119: 식 | AO119: 지하수/함양량 및 개발가능량 | AP119: 2급 | AQ119: 일반 | AR119: 국외 | AS119: 14 | AT119: 1.166666667 | AU119: 국외(1회차) : 착수조사
A120: 2026-00048 | B120: 1. 수자원에 대한 데이터기반 관리 및 연구 역량 향상으로 과학적 정책 수립 및 이행 | C120: 1.1. 제공된 통합수자원관리 컨설팅 | D120: 1.1.1. 지하수 통합관리 마스터플랜 수립 | E120: 계약1 | F120: 1. 수자원에 대한 데이터기반 관리 및 연구 역량 향상으로 과학적 정책 수립 및 이행 | G120: 1.1. 제공된 통합수자원관리 컨설팅 | H120: 1.1.1. 지하수 통합관리 마스터플랜 수립 | I120: 계약1 | J120: 전문가 파견 | K120: 인건비관련 | M120: 0 | N120: 19706084.59 | O120: 2026 | P120: Q3 | Q120: 2029 | R120: Q2 | S120: 2027 | T120: Q2 | U120: 1189.980954 | V120: 1642173.716 | W120: 0.1189980954 | X120: 1.642173716 | Y120: 양식2 | Z120: 1380 | AA120: 1 | AB120: KRW | AC120: 19706084.59 | AD120: x | AE120: 1 | AF120: 식 | AO120: 지하수/함양량 및 개발가능량 | AP120: 2급 | AQ120: 일반 | AR120: 국외 | AS120: 14 | AT120: 1.166666667 | AU120: 국외(2회차) : 현황조사
A121: 2026-00048 | B121: 1. 수자원에 대한 데이터기반 관리 및 연구 역량 향상으로 과학적 정책 수립 및 이행 | C121: 1.1. 제공된 통합수자원관리 컨설팅 | D121: 1.1.1. 지하수 통합관리 마스터플랜 수립 | E121: 계약1 | F121: 1. 수자원에 대한 데이터기반 관리 및 연구 역량 향상으로 과학적 정책 수립 및 이행 | G121: 1.1. 제공된 통합수자원관리 컨설팅 | H121: 1.1.1. 지하수 통합관리 마스터플랜 수립 | I121: 계약1 | J121: 전문가 파견 | K121: 인건비관련 | M121: 0 | N121: 19706084.59 | O121: 2026 | P121: Q3 | Q121: 2029 | R121: Q2 | S121: 2027 | T121: Q2 | U121: 1189.980954 | V121: 1642173.716 | W121: 0.1189980954 | X121: 1.642173716 | Y121: 양식2 | Z121: 1380 | AA121: 1 | AB121: KRW | AC121: 19706084.59 | AD121: x | AE121: 1 | AF121: 식 | AO121: 지하수/함양량 및 개발가능량 | AP121: 2급 | AQ121: 일반 | AR121: 국외 | AS121: 14 | AT121: 1.166666667 | AU121: 국외(3회차) : 중간보고
A122: 2026-00048 | B122: 1. 수자원에 대한 데이터기반 관리 및 연구 역량 향상으로 과학적 정책 수립 및 이행 | C122: 1.1. 제공된 통합수자원관리 컨설팅 | D122: 1.1.1. 지하수 통합관리 마스터플랜 수립 | E122: 계약1 | F122: 1. 수자원에 대한 데이터기반 관리 및 연구 역량 향상으로 과학적 정책 수립 및 이행 | G122: 1.1. 제공된 통합수자원관리 컨설팅 | H122: 1.1.1. 지하수 통합관리 마스터플랜 수립 | I122: 계약1 | J122: 전문가 파견 | K122: 인건비관련 | M122: 0 | N122: 19706084.59 | O122: 2026 | P122: Q3 | Q122: 2029 | R122: Q2 | S122: 2027 | T122: Q2 | U122: 1189.980954 | V122: 1642173.716 | W122: 0.1189980954 | X122: 1.642173716 | Y122: 양식2 | Z122: 1380 | AA122: 1 | AB122: KRW | AC122: 19706084.59 | AD122: x | AE122: 1 | AF122: 식 | AO122: 지하수/함양량 및 개발가능량 | AP122: 2급 | AQ122: 일반 | AR122: 국외 | AS122: 14 | AT122: 1.166666667 | AU122: 국외(4회차) : 보완조사
A123: 2026-00048 | B123: 1. 수자원에 대한 데이터기반 관리 및 연구 역량 향상으로 과학적 정책 수립 및 이행 | C123: 1.1. 제공된 통합수자원관리 컨설팅 | D123: 1.1.1. 지하수 통합관리 마스터플랜 수립 | E123: 계약1 | F123: 1. 수자원에 대한 데이터기반 관리 및 연구 역량 향상으로 과학적 정책 수립 및 이행 | G123: 1.1. 제공된 통합수자원관리 컨설팅 | H123: 1.1.1. 지하수 통합관리 마스터플랜 수립 | I123: 계약1 | J123: 전문가 파견 | K123: 인건비관련 | M123: 0 | N123: 19706084.59 | O123: 2026 | P123: Q3 | Q123: 2029 | R123: Q2 | S123: 2027 | T123: Q2 | U123: 1189.980954 | V123: 1642173.716 | W123: 0.1189980954 | X123: 1.642173716 | Y123: 양식2 | Z123: 1380 | AA123: 1 | AB123: KRW | AC123: 19706084.59 | AD123: x | AE123: 1 | AF123: 식 | AO123: 지하수/함양량 및 개발가능량 | AP123: 2급 | AQ123: 일반 | AR123: 국외 | AS123: 14 | AT123: 1.166666667 | AU123: 국외(5회차) : 최종안보고
A124: 2026-00048 | B124: 1. 수자원에 대한 데이터기반 관리 및 연구 역량 향상으로 과학적 정책 수립 및 이행 | C124: 1.1. 제공된 통합수자원관리 컨설팅 | D124: 1.1.1. 지하수 통합관리 마스터플랜 수립 | E124: 계약1 | F124: 1. 수자원에 대한 데이터기반 관리 및 연구 역량 향상으로 과학적 정책 수립 및 이행 | G124: 1.1. 제공된 통합수자원관리 컨설팅 | H124: 1.1.1. 지하수 통합관리 마스터플랜 수립 | I124: 계약1 | J124: 전문가 파견 | K124: 인건비관련 | M124: 0 | N124: 19706084.59 | O124: 2026 | P124: Q3 | Q124: 2029 | R124: Q2 | S124: 2027 | T124: Q2 | U124: 1189.980954 | V124: 1642173.716 | W124: 0.1189980954 | X124: 1.642173716 | Y124: 양식2 | Z124: 1380 | AA124: 1 | AB124: KRW | AC124: 19706084.59 | AD124: x | AE124: 1 | AF124: 식 | AO124: 지하수/함양량 및 개발가능량 | AP124: 2급 | AQ124: 일반 | AR124: 국외 | AS124: 14 | AT124: 1.166666667 | AU124: 국외(6회차) : 보완 및 최종보고
A125: 2026-00048 | B125: 1. 수자원에 대한 데이터기반 관리 및 연구 역량 향상으로 과학적 정책 수립 및 이행 | C125: 1.1. 제공된 통합수자원관리 컨설팅 | D125: 1.1.1. 지하수 통합관리 마스터플랜 수립 | E125: 계약1 | F125: 1. 수자원에 대한 데이터기반 관리 및 연구 역량 향상으로 과학적 정책 수립 및 이행 | G125: 1.1. 제공된 통합수자원관리 컨설팅 | H125: 1.1.1. 지하수 통합관리 마스터플랜 수립 | I125: 계약1 | J125: 전문가 파견 | K125: 인건비관련 | M125: 0 | N125: 38220000 | O125: 2026 | P125: Q3 | Q125: 2029 | R125: Q2 | S125: 2027 | T125: Q2 | U125: 2307.971014 | V125: 3185000 | W125: 0.2307971014 | X125: 3.185 | Y125: 양식2 | Z125: 1380 | AA125: 1 | AB125: KRW | AC125: 38220000 | AD125: x | AE125: 1 | AF125: 식 | AO125: 지하수/조사 및 개발 | AP125: 3급 | AQ125: 일반 | AR125: 국내 | AS125: 50 | AT125: 4.166666667 | AU125: 국내
A126: 2026-00048 | B126: 1. 수자원에 대한 데이터기반 관리 및 연구 역량 향상으로 과학적 정책 수립 및 이행 | C126: 1.1. 제공된 통합수자원관리 컨설팅 | D126: 1.1.1. 지하수 통합관리 마스터플랜 수립 | E126: 계약1 | F126: 1. 수자원에 대한 데이터기반 관리 및 연구 역량 향상으로 과학적 정책 수립 및 이행 | G126: 1.1. 제공된 통합수자원관리 컨설팅 | H126: 1.1.1. 지하수 통합관리 마스터플랜 수립 | I126: 계약1 | J126: 전문가 파견 | K126: 인건비관련 | M126: 0 | N126: 16799264.59 | O126: 2026 | P126: Q3 | Q126: 2029 | R126: Q2 | S126: 2027 | T126: Q2 | U126: 1014.448345 | V126: 1399938.716 | W126: 0.1014448345 | X126: 1.399938716 | Y126: 양식2 | Z126: 1380 | AA126: 1 | AB126: KRW | AC126: 16799264.59 | AD126: x | AE126: 1 | AF126: 식 | AO126: 지하수/조사 및 개발 | AP126: 3급 | AQ126: 일반 | AR126: 국외 | AS126: 14 | AT126: 1.166666667 | AU126: 국외(1회차) : 착수조사
A127: 2026-00048 | B127: 1. 수자원에 대한 데이터기반 관리 및 연구 역량 향상으로 과학적 정책 수립 및 이행 | C127: 1.1. 제공된 통합수자원관리 컨설팅 | D127: 1.1.1. 지하수 통합관리 마스터플랜 수립 | E127: 계약1 | F127: 1. 수자원에 대한 데이터기반 관리 및 연구 역량 향상으로 과학적 정책 수립 및 이행 | G127: 1.1. 제공된 통합수자원관리 컨설팅 | H127: 1.1.1. 지하수 통합관리 마스터플랜 수립 | I127: 계약1 | J127: 전문가 파견 | K127: 인건비관련 | M127: 0 | N127: 16799264.59 | O127: 2026 | P127: Q3 | Q127: 2029 | R127: Q2 | S127: 2027 | T127: Q2 | U127: 1014.448345 | V127: 1399938.716 | W127: 0.1014448345 | X127: 1.399938716 | Y127: 양식2 | Z127: 1380 | AA127: 1 | AB127: KRW | AC127: 16799264.59 | AD127: x | AE127: 1 | AF127: 식 | AO127: 지하수/조사 및 개발 | AP127: 3급 | AQ127: 일반 | AR127: 국외 | AS127: 14 | AT127: 1.166666667 | AU127: 국외(2회차) : 현황조사
A128: 2026-00048 | B128: 1. 수자원에 대한 데이터기반 관리 및 연구 역량 향상으로 과학적 정책 수립 및 이행 | C128: 1.1. 제공된 통합수자원관리 컨설팅 | D128: 1.1.1. 지하수 통합관리 마스터플랜 수립 | E128: 계약1 | F128: 1. 수자원에 대한 데이터기반 관리 및 연구 역량 향상으로 과학적 정책 수립 및 이행 | G128: 1.1. 제공된 통합수자원관리 컨설팅 | H128: 1.1.1. 지하수 통합관리 마스터플랜 수립 | I128: 계약1 | J128: 전문가 파견 | K128: 인건비관련 | M128: 0 | N128: 16799264.59 | O128: 2026 | P128: Q3 | Q128: 2029 | R128: Q2 | S128: 2027 | T128: Q2 | U128: 1014.448345 | V128: 1399938.716 | W128: 0.1014448345 | X128: 1.399938716 | Y128: 양식2 | Z128: 1380 | AA128: 1 | AB128: KRW | AC128: 16799264.59 | AD128: x | AE128: 1 | AF128: 식 | AO128: 지하수/조사 및 개발 | AP128: 3급 | AQ128: 일반 | AR128: 국외 | AS128: 14 | AT128: 1.166666667 | AU128: 국외(3회차) : 중간보고
A129: 2026-00048 | B129: 1. 수자원에 대한 데이터기반 관리 및 연구 역량 향상으로 과학적 정책 수립 및 이행 | C129: 1.1. 제공된 통합수자원관리 컨설팅 | D129: 1.1.1. 지하수 통합관리 마스터플랜 수립 | E129: 계약1 | F129: 1. 수자원에 대한 데이터기반 관리 및 연구 역량 향상으로 과학적 정책 수립 및 이행 | G129: 1.1. 제공된 통합수자원관리 컨설팅 | H129: 1.1.1. 지하수 통합관리 마스터플랜 수립 | I129: 계약1 | J129: 전문가 파견 | K129: 인건비관련 | M129: 0 | N129: 16799264.59 | O129: 2026 | P129: Q3 | Q129: 2029 | R129: Q2 | S129: 2027 | T129: Q2 | U129: 1014.448345 | V129: 1399938.716 | W129: 0.1014448345 | X129: 1.399938716 | Y129: 양식2 | Z129: 1380 | AA129: 1 | AB129: KRW | AC129: 16799264.59 | AD129: x | AE129: 1 | AF129: 식 | AO129: 지하수/조사 및 개발 | AP129: 3급 | AQ129: 일반 | AR129: 국외 | AS129: 14 | AT129: 1.166666667 | AU129: 국외(4회차) : 보완조사
A130: 2026-00048 | B130: 1. 수자원에 대한 데이터기반 관리 및 연구 역량 향상으로 과학적 정책 수립 및 이행 | C130: 1.1. 제공된 통합수자원관리 컨설팅 | D130: 1.1.1. 지하수 통합관리 마스터플랜 수립 | E130: 계약1 | F130: 1. 수자원에 대한 데이터기반 관리 및 연구 역량 향상으로 과학적 정책 수립 및 이행 | G130: 1.1. 제공된 통합수자원관리 컨설팅 | H130: 1.1.1. 지하수 통합관리 마스터플랜 수립 | I130: 계약1 | J130: 전문가 파견 | K130: 인건비관련 | M130: 0 | N130: 16799264.59 | O130: 2026 | P130: Q3 | Q130: 2029 | R130: Q2 | S130: 2027 | T130: Q2 | U130: 1014.448345 | V130: 1399938.716 | W130: 0.1014448345 | X130: 1.399938716 | Y130: 양식2 | Z130: 1380 | AA130: 1 | AB130: KRW | AC130: 16799264.59 | AD130: x | AE130: 1 | AF130: 식 | AO130: 지하수/조사 및 개발 | AP130: 3급 | AQ130: 일반 | AR130: 국외 | AS130: 14 | AT130: 1.166666667 | AU130: 국외(5회차) : 최종안보고
A131: 2026-00048 | B131: 1. 수자원에 대한 데이터기반 관리 및 연구 역량 향상으로 과학적 정책 수립 및 이행 | C131: 1.1. 제공된 통합수자원관리 컨설팅 | D131: 1.1.1. 지하수 통합관리 마스터플랜 수립 | E131: 계약1 | F131: 1. 수자원에 대한 데이터기반 관리 및 연구 역량 향상으로 과학적 정책 수립 및 이행 | G131: 1.1. 제공된 통합수자원관리 컨설팅 | H131: 1.1.1. 지하수 통합관리 마스터플랜 수립 | I131: 계약1 | J131: 전문가 파견 | K131: 인건비관련 | M131: 0 | N131: 38220000 | O131: 2026 | P131: Q3 | Q131: 2029 | R131: Q2 | S131: 2027 | T131: Q2 | U131: 2307.971014 | V131: 3185000 | W131: 0.2307971014 | X131: 3.185 | Y131: 양식2 | Z131: 1380 | AA131: 1 | AB131: KRW | AC131: 38220000 | AD131: x | AE131: 1 | AF131: 식 | AO131: 지하수/관측 및 정보화 | AP131: 3급 | AQ131: 일반 | AR131: 국내 | AS131: 50 | AT131: 4.166666667 | AU131: 국내
A132: 2026-00048 | B132: 1. 수자원에 대한 데이터기반 관리 및 연구 역량 향상으로 과학적 정책 수립 및 이행 | C132: 1.1. 제공된 통합수자원관리 컨설팅 | D132: 1.1.1. 지하수 통합관리 마스터플랜 수립 | E132: 계약1 | F132: 1. 수자원에 대한 데이터기반 관리 및 연구 역량 향상으로 과학적 정책 수립 및 이행 | G132: 1.1. 제공된 통합수자원관리 컨설팅 | H132: 1.1.1. 지하수 통합관리 마스터플랜 수립 | I132: 계약1 | J132: 전문가 파견 | K132: 인건비관련 | M132: 0 | N132: 16799264.59 | O132: 2026 | P132: Q3 | Q132: 2029 | R132: Q2 | S132: 2027 | T132: Q2 | U132: 1014.448345 | V132: 1399938.716 | W132: 0.1014448345 | X132: 1.399938716 | Y132: 양식2 | Z132: 1380 | AA132: 1 | AB132: KRW | AC132: 16799264.59 | AD132: x | AE132: 1 | AF132: 식 | AO132: 지하수/관측 및 정보화 | AP132: 3급 | AQ132: 일반 | AR132: 국외 | AS132: 14 | AT132: 1.166666667 | AU132: 국외(1회차) : 착수조사
A133: 2026-00048 | B133: 1. 수자원에 대한 데이터기반 관리 및 연구 역량 향상으로 과학적 정책 수립 및 이행 | C133: 1.1. 제공된 통합수자원관리 컨설팅 | D133: 1.1.1. 지하수 통합관리 마스터플랜 수립 | E133: 계약1 | F133: 1. 수자원에 대한 데이터기반 관리 및 연구 역량 향상으로 과학적 정책 수립 및 이행 | G133: 1.1. 제공된 통합수자원관리 컨설팅 | H133: 1.1.1. 지하수 통합관리 마스터플랜 수립 | I133: 계약1 | J133: 전문가 파견 | K133: 인건비관련 | M133: 0 | N133: 16799264.59 | O133: 2026 | P133: Q3 | Q133: 2029 | R133: Q2 | S133: 2027 | T133: Q2 | U133: 1014.448345 | V133: 1399938.716 | W133: 0.1014448345 | X133: 1.399938716 | Y133: 양식2 | Z133: 1380 | AA133: 1 | AB133: KRW | AC133: 16799264.59 | AD133: x | AE133: 1 | AF133: 식 | AO133: 지하수/관측 및 정보화 | AP133: 3급 | AQ133: 일반 | AR133: 국외 | AS133: 14 | AT133: 1.166666667 | AU133: 국외(2회차) : 현황조사
A134: 2026-00048 | B134: 1. 수자원에 대한 데이터기반 관리 및 연구 역량 향상으로 과학적 정책 수립 및 이행 | C134: 1.1. 제공된 통합수자원관리 컨설팅 | D134: 1.1.1. 지하수 통합관리 마스터플랜 수립 | E134: 계약1 | F134: 1. 수자원에 대한 데이터기반 관리 및 연구 역량 향상으로 과학적 정책 수립 및 이행 | G134: 1.1. 제공된 통합수자원관리 컨설팅 | H134: 1.1.1. 지하수 통합관리 마스터플랜 수립 | I134: 계약1 | J134: 전문가 파견 | K134: 인건비관련 | M134: 0 | N134: 16799264.59 | O134: 2026 | P134: Q3 | Q134: 2029 | R134: Q2 | S134: 2027 | T134: Q2 | U134: 1014.448345 | V134: 1399938.716 | W134: 0.1014448345 | X134: 1.399938716 | Y134: 양식2 | Z134: 1380 | AA134: 1 | AB134: KRW | AC134: 16799264.59 | AD134: x | AE134: 1 | AF134: 식 | AO134: 지하수/관측 및 정보화 | AP134: 3급 | AQ134: 일반 | AR134: 국외 | AS134: 14 | AT134: 1.166666667 | AU134: 국외(3회차) : 중간보고
A135: 2026-00048 | B135: 1. 수자원에 대한 데이터기반 관리 및 연구 역량 향상으로 과학적 정책 수립 및 이행 | C135: 1.1. 제공된 통합수자원관리 컨설팅 | D135: 1.1.1. 지하수 통합관리 마스터플랜 수립 | E135: 계약1 | F135: 1. 수자원에 대한 데이터기반 관리 및 연구 역량 향상으로 과학적 정책 수립 및 이행 | G135: 1.1. 제공된 통합수자원관리 컨설팅 | H135: 1.1.1. 지하수 통합관리 마스터플랜 수립 | I135: 계약1 | J135: 전문가 파견 | K135: 인건비관련 | M135: 0 | N135: 16799264.59 | O135: 2026 | P135: Q3 | Q135: 2029 | R135: Q2 | S135: 2027 | T135: Q2 | U135: 1014.448345 | V135: 1399938.716 | W135: 0.1014448345 | X135: 1.399938716 | Y135: 양식2 | Z135: 1380 | AA135: 1 | AB135: KRW | AC135: 16799264.59 | AD135: x | AE135: 1 | AF135: 식 | AO135: 지하수/관측 및 정보화 | AP135: 3급 | AQ135: 일반 | AR135: 국외 | AS135: 14 | AT135: 1.166666667 | AU135: 국외(4회차) : 보완조사
A136: 2026-00048 | B136: 1. 수자원에 대한 데이터기반 관리 및 연구 역량 향상으로 과학적 정책 수립 및 이행 | C136: 1.1. 제공된 통합수자원관리 컨설팅 | D136: 1.1.1. 지하수 통합관리 마스터플랜 수립 | E136: 계약1 | F136: 1. 수자원에 대한 데이터기반 관리 및 연구 역량 향상으로 과학적 정책 수립 및 이행 | G136: 1.1. 제공된 통합수자원관리 컨설팅 | H136: 1.1.1. 지하수 통합관리 마스터플랜 수립 | I136: 계약1 | J136: 전문가 파견 | K136: 인건비관련 | M136: 0 | N136: 16799264.59 | O136: 2026 | P136: Q3 | Q136: 2029 | R136: Q2 | S136: 2027 | T136: Q2 | U136: 1014.448345 | V136: 1399938.716 | W136: 0.1014448345 | X136: 1.399938716 | Y136: 양식2 | Z136: 1380 | AA136: 1 | AB136: KRW | AC136: 16799264.59 | AD136: x | AE136: 1 | AF136: 식 | AO136: 지하수/관측 및 정보화 | AP136: 3급 | AQ136: 일반 | AR136: 국외 | AS136: 14 | AT136: 1.166666667 | AU136: 국외(5회차) : 최종안보고
A137: 2026-00048 | B137: 1. 수자원에 대한 데이터기반 관리 및 연구 역량 향상으로 과학적 정책 수립 및 이행 | C137: 1.1. 제공된 통합수자원관리 컨설팅 | D137: 1.1.1. 지하수 통합관리 마스터플랜 수립 | E137: 계약1 | F137: 1. 수자원에 대한 데이터기반 관리 및 연구 역량 향상으로 과학적 정책 수립 및 이행 | G137: 1.1. 제공된 통합수자원관리 컨설팅 | H137: 1.1.1. 지하수 통합관리 마스터플랜 수립 | I137: 계약1 | J137: 전문가 파견 | K137: 인건비관련 | M137: 0 | N137: 27342000 | O137: 2026 | P137: Q3 | Q137: 2029 | R137: Q2 | S137: 2027 | T137: Q3 | U137: 1651.086957 | V137: 2278500 | W137: 0.1651086957 | X137: 2.2785 | Y137: 양식2 | Z137: 1380 | AA137: 1 | AB137: KRW | AC137: 27342000 | AD137: x | AE137: 1 | AF137: 식 | AO137: 수자원/법제도 | AP137: 2급 | AQ137: 주요 | AR137: 국내 | AS137: 30 | AT137: 2.5 | AU137: 국내
A138: 2026-00048 | B138: 1. 수자원에 대한 데이터기반 관리 및 연구 역량 향상으로 과학적 정책 수립 및 이행 | C138: 1.1. 제공된 통합수자원관리 컨설팅 | D138: 1.1.1. 지하수 통합관리 마스터플랜 수립 | E138: 계약1 | F138: 1. 수자원에 대한 데이터기반 관리 및 연구 역량 향상으로 과학적 정책 수립 및 이행 | G138: 1.1. 제공된 통합수자원관리 컨설팅 | H138: 1.1.1. 지하수 통합관리 마스터플랜 수립 | I138: 계약1 | J138: 전문가 파견 | K138: 인건비관련 | M138: 0 | N138: 19706084.59 | O138: 2026 | P138: Q3 | Q138: 2029 | R138: Q2 | S138: 2027 | T138: Q3 | U138: 1189.980954 | V138: 1642173.716 | W138: 0.1189980954 | X138: 1.642173716 | Y138: 양식2 | Z138: 1380 | AA138: 1 | AB138: KRW | AC138: 19706084.59 | AD138: x | AE138: 1 | AF138: 식 | AO138: 수자원/법제도 | AP138: 2급 | AQ138: 주요 | AR138: 국외 | AS138: 14 | AT138: 1.166666667 | AU138: 국외(1회차) : 지하수 법제도 초안
A139: 2026-00048 | B139: 1. 수자원에 대한 데이터기반 관리 및 연구 역량 향상으로 과학적 정책 수립 및 이행 | C139: 1.1. 제공된 통합수자원관리 컨설팅 | D139: 1.1.1. 지하수 통합관리 마스터플랜 수립 | E139: 계약1 | F139: 1. 수자원에 대한 데이터기반 관리 및 연구 역량 향상으로 과학적 정책 수립 및 이행 | G139: 1.1. 제공된 통합수자원관리 컨설팅 | H139: 1.1.1. 지하수 통합관리 마스터플랜 수립 | I139: 계약1 | J139: 전문가 파견 | K139: 인건비관련 | M139: 0 | N139: 19706084.59 | O139: 2026 | P139: Q3 | Q139: 2029 | R139: Q2 | S139: 2027 | T139: Q3 | U139: 1189.980954 | V139: 1642173.716 | W139: 0.1189980954 | X139: 1.642173716 | Y139: 양식2 | Z139: 1380 | AA139: 1 | AB139: KRW | AC139: 19706084.59 | AD139: x | AE139: 1 | AF139: 식 | AO139: 수자원/법제도 | AP139: 2급 | AQ139: 주요 | AR139: 국외 | AS139: 14 | AT139: 1.166666667 | AU139: 국외(2회차) : 지하수 관측(MP) 총괄
A140: 2026-00048 | B140: 1. 수자원에 대한 데이터기반 관리 및 연구 역량 향상으로 과학적 정책 수립 및 이행 | C140: 1.1. 제공된 통합수자원관리 컨설팅 | D140: 1.1.1. 지하수 통합관리 마스터플랜 수립 | E140: 계약1 | F140: 1. 수자원에 대한 데이터기반 관리 및 연구 역량 향상으로 과학적 정책 수립 및 이행 | G140: 1.1. 제공된 통합수자원관리 컨설팅 | H140: 1.1.1. 지하수 통합관리 마스터플랜 수립 | I140: 계약1 | J140: 전문가 파견 | K140: 인건비관련 | M140: 0 | N140: 19706084.59 | O140: 2026 | P140: Q3 | Q140: 2029 | R140: Q2 | S140: 2027 | T140: Q3 | U140: 1189.980954 | V140: 1642173.716 | W140: 0.1189980954 | X140: 1.642173716 | Y140: 양식2 | Z140: 1380 | AA140: 1 | AB140: KRW | AC140: 19706084.59 | AD140: x | AE140: 1 | AF140: 식 | AO140: 수자원/법제도 | AP140: 2급 | AQ140: 주요 | AR140: 국외 | AS140: 14 | AT140: 1.166666667 | AU140: 국외(3회차) : 지하수 법제도 확정
A141: 2026-00048 | B141: 1. 수자원에 대한 데이터기반 관리 및 연구 역량 향상으로 과학적 정책 수립 및 이행 | C141: 1.1. 제공된 통합수자원관리 컨설팅 | D141: 1.1.1. 지하수 통합관리 마스터플랜 수립 | E141: 계약1 | F141: 1. 수자원에 대한 데이터기반 관리 및 연구 역량 향상으로 과학적 정책 수립 및 이행 | G141: 1.1. 제공된 통합수자원관리 컨설팅 | H141: 1.1.1. 지하수 통합관리 마스터플랜 수립 | I141: 계약1 | J141: 전문가 파견 | K141: 인건비관련 | M141: 0 | N141: 72912000 | O141: 2026 | P141: Q3 | Q141: 2029 | R141: Q2 | S141: 2027 | T141: Q3 | U141: 4402.898551 | V141: 6076000 | W141: 0.4402898551 | X141: 6.076 | Y141: 양식2 | Z141: 1380 | AA141: 1 | AB141: KRW | AC141: 72912000 | AD141: x | AE141: 1 | AF141: 식 | AO141: 지하수/PL | AP141: 2급 | AQ141: 일반 | AR141: 국내 | AS141: 80 | AT141: 6.666666667 | AU141: 국내
A142: 2026-00048 | B142: 1. 수자원에 대한 데이터기반 관리 및 연구 역량 향상으로 과학적 정책 수립 및 이행 | C142: 1.1. 제공된 통합수자원관리 컨설팅 | D142: 1.1.1. 지하수 통합관리 마스터플랜 수립 | E142: 계약1 | F142: 1. 수자원에 대한 데이터기반 관리 및 연구 역량 향상으로 과학적 정책 수립 및 이행 | G142: 1.1. 제공된 통합수자원관리 컨설팅 | H142: 1.1.1. 지하수 통합관리 마스터플랜 수립 | I142: 계약1 | J142: 전문가 파견 | K142: 인건비관련 | M142: 0 | N142: 19706084.59 | O142: 2026 | P142: Q3 | Q142: 2029 | R142: Q2 | S142: 2027 | T142: Q3 | U142: 1189.980954 | V142: 1642173.716 | W142: 0.1189980954 | X142: 1.642173716 | Y142: 양식2 | Z142: 1380 | AA142: 1 | AB142: KRW | AC142: 19706084.59 | AD142: x | AE142: 1 | AF142: 식 | AO142: 지하수/PL | AP142: 2급 | AQ142: 일반 | AR142: 국외 | AS142: 14 | AT142: 1.166666667 | AU142: 국외(1회차) : 지하수 조사(MP) 총괄
A143: 2026-00048 | B143: 1. 수자원에 대한 데이터기반 관리 및 연구 역량 향상으로 과학적 정책 수립 및 이행 | C143: 1.1. 제공된 통합수자원관리 컨설팅 | D143: 1.1.1. 지하수 통합관리 마스터플랜 수립 | E143: 계약1 | F143: 1. 수자원에 대한 데이터기반 관리 및 연구 역량 향상으로 과학적 정책 수립 및 이행 | G143: 1.1. 제공된 통합수자원관리 컨설팅 | H143: 1.1.1. 지하수 통합관리 마스터플랜 수립 | I143: 계약1 | J143: 전문가 파견 | K143: 인건비관련 | M143: 0 | N143: 19706084.59 | O143: 2026 | P143: Q3 | Q143: 2029 | R143: Q2 | S143: 2027 | T143: Q3 | U143: 1189.980954 | V143: 1642173.716 | W143: 0.1189980954 | X143: 1.642173716 | Y143: 양식2 | Z143: 1380 | AA143: 1 | AB143: KRW | AC143: 19706084.59 | AD143: x | AE143: 1 | AF143: 식 | AO143: 지하수/PL | AP143: 2급 | AQ143: 일반 | AR143: 국외 | AS143: 14 | AT143: 1.166666667 | AU143: 국외(2회차) : 지하수 조사(MP) 총괄
A144: 2026-00048 | B144: 1. 수자원에 대한 데이터기반 관리 및 연구 역량 향상으로 과학적 정책 수립 및 이행 | C144: 1.1. 제공된 통합수자원관리 컨설팅 | D144: 1.1.1. 지하수 통합관리 마스터플랜 수립 | E144: 계약1 | F144: 1. 수자원에 대한 데이터기반 관리 및 연구 역량 향상으로 과학적 정책 수립 및 이행 | G144: 1.1. 제공된 통합수자원관리 컨설팅 | H144: 1.1.1. 지하수 통합관리 마스터플랜 수립 | I144: 계약1 | J144: 전문가 파견 | K144: 인건비관련 | M144: 0 | N144: 19706084.59 | O144: 2026 | P144: Q3 | Q144: 2029 | R144: Q2 | S144: 2027 | T144: Q3 | U144: 1189.980954 | V144: 1642173.716 | W144: 0.1189980954 | X144: 1.642173716 | Y144: 양식2 | Z144: 1380 | AA144: 1 | AB144: KRW | AC144: 19706084.59 | AD144: x | AE144: 1 | AF144: 식 | AO144: 지하수/PL | AP144: 2급 | AQ144: 일반 | AR144: 국외 | AS144: 14 | AT144: 1.166666667 | AU144: 국외(3회차) : 지하수 조사(MP) 총괄
A145: 2026-00048 | B145: 1. 수자원에 대한 데이터기반 관리 및 연구 역량 향상으로 과학적 정책 수립 및 이행 | C145: 1.1. 제공된 통합수자원관리 컨설팅 | D145: 1.1.1. 지하수 통합관리 마스터플랜 수립 | E145: 계약1 | F145: 1. 수자원에 대한 데이터기반 관리 및 연구 역량 향상으로 과학적 정책 수립 및 이행 | G145: 1.1. 제공된 통합수자원관리 컨설팅 | H145: 1.1.1. 지하수 통합관리 마스터플랜 수립 | I145: 계약1 | J145: 전문가 파견 | K145: 인건비관련 | M145: 0 | N145: 19706084.59 | O145: 2026 | P145: Q3 | Q145: 2029 | R145: Q2 | S145: 2027 | T145: Q3 | U145: 1189.980954 | V145: 1642173.716 | W145: 0.1189980954 | X145: 1.642173716 | Y145: 양식2 | Z145: 1380 | AA145: 1 | AB145: KRW | AC145: 19706084.59 | AD145: x | AE145: 1 | AF145: 식 | AO145: 지하수/PL | AP145: 2급 | AQ145: 일반 | AR145: 국외 | AS145: 14 | AT145: 1.166666667 | AU145: 국외(4회차) : 지하수 조사(MP) 총괄
A146: 2026-00048 | B146: 1. 수자원에 대한 데이터기반 관리 및 연구 역량 향상으로 과학적 정책 수립 및 이행 | C146: 1.1. 제공된 통합수자원관리 컨설팅 | D146: 1.1.1. 지하수 통합관리 마스터플랜 수립 | E146: 계약1 | F146: 1. 수자원에 대한 데이터기반 관리 및 연구 역량 향상으로 과학적 정책 수립 및 이행 | G146: 1.1. 제공된 통합수자원관리 컨설팅 | H146: 1.1.1. 지하수 통합관리 마스터플랜 수립 | I146: 계약1 | J146: 전문가 파견 | K146: 인건비관련 | M146: 0 | N146: 19706084.59 | O146: 2026 | P146: Q3 | Q146: 2029 | R146: Q2 | S146: 2027 | T146: Q3 | U146: 1189.980954 | V146: 1642173.716 | W146: 0.1189980954 | X146: 1.642173716 | Y146: 양식2 | Z146: 1380 | AA146: 1 | AB146: KRW | AC146: 19706084.59 | AD146: x | AE146: 1 | AF146: 식 | AO146: 지하수/PL | AP146: 2급 | AQ146: 일반 | AR146: 국외 | AS146: 14 | AT146: 1.166666667 | AU146: 국외(5회차) : 지하수 조사(MP) 총괄
A147: 2026-00048 | B147: 1. 수자원에 대한 데이터기반 관리 및 연구 역량 향상으로 과학적 정책 수립 및 이행 | C147: 1.1. 제공된 통합수자원관리 컨설팅 | D147: 1.1.1. 지하수 통합관리 마스터플랜 수립 | E147: 계약1 | F147: 1. 수자원에 대한 데이터기반 관리 및 연구 역량 향상으로 과학적 정책 수립 및 이행 | G147: 1.1. 제공된 통합수자원관리 컨설팅 | H147: 1.1.1. 지하수 통합관리 마스터플랜 수립 | I147: 계약1 | J147: 전문가 파견 | K147: 인건비관련 | M147: 0 | N147: 19706084.59 | O147: 2026 | P147: Q3 | Q147: 2029 | R147: Q2 | S147: 2027 | T147: Q3 | U147: 1189.980954 | V147: 1642173.716 | W147: 0.1189980954 | X147: 1.642173716 | Y147: 양식2 | Z147: 1380 | AA147: 1 | AB147: KRW | AC147: 19706084.59 | AD147: x | AE147: 1 | AF147: 식 | AO147: 지하수/PL | AP147: 2급 | AQ147: 일반 | AR147: 국외 | AS147: 14 | AT147: 1.166666667 | AU147: 국외(6회차) : 지하수 조사(MP) 총괄
A148: 2026-00048 | B148: 1. 수자원에 대한 데이터기반 관리 및 연구 역량 향상으로 과학적 정책 수립 및 이행 | C148: 1.1. 제공된 통합수자원관리 컨설팅 | D148: 1.1.1. 지하수 통합관리 마스터플랜 수립 | E148: 계약1 | F148: 1. 수자원에 대한 데이터기반 관리 및 연구 역량 향상으로 과학적 정책 수립 및 이행 | G148: 1.1. 제공된 통합수자원관리 컨설팅 | H148: 1.1.1. 지하수 통합관리 마스터플랜 수립 | I148: 계약1 | J148: 전문가 파견 | K148: 인건비관련 | M148: 0 | N148: 19706084.59 | O148: 2026 | P148: Q3 | Q148: 2029 | R148: Q2 | S148: 2027 | T148: Q3 | U148: 1189.980954 | V148: 1642173.716 | W148: 0.1189980954 | X148: 1.642173716 | Y148: 양식2 | Z148: 1380 | AA148: 1 | AB148: KRW | AC148: 19706084.59 | AD148: x | AE148: 1 | AF148: 식 | AO148: 지하수/PL | AP148: 2급 | AQ148: 일반 | AR148: 국외 | AS148: 14 | AT148: 1.166666667 | AU148: 국외(7회차) : 지하수 조사(MP) 총괄
A149: 2026-00048 | B149: 1. 수자원에 대한 데이터기반 관리 및 연구 역량 향상으로 과학적 정책 수립 및 이행 | C149: 1.1. 제공된 통합수자원관리 컨설팅 | D149: 1.1.1. 지하수 통합관리 마스터플랜 수립 | E149: 계약1 | F149: 1. 수자원에 대한 데이터기반 관리 및 연구 역량 향상으로 과학적 정책 수립 및 이행 | G149: 1.1. 제공된 통합수자원관리 컨설팅 | H149: 1.1.1. 지하수 통합관리 마스터플랜 수립 | I149: 계약1 | J149: 전문가 파견 | K149: 인건비관련 | M149: 0 | N149: 19706084.59 | O149: 2026 | P149: Q3 | Q149: 2029 | R149: Q2 | S149: 2027 | T149: Q3 | U149: 1189.980954 | V149: 1642173.716 | W149: 0.1189980954 | X149: 1.642173716 | Y149: 양식2 | Z149: 1380 | AA149: 1 | AB149: KRW | AC149: 19706084.59 | AD149: x | AE149: 1 | AF149: 식 | AO149: 지하수/PL | AP149: 2급 | AQ149: 일반 | AR149: 국외 | AS149: 14 | AT149: 1.166666667 | AU149: 국외(8회차) : 지하수 조사(MP) 총괄
A150: 2026-00048 | B150: 1. 수자원에 대한 데이터기반 관리 및 연구 역량 향상으로 과학적 정책 수립 및 이행 | C150: 1.1. 제공된 통합수자원관리 컨설팅 | D150: 1.1.1. 지하수 통합관리 마스터플랜 수립 | E150: 계약1 | F150: 1. 수자원에 대한 데이터기반 관리 및 연구 역량 향상으로 과학적 정책 수립 및 이행 | G150: 1.1. 제공된 통합수자원관리 컨설팅 | H150: 1.1.1. 지하수 통합관리 마스터플랜 수립 | I150: 계약1 | J150: 전문가 파견 | K150: 인건비관련 | M150: 0 | N150: 54684000 | O150: 2026 | P150: Q3 | Q150: 2029 | R150: Q2 | S150: 2027 | T150: Q3 | U150: 3302.173913 | V150: 4557000 | W150: 0.3302173913 | X150: 4.557 | Y150: 양식2 | Z150: 1380 | AA150: 1 | AB150: KRW | AC150: 54684000 | AD150: x | AE150: 1 | AF150: 식 | AO150: 지하수/함양량 및 개발가능량 | AP150: 2급 | AQ150: 일반 | AR150: 국내 | AS150: 60 | AT150: 5 | AU150: 국내
A151: 2026-00048 | B151: 1. 수자원에 대한 데이터기반 관리 및 연구 역량 향상으로 과학적 정책 수립 및 이행 | C151: 1.1. 제공된 통합수자원관리 컨설팅 | D151: 1.1.1. 지하수 통합관리 마스터플랜 수립 | E151: 계약1 | F151: 1. 수자원에 대한 데이터기반 관리 및 연구 역량 향상으로 과학적 정책 수립 및 이행 | G151: 1.1. 제공된 통합수자원관리 컨설팅 | H151: 1.1.1. 지하수 통합관리 마스터플랜 수립 | I151: 계약1 | J151: 전문가 파견 | K151: 인건비관련 | M151: 0 | N151: 19706084.59 | O151: 2026 | P151: Q3 | Q151: 2029 | R151: Q2 | S151: 2027 | T151: Q3 | U151: 1189.980954 | V151: 1642173.716 | W151: 0.1189980954 | X151: 1.642173716 | Y151: 양식2 | Z151: 1380 | AA151: 1 | AB151: KRW | AC151: 19706084.59 | AD151: x | AE151: 1 | AF151: 식 | AO151: 지하수/함양량 및 개발가능량 | AP151: 2급 | AQ151: 일반 | AR151: 국외 | AS151: 14 | AT151: 1.166666667 | AU151: 국외(1회차) : 착수조사
A152: 2026-00048 | B152: 1. 수자원에 대한 데이터기반 관리 및 연구 역량 향상으로 과학적 정책 수립 및 이행 | C152: 1.1. 제공된 통합수자원관리 컨설팅 | D152: 1.1.1. 지하수 통합관리 마스터플랜 수립 | E152: 계약1 | F152: 1. 수자원에 대한 데이터기반 관리 및 연구 역량 향상으로 과학적 정책 수립 및 이행 | G152: 1.1. 제공된 통합수자원관리 컨설팅 | H152: 1.1.1. 지하수 통합관리 마스터플랜 수립 | I152: 계약1 | J152: 전문가 파견 | K152: 인건비관련 | M152: 0 | N152: 19706084.59 | O152: 2026 | P152: Q3 | Q152: 2029 | R152: Q2 | S152: 2027 | T152: Q3 | U152: 1189.980954 | V152: 1642173.716 | W152: 0.1189980954 | X152: 1.642173716 | Y152: 양식2 | Z152: 1380 | AA152: 1 | AB152: KRW | AC152: 19706084.59 | AD152: x | AE152: 1 | AF152: 식 | AO152: 지하수/함양량 및 개발가능량 | AP152: 2급 | AQ152: 일반 | AR152: 국외 | AS152: 14 | AT152: 1.166666667 | AU152: 국외(2회차) : 현황조사
A153: 2026-00048 | B153: 1. 수자원에 대한 데이터기반 관리 및 연구 역량 향상으로 과학적 정책 수립 및 이행 | C153: 1.1. 제공된 통합수자원관리 컨설팅 | D153: 1.1.1. 지하수 통합관리 마스터플랜 수립 | E153: 계약1 | F153: 1. 수자원에 대한 데이터기반 관리 및 연구 역량 향상으로 과학적 정책 수립 및 이행 | G153: 1.1. 제공된 통합수자원관리 컨설팅 | H153: 1.1.1. 지하수 통합관리 마스터플랜 수립 | I153: 계약1 | J153: 전문가 파견 | K153: 인건비관련 | M153: 0 | N153: 19706084.59 | O153: 2026 | P153: Q3 | Q153: 2029 | R153: Q2 | S153: 2027 | T153: Q3 | U153: 1189.980954 | V153: 1642173.716 | W153: 0.1189980954 | X153: 1.642173716 | Y153: 양식2 | Z153: 1380 | AA153: 1 | AB153: KRW | AC153: 19706084.59 | AD153: x | AE153: 1 | AF153: 식 | AO153: 지하수/함양량 및 개발가능량 | AP153: 2급 | AQ153: 일반 | AR153: 국외 | AS153: 14 | AT153: 1.166666667 | AU153: 국외(3회차) : 중간보고
A154: 2026-00048 | B154: 1. 수자원에 대한 데이터기반 관리 및 연구 역량 향상으로 과학적 정책 수립 및 이행 | C154: 1.1. 제공된 통합수자원관리 컨설팅 | D154: 1.1.1. 지하수 통합관리 마스터플랜 수립 | E154: 계약1 | F154: 1. 수자원에 대한 데이터기반 관리 및 연구 역량 향상으로 과학적 정책 수립 및 이행 | G154: 1.1. 제공된 통합수자원관리 컨설팅 | H154: 1.1.1. 지하수 통합관리 마스터플랜 수립 | I154: 계약1 | J154: 전문가 파견 | K154: 인건비관련 | M154: 0 | N154: 19706084.59 | O154: 2026 | P154: Q3 | Q154: 2029 | R154: Q2 | S154: 2027 | T154: Q3 | U154: 1189.980954 | V154: 1642173.716 | W154: 0.1189980954 | X154: 1.642173716 | Y154: 양식2 | Z154: 1380 | AA154: 1 | AB154: KRW | AC154: 19706084.59 | AD154: x | AE154: 1 | AF154: 식 | AO154: 지하수/함양량 및 개발가능량 | AP154: 2급 | AQ154: 일반 | AR154: 국외 | AS154: 14 | AT154: 1.166666667 | AU154: 국외(4회차) : 보완조사
A155: 2026-00048 | B155: 1. 수자원에 대한 데이터기반 관리 및 연구 역량 향상으로 과학적 정책 수립 및 이행 | C155: 1.1. 제공된 통합수자원관리 컨설팅 | D155: 1.1.1. 지하수 통합관리 마스터플랜 수립 | E155: 계약1 | F155: 1. 수자원에 대한 데이터기반 관리 및 연구 역량 향상으로 과학적 정책 수립 및 이행 | G155: 1.1. 제공된 통합수자원관리 컨설팅 | H155: 1.1.1. 지하수 통합관리 마스터플랜 수립 | I155: 계약1 | J155: 전문가 파견 | K155: 인건비관련 | M155: 0 | N155: 19706084.59 | O155: 2026 | P155: Q3 | Q155: 2029 | R155: Q2 | S155: 2027 | T155: Q3 | U155: 1189.980954 | V155: 1642173.716 | W155: 0.1189980954 | X155: 1.642173716 | Y155: 양식2 | Z155: 1380 | AA155: 1 | AB155: KRW | AC155: 19706084.59 | AD155: x | AE155: 1 | AF155: 식 | AO155: 지하수/함양량 및 개발가능량 | AP155: 2급 | AQ155: 일반 | AR155: 국외 | AS155: 14 | AT155: 1.166666667 | AU155: 국외(5회차) : 최종안보고
A156: 2026-00048 | B156: 1. 수자원에 대한 데이터기반 관리 및 연구 역량 향상으로 과학적 정책 수립 및 이행 | C156: 1.1. 제공된 통합수자원관리 컨설팅 | D156: 1.1.1. 지하수 통합관리 마스터플랜 수립 | E156: 계약1 | F156: 1. 수자원에 대한 데이터기반 관리 및 연구 역량 향상으로 과학적 정책 수립 및 이행 | G156: 1.1. 제공된 통합수자원관리 컨설팅 | H156: 1.1.1. 지하수 통합관리 마스터플랜 수립 | I156: 계약1 | J156: 전문가 파견 | K156: 인건비관련 | M156: 0 | N156: 19706084.59 | O156: 2026 | P156: Q3 | Q156: 2029 | R156: Q2 | S156: 2027 | T156: Q3 | U156: 1189.980954 | V156: 1642173.716 | W156: 0.1189980954 | X156: 1.642173716 | Y156: 양식2 | Z156: 1380 | AA156: 1 | AB156: KRW | AC156: 19706084.59 | AD156: x | AE156: 1 | AF156: 식 | AO156: 지하수/함양량 및 개발가능량 | AP156: 2급 | AQ156: 일반 | AR156: 국외 | AS156: 14 | AT156: 1.166666667 | AU156: 국외(6회차) : 보완 및 최종보고
A157: 2026-00048 | B157: 1. 수자원에 대한 데이터기반 관리 및 연구 역량 향상으로 과학적 정책 수립 및 이행 | C157: 1.1. 제공된 통합수자원관리 컨설팅 | D157: 1.1.1. 지하수 통합관리 마스터플랜 수립 | E157: 계약1 | F157: 1. 수자원에 대한 데이터기반 관리 및 연구 역량 향상으로 과학적 정책 수립 및 이행 | G157: 1.1. 제공된 통합수자원관리 컨설팅 | H157: 1.1.1. 지하수 통합관리 마스터플랜 수립 | I157: 계약1 | J157: 전문가 파견 | K157: 인건비관련 | M157: 0 | N157: 38220000 | O157: 2026 | P157: Q3 | Q157: 2029 | R157: Q2 | S157: 2027 | T157: Q3 | U157: 2307.971014 | V157: 3185000 | W157: 0.2307971014 | X157: 3.185 | Y157: 양식2 | Z157: 1380 | AA157: 1 | AB157: KRW | AC157: 38220000 | AD157: x | AE157: 1 | AF157: 식 | AO157: 지하수/조사 및 개발 | AP157: 3급 | AQ157: 일반 | AR157: 국내 | AS157: 50 | AT157: 4.166666667 | AU157: 국내
A158: 2026-00048 | B158: 1. 수자원에 대한 데이터기반 관리 및 연구 역량 향상으로 과학적 정책 수립 및 이행 | C158: 1.1. 제공된 통합수자원관리 컨설팅 | D158: 1.1.1. 지하수 통합관리 마스터플랜 수립 | E158: 계약1 | F158: 1. 수자원에 대한 데이터기반 관리 및 연구 역량 향상으로 과학적 정책 수립 및 이행 | G158: 1.1. 제공된 통합수자원관리 컨설팅 | H158: 1.1.1. 지하수 통합관리 마스터플랜 수립 | I158: 계약1 | J158: 전문가 파견 | K158: 인건비관련 | M158: 0 | N158: 16799264.59 | O158: 2026 | P158: Q3 | Q158: 2029 | R158: Q2 | S158: 2027 | T158: Q3 | U158: 1014.448345 | V158: 1399938.716 | W158: 0.1014448345 | X158: 1.399938716 | Y158: 양식2 | Z158: 1380 | AA158: 1 | AB158: KRW | AC158: 16799264.59 | AD158: x | AE158: 1 | AF158: 식 | AO158: 지하수/조사 및 개발 | AP158: 3급 | AQ158: 일반 | AR158: 국외 | AS158: 14 | AT158: 1.166666667 | AU158: 국외(1회차) : 착수조사
A159: 2026-00048 | B159: 1. 수자원에 대한 데이터기반 관리 및 연구 역량 향상으로 과학적 정책 수립 및 이행 | C159: 1.1. 제공된 통합수자원관리 컨설팅 | D159: 1.1.1. 지하수 통합관리 마스터플랜 수립 | E159: 계약1 | F159: 1. 수자원에 대한 데이터기반 관리 및 연구 역량 향상으로 과학적 정책 수립 및 이행 | G159: 1.1. 제공된 통합수자원관리 컨설팅 | H159: 1.1.1. 지하수 통합관리 마스터플랜 수립 | I159: 계약1 | J159: 전문가 파견 | K159: 인건비관련 | M159: 0 | N159: 16799264.59 | O159: 2026 | P159: Q3 | Q159: 2029 | R159: Q2 | S159: 2027 | T159: Q3 | U159: 1014.448345 | V159: 1399938.716 | W159: 0.1014448345 | X159: 1.399938716 | Y159: 양식2 | Z159: 1380 | AA159: 1 | AB159: KRW | AC159: 16799264.59 | AD159: x | AE159: 1 | AF159: 식 | AO159: 지하수/조사 및 개발 | AP159: 3급 | AQ159: 일반 | AR159: 국외 | AS159: 14 | AT159: 1.166666667 | AU159: 국외(2회차) : 현황조사
A160: 2026-00048 | B160: 1. 수자원에 대한 데이터기반 관리 및 연구 역량 향상으로 과학적 정책 수립 및 이행 | C160: 1.1. 제공된 통합수자원관리 컨설팅 | D160: 1.1.1. 지하수 통합관리 마스터플랜 수립 | E160: 계약1 | F160: 1. 수자원에 대한 데이터기반 관리 및 연구 역량 향상으로 과학적 정책 수립 및 이행 | G160: 1.1. 제공된 통합수자원관리 컨설팅 | H160: 1.1.1. 지하수 통합관리 마스터플랜 수립 | I160: 계약1 | J160: 전문가 파견 | K160: 인건비관련 | M160: 0 | N160: 16799264.59 | O160: 2026 | P160: Q3 | Q160: 2029 | R160: Q2 | S160: 2027 | T160: Q3 | U160: 1014.448345 | V160: 1399938.716 | W160: 0.1014448345 | X160: 1.399938716 | Y160: 양식2 | Z160: 1380 | AA160: 1 | AB160: KRW | AC160: 16799264.59 | AD160: x | AE160: 1 | AF160: 식 | AO160: 지하수/조사 및 개발 | AP160: 3급 | AQ160: 일반 | AR160: 국외 | AS160: 14 | AT160: 1.166666667 | AU160: 국외(3회차) : 중간보고
A161: 2026-00048 | B161: 1. 수자원에 대한 데이터기반 관리 및 연구 역량 향상으로 과학적 정책 수립 및 이행 | C161: 1.1. 제공된 통합수자원관리 컨설팅 | D161: 1.1.1. 지하수 통합관리 마스터플랜 수립 | E161: 계약1 | F161: 1. 수자원에 대한 데이터기반 관리 및 연구 역량 향상으로 과학적 정책 수립 및 이행 | G161: 1.1. 제공된 통합수자원관리 컨설팅 | H161: 1.1.1. 지하수 통합관리 마스터플랜 수립 | I161: 계약1 | J161: 전문가 파견 | K161: 인건비관련 | M161: 0 | N161: 16799264.59 | O161: 2026 | P161: Q3 | Q161: 2029 | R161: Q2 | S161: 2027 | T161: Q3 | U161: 1014.448345 | V161: 1399938.716 | W161: 0.1014448345 | X161: 1.399938716 | Y161: 양식2 | Z161: 1380 | AA161: 1 | AB161: KRW | AC161: 16799264.59 | AD161: x | AE161: 1 | AF161: 식 | AO161: 지하수/조사 및 개발 | AP161: 3급 | AQ161: 일반 | AR161: 국외 | AS161: 14 | AT161: 1.166666667 | AU161: 국외(4회차) : 보완조사
A162: 2026-00048 | B162: 1. 수자원에 대한 데이터기반 관리 및 연구 역량 향상으로 과학적 정책 수립 및 이행 | C162: 1.1. 제공된 통합수자원관리 컨설팅 | D162: 1.1.1. 지하수 통합관리 마스터플랜 수립 | E162: 계약1 | F162: 1. 수자원에 대한 데이터기반 관리 및 연구 역량 향상으로 과학적 정책 수립 및 이행 | G162: 1.1. 제공된 통합수자원관리 컨설팅 | H162: 1.1.1. 지하수 통합관리 마스터플랜 수립 | I162: 계약1 | J162: 전문가 파견 | K162: 인건비관련 | M162: 0 | N162: 16799264.59 | O162: 2026 | P162: Q3 | Q162: 2029 | R162: Q2 | S162: 2027 | T162: Q3 | U162: 1014.448345 | V162: 1399938.716 | W162: 0.1014448345 | X162: 1.399938716 | Y162: 양식2 | Z162: 1380 | AA162: 1 | AB162: KRW | AC162: 16799264.59 | AD162: x | AE162: 1 | AF162: 식 | AO162: 지하수/조사 및 개발 | AP162: 3급 | AQ162: 일반 | AR162: 국외 | AS162: 14 | AT162: 1.166666667 | AU162: 국외(5회차) : 최종안보고
A163: 2026-00048 | B163: 1. 수자원에 대한 데이터기반 관리 및 연구 역량 향상으로 과학적 정책 수립 및 이행 | C163: 1.1. 제공된 통합수자원관리 컨설팅 | D163: 1.1.1. 지하수 통합관리 마스터플랜 수립 | E163: 계약1 | F163: 1. 수자원에 대한 데이터기반 관리 및 연구 역량 향상으로 과학적 정책 수립 및 이행 | G163: 1.1. 제공된 통합수자원관리 컨설팅 | H163: 1.1.1. 지하수 통합관리 마스터플랜 수립 | I163: 계약1 | J163: 전문가 파견 | K163: 인건비관련 | M163: 0 | N163: 38220000 | O163: 2026 | P163: Q3 | Q163: 2029 | R163: Q2 | S163: 2027 | T163: Q3 | U163: 2307.971014 | V163: 3185000 | W163: 0.2307971014 | X163: 3.185 | Y163: 양식2 | Z163: 1380 | AA163: 1 | AB163: KRW | AC163: 38220000 | AD163: x | AE163: 1 | AF163: 식 | AO163: 지하수/관측 및 정보화 | AP163: 3급 | AQ163: 일반 | AR163: 국내 | AS163: 50 | AT163: 4.166666667 | AU163: 국내
A164: 2026-00048 | B164: 1. 수자원에 대한 데이터기반 관리 및 연구 역량 향상으로 과학적 정책 수립 및 이행 | C164: 1.1. 제공된 통합수자원관리 컨설팅 | D164: 1.1.1. 지하수 통합관리 마스터플랜 수립 | E164: 계약1 | F164: 1. 수자원에 대한 데이터기반 관리 및 연구 역량 향상으로 과학적 정책 수립 및 이행 | G164: 1.1. 제공된 통합수자원관리 컨설팅 | H164: 1.1.1. 지하수 통합관리 마스터플랜 수립 | I164: 계약1 | J164: 전문가 파견 | K164: 인건비관련 | M164: 0 | N164: 16799264.59 | O164: 2026 | P164: Q3 | Q164: 2029 | R164: Q2 | S164: 2027 | T164: Q3 | U164: 1014.448345 | V164: 1399938.716 | W164: 0.1014448345 | X164: 1.399938716 | Y164: 양식2 | Z164: 1380 | AA164: 1 | AB164: KRW | AC164: 16799264.59 | AD164: x | AE164: 1 | AF164: 식 | AO164: 지하수/관측 및 정보화 | AP164: 3급 | AQ164: 일반 | AR164: 국외 | AS164: 14 | AT164: 1.166666667 | AU164: 국외(1회차) : 착수조사
A165: 2026-00048 | B165: 1. 수자원에 대한 데이터기반 관리 및 연구 역량 향상으로 과학적 정책 수립 및 이행 | C165: 1.1. 제공된 통합수자원관리 컨설팅 | D165: 1.1.1. 지하수 통합관리 마스터플랜 수립 | E165: 계약1 | F165: 1. 수자원에 대한 데이터기반 관리 및 연구 역량 향상으로 과학적 정책 수립 및 이행 | G165: 1.1. 제공된 통합수자원관리 컨설팅 | H165: 1.1.1. 지하수 통합관리 마스터플랜 수립 | I165: 계약1 | J165: 전문가 파견 | K165: 인건비관련 | M165: 0 | N165: 16799264.59 | O165: 2026 | P165: Q3 | Q165: 2029 | R165: Q2 | S165: 2027 | T165: Q3 | U165: 1014.448345 | V165: 1399938.716 | W165: 0.1014448345 | X165: 1.399938716 | Y165: 양식2 | Z165: 1380 | AA165: 1 | AB165: KRW | AC165: 16799264.59 | AD165: x | AE165: 1 | AF165: 식 | AO165: 지하수/관측 및 정보화 | AP165: 3급 | AQ165: 일반 | AR165: 국외 | AS165: 14 | AT165: 1.166666667 | AU165: 국외(2회차) : 현황조사
A166: 2026-00048 | B166: 1. 수자원에 대한 데이터기반 관리 및 연구 역량 향상으로 과학적 정책 수립 및 이행 | C166: 1.1. 제공된 통합수자원관리 컨설팅 | D166: 1.1.1. 지하수 통합관리 마스터플랜 수립 | E166: 계약1 | F166: 1. 수자원에 대한 데이터기반 관리 및 연구 역량 향상으로 과학적 정책 수립 및 이행 | G166: 1.1. 제공된 통합수자원관리 컨설팅 | H166: 1.1.1. 지하수 통합관리 마스터플랜 수립 | I166: 계약1 | J166: 전문가 파견 | K166: 인건비관련 | M166: 0 | N166: 16799264.59 | O166: 2026 | P166: Q3 | Q166: 2029 | R166: Q2 | S166: 2027 | T166: Q3 | U166: 1014.448345 | V166: 1399938.716 | W166: 0.1014448345 | X166: 1.399938716 | Y166: 양식2 | Z166: 1380 | AA166: 1 | AB166: KRW | AC166: 16799264.59 | AD166: x | AE166: 1 | AF166: 식 | AO166: 지하수/관측 및 정보화 | AP166: 3급 | AQ166: 일반 | AR166: 국외 | AS166: 14 | AT166: 1.166666667 | AU166: 국외(3회차) : 중간보고
A167: 2026-00048 | B167: 1. 수자원에 대한 데이터기반 관리 및 연구 역량 향상으로 과학적 정책 수립 및 이행 | C167: 1.1. 제공된 통합수자원관리 컨설팅 | D167: 1.1.1. 지하수 통합관리 마스터플랜 수립 | E167: 계약1 | F167: 1. 수자원에 대한 데이터기반 관리 및 연구 역량 향상으로 과학적 정책 수립 및 이행 | G167: 1.1. 제공된 통합수자원관리 컨설팅 | H167: 1.1.1. 지하수 통합관리 마스터플랜 수립 | I167: 계약1 | J167: 전문가 파견 | K167: 인건비관련 | M167: 0 | N167: 16799264.59 | O167: 2026 | P167: Q3 | Q167: 2029 | R167: Q2 | S167: 2027 | T167: Q3 | U167: 1014.448345 | V167: 1399938.716 | W167: 0.1014448345 | X167: 1.399938716 | Y167: 양식2 | Z167: 1380 | AA167: 1 | AB167: KRW | AC167: 16799264.59 | AD167: x | AE167: 1 | AF167: 식 | AO167: 지하수/관측 및 정보화 | AP167: 3급 | AQ167: 일반 | AR167: 국외 | AS167: 14 | AT167: 1.166666667 | AU167: 국외(4회차) : 보완조사
A168: 2026-00048 | B168: 1. 수자원에 대한 데이터기반 관리 및 연구 역량 향상으로 과학적 정책 수립 및 이행 | C168: 1.1. 제공된 통합수자원관리 컨설팅 | D168: 1.1.1. 지하수 통합관리 마스터플랜 수립 | E168: 계약1 | F168: 1. 수자원에 대한 데이터기반 관리 및 연구 역량 향상으로 과학적 정책 수립 및 이행 | G168: 1.1. 제공된 통합수자원관리 컨설팅 | H168: 1.1.1. 지하수 통합관리 마스터플랜 수립 | I168: 계약1 | J168: 전문가 파견 | K168: 인건비관련 | M168: 0 | N168: 16799264.59 | O168: 2026 | P168: Q3 | Q168: 2029 | R168: Q2 | S168: 2027 | T168: Q3 | U168: 1014.448345 | V168: 1399938.716 | W168: 0.1014448345 | X168: 1.399938716 | Y168: 양식2 | Z168: 1380 | AA168: 1 | AB168: KRW | AC168: 16799264.59 | AD168: x | AE168: 1 | AF168: 식 | AO168: 지하수/관측 및 정보화 | AP168: 3급 | AQ168: 일반 | AR168: 국외 | AS168: 14 | AT168: 1.166666667 | AU168: 국외(5회차) : 최종안보고
A169: 2026-00048 | B169: 1. 수자원에 대한 데이터기반 관리 및 연구 역량 향상으로 과학적 정책 수립 및 이행 | C169: 1.1. 제공된 통합수자원관리 컨설팅 | D169: 1.1.1. 지하수 통합관리 마스터플랜 수립 | E169: 계약1 | F169: 1. 수자원에 대한 데이터기반 관리 및 연구 역량 향상으로 과학적 정책 수립 및 이행 | G169: 1.1. 제공된 통합수자원관리 컨설팅 | H169: 1.1.1. 지하수 통합관리 마스터플랜 수립 | I169: 계약1 | J169: 전문가 파견 | K169: 인건비관련 | M169: 0 | N169: 27342000 | O169: 2026 | P169: Q3 | Q169: 2029 | R169: Q2 | S169: 2027 | T169: Q4 | U169: 1651.086957 | V169: 2278500 | W169: 0.1651086957 | X169: 2.2785 | Y169: 양식2 | Z169: 1380 | AA169: 1 | AB169: KRW | AC169: 27342000 | AD169: x | AE169: 1 | AF169: 식 | AO169: 수자원/법제도 | AP169: 2급 | AQ169: 주요 | AR169: 국내 | AS169: 30 | AT169: 2.5 | AU169: 국내
A170: 2026-00048 | B170: 1. 수자원에 대한 데이터기반 관리 및 연구 역량 향상으로 과학적 정책 수립 및 이행 | C170: 1.1. 제공된 통합수자원관리 컨설팅 | D170: 1.1.1. 지하수 통합관리 마스터플랜 수립 | E170: 계약1 | F170: 1. 수자원에 대한 데이터기반 관리 및 연구 역량 향상으로 과학적 정책 수립 및 이행 | G170: 1.1. 제공된 통합수자원관리 컨설팅 | H170: 1.1.1. 지하수 통합관리 마스터플랜 수립 | I170: 계약1 | J170: 전문가 파견 | K170: 인건비관련 | M170: 0 | N170: 19706084.59 | O170: 2026 | P170: Q3 | Q170: 2029 | R170: Q2 | S170: 2027 | T170: Q4 | U170: 1189.980954 | V170: 1642173.716 | W170: 0.1189980954 | X170: 1.642173716 | Y170: 양식2 | Z170: 1380 | AA170: 1 | AB170: KRW | AC170: 19706084.59 | AD170: x | AE170: 1 | AF170: 식 | AO170: 수자원/법제도 | AP170: 2급 | AQ170: 주요 | AR170: 국외 | AS170: 14 | AT170: 1.166666667 | AU170: 국외(1회차) : 지하수 법제도 초안
A171: 2026-00048 | B171: 1. 수자원에 대한 데이터기반 관리 및 연구 역량 향상으로 과학적 정책 수립 및 이행 | C171: 1.1. 제공된 통합수자원관리 컨설팅 | D171: 1.1.1. 지하수 통합관리 마스터플랜 수립 | E171: 계약1 | F171: 1. 수자원에 대한 데이터기반 관리 및 연구 역량 향상으로 과학적 정책 수립 및 이행 | G171: 1.1. 제공된 통합수자원관리 컨설팅 | H171: 1.1.1. 지하수 통합관리 마스터플랜 수립 | I171: 계약1 | J171: 전문가 파견 | K171: 인건비관련 | M171: 0 | N171: 19706084.59 | O171: 2026 | P171: Q3 | Q171: 2029 | R171: Q2 | S171: 2027 | T171: Q4 | U171: 1189.980954 | V171: 1642173.716 | W171: 0.1189980954 | X171: 1.642173716 | Y171: 양식2 | Z171: 1380 | AA171: 1 | AB171: KRW | AC171: 19706084.59 | AD171: x | AE171: 1 | AF171: 식 | AO171: 수자원/법제도 | AP171: 2급 | AQ171: 주요 | AR171: 국외 | AS171: 14 | AT171: 1.166666667 | AU171: 국외(2회차) : 지하수 관측(MP) 총괄
A172: 2026-00048 | B172: 1. 수자원에 대한 데이터기반 관리 및 연구 역량 향상으로 과학적 정책 수립 및 이행 | C172: 1.1. 제공된 통합수자원관리 컨설팅 | D172: 1.1.1. 지하수 통합관리 마스터플랜 수립 | E172: 계약1 | F172: 1. 수자원에 대한 데이터기반 관리 및 연구 역량 향상으로 과학적 정책 수립 및 이행 | G172: 1.1. 제공된 통합수자원관리 컨설팅 | H172: 1.1.1. 지하수 통합관리 마스터플랜 수립 | I172: 계약1 | J172: 전문가 파견 | K172: 인건비관련 | M172: 0 | N172: 19706084.59 | O172: 2026 | P172: Q3 | Q172: 2029 | R172: Q2 | S172: 2027 | T172: Q4 | U172: 1189.980954 | V172: 1642173.716 | W172: 0.1189980954 | X172: 1.642173716 | Y172: 양식2 | Z172: 1380 | AA172: 1 | AB172: KRW | AC172: 19706084.59 | AD172: x | AE172: 1 | AF172: 식 | AO172: 수자원/법제도 | AP172: 2급 | AQ172: 주요 | AR172: 국외 | AS172: 14 | AT172: 1.166666667 | AU172: 국외(3회차) : 지하수 법제도 확정
A173: 2026-00048 | B173: 1. 수자원에 대한 데이터기반 관리 및 연구 역량 향상으로 과학적 정책 수립 및 이행 | C173: 1.1. 제공된 통합수자원관리 컨설팅 | D173: 1.1.1. 지하수 통합관리 마스터플랜 수립 | E173: 계약1 | F173: 1. 수자원에 대한 데이터기반 관리 및 연구 역량 향상으로 과학적 정책 수립 및 이행 | G173: 1.1. 제공된 통합수자원관리 컨설팅 | H173: 1.1.1. 지하수 통합관리 마스터플랜 수립 | I173: 계약1 | J173: 전문가 파견 | K173: 인건비관련 | M173: 0 | N173: 72912000 | O173: 2026 | P173: Q3 | Q173: 2029 | R173: Q2 | S173: 2027 | T173: Q4 | U173: 4402.898551 | V173: 6076000 | W173: 0.4402898551 | X173: 6.076 | Y173: 양식2 | Z173: 1380 | AA173: 1 | AB173: KRW | AC173: 72912000 | AD173: x | AE173: 1 | AF173: 식 | AO173: 지하수/PL | AP173: 2급 | AQ173: 일반 | AR173: 국내 | AS173: 80 | AT173: 6.666666667 | AU173: 국내
A174: 2026-00048 | B174: 1. 수자원에 대한 데이터기반 관리 및 연구 역량 향상으로 과학적 정책 수립 및 이행 | C174: 1.1. 제공된 통합수자원관리 컨설팅 | D174: 1.1.1. 지하수 통합관리 마스터플랜 수립 | E174: 계약1 | F174: 1. 수자원에 대한 데이터기반 관리 및 연구 역량 향상으로 과학적 정책 수립 및 이행 | G174: 1.1. 제공된 통합수자원관리 컨설팅 | H174: 1.1.1. 지하수 통합관리 마스터플랜 수립 | I174: 계약1 | J174: 전문가 파견 | K174: 인건비관련 | M174: 0 | N174: 19706084.59 | O174: 2026 | P174: Q3 | Q174: 2029 | R174: Q2 | S174: 2027 | T174: Q4 | U174: 1189.980954 | V174: 1642173.716 | W174: 0.1189980954 | X174: 1.642173716 | Y174: 양식2 | Z174: 1380 | AA174: 1 | AB174: KRW | AC174: 19706084.59 | AD174: x | AE174: 1 | AF174: 식 | AO174: 지하수/PL | AP174: 2급 | AQ174: 일반 | AR174: 국외 | AS174: 14 | AT174: 1.166666667 | AU174: 국외(1회차) : 지하수 조사(MP) 총괄
A175: 2026-00048 | B175: 1. 수자원에 대한 데이터기반 관리 및 연구 역량 향상으로 과학적 정책 수립 및 이행 | C175: 1.1. 제공된 통합수자원관리 컨설팅 | D175: 1.1.1. 지하수 통합관리 마스터플랜 수립 | E175: 계약1 | F175: 1. 수자원에 대한 데이터기반 관리 및 연구 역량 향상으로 과학적 정책 수립 및 이행 | G175: 1.1. 제공된 통합수자원관리 컨설팅 | H175: 1.1.1. 지하수 통합관리 마스터플랜 수립 | I175: 계약1 | J175: 전문가 파견 | K175: 인건비관련 | M175: 0 | N175: 19706084.59 | O175: 2026 | P175: Q3 | Q175: 2029 | R175: Q2 | S175: 2027 | T175: Q4 | U175: 1189.980954 | V175: 1642173.716 | W175: 0.1189980954 | X175: 1.642173716 | Y175: 양식2 | Z175: 1380 | AA175: 1 | AB175: KRW | AC175: 19706084.59 | AD175: x | AE175: 1 | AF175: 식 | AO175: 지하수/PL | AP175: 2급 | AQ175: 일반 | AR175: 국외 | AS175: 14 | AT175: 1.166666667 | AU175: 국외(2회차) : 지하수 조사(MP) 총괄
A176: 2026-00048 | B176: 1. 수자원에 대한 데이터기반 관리 및 연구 역량 향상으로 과학적 정책 수립 및 이행 | C176: 1.1. 제공된 통합수자원관리 컨설팅 | D176: 1.1.1. 지하수 통합관리 마스터플랜 수립 | E176: 계약1 | F176: 1. 수자원에 대한 데이터기반 관리 및 연구 역량 향상으로 과학적 정책 수립 및 이행 | G176: 1.1. 제공된 통합수자원관리 컨설팅 | H176: 1.1.1. 지하수 통합관리 마스터플랜 수립 | I176: 계약1 | J176: 전문가 파견 | K176: 인건비관련 | M176: 0 | N176: 19706084.59 | O176: 2026 | P176: Q3 | Q176: 2029 | R176: Q2 | S176: 2027 | T176: Q4 | U176: 1189.980954 | V176: 1642173.716 | W176: 0.1189980954 | X176: 1.642173716 | Y176: 양식2 | Z176: 1380 | AA176: 1 | AB176: KRW | AC176: 19706084.59 | AD176: x | AE176: 1 | AF176: 식 | AO176: 지하수/PL | AP176: 2급 | AQ176: 일반 | AR176: 국외 | AS176: 14 | AT176: 1.166666667 | AU176: 국외(3회차) : 지하수 조사(MP) 총괄
A177: 2026-00048 | B177: 1. 수자원에 대한 데이터기반 관리 및 연구 역량 향상으로 과학적 정책 수립 및 이행 | C177: 1.1. 제공된 통합수자원관리 컨설팅 | D177: 1.1.1. 지하수 통합관리 마스터플랜 수립 | E177: 계약1 | F177: 1. 수자원에 대한 데이터기반 관리 및 연구 역량 향상으로 과학적 정책 수립 및 이행 | G177: 1.1. 제공된 통합수자원관리 컨설팅 | H177: 1.1.1. 지하수 통합관리 마스터플랜 수립 | I177: 계약1 | J177: 전문가 파견 | K177: 인건비관련 | M177: 0 | N177: 19706084.59 | O177: 2026 | P177: Q3 | Q177: 2029 | R177: Q2 | S177: 2027 | T177: Q4 | U177: 1189.980954 | V177: 1642173.716 | W177: 0.1189980954 | X177: 1.642173716 | Y177: 양식2 | Z177: 1380 | AA177: 1 | AB177: KRW | AC177: 19706084.59 | AD177: x | AE177: 1 | AF177: 식 | AO177: 지하수/PL | AP177: 2급 | AQ177: 일반 | AR177: 국외 | AS177: 14 | AT177: 1.166666667 | AU177: 국외(4회차) : 지하수 조사(MP) 총괄
A178: 2026-00048 | B178: 1. 수자원에 대한 데이터기반 관리 및 연구 역량 향상으로 과학적 정책 수립 및 이행 | C178: 1.1. 제공된 통합수자원관리 컨설팅 | D178: 1.1.1. 지하수 통합관리 마스터플랜 수립 | E178: 계약1 | F178: 1. 수자원에 대한 데이터기반 관리 및 연구 역량 향상으로 과학적 정책 수립 및 이행 | G178: 1.1. 제공된 통합수자원관리 컨설팅 | H178: 1.1.1. 지하수 통합관리 마스터플랜 수립 | I178: 계약1 | J178: 전문가 파견 | K178: 인건비관련 | M178: 0 | N178: 19706084.59 | O178: 2026 | P178: Q3 | Q178: 2029 | R178: Q2 | S178: 2027 | T178: Q4 | U178: 1189.980954 | V178: 1642173.716 | W178: 0.1189980954 | X178: 1.642173716 | Y178: 양식2 | Z178: 1380 | AA178: 1 | AB178: KRW | AC178: 19706084.59 | AD178: x | AE178: 1 | AF178: 식 | AO178: 지하수/PL | AP178: 2급 | AQ178: 일반 | AR178: 국외 | AS178: 14 | AT178: 1.166666667 | AU178: 국외(5회차) : 지하수 조사(MP) 총괄
A179: 2026-00048 | B179: 1. 수자원에 대한 데이터기반 관리 및 연구 역량 향상으로 과학적 정책 수립 및 이행 | C179: 1.1. 제공된 통합수자원관리 컨설팅 | D179: 1.1.1. 지하수 통합관리 마스터플랜 수립 | E179: 계약1 | F179: 1. 수자원에 대한 데이터기반 관리 및 연구 역량 향상으로 과학적 정책 수립 및 이행 | G179: 1.1. 제공된 통합수자원관리 컨설팅 | H179: 1.1.1. 지하수 통합관리 마스터플랜 수립 | I179: 계약1 | J179: 전문가 파견 | K179: 인건비관련 | M179: 0 | N179: 19706084.59 | O179: 2026 | P179: Q3 | Q179: 2029 | R179: Q2 | S179: 2027 | T179: Q4 | U179: 1189.980954 | V179: 1642173.716 | W179: 0.1189980954 | X179: 1.642173716 | Y179: 양식2 | Z179: 1380 | AA179: 1 | AB179: KRW | AC179: 19706084.59 | AD179: x | AE179: 1 | AF179: 식 | AO179: 지하수/PL | AP179: 2급 | AQ179: 일반 | AR179: 국외 | AS179: 14 | AT179: 1.166666667 | AU179: 국외(6회차) : 지하수 조사(MP) 총괄
A180: 2026-00048 | B180: 1. 수자원에 대한 데이터기반 관리 및 연구 역량 향상으로 과학적 정책 수립 및 이행 | C180: 1.1. 제공된 통합수자원관리 컨설팅 | D180: 1.1.1. 지하수 통합관리 마스터플랜 수립 | E180: 계약1 | F180: 1. 수자원에 대한 데이터기반 관리 및 연구 역량 향상으로 과학적 정책 수립 및 이행 | G180: 1.1. 제공된 통합수자원관리 컨설팅 | H180: 1.1.1. 지하수 통합관리 마스터플랜 수립 | I180: 계약1 | J180: 전문가 파견 | K180: 인건비관련 | M180: 0 | N180: 19706084.59 | O180: 2026 | P180: Q3 | Q180: 2029 | R180: Q2 | S180: 2027 | T180: Q4 | U180: 1189.980954 | V180: 1642173.716 | W180: 0.1189980954 | X180: 1.642173716 | Y180: 양식2 | Z180: 1380 | AA180: 1 | AB180: KRW | AC180: 19706084.59 | AD180: x | AE180: 1 | AF180: 식 | AO180: 지하수/PL | AP180: 2급 | AQ180: 일반 | AR180: 국외 | AS180: 14 | AT180: 1.166666667 | AU180: 국외(7회차) : 지하수 조사(MP) 총괄
A181: 2026-00048 | B181: 1. 수자원에 대한 데이터기반 관리 및 연구 역량 향상으로 과학적 정책 수립 및 이행 | C181: 1.1. 제공된 통합수자원관리 컨설팅 | D181: 1.1.1. 지하수 통합관리 마스터플랜 수립 | E181: 계약1 | F181: 1. 수자원에 대한 데이터기반 관리 및 연구 역량 향상으로 과학적 정책 수립 및 이행 | G181: 1.1. 제공된 통합수자원관리 컨설팅 | H181: 1.1.1. 지하수 통합관리 마스터플랜 수립 | I181: 계약1 | J181: 전문가 파견 | K181: 인건비관련 | M181: 0 | N181: 19706084.59 | O181: 2026 | P181: Q3 | Q181: 2029 | R181: Q2 | S181: 2027 | T181: Q4 | U181: 1189.980954 | V181: 1642173.716 | W181: 0.1189980954 | X181: 1.642173716 | Y181: 양식2 | Z181: 1380 | AA181: 1 | AB181: KRW | AC181: 19706084.59 | AD181: x | AE181: 1 | AF181: 식 | AO181: 지하수/PL | AP181: 2급 | AQ181: 일반 | AR181: 국외 | AS181: 14 | AT181: 1.166666667 | AU181: 국외(8회차) : 지하수 조사(MP) 총괄
A182: 2026-00048 | B182: 1. 수자원에 대한 데이터기반 관리 및 연구 역량 향상으로 과학적 정책 수립 및 이행 | C182: 1.1. 제공된 통합수자원관리 컨설팅 | D182: 1.1.1. 지하수 통합관리 마스터플랜 수립 | E182: 계약1 | F182: 1. 수자원에 대한 데이터기반 관리 및 연구 역량 향상으로 과학적 정책 수립 및 이행 | G182: 1.1. 제공된 통합수자원관리 컨설팅 | H182: 1.1.1. 지하수 통합관리 마스터플랜 수립 | I182: 계약1 | J182: 전문가 파견 | K182: 인건비관련 | M182: 0 | N182: 54684000 | O182: 2026 | P182: Q3 | Q182: 2029 | R182: Q2 | S182: 2027 | T182: Q4 | U182: 3302.173913 | V182: 4557000 | W182: 0.3302173913 | X182: 4.557 | Y182: 양식2 | Z182: 1380 | AA182: 1 | AB182: KRW | AC182: 54684000 | AD182: x | AE182: 1 | AF182: 식 | AO182: 지하수/함양량 및 개발가능량 | AP182: 2급 | AQ182: 일반 | AR182: 국내 | AS182: 60 | AT182: 5 | AU182: 국내
A183: 2026-00048 | B183: 1. 수자원에 대한 데이터기반 관리 및 연구 역량 향상으로 과학적 정책 수립 및 이행 | C183: 1.1. 제공된 통합수자원관리 컨설팅 | D183: 1.1.1. 지하수 통합관리 마스터플랜 수립 | E183: 계약1 | F183: 1. 수자원에 대한 데이터기반 관리 및 연구 역량 향상으로 과학적 정책 수립 및 이행 | G183: 1.1. 제공된 통합수자원관리 컨설팅 | H183: 1.1.1. 지하수 통합관리 마스터플랜 수립 | I183: 계약1 | J183: 전문가 파견 | K183: 인건비관련 | M183: 0 | N183: 19706084.59 | O183: 2026 | P183: Q3 | Q183: 2029 | R183: Q2 | S183: 2027 | T183: Q4 | U183: 1189.980954 | V183: 1642173.716 | W183: 0.1189980954 | X183: 1.642173716 | Y183: 양식2 | Z183: 1380 | AA183: 1 | AB183: KRW | AC183: 19706084.59 | AD183: x | AE183: 1 | AF183: 식 | AO183: 지하수/함양량 및 개발가능량 | AP183: 2급 | AQ183: 일반 | AR183: 국외 | AS183: 14 | AT183: 1.166666667 | AU183: 국외(1회차) : 착수조사
A184: 2026-00048 | B184: 1. 수자원에 대한 데이터기반 관리 및 연구 역량 향상으로 과학적 정책 수립 및 이행 | C184: 1.1. 제공된 통합수자원관리 컨설팅 | D184: 1.1.1. 지하수 통합관리 마스터플랜 수립 | E184: 계약1 | F184: 1. 수자원에 대한 데이터기반 관리 및 연구 역량 향상으로 과학적 정책 수립 및 이행 | G184: 1.1. 제공된 통합수자원관리 컨설팅 | H184: 1.1.1. 지하수 통합관리 마스터플랜 수립 | I184: 계약1 | J184: 전문가 파견 | K184: 인건비관련 | M184: 0 | N184: 19706084.59 | O184: 2026 | P184: Q3 | Q184: 2029 | R184: Q2 | S184: 2027 | T184: Q4 | U184: 1189.980954 | V184: 1642173.716 | W184: 0.1189980954 | X184: 1.642173716 | Y184: 양식2 | Z184: 1380 | AA184: 1 | AB184: KRW | AC184: 19706084.59 | AD184: x | AE184: 1 | AF184: 식 | AO184: 지하수/함양량 및 개발가능량 | AP184: 2급 | AQ184: 일반 | AR184: 국외 | AS184: 14 | AT184: 1.166666667 | AU184: 국외(2회차) : 현황조사
A185: 2026-00048 | B185: 1. 수자원에 대한 데이터기반 관리 및 연구 역량 향상으로 과학적 정책 수립 및 이행 | C185: 1.1. 제공된 통합수자원관리 컨설팅 | D185: 1.1.1. 지하수 통합관리 마스터플랜 수립 | E185: 계약1 | F185: 1. 수자원에 대한 데이터기반 관리 및 연구 역량 향상으로 과학적 정책 수립 및 이행 | G185: 1.1. 제공된 통합수자원관리 컨설팅 | H185: 1.1.1. 지하수 통합관리 마스터플랜 수립 | I185: 계약1 | J185: 전문가 파견 | K185: 인건비관련 | M185: 0 | N185: 19706084.59 | O185: 2026 | P185: Q3 | Q185: 2029 | R185: Q2 | S185: 2027 | T185: Q4 | U185: 1189.980954 | V185: 1642173.716 | W185: 0.1189980954 | X185: 1.642173716 | Y185: 양식2 | Z185: 1380 | AA185: 1 | AB185: KRW | AC185: 19706084.59 | AD185: x | AE185: 1 | AF185: 식 | AO185: 지하수/함양량 및 개발가능량 | AP185: 2급 | AQ185: 일반 | AR185: 국외 | AS185: 14 | AT185: 1.166666667 | AU185: 국외(3회차) : 중간보고
A186: 2026-00048 | B186: 1. 수자원에 대한 데이터기반 관리 및 연구 역량 향상으로 과학적 정책 수립 및 이행 | C186: 1.1. 제공된 통합수자원관리 컨설팅 | D186: 1.1.1. 지하수 통합관리 마스터플랜 수립 | E186: 계약1 | F186: 1. 수자원에 대한 데이터기반 관리 및 연구 역량 향상으로 과학적 정책 수립 및 이행 | G186: 1.1. 제공된 통합수자원관리 컨설팅 | H186: 1.1.1. 지하수 통합관리 마스터플랜 수립 | I186: 계약1 | J186: 전문가 파견 | K186: 인건비관련 | M186: 0 | N186: 19706084.59 | O186: 2026 | P186: Q3 | Q186: 2029 | R186: Q2 | S186: 2027 | T186: Q4 | U186: 1189.980954 | V186: 1642173.716 | W186: 0.1189980954 | X186: 1.642173716 | Y186: 양식2 | Z186: 1380 | AA186: 1 | AB186: KRW | AC186: 19706084.59 | AD186: x | AE186: 1 | AF186: 식 | AO186: 지하수/함양량 및 개발가능량 | AP186: 2급 | AQ186: 일반 | AR186: 국외 | AS186: 14 | AT186: 1.166666667 | AU186: 국외(4회차) : 보완조사
A187: 2026-00048 | B187: 1. 수자원에 대한 데이터기반 관리 및 연구 역량 향상으로 과학적 정책 수립 및 이행 | C187: 1.1. 제공된 통합수자원관리 컨설팅 | D187: 1.1.1. 지하수 통합관리 마스터플랜 수립 | E187: 계약1 | F187: 1. 수자원에 대한 데이터기반 관리 및 연구 역량 향상으로 과학적 정책 수립 및 이행 | G187: 1.1. 제공된 통합수자원관리 컨설팅 | H187: 1.1.1. 지하수 통합관리 마스터플랜 수립 | I187: 계약1 | J187: 전문가 파견 | K187: 인건비관련 | M187: 0 | N187: 19706084.59 | O187: 2026 | P187: Q3 | Q187: 2029 | R187: Q2 | S187: 2027 | T187: Q4 | U187: 1189.980954 | V187: 1642173.716 | W187: 0.1189980954 | X187: 1.642173716 | Y187: 양식2 | Z187: 1380 | AA187: 1 | AB187: KRW | AC187: 19706084.59 | AD187: x | AE187: 1 | AF187: 식 | AO187: 지하수/함양량 및 개발가능량 | AP187: 2급 | AQ187: 일반 | AR187: 국외 | AS187: 14 | AT187: 1.166666667 | AU187: 국외(5회차) : 최종안보고
A188: 2026-00048 | B188: 1. 수자원에 대한 데이터기반 관리 및 연구 역량 향상으로 과학적 정책 수립 및 이행 | C188: 1.1. 제공된 통합수자원관리 컨설팅 | D188: 1.1.1. 지하수 통합관리 마스터플랜 수립 | E188: 계약1 | F188: 1. 수자원에 대한 데이터기반 관리 및 연구 역량 향상으로 과학적 정책 수립 및 이행 | G188: 1.1. 제공된 통합수자원관리 컨설팅 | H188: 1.1.1. 지하수 통합관리 마스터플랜 수립 | I188: 계약1 | J188: 전문가 파견 | K188: 인건비관련 | M188: 0 | N188: 19706084.59 | O188: 2026 | P188: Q3 | Q188: 2029 | R188: Q2 | S188: 2027 | T188: Q4 | U188: 1189.980954 | V188: 1642173.716 | W188: 0.1189980954 | X188: 1.642173716 | Y188: 양식2 | Z188: 1380 | AA188: 1 | AB188: KRW | AC188: 19706084.59 | AD188: x | AE188: 1 | AF188: 식 | AO188: 지하수/함양량 및 개발가능량 | AP188: 2급 | AQ188: 일반 | AR188: 국외 | AS188: 14 | AT188: 1.166666667 | AU188: 국외(6회차) : 보완 및 최종보고
A189: 2026-00048 | B189: 1. 수자원에 대한 데이터기반 관리 및 연구 역량 향상으로 과학적 정책 수립 및 이행 | C189: 1.1. 제공된 통합수자원관리 컨설팅 | D189: 1.1.1. 지하수 통합관리 마스터플랜 수립 | E189: 계약1 | F189: 1. 수자원에 대한 데이터기반 관리 및 연구 역량 향상으로 과학적 정책 수립 및 이행 | G189: 1.1. 제공된 통합수자원관리 컨설팅 | H189: 1.1.1. 지하수 통합관리 마스터플랜 수립 | I189: 계약1 | J189: 전문가 파견 | K189: 인건비관련 | M189: 0 | N189: 38220000 | O189: 2026 | P189: Q3 | Q189: 2029 | R189: Q2 | S189: 2027 | T189: Q4 | U189: 2307.971014 | V189: 3185000 | W189: 0.2307971014 | X189: 3.185 | Y189: 양식2 | Z189: 1380 | AA189: 1 | AB189: KRW | AC189: 38220000 | AD189: x | AE189: 1 | AF189: 식 | AO189: 지하수/조사 및 개발 | AP189: 3급 | AQ189: 일반 | AR189: 국내 | AS189: 50 | AT189: 4.166666667 | AU189: 국내
A190: 2026-00048 | B190: 1. 수자원에 대한 데이터기반 관리 및 연구 역량 향상으로 과학적 정책 수립 및 이행 | C190: 1.1. 제공된 통합수자원관리 컨설팅 | D190: 1.1.1. 지하수 통합관리 마스터플랜 수립 | E190: 계약1 | F190: 1. 수자원에 대한 데이터기반 관리 및 연구 역량 향상으로 과학적 정책 수립 및 이행 | G190: 1.1. 제공된 통합수자원관리 컨설팅 | H190: 1.1.1. 지하수 통합관리 마스터플랜 수립 | I190: 계약1 | J190: 전문가 파견 | K190: 인건비관련 | M190: 0 | N190: 16799264.59 | O190: 2026 | P190: Q3 | Q190: 2029 | R190: Q2 | S190: 2027 | T190: Q4 | U190: 1014.448345 | V190: 1399938.716 | W190: 0.1014448345 | X190: 1.399938716 | Y190: 양식2 | Z190: 1380 | AA190: 1 | AB190: KRW | AC190: 16799264.59 | AD190: x | AE190: 1 | AF190: 식 | AO190: 지하수/조사 및 개발 | AP190: 3급 | AQ190: 일반 | AR190: 국외 | AS190: 14 | AT190: 1.166666667 | AU190: 국외(1회차) : 착수조사
A191: 2026-00048 | B191: 1. 수자원에 대한 데이터기반 관리 및 연구 역량 향상으로 과학적 정책 수립 및 이행 | C191: 1.1. 제공된 통합수자원관리 컨설팅 | D191: 1.1.1. 지하수 통합관리 마스터플랜 수립 | E191: 계약1 | F191: 1. 수자원에 대한 데이터기반 관리 및 연구 역량 향상으로 과학적 정책 수립 및 이행 | G191: 1.1. 제공된 통합수자원관리 컨설팅 | H191: 1.1.1. 지하수 통합관리 마스터플랜 수립 | I191: 계약1 | J191: 전문가 파견 | K191: 인건비관련 | M191: 0 | N191: 16799264.59 | O191: 2026 | P191: Q3 | Q191: 2029 | R191: Q2 | S191: 2027 | T191: Q4 | U191: 1014.448345 | V191: 1399938.716 | W191: 0.1014448345 | X191: 1.399938716 | Y191: 양식2 | Z191: 1380 | AA191: 1 | AB191: KRW | AC191: 16799264.59 | AD191: x | AE191: 1 | AF191: 식 | AO191: 지하수/조사 및 개발 | AP191: 3급 | AQ191: 일반 | AR191: 국외 | AS191: 14 | AT191: 1.166666667 | AU191: 국외(2회차) : 현황조사
A192: 2026-00048 | B192: 1. 수자원에 대한 데이터기반 관리 및 연구 역량 향상으로 과학적 정책 수립 및 이행 | C192: 1.1. 제공된 통합수자원관리 컨설팅 | D192: 1.1.1. 지하수 통합관리 마스터플랜 수립 | E192: 계약1 | F192: 1. 수자원에 대한 데이터기반 관리 및 연구 역량 향상으로 과학적 정책 수립 및 이행 | G192: 1.1. 제공된 통합수자원관리 컨설팅 | H192: 1.1.1. 지하수 통합관리 마스터플랜 수립 | I192: 계약1 | J192: 전문가 파견 | K192: 인건비관련 | M192: 0 | N192: 16799264.59 | O192: 2026 | P192: Q3 | Q192: 2029 | R192: Q2 | S192: 2027 | T192: Q4 | U192: 1014.448345 | V192: 1399938.716 | W192: 0.1014448345 | X192: 1.399938716 | Y192: 양식2 | Z192: 1380 | AA192: 1 | AB192: KRW | AC192: 16799264.59 | AD192: x | AE192: 1 | AF192: 식 | AO192: 지하수/조사 및 개발 | AP192: 3급 | AQ192: 일반 | AR192: 국외 | AS192: 14 | AT192: 1.166666667 | AU192: 국외(3회차) : 중간보고
A193: 2026-00048 | B193: 1. 수자원에 대한 데이터기반 관리 및 연구 역량 향상으로 과학적 정책 수립 및 이행 | C193: 1.1. 제공된 통합수자원관리 컨설팅 | D193: 1.1.1. 지하수 통합관리 마스터플랜 수립 | E193: 계약1 | F193: 1. 수자원에 대한 데이터기반 관리 및 연구 역량 향상으로 과학적 정책 수립 및 이행 | G193: 1.1. 제공된 통합수자원관리 컨설팅 | H193: 1.1.1. 지하수 통합관리 마스터플랜 수립 | I193: 계약1 | J193: 전문가 파견 | K193: 인건비관련 | M193: 0 | N193: 16799264.59 | O193: 2026 | P193: Q3 | Q193: 2029 | R193: Q2 | S193: 2027 | T193: Q4 | U193: 1014.448345 | V193: 1399938.716 | W193: 0.1014448345 | X193: 1.399938716 | Y193: 양식2 | Z193: 1380 | AA193: 1 | AB193: KRW | AC193: 16799264.59 | AD193: x | AE193: 1 | AF193: 식 | AO193: 지하수/조사 및 개발 | AP193: 3급 | AQ193: 일반 | AR193: 국외 | AS193: 14 | AT193: 1.166666667 | AU193: 국외(4회차) : 보완조사
A194: 2026-00048 | B194: 1. 수자원에 대한 데이터기반 관리 및 연구 역량 향상으로 과학적 정책 수립 및 이행 | C194: 1.1. 제공된 통합수자원관리 컨설팅 | D194: 1.1.1. 지하수 통합관리 마스터플랜 수립 | E194: 계약1 | F194: 1. 수자원에 대한 데이터기반 관리 및 연구 역량 향상으로 과학적 정책 수립 및 이행 | G194: 1.1. 제공된 통합수자원관리 컨설팅 | H194: 1.1.1. 지하수 통합관리 마스터플랜 수립 | I194: 계약1 | J194: 전문가 파견 | K194: 인건비관련 | M194: 0 | N194: 16799264.59 | O194: 2026 | P194: Q3 | Q194: 2029 | R194: Q2 | S194: 2027 | T194: Q4 | U194: 1014.448345 | V194: 1399938.716 | W194: 0.1014448345 | X194: 1.399938716 | Y194: 양식2 | Z194: 1380 | AA194: 1 | AB194: KRW | AC194: 16799264.59 | AD194: x | AE194: 1 | AF194: 식 | AO194: 지하수/조사 및 개발 | AP194: 3급 | AQ194: 일반 | AR194: 국외 | AS194: 14 | AT194: 1.166666667 | AU194: 국외(5회차) : 최종안보고
A195: 2026-00048 | B195: 1. 수자원에 대한 데이터기반 관리 및 연구 역량 향상으로 과학적 정책 수립 및 이행 | C195: 1.1. 제공된 통합수자원관리 컨설팅 | D195: 1.1.1. 지하수 통합관리 마스터플랜 수립 | E195: 계약1 | F195: 1. 수자원에 대한 데이터기반 관리 및 연구 역량 향상으로 과학적 정책 수립 및 이행 | G195: 1.1. 제공된 통합수자원관리 컨설팅 | H195: 1.1.1. 지하수 통합관리 마스터플랜 수립 | I195: 계약1 | J195: 전문가 파견 | K195: 인건비관련 | M195: 0 | N195: 38220000 | O195: 2026 | P195: Q3 | Q195: 2029 | R195: Q2 | S195: 2027 | T195: Q4 | U195: 2307.971014 | V195: 3185000 | W195: 0.2307971014 | X195: 3.185 | Y195: 양식2 | Z195: 1380 | AA195: 1 | AB195: KRW | AC195: 38220000 | AD195: x | AE195: 1 | AF195: 식 | AO195: 지하수/관측 및 정보화 | AP195: 3급 | AQ195: 일반 | AR195: 국내 | AS195: 50 | AT195: 4.166666667 | AU195: 국내
A196: 2026-00048 | B196: 1. 수자원에 대한 데이터기반 관리 및 연구 역량 향상으로 과학적 정책 수립 및 이행 | C196: 1.1. 제공된 통합수자원관리 컨설팅 | D196: 1.1.1. 지하수 통합관리 마스터플랜 수립 | E196: 계약1 | F196: 1. 수자원에 대한 데이터기반 관리 및 연구 역량 향상으로 과학적 정책 수립 및 이행 | G196: 1.1. 제공된 통합수자원관리 컨설팅 | H196: 1.1.1. 지하수 통합관리 마스터플랜 수립 | I196: 계약1 | J196: 전문가 파견 | K196: 인건비관련 | M196: 0 | N196: 16799264.59 | O196: 2026 | P196: Q3 | Q196: 2029 | R196: Q2 | S196: 2027 | T196: Q4 | U196: 1014.448345 | V196: 1399938.716 | W196: 0.1014448345 | X196: 1.399938716 | Y196: 양식2 | Z196: 1380 | AA196: 1 | AB196: KRW | AC196: 16799264.59 | AD196: x | AE196: 1 | AF196: 식 | AO196: 지하수/관측 및 정보화 | AP196: 3급 | AQ196: 일반 | AR196: 국외 | AS196: 14 | AT196: 1.166666667 | AU196: 국외(1회차) : 착수조사
A197: 2026-00048 | B197: 1. 수자원에 대한 데이터기반 관리 및 연구 역량 향상으로 과학적 정책 수립 및 이행 | C197: 1.1. 제공된 통합수자원관리 컨설팅 | D197: 1.1.1. 지하수 통합관리 마스터플랜 수립 | E197: 계약1 | F197: 1. 수자원에 대한 데이터기반 관리 및 연구 역량 향상으로 과학적 정책 수립 및 이행 | G197: 1.1. 제공된 통합수자원관리 컨설팅 | H197: 1.1.1. 지하수 통합관리 마스터플랜 수립 | I197: 계약1 | J197: 전문가 파견 | K197: 인건비관련 | M197: 0 | N197: 16799264.59 | O197: 2026 | P197: Q3 | Q197: 2029 | R197: Q2 | S197: 2027 | T197: Q4 | U197: 1014.448345 | V197: 1399938.716 | W197: 0.1014448345 | X197: 1.399938716 | Y197: 양식2 | Z197: 1380 | AA197: 1 | AB197: KRW | AC197: 16799264.59 | AD197: x | AE197: 1 | AF197: 식 | AO197: 지하수/관측 및 정보화 | AP197: 3급 | AQ197: 일반 | AR197: 국외 | AS197: 14 | AT197: 1.166666667 | AU197: 국외(2회차) : 현황조사
A198: 2026-00048 | B198: 1. 수자원에 대한 데이터기반 관리 및 연구 역량 향상으로 과학적 정책 수립 및 이행 | C198: 1.1. 제공된 통합수자원관리 컨설팅 | D198: 1.1.1. 지하수 통합관리 마스터플랜 수립 | E198: 계약1 | F198: 1. 수자원에 대한 데이터기반 관리 및 연구 역량 향상으로 과학적 정책 수립 및 이행 | G198: 1.1. 제공된 통합수자원관리 컨설팅 | H198: 1.1.1. 지하수 통합관리 마스터플랜 수립 | I198: 계약1 | J198: 전문가 파견 | K198: 인건비관련 | M198: 0 | N198: 16799264.59 | O198: 2026 | P198: Q3 | Q198: 2029 | R198: Q2 | S198: 2027 | T198: Q4 | U198: 1014.448345 | V198: 1399938.716 | W198: 0.1014448345 | X198: 1.399938716 | Y198: 양식2 | Z198: 1380 | AA198: 1 | AB198: KRW | AC198: 16799264.59 | AD198: x | AE198: 1 | AF198: 식 | AO198: 지하수/관측 및 정보화 | AP198: 3급 | AQ198: 일반 | AR198: 국외 | AS198: 14 | AT198: 1.166666667 | AU198: 국외(3회차) : 중간보고
A199: 2026-00048 | B199: 1. 수자원에 대한 데이터기반 관리 및 연구 역량 향상으로 과학적 정책 수립 및 이행 | C199: 1.1. 제공된 통합수자원관리 컨설팅 | D199: 1.1.1. 지하수 통합관리 마스터플랜 수립 | E199: 계약1 | F199: 1. 수자원에 대한 데이터기반 관리 및 연구 역량 향상으로 과학적 정책 수립 및 이행 | G199: 1.1. 제공된 통합수자원관리 컨설팅 | H199: 1.1.1. 지하수 통합관리 마스터플랜 수립 | I199: 계약1 | J199: 전문가 파견 | K199: 인건비관련 | M199: 0 | N199: 16799264.59 | O199: 2026 | P199: Q3 | Q199: 2029 | R199: Q2 | S199: 2027 | T199: Q4 | U199: 1014.448345 | V199: 1399938.716 | W199: 0.1014448345 | X199: 1.399938716 | Y199: 양식2 | Z199: 1380 | AA199: 1 | AB199: KRW | AC199: 16799264.59 | AD199: x | AE199: 1 | AF199: 식 | AO199: 지하수/관측 및 정보화 | AP199: 3급 | AQ199: 일반 | AR199: 국외 | AS199: 14 | AT199: 1.166666667 | AU199: 국외(4회차) : 보완조사
A200: 2026-00048 | B200: 1. 수자원에 대한 데이터기반 관리 및 연구 역량 향상으로 과학적 정책 수립 및 이행 | C200: 1.1. 제공된 통합수자원관리 컨설팅 | D200: 1.1.1. 지하수 통합관리 마스터플랜 수립 | E200: 계약1 | F200: 1. 수자원에 대한 데이터기반 관리 및 연구 역량 향상으로 과학적 정책 수립 및 이행 | G200: 1.1. 제공된 통합수자원관리 컨설팅 | H200: 1.1.1. 지하수 통합관리 마스터플랜 수립 | I200: 계약1 | J200: 전문가 파견 | K200: 인건비관련 | M200: 0 | N200: 16799264.59 | O200: 2026 | P200: Q3 | Q200: 2029 | R200: Q2 | S200: 2027 | T200: Q4 | U200: 1014.448345 | V200: 1399938.716 | W200: 0.1014448345 | X200: 1.399938716 | Y200: 양식2 | Z200: 1380 | AA200: 1 | AB200: KRW | AC200: 16799264.59 | AD200: x | AE200: 1 | AF200: 식 | AO200: 지하수/관측 및 정보화 | AP200: 3급 | AQ200: 일반 | AR200: 국외 | AS200: 14 | AT200: 1.166666667 | AU200: 국외(5회차) : 최종안보고
... 2050 more rows

Sheet 사업DB
G1: * POD 작성 시트까지 진행해야 취합/업데이트 기능이 작동합니다
A2: 예산DB | B2: PES | C2: PES | D2: PES | E2: PES | F2: PES | G2: PES | H2: PES | I2: PES | J2: PES | K2: PES | L2: PES | M2: PES | N2: PES | O2: PES | P2: PES | Q2: PES | R2: PES | S2: PES | T2: PES | U2: PES | V2: PES | W2: PES | X2: PES | Y2: PES | Z2: PES | AA2: PES | AB2: PES | AC2: PES | AD2: PES | AE2: PES | AF2: PES | AG2: PES | AH2: PES | AI2: PES | AJ2: PES | AK2: PES | AL2: PES | AM2: PES | AN2: PES | AO2: PES | AP2: PES | AQ2: PES | AR2: PES | AS2: PES | AT2: PES | AU2: PES | AV2: PES | AW2: PES | AX2: PES | AY2: PES | AZ2: PES | BA2: PES | BB2: PES | BC2: PES | BD2: PES | BE2: PES | BF2: PES | BG2: PES | BH2: PES | BI2: PES | BJ2: PES | BK2: PES | BL2: PES | BM2: PES | BN2: PES | BO2: PES | BP2: PES | BQ2: PES | BR2: PES | BS2: PES | BT2: PES | BU2: PES | BV2: PES | BW2: PES | BX2: PES | BY2: PES | BZ2: PES | CA2: PES | CB2: PES | CC2: PES | CD2: PES | CE2: PES | CF2: PES | CG2: PES | CH2: PES | CI2: PES | CJ2: PES | CK2: PES | CL2: PES | CM2: PES | CN2: PES | CO2: PES | CP2: PES | CQ2: PES | CR2: PES | CS2: PES | CT2: PES | CU2: PES | CV2: PES | CW2: PES | CX2: PES | CY2: PES | CZ2: PES | DA2: PES | DB2: PES | DC2: PES | DD2: PES | DE2: PES | DF2: PES | DG2: PES | DH2: PES | DI2: PES | DJ2: PES | DK2: PES | DL2: PES | DM2: PES | DN2: PES | DO2: PES | DP2: PES | DQ2: PES | DR2: PES | DS2: PES | DT2: PES | DU2: PES | DV2: PES | DW2: PES | DX2: PES | DY2: PES | DZ2: PES | EA2: PES | EB2: PES | EC2: PES | ED2: PES | EE2: PES | EF2: PES | EG2: PES | EH2: PES | EI2: PES | EJ2: PES | EK2: PES | EL2: PES | EM2: PES | EN2: PES | EO2: PES | EP2: PES | EQ2: PES | ER2: PES | ES2: PES | ET2: PES | EU2: PES | EV2: PES | EW2: PES | EX2: PES | EY2: PES | EZ2: PES | FA2: PES | FB2: PES | FC2: PES | FD2: PES | FE2: PES | FF2: PES | FG2: PES | FH2: PES | FI2: PES | FJ2: PES | FK2: PES | FL2: PES | FM2: PES | FN2: PES | FO2: PES | FP2: PES | FQ2: PES | FR2: PES | FS2: PES | FT2: PES | FU2: PES | FV2: PES | FW2: PES | FX2: PES | FY2: PES | FZ2: PES | GA2: PES | GB2: PES | GC2: PES | GD2: PES | GE2: PES | GF2: PES | GG2: PES | GH2: PES | GI2: PES | GJ2: PES | GK2: PES | GL2: PES | GM2: PES | GN2: PES | GO2: PES | GP2: PES | GQ2: PES | GR2: PES | GS2: PES | GT2: PES | GU2: PES | GV2: PES | GW2: PES | GX2: PES | GY2: PES | GZ2: PES | HA2: PES | HB2: PES | HC2: PES | HD2: PES | HE2: PES | HF2: PES | HG2: PES | HH2: PES | HI2: PES | HJ2: PES | HK2: PES | HL2: PES | HM2: PES | HN2: PES | HO2: PES | HP2: PES | HQ2: PES | HR2: PES | HS2: PES | HT2: PES | HU2: PES | HV2: PES | HW2: PES | HX2: PES | HY2: PES | HZ2: PES | IA2: PES | IB2: PES | IC2: PES | ID2: PES | IE2: PES | IF2: PES | IG2: PES | IH2: PES | II2: PES | IJ2: PES | IK2: PES | IL2: PES | IM2: PES | IN2: PES | IO2: PES | IP2: PES | IQ2: PES | IR2: PES | IS2: PES | IT2: PES | IU2: PES | IV2: PES | IW2: PES | IX2: PES | IY2: PES | IZ2: PES | JA2: PES | JB2: PES | JC2: PES | JD2: PES | JE2: PES | JF2: PES | JG2: PES | JH2: PES | JI2: PES | JJ2: PES | JK2: PES | JL2: PES | JM2: PES | JN2: PES | JO2: PES | JP2: PES | JQ2: PES | JR2: PES | JS2: PES | JT2: PES | JU2: PES | JV2: PES | JW2: PES | JX2: PES | JY2: PES | JZ2: PES | KA2: PES | KB2: PES | KC2: PES | KD2: PES | KE2: PES | KF2: PES | KG2: PES | KH2: PES | KI2: PES | KJ2: PES | KK2: PES | KL2: PES | KM2: PES | KN2: PES | KO2: PES | KP2: PES | KQ2: PES | KR2: PES | KS2: PES | KT2: PES | KU2: PES | KV2: PES | KW2: PES | KX2: PES | KY2: PES | KZ2: PES | LA2: PES | LB2: PES | LC2: PES | LD2: PES | LE2: PES | LF2: PES | LG2: PES | LH2: PES | LI2: PES | LJ2: PES | LK2: PES | LL2: PES | LM2: PES | LN2: PES | LO2: PES | LP2: PES | LQ2: PES | LR2: PES | LS2: PES | LT2: PES | LU2: PES | LV2: PES | LW2: PES | LX2: PES | LY2: PES | LZ2: PES | MA2: PES | MB2: PDM | MC2: PDM | MD2: PDM | ME2: PDM | MF2: PDM | MG2: PDM | MH2: PDM | MI2: PDM | MJ2: PDM | MK2: PDM | ML2: PDM | MM2: PDM | MN2: PDM | MO2: PDM | MP2: PDM | MQ2: PDM | MR2: PDM | MS2: PDM | MT2: PDM | MU2: PDM | MV2: PDM | MW2: PDM | MX2: PDM | MY2: PDM | MZ2: PDM | NA2: PDM | NB2: PDM | NC2: PDM | ND2: PDM | NE2: PDM | NF2: PDM | NG2: PDM | NH2: PDM | NI2: PDM | NJ2: PDM | NK2: PDM | NL2: PDM | NM2: PDM | NN2: PDM | NO2: PDM | NP2: PDM | NQ2: PDM | NR2: PDM | NS2: PDM | NT2: PDM | NU2: PDM | NV2: PDM | NW2: PDM | NX2: PDM | NY2: PDM | NZ2: PDM | OA2: PDM | OB2: PDM | OC2: PDM | OD2: PDM | OE2: PDM | OF2: PDM | OG2: PDM | OH2: PDM | OI2: PDM | OJ2: PDM | OK2: PDM | OL2: PDM | OM2: PDM | ON2: PDM | OO2: PDM | OP2: PDM | OQ2: PDM | OR2: PDM | OS2: PDM | OT2: PDM | OU2: PDM | OV2: PDM | OW2: PDM | OX2: PDM | OY2: PDM | OZ2: PDM | PA2: PDM | PB2: PDM | PC2: PDM | PD2: PDM | PE2: PDM | PF2: PDM | PG2: PDM | PH2: PDM | PI2: PDM | PJ2: PDM | PK2: PDM | PL2: PDM | PM2: PDM | PN2: PDM | PO2: PDM | PP2: PDM | PQ2: PDM | PR2: PDM | PS2: PDM | PT2: PDM | PU2: PDM | PV2: PDM | PW2: PDM | PX2: PDM | PY2: PDM | PZ2: PDM | QA2: PDM | QB2: PDM | QC2: PDM | QD2: PDM | QE2: PDM | QF2: PDM | QG2: PDM | QH2: PDM | QI2: PDM | QJ2: PDM | QK2: PDM | QL2: PDM | QM2: PDM | QN2: PDM | QO2: PDM | QP2: PDM | QQ2: PDM | QR2: PDM | QS2: PDM | QT2: PDM | QU2: PDM | QV2: PDM | QW2: PDM | QX2: PDM | QY2: PDM | QZ2: PDM | RA2: PDM | RB2: PDM | RC2: PDM | RD2: PDM | RE2: PDM | RF2: PDM | RG2: PDM | RH2: PDM | RI2: PDM | RJ2: PDM | RK2: PDM | RL2: PDM | RM2: PDM | RN2: PDM | RO2: PDM | RP2: PDM | RQ2: PDM | RR2: PDM | RS2: PDM | RT2: PDM | RU2: PDM | RV2: PDM | RW2: PDM | RX2: PDM | RY2: PDM | RZ2: PDM | SA2: PDM | SB2: PDM | SC2: PDM | SD2: PDM | SE2: PDM | SF2: PDM | SG2: PDM | SH2: PDM | SI2: PDM | SJ2: PDM | SK2: PDM | SL2: PDM | SM2: PDM | SN2: PDM | SO2: PDM | SP2: PDM | SQ2: PDM | SR2: PDM | SS2: PDM | ST2: PDM | SU2: PDM | SV2: PDM | SW2: PDM | SX2: PDM | SY2: PDM | SZ2: PDM | TA2: PDM | TB2: PDM | TC2: PDM | TD2: PDM | TE2: PDM | TF2: PDM | TG2: PDM | TH2: PDM | TI2: PDM | TJ2: PDM | TK2: PDM | TL2: PDM | TM2: PDM | TN2: PDM | TO2: PDM | TP2: PDM | TQ2: PDM | TR2: PDM | TS2: PDM | TT2: PDM | TU2: PDM | TV2: PDM | TW2: PDM | TX2: PDM | TY2: PDM | TZ2: PDM | UA2: PDM | UB2: PDM | UC2: PDM | UD2: PDM | UE2: PDM | UF2: PDM | UG2: PDM | UH2: PDM | UI2: PDM | UJ2: PDM | UK2: PDM | UL2: PDM | UM2: PDM | UN2: PDM | UO2: PDM | UP2: PDM | UQ2: PDM | UR2: PDM | US2: PDM | UT2: PDM | UU2: PDM | UV2: PDM | UW2: PDM | UX2: PDM | UY2: PDM | UZ2: PDM | VA2: PDM | VB2: PDM | VC2: PDM | VD2: PDM | VE2: PDM | VF2: PDM | VG2: PDM | VH2: PDM | VI2: PDM | VJ2: PDM | VK2: PDM | VL2: PDM | VM2: PDM | VN2: PDM | VO2: PDM | VP2: PDM | VQ2: PDM | VR2: PDM | VS2: PDM | VT2: PDM | VU2: PDM | VV2: PDM | VW2: PDM | VX2: PDM | VY2: PDM | VZ2: PDM | WA2: PDM | WB2: PDM | WC2: PDM | WD2: PDM | WE2: PDM | WF2: PDM | WG2: PDM | WH2: PDM | WI2: PDM | WJ2: PDM | WK2: PDM | WL2: PDM | WM2: PDM | WN2: PDM | WO2: PDM | WP2: PDM | WQ2: PDM | WR2: PDM | WS2: PDM | WT2: PDM | WU2: PDM | WV2: PDM | WW2: PDM | WX2: PDM | WY2: PDM | WZ2: PDM | XA2: PDM | XB2: PDM | XC2: PDM | XD2: PDM | XE2: PDM | XF2: PDM | XG2: PDM | XH2: PDM | XI2: PDM | XJ2: PDM | XK2: PDM | XL2: PDM | XM2: PDM | XN2: PDM | XO2: PDM | XP2: PDM | XQ2: PDM | XR2: PDM | XS2: PDM | XT2: PDM | XU2: PDM | XV2: PDM | XW2: PDM | XX2: PDM | XY2: PDM | XZ2: PDM | YA2: PDM | YB2: PDM | YC2: PDM | YD2: PDM | YE2: PDM | YF2: PDM | YG2: PDM | YH2: PDM | YI2: PDM | YJ2: PDM | YK2: PDM | YL2: PDM | YM2: PDM | YN2: PDM | YO2: PDM | YP2: PDM | YQ2: PDM | YR2: PDM | YS2: PDM | YT2: PDM | YU2: PDM | YV2: PDM | YW2: POD | YX2: POD | YY2: POD | YZ2: POD | ZA2: POD | ZB2: POD | ZC2: POD | ZD2: POD | ZE2: POD | ZF2: POD | ZG2: POD | ZH2: POD | ZI2: POD | ZJ2: POD | ZK2: POD | ZL2: POD | ZM2: POD | ZN2: POD | ZO2: POD | ZP2: POD | ZQ2: POD | ZR2: POD | ZS2: POD | ZT2: POD | ZU2: POD | ZV2: POD | ZW2: POD | ZX2: POD | ZY2: POD | ZZ2: POD | AAA2: POD | AAB2: POD | AAC2: POD | AAD2: POD | AAE2: POD | AAF2: POD | AAG2: POD | AAH2: POD | AAI2: POD | AAJ2: POD | AAK2: POD | AAL2: POD | AAM2: POD | AAN2: POD | AAO2: POD | AAP2: POD | AAQ2: POD | AAR2: POD | AAS2: POD | AAT2: POD | AAU2: POD | AAV2: POD | AAW2: POD | AAX2: POD | AAY2: POD | AAZ2: POD | ABA2: POD | ABB2: POD | ABC2: POD | ABD2: POD | ABE2: POD | ABF2: POD | ABG2: POD | ABH2: POD | ABI2: POD | ABJ2: POD | ABK2: POD | ABL2: POD | ABM2: POD | ABN2: POD | ABO2: POD | ABP2: POD | ABQ2: POD | ABR2: POD | ABS2: POD | ABT2: POD | ABU2: POD | ABV2: POD | ABW2: POD | ABX2: POD | ABY2: POD | ABZ2: POD | ACA2: POD | ACB2: POD | ACC2: POD | ACD2: POD | ACE2: POD | ACF2: POD | ACG2: POD | ACH2: POD | ACI2: POD | ACJ2: POD | ACK2: POD | ACL2: POD | ACM2: POD | ACN2: POD | ACO2: POD | ACP2: POD | ACQ2: POD | ACR2: POD | ACS2: POD | ACT2: POD | ACU2: POD | ACV2: POD | ACW2: POD | ACX2: POD | ACY2: POD | ACZ2: POD | ADA2: POD | ADB2: POD | ADC2: POD | ADD2: POD | ADE2: POD | ADF2: POD | ADG2: POD | ADH2: POD | ADI2: POD | ADJ2: POD | ADK2: POD | ADL2: POD | ADM2: POD | ADN2: POD | ADO2: POD | ADP2: POD | ADQ2: POD | ADR2: POD | ADS2: POD | ADT2: POD | ADU2: POD | ADV2: POD | ADW2: POD | ADX2: POD | ADY2: POD | ADZ2: POD | AEA2: POD | AEB2: POD | AEC2: POD | AED2: POD | AEE2: POD | AEF2: POD | AEG2: POD | AEH2: POD | AEI2: POD | AEJ2: POD | AEK2: POD | AEL2: POD | AEM2: POD | AEN2: POD | AEO2: POD | AEP2: POD | AEQ2: POD | AER2: POD | AES2: POD | AET2: POD | AEU2: POD | AEV2: POD | AEW2: POD | AEX2: POD | AEY2: POD | AEZ2: POD | AFA2: POD | AFB2: POD | AFC2: POD | AFD2: POD | AFE2: POD | AFF2: POD | AFG2: POD | AFH2: POD | AFI2: POD | AFJ2: POD | AFK2: POD | AFL2: POD | AFM2: POD | AFN2: POD | AFO2: POD | AFP2: POD | AFQ2: POD | AFR2: POD | AFS2: POD | AFT2: POD | AFU2: POD | AFV2: POD | AFW2: POD | AFX2: POD | AFY2: POD | AFZ2: POD | AGA2: POD | AGB2: POD | AGC2: POD | AGD2: POD | AGE2: POD | AGF2: POD | AGG2: POD | AGH2: POD | AGI2: POD | AGJ2: POD | AGK2: POD | AGL2: POD | AGM2: POD | AGN2: POD | AGO2: POD | AGP2: POD | AGQ2: POD | AGR2: POD | AGS2: POD | AGT2: POD | AGU2: POD | AGV2: POD | AGW2: POD | AGX2: POD | AGY2: POD | AGZ2: POD | AHA2: POD | AHB2: POD | AHC2: POD | AHD2: POD | AHE2: POD | AHF2: POD | AHG2: POD | AHH2: POD | AHI2: POD | AHJ2: POD | AHK2: POD | AHL2: POD | AHM2: POD | AHN2: POD | AHO2: POD | AHP2: POD | AHQ2: POD | AHR2: POD | AHS2: POD | AHT2: POD | AHU2: POD | AHV2: POD | AHW2: POD | AHX2: POD | AHY2: POD | AHZ2: POD | AIA2: POD | AIB2: POD | AIC2: POD | AID2: POD | AIE2: POD | AIF2: POD | AIG2: POD | AIH2: POD | AII2: POD | AIJ2: POD | AIK2: POD | AIL2: POD | AIM2: POD | AIN2: POD | AIO2: POD | AIP2: POD | AIQ2: POD | AIR2: POD | AIS2: POD | AIT2: POD | AIU2: POD | AIV2: POD | AIW2: POD | AIX2: POD | AIY2: POD | AIZ2: POD | AJA2: POD | AJB2: POD | AJC2: POD | AJD2: POD | AJE2: POD | AJF2: POD | AJG2: POD | AJH2: POD | AJI2: POD | AJJ2: POD | AJK2: POD | AJL2: POD | AJM2: POD | AJN2: POD | AJO2: POD | AJP2: POD | AJQ2: POD | AJR2: POD | AJS2: POD | AJT2: POD | AJU2: POD | AJV2: POD | AJW2: POD | AJX2: POD | AJY2: POD | AJZ2: POD | AKA2: POD | AKB2: POD | AKC2: POD | AKD2: POD | AKE2: POD | AKF2: POD | AKG2: POD | AKH2: POD | AKI2: POD | AKJ2: POD | AKK2: POD | AKL2: POD | AKM2: POD | AKN2: POD | AKO2: POD | AKP2: POD | AKQ2: POD | AKR2: POD | AKS2: POD | AKT2: POD | AKU2: POD | AKV2: POD | AKW2: POD | AKX2: POD | AKY2: POD | AKZ2: POD | ALA2: POD | ALB2: POD | ALC2: POD | ALD2: POD | ALE2: POD | ALF2: POD | ALG2: POD | ALH2: POD | ALI2: POD | ALJ2: POD | ALK2: POD | ALL2: POD | ALM2: POD | ALN2: POD | ALO2: POD | ALP2: POD | ALQ2: POD | ALR2: POD | ALS2: POD | ALT2: POD | ALU2: POD | ALV2: POD | ALW2: POD | ALX2: POD | ALY2: POD | ALZ2: POD | AMA2: POD | AMB2: POD | AMC2: POD | AMD2: POD | AME2: POD | AMF2: POD | AMG2: POD | AMH2: POD | AMI2: POD | AMJ2: POD | AMK2: POD | AML2: POD | AMM2: POD | AMN2: POD | AMO2: POD | AMP2: POD | AMQ2: POD | AMR2: POD | AMS2: POD | AMT2: POD | AMU2: POD | AMV2: POD | AMW2: POD | AMX2: POD | AMY2: POD | AMZ2: POD | ANA2: POD | ANB2: POD | ANC2: POD | AND2: POD | ANE2: POD | ANF2: POD | ANG2: POD | ANH2: POD | ANI2: POD | ANJ2: POD | ANK2: POD | ANL2: POD | ANM2: POD | ANN2: POD | ANO2: POD | ANP2: POD | ANQ2: POD | ANR2: POD | ANS2: POD | ANT2: POD | ANU2: POD | ANV2: POD | ANW2: POD | ANX2: POD | ANY2: POD | ANZ2: POD | AOA2: POD | AOB2: POD | AOC2: POD | AOD2: POD | AOE2: POD | AOF2: POD | AOG2: POD | AOH2: POD | AOI2: POD | AOJ2: POD | AOK2: POD | AOL2: POD | AOM2: POD | AON2: POD | AOO2: POD | AOP2: POD | AOQ2: POD | AOR2: POD | AOS2: POD | AOT2: POD | AOU2: POD | AOV2: POD | AOW2: POD | AOX2: POD | AOY2: POD | AOZ2: POD | APA2: POD | APB2: POD | APC2: POD | APD2: POD | APE2: POD | APF2: POD
A3: $C$1 | B3: $D$6 | C3: $D$7 | D3: $E$8 | E3: $E$9 | F3: $G$9 | G3: $E$10 | H3: $G$10 | I3: $K$10 | J3: $D$11 | K3: $G$11 | L3: $D$12 | M3: $D$13 | N3: $D$14 | O3: $F$16 | P3: $I$16 | Q3: $K$16 | R3: $E$17 | S3: $G$17 | T3: $E$18 | U3: $H$18 | V3: $K$18 | W3: $E$19 | X3: $E$20 | Y3: $K$20 | Z3: $E$21 | AA3: $E$22 | AB3: $K$22 | AC3: $E$23 | AD3: $F$24 | AE3: $F$25 | AF3: $F$26 | AG3: $F$27 | AH3: $F$28 | AI3: $F$29 | AJ3: $I$29 | AK3: $K$29 | AL3: $G$30 | AM3: $I$30 | AN3: $K$30 | AO3: $G$31 | AP3: $I$31 | AQ3: $K$31 | AR3: $G$32 | AS3: $I$32 | AT3: $K$32 | AU3: $G$33 | AV3: $I$33 | AW3: $K$33 | AX3: $G$34 | AY3: $I$34 | AZ3: $K$34 | BA3: $E$35 | BB3: $G$35 | BC3: $E$36 | BD3: $H$36 | BE3: $E$37 | BF3: $H$37 | BG3: $E$38 | BH3: $E$39 | BI3: $E$40 | BJ3: $E$41 | BK3: $I$41 | BL3: $E$42 | BM3: $H$42 | BN3: $F$43 | BO3: $F$44 | BP3: $F$45 | BQ3: $E$46 | BR3: $E$47 | BS3: $H$47 | BT3: $E$48 | BU3: $H$48 | BV3: $E$49 | BW3: $H$49 | BX3: $E$50 | BY3: $E$51 | BZ3: $E$52 | CA3: $E$54 | CB3: $E$55 | CC3: $E$56 | CD3: $E$57 | CE3: $E$58 | CF3: $E$59 | CG3: $E$60 | CH3: $E$61 | CI3: $E$62 | CJ3: $E$63 | CK3: $E$64 | CL3: $E$65 | CM3: $E$66 | CN3: $E$67 | CO3: $E$68 | CP3: $E$69 | CQ3: $E$70 | CR3: $E$71 | CS3: $E$72 | CT3: $E$73 | CU3: $E$74 | CV3: $E$75 | CW3: $E$76 | CX3: $E$77 | CY3: $E$78 | CZ3: $E$79 | DA3: $E$80 | DB3: $E$81 | DC3: $E$82 | DD3: $E$83 | DE3: $E$85 | DF3: $E$86 | DG3: $E$87 | DH3: $E$88 | DI3: $E$89 | DJ3: $E$90 | DK3: $E$91 | DL3: $E$92 | DM3: $E$93 | DN3: $E$94 | DO3: $D$96 | DP3: $D$97 | DQ3: $D$98 | DR3: $D$99 | DS3: $D$100 | DT3: $D$101 | DU3: $D$102 | DV3: $D$103 | DW3: $D$104 | DX3: $D$105 | DY3: $E$96 | DZ3: $E$97 | EA3: $E$98 | EB3: $E$99 | EC3: $E$100 | ED3: $E$101 | EE3: $E$102 | EF3: $E$103 | EG3: $E$104 | EH3: $E$105 | EI3: $D$106 | EJ3: $D$107 | EK3: $D$108 | EL3: $D$109 | EM3: $D$110 | EN3: $D$111 | EO3: $D$112 | EP3: $D$113 | EQ3: $D$114 | ER3: $D$115 | ES3: $E$106 | ET3: $E$107 | EU3: $E$108 | EV3: $E$109 | EW3: $E$110 | EX3: $E$111 | EY3: $E$112 | EZ3: $E$113 | FA3: $E$114 | FB3: $E$115 | FC3: $E$119 | FD3: $F$119 | FE3: $G$119 | FF3: $H$119 | FG3: $I$119 | FH3: $J$119 | FI3: $K$119 | FJ3: $L$119 | FK3: $M$119 | FL3: $N$119 | FM3: $O$119 | FN3: $P$119 | FO3: $Q$119 | FP3: $R$119 | FQ3: $E$120 | FR3: $F$120 | FS3: $G$120 | FT3: $H$120 | FU3: $I$120 | FV3: $J$120 | FW3: $K$120 | FX3: $L$120 | FY3: $M$120 | FZ3: $N$120 | GA3: $O$120 | GB3: $P$120 | GC3: $Q$120 | GD3: $R$120 | GE3: $E$121 | GF3: $F$121 | GG3: $G$121 | GH3: $H$121 | GI3: $I$121 | GJ3: $J$121 | GK3: $K$121 | GL3: $L$121 | GM3: $M$121 | GN3: $N$121 | GO3: $O$121 | GP3: $P$121 | GQ3: $Q$121 | GR3: $R$121 | GS3: $E$122 | GT3: $F$122 | GU3: $G$122 | GV3: $H$122 | GW3: $I$122 | GX3: $J$122 | GY3: $K$122 | GZ3: $L$122 | HA3: $M$122 | HB3: $N$122 | HC3: $O$122 | HD3: $P$122 | HE3: $Q$122 | HF3: $R$122 | HG3: $E$123 | HH3: $F$123 | HI3: $G$123 | HJ3: $H$123 | HK3: $I$123 | HL3: $J$123 | HM3: $K$123 | HN3: $L$123 | HO3: $M$123 | HP3: $N$123 | HQ3: $O$123 | HR3: $P$123 | HS3: $Q$123 | HT3: $R$123 | HU3: $E$124 | HV3: $F$124 | HW3: $G$124 | HX3: $H$124 | HY3: $I$124 | HZ3: $J$124 | IA3: $K$124 | IB3: $L$124 | IC3: $M$124 | ID3: $N$124 | IE3: $O$124 | IF3: $P$124 | IG3: $Q$124 | IH3: $R$124 | II3: $E$125 | IJ3: $F$125 | IK3: $G$125 | IL3: $H$125 | IM3: $I$125 | IN3: $J$125 | IO3: $K$125 | IP3: $L$125 | IQ3: $M$125 | IR3: $N$125 | IS3: $O$125 | IT3: $P$125 | IU3: $Q$125 | IV3: $R$125 | IW3: $E$126 | IX3: $F$126 | IY3: $G$126 | IZ3: $H$126 | JA3: $I$126 | JB3: $J$126 | JC3: $K$126 | JD3: $L$126 | JE3: $M$126 | JF3: $N$126 | JG3: $O$126 | JH3: $P$126 | JI3: $Q$126 | JJ3: $R$126 | JK3: $E$127 | JL3: $F$127 | JM3: $G$127 | JN3: $H$127 | JO3: $I$127 | JP3: $J$127 | JQ3: $K$127 | JR3: $L$127 | JS3: $M$127 | JT3: $N$127 | JU3: $O$127 | JV3: $P$127 | JW3: $Q$127 | JX3: $R$127 | JY3: $E$128 | JZ3: $F$128 | KA3: $G$128 | KB3: $H$128 | KC3: $I$128 | KD3: $J$128 | KE3: $K$128 | KF3: $L$128 | KG3: $M$128 | KH3: $N$128 | KI3: $O$128 | KJ3: $P$128 | KK3: $Q$128 | KL3: $R$128 | KM3: $E$129 | KN3: $E$130 | KO3: $E$131 | KP3: $D$133 | KQ3: $D$134 | KR3: $D$135 | KS3: $D$136 | KT3: $G$136 | KU3: $E$137 | KV3: $E$138 | KW3: $E$139 | KX3: $F$140 | KY3: $H$140 | KZ3: $J$140 | LA3: $L$140 | LB3: $N$140 | LC3: $P$140 | LD3: $F$141 | LE3: $H$141 | LF3: $J$141 | LG3: $L$141 | LH3: $N$141 | LI3: $P$141 | LJ3: $F$142 | LK3: $H$142 | LL3: $J$142 | LM3: $L$142 | LN3: $N$142 | LO3: $P$142 | LP3: $F$143 | LQ3: $H$143 | LR3: $J$143 | LS3: $L$143 | LT3: $N$143 | LU3: $P$143 | LV3: $F$144 | LW3: $H$144 | LX3: $J$144 | LY3: $L$144 | LZ3: $N$144 | MA3: $P$144 | MB3: $C$7 | MC3: $A$11 | MD3: $F$11 | ME3: $A$13 | MF3: $B$13 | MG3: $C$13 | MH3: $D$13 | MI3: $E$13 | MJ3: $F$13 | MK3: $A$14 | ML3: $B$14 | MM3: $C$14 | MN3: $D$14 | MO3: $E$14 | MP3: $F$14 | MQ3: $A$15 | MR3: $B$15 | MS3: $C$15 | MT3: $D$15 | MU3: $E$15 | MV3: $F$15 | MW3: $A$16 | MX3: $B$16 | MY3: $C$16 | MZ3: $D$16 | NA3: $E$16 | NB3: $F$16 | NC3: $A$17 | ND3: $B$17 | NE3: $C$17 | NF3: $D$17 | NG3: $E$17 | NH3: $F$17 | NI3: $A$18 | NJ3: $B$18 | NK3: $C$18 | NL3: $D$18 | NM3: $E$18 | NN3: $F$18 | NO3: $A$19 | NP3: $B$19 | NQ3: $C$19 | NR3: $D$19 | NS3: $E$19 | NT3: $F$19 | NU3: $A$20 | NV3: $B$20 | NW3: $C$20 | NX3: $D$20 | NY3: $E$20 | NZ3: $F$20 | OA3: $A$21 | OB3: $B$21 | OC3: $C$21 | OD3: $D$21 | OE3: $E$21 | OF3: $F$21 | OG3: $A$22 | OH3: $B$22 | OI3: $C$22 | OJ3: $D$22 | OK3: $E$22 | OL3: $F$22 | OM3: $A$23 | ON3: $B$23 | OO3: $C$23 | OP3: $D$23 | OQ3: $E$23 | OR3: $F$23 | OS3: $A$24 | OT3: $B$24 | OU3: $C$24 | OV3: $D$24 | OW3: $E$24 | OX3: $F$24 | OY3: $A$25 | OZ3: $B$25 | PA3: $C$25 | PB3: $D$25 | PC3: $E$25 | PD3: $F$25 | PE3: $A$26 | PF3: $B$26 | PG3: $C$26 | PH3: $D$26 | PI3: $E$26 | PJ3: $F$26 | PK3: $A$27 | PL3: $B$27 | PM3: $C$27 | PN3: $D$27 | PO3: $E$27 | PP3: $F$27 | PQ3: $A$29 | PR3: $B$29 | PS3: $C$29 | PT3: $D$29 | PU3: $E$29 | PV3: $F$29 | PW3: $A$30 | PX3: $B$30 | PY3: $C$30 | PZ3: $D$30 | QA3: $E$30 | QB3: $F$30 | QC3: $A$31 | QD3: $B$31 | QE3: $C$31 | QF3: $D$31 | QG3: $E$31 | QH3: $F$31 | QI3: $A$32 | QJ3: $B$32 | QK3: $C$32 | QL3: $D$32 | QM3: $E$32 | QN3: $F$32 | QO3: $A$33 | QP3: $B$33 | QQ3: $C$33 | QR3: $D$33 | QS3: $E$33 | QT3: $F$33 | QU3: $A$34 | QV3: $B$34 | QW3: $C$34 | QX3: $D$34 | QY3: $E$34 | QZ3: $F$34 | RA3: $A$35 | RB3: $B$35 | RC3: $C$35 | RD3: $D$35 | RE3: $E$35 | RF3: $F$35 | RG3: $A$36 | RH3: $B$36 | RI3: $C$36 | RJ3: $D$36 | RK3: $E$36 | RL3: $F$36 | RM3: $A$37 | RN3: $B$37 | RO3: $C$37 | RP3: $D$37 | RQ3: $E$37 | RR3: $F$37 | RS3: $A$38 | RT3: $B$38 | RU3: $C$38 | RV3: $D$38 | RW3: $E$38 | RX3: $F$38 | RY3: $A$39 | RZ3: $B$39 | SA3: $C$39 | SB3: $D$39 | SC3: $E$39 | SD3: $F$39 | SE3: $A$40 | SF3: $B$40 | SG3: $C$40 | SH3: $D$40 | SI3: $E$40 | SJ3: $F$40 | SK3: $A$41 | SL3: $B$41 | SM3: $C$41 | SN3: $D$41 | SO3: $E$41 | SP3: $F$41 | SQ3: $A$42 | SR3: $B$42 | SS3: $C$42 | ST3: $D$42 | SU3: $E$42 | SV3: $F$42 | SW3: $A$43 | SX3: $B$43 | SY3: $C$43 | SZ3: $D$43 | TA3: $E$43 | TB3: $F$43 | TC3: $A$44 | TD3: $B$44 | TE3: $C$44 | TF3: $D$44 | TG3: $E$44 | TH3: $F$44 | TI3: $A$45 | TJ3: $B$45 | TK3: $C$45 | TL3: $D$45 | TM3: $E$45 | TN3: $F$45 | TO3: $A$46 | TP3: $B$46 | TQ3: $C$46 | TR3: $D$46 | TS3: $E$46 | TT3: $F$46 | TU3: $A$47 | TV3: $B$47 | TW3: $C$47 | TX3: $D$47 | TY3: $E$47 | TZ3: $F$47 | UA3: $A$48 | UB3: $B$48 | UC3: $C$48 | UD3: $D$48 | UE3: $E$48 | UF3: $F$48 | UG3: $A$49 | UH3: $B$49 | UI3: $C$49 | UJ3: $D$49 | UK3: $E$49 | UL3: $F$49 | UM3: $A$50 | UN3: $B$50 | UO3: $C$50 | UP3: $D$50 | UQ3: $E$50 | UR3: $F$50 | US3: $A$51 | UT3: $B$51 | UU3: $C$51 | UV3: $D$51 | UW3: $E$51 | UX3: $F$51 | UY3: $A$52 | UZ3: $B$52 | VA3: $C$52 | VB3: $D$52 | VC3: $E$52 | VD3: $F$52 | VE3: $A$53 | VF3: $B$53 | VG3: $C$53 | VH3: $D$53 | VI3: $E$53 | VJ3: $F$53 | VK3: $A$54 | VL3: $B$54 | VM3: $C$54 | VN3: $D$54 | VO3: $E$54 | VP3: $F$54 | VQ3: $A$55 | VR3: $B$55 | VS3: $C$55 | VT3: $D$55 | VU3: $E$55 | VV3: $F$55 | VW3: $A$56 | VX3: $B$56 | VY3: $C$56 | VZ3: $D$56 | WA3: $E$56 | WB3: $F$56 | WC3: $A$57 | WD3: $B$57 | WE3: $C$57 | WF3: $D$57 | WG3: $E$57 | WH3: $F$57 | WI3: $A$58 | WJ3: $B$58 | WK3: $C$58 | WL3: $D$58 | WM3: $E$58 | WN3: $F$58 | WO3: $A$60 | WP3: $B$60 | WQ3: $A$61 | WR3: $B$61 | WS3: $A$62 | WT3: $B$62 | WU3: $A$63 | WV3: $B$63 | WW3: $A$64 | WX3: $B$64 | WY3: $A$65 | WZ3: $B$65 | XA3: $A$66 | XB3: $B$66 | XC3: $A$67 | XD3: $B$67 | XE3: $A$68 | XF3: $B$68 | XG3: $A$69 | XH3: $B$69 | XI3: $A$70 | XJ3: $B$70 | XK3: $A$71 | XL3: $B$71 | XM3: $A$72 | XN3: $B$72 | XO3: $A$73 | XP3: $B$73 | XQ3: $A$74 | XR3: $B$74 | XS3: $A$75 | XT3: $B$75 | XU3: $A$76 | XV3: $B$76 | XW3: $A$77 | XX3: $B$77 | XY3: $A$78 | XZ3: $B$78 | YA3: $A$79 | YB3: $B$79 | YC3: $D$60 | YD3: $D$61 | YE3: $E$62 | YF3: $E$63 | YG3: $E$64 | YH3: $E$65 | YI3: $E$66 | YJ3: $E$67 | YK3: $E$68 | YL3: $D$70 | YM3: $D$71 | YN3: $D$72 | YO3: $D$73 | YP3: $D$74 | YQ3: $D$75 | YR3: $D$76 | YS3: $D$77 | YT3: $D$78 | YU3: $D$79 | YV3: $F$60 | YW3: $C$8 | YX3: $C$9 | YY3: $C$10 | YZ3: $C$11 | ZA3: $D$11 | ZB3: $E$11 | ZC3: $C$12 | ZD3: $D$12 | ZE3: $E$12 | ZF3: $C$13 | ZG3: $D$13 | ZH3: $E$13 | ZI3: $C$14 | ZJ3: $D$14 | ZK3: $E$14 | ZL3: $C$15 | ZM3: $D$15 | ZN3: $E$15 | ZO3: $C$16 | ZP3: $D$16 | ZQ3: $E$16 | ZR3: $C$17 | ZS3: $D$17 | ZT3: $E$17 | ZU3: $C$18 | ZV3: $D$18 | ZW3: $E$18 | ZX3: $C$19 | ZY3: $D$19 | ZZ3: $E$19 | AAA3: $C$20 | AAB3: $D$20 | AAC3: $E$20 | AAD3: $C$21 | AAE3: $D$21 | AAF3: $E$21 | AAG3: $C$22 | AAH3: $D$22 | AAI3: $E$22 | AAJ3: $C$23 | AAK3: $D$23 | AAL3: $E$23 | AAM3: $C$24 | AAN3: $D$24 | AAO3: $E$24 | AAP3: $C$25 | AAQ3: $D$25 | AAR3: $E$25 | AAS3: $C$26 | AAT3: $D$26 | AAU3: $E$26 | AAV3: $C$27 | AAW3: $D$27 | AAX3: $E$27 | AAY3: $C$28 | AAZ3: $D$28 | ABA3: $E$28 | ABB3: $C$29 | ABC3: $D$29 | ABD3: $E$29 | ABE3: $C$30 | ABF3: $D$30 | ABG3: $E$30 | ABH3: $C$31 | ABI3: $D$31 | ABJ3: $E$31 | ABK3: $C$32 | ABL3: $D$32 | ABM3: $E$32 | ABN3: $C$33 | ABO3: $D$33 | ABP3: $E$33 | ABQ3: $C$34 | ABR3: $D$34 | ABS3: $E$34 | ABT3: $C$35 | ABU3: $D$35 | ABV3: $E$35 | ABW3: $C$36 | ABX3: $D$36 | ABY3: $E$36 | ABZ3: $C$37 | ACA3: $D$37 | ACB3: $E$37 | ACC3: $C$38 | ACD3: $D$38 | ACE3: $E$38 | ACF3: $C$39 | ACG3: $D$39 | ACH3: $E$39 | ACI3: $C$40 | ACJ3: $D$40 | ACK3: $E$40 | ACL3: $A$44 | ACM3: $B$44 | ACN3: $C$44 | ACO3: $D$44 | ACP3: $E$44 | ACQ3: $F$44 | ACR3: $G$44 | ACS3: $H$44 | ACT3: $I$44 | ACU3: $J$44 | ACV3: $K$44 | ACW3: $A$45 | ACX3: $B$45 | ACY3: $C$45 | ACZ3: $D$45 | ADA3: $E$45 | ADB3: $F$45 | ADC3: $G$45 | ADD3: $H$45 | ADE3: $I$45 | ADF3: $J$45 | ADG3: $K$45 | ADH3: $A$46 | ADI3: $B$46 | ADJ3: $C$46 | ADK3: $D$46 | ADL3: $E$46 | ADM3: $F$46 | ADN3: $G$46 | ADO3: $H$46 | ADP3: $I$46 | ADQ3: $J$46 | ADR3: $K$46 | ADS3: $A$47 | ADT3: $B$47 | ADU3: $C$47 | ADV3: $D$47 | ADW3: $E$47 | ADX3: $F$47 | ADY3: $G$47 | ADZ3: $H$47 | AEA3: $I$47 | AEB3: $J$47 | AEC3: $K$47 | AED3: $A$48 | AEE3: $B$48 | AEF3: $C$48 | AEG3: $D$48 | AEH3: $E$48 | AEI3: $F$48 | AEJ3: $G$48 | AEK3: $H$48 | AEL3: $I$48 | AEM3: $J$48 | AEN3: $K$48 | AEO3: $A$49 | AEP3: $B$49 | AEQ3: $C$49 | AER3: $D$49 | AES3: $E$49 | AET3: $F$49 | AEU3: $G$49 | AEV3: $H$49 | AEW3: $I$49 | AEX3: $J$49 | AEY3: $K$49 | AEZ3: $A$50 | AFA3: $B$50 | AFB3: $C$50 | AFC3: $D$50 | AFD3: $E$50 | AFE3: $F$50 | AFF3: $G$50 | AFG3: $H$50 | AFH3: $I$50 | AFI3: $J$50 | AFJ3: $K$50 | AFK3: $A$51 | AFL3: $B$51 | AFM3: $C$51 | AFN3: $D$51 | AFO3: $E$51 | AFP3: $F$51 | AFQ3: $G$51 | AFR3: $H$51 | AFS3: $I$51 | AFT3: $J$51 | AFU3: $K$51 | AFV3: $A$52 | AFW3: $B$52 | AFX3: $C$52 | AFY3: $D$52 | AFZ3: $E$52 | AGA3: $F$52 | AGB3: $G$52 | AGC3: $H$52 | AGD3: $I$52 | AGE3: $J$52 | AGF3: $K$52 | AGG3: $A$53 | AGH3: $B$53 | AGI3: $C$53 | AGJ3: $D$53 | AGK3: $E$53 | AGL3: $F$53 | AGM3: $G$53 | AGN3: $H$53 | AGO3: $I$53 | AGP3: $J$53 | AGQ3: $K$53 | AGR3: $A$54 | AGS3: $B$54 | AGT3: $C$54 | AGU3: $D$54 | AGV3: $E$54 | AGW3: $F$54 | AGX3: $G$54 | AGY3: $H$54 | AGZ3: $I$54 | AHA3: $J$54 | AHB3: $K$54 | AHC3: $A$55 | AHD3: $B$55 | AHE3: $C$55 | AHF3: $D$55 | AHG3: $E$55 | AHH3: $F$55 | AHI3: $G$55 | AHJ3: $H$55 | AHK3: $I$55 | AHL3: $J$55 | AHM3: $K$55 | AHN3: $A$56 | AHO3: $B$56 | AHP3: $C$56 | AHQ3: $D$56 | AHR3: $E$56 | AHS3: $F$56 | AHT3: $G$56 | AHU3: $H$56 | AHV3: $I$56 | AHW3: $J$56 | AHX3: $K$56 | AHY3: $A$57 | AHZ3: $B$57 | AIA3: $C$57 | AIB3: $D$57 | AIC3: $E$57 | AID3: $F$57 | AIE3: $G$57 | AIF3: $H$57 | AIG3: $I$57 | AIH3: $J$57 | AII3: $K$57 | AIJ3: $A$58 | AIK3: $B$58 | AIL3: $C$58 | AIM3: $D$58 | AIN3: $E$58 | AIO3: $F$58 | AIP3: $G$58 | AIQ3: $H$58 | AIR3: $I$58 | AIS3: $J$58 | AIT3: $K$58 | AIU3: $A$59 | AIV3: $B$59 | AIW3: $C$59 | AIX3: $D$59 | AIY3: $E$59 | AIZ3: $F$59 | AJA3: $G$59 | AJB3: $H$59 | AJC3: $I$59 | AJD3: $J$59 | AJE3: $K$59 | AJF3: $A$60 | AJG3: $B$60 | AJH3: $C$60 | AJI3: $D$60 | AJJ3: $E$60 | AJK3: $F$60 | AJL3: $G$60 | AJM3: $H$60 | AJN3: $I$60 | AJO3: $J$60 | AJP3: $K$60 | AJQ3: $A$61 | AJR3: $B$61 | AJS3: $C$61 | AJT3: $D$61 | AJU3: $E$61 | AJV3: $F$61 | AJW3: $G$61 | AJX3: $H$61 | AJY3: $I$61 | AJZ3: $J$61 | AKA3: $K$61 | AKB3: $A$62 | AKC3: $B$62 | AKD3: $C$62 | AKE3: $D$62 | AKF3: $E$62 | AKG3: $F$62 | AKH3: $G$62 | AKI3: $H$62 | AKJ3: $I$62 | AKK3: $J$62 | AKL3: $K$62 | AKM3: $A$63 | AKN3: $B$63 | AKO3: $C$63 | AKP3: $D$63 | AKQ3: $E$63 | AKR3: $F$63 | AKS3: $G$63 | AKT3: $H$63 | AKU3: $I$63 | AKV3: $J$63 | AKW3: $K$63 | AKX3: $A$64 | AKY3: $B$64 | AKZ3: $C$64 | ALA3: $D$64 | ALB3: $E$64 | ALC3: $F$64 | ALD3: $G$64 | ALE3: $H$64 | ALF3: $I$64 | ALG3: $J$64 | ALH3: $K$64 | ALI3: $A$65 | ALJ3: $B$65 | ALK3: $C$65 | ALL3: $D$65 | ALM3: $E$65 | ALN3: $F$65 | ALO3: $G$65 | ALP3: $H$65 | ALQ3: $I$65 | ALR3: $J$65 | ALS3: $K$65 | ALT3: $A$66 | ALU3: $B$66 | ALV3: $C$66 | ALW3: $D$66 | ALX3: $E$66 | ALY3: $F$66 | ALZ3: $G$66 | AMA3: $H$66 | AMB3: $I$66 | AMC3: $J$66 | AMD3: $K$66 | AME3: $A$67 | AMF3: $B$67 | AMG3: $C$67 | AMH3: $D$67 | AMI3: $E$67 | AMJ3: $F$67 | AMK3: $G$67 | AML3: $H$67 | AMM3: $I$67 | AMN3: $J$67 | AMO3: $K$67 | AMP3: $A$68 | AMQ3: $B$68 | AMR3: $C$68 | AMS3: $D$68 | AMT3: $E$68 | AMU3: $F$68 | AMV3: $G$68 | AMW3: $H$68 | AMX3: $I$68 | AMY3: $J$68 | AMZ3: $K$68 | ANA3: $A$69 | ANB3: $B$69 | ANC3: $C$69 | AND3: $D$69 | ANE3: $E$69 | ANF3: $F$69 | ANG3: $G$69 | ANH3: $H$69 | ANI3: $I$69 | ANJ3: $J$69 | ANK3: $K$69 | ANL3: $A$70 | ANM3: $B$70 | ANN3: $C$70 | ANO3: $D$70 | ANP3: $E$70 | ANQ3: $F$70 | ANR3: $G$70 | ANS3: $H$70 | ANT3: $I$70 | ANU3: $J$70 | ANV3: $K$70 | ANW3: $A$71 | ANX3: $B$71 | ANY3: $C$71 | ANZ3: $D$71 | AOA3: $E$71 | AOB3: $F$71 | AOC3: $G$71 | AOD3: $H$71 | AOE3: $I$71 | AOF3: $J$71 | AOG3: $K$71 | AOH3: $A$72 | AOI3: $B$72 | AOJ3: $C$72 | AOK3: $D$72 | AOL3: $E$72 | AOM3: $F$72 | AON3: $G$72 | AOO3: $H$72 | AOP3: $I$72 | AOQ3: $J$72 | AOR3: $K$72 | AOS3: $A$73 | AOT3: $B$73 | AOU3: $C$73 | AOV3: $D$73 | AOW3: $E$73 | AOX3: $F$73 | AOY3: $G$73 | AOZ3: $H$73 | APA3: $I$73 | APB3: $J$73 | APC3: $K$73 | APD3: $C$74 | APE3: $C$75 | APF3: $C$76
